Workbook

Sheet Barème capitalisation
B2: Table de survie de référence : | F2: INSEEH 2020-2022 (France entière) | J2: =VLOOKUP(F2,List!A:B,2,FALSE) -> (Sexe masculin) | N2: Taux d'intérêt = | Q2: 0.005 | R2: Barème de capitalisation 2024
B3: Capital constitutif d'une rente payable à terme échu | I3: Année de liquidation= | K3: 2025
C5: Âge du bénéficiaire lors du dernier arrérage
B6: Âge du bénéficiaire à la date d'attribution | C6: viagère | D6: 69 ans | E6: 68 ans | F6: 67 ans | G6: 66 ans | H6: 65 ans | I6: 64 ans | J6: 63 ans | K6: 62 ans | L6: 61 ans | M6: 60 ans | N6: 59 ans | O6: 55 ans | P6: 50 ans | Q6: 29 ans | R6: 25 ans | S6: 21 ans | T6: 20 ans | U6: 18 ans | V6: 16 ans
B7: 0 | C7: 64.58120832 | D7: 56.13018072 | E7: 55.56172787 | F7: 54.9804524 | G7: 54.38682021 | H7: 53.78098848 | I7: 53.16360933 | J7: 52.53512746 | K7: 51.89588551 | L7: 51.24634944 | M7: 50.58697818 | N7: 49.91825304 | O7: 47.15774901 | P7: 43.53724156 | Q7: 26.75737108 | R7: 23.30971799 | S7: 19.78389639 | T7: 18.8900995 | U7: 17.08770523 | V7: 15.26584951
B8: 1 | C8: 64.16019392 | D8: 55.63340089 | E8: 55.05985173 | F8: 54.47336499 | G8: 53.87441075 | H8: 53.2631476 | I8: 52.64023349 | J8: 52.00611714 | K8: 51.36114424 | L8: 50.70578492 | M8: 50.04050224 | N8: 49.36578183 | O8: 46.58052923 | P8: 42.92756309 | Q8: 25.99725715 | R8: 22.51869505 | S8: 18.96126364 | T8: 18.05945365 | U8: 16.2409005 | V8: 14.40271141
B9: 2 | C9: 63.49653514 | D9: 54.92504286 | E9: 54.34848703 | F9: 53.75892581 | G9: 53.15683172 | H9: 52.5423642 | I9: 51.91618465 | J9: 51.27874413 | K9: 50.63039014 | L9: 49.9715953 | M9: 49.30282506 | N9: 48.62456762 | O9: 45.82471415 | P9: 42.15259839 | Q9: 25.13354024 | R9: 21.63674278 | S9: 18.06066257 | T9: 17.1541251 | U9: 15.32603871 | V9: 13.47821345
B10: 3 | C10: 62.82555452 | D10: 54.20964742 | E10: 53.63010406 | F10: 53.03748792 | G10: 52.43227397 | H10: 51.81462246 | I10: 51.18519824 | J10: 50.5444547 | K10: 49.89274115 | L10: 49.23053263 | M10: 48.55829704 | N10: 47.87652508 | O10: 45.06216363 | P10: 41.3710201 | Q10: 24.26377446 | R10: 20.74885768 | S10: 17.15424733 | T10: 16.24301246 | U10: 14.4054535 | V10: 12.54805338
B11: 4 | C11: 62.14665877 | D11: 53.48671538 | E11: 52.90420995 | F11: 52.30856492 | G11: 51.70025769 | H11: 51.07944934 | I11: 50.44680811 | J11: 49.8027897 | K11: 49.14774521 | L11: 48.48215211 | M11: 47.80648069 | N11: 47.12122416 | O11: 44.29247838 | P11: 40.58246926 | Q11: 23.38778771 | R11: 19.85490603 | S11: 16.24192346 | T11: 15.32603123 | U11: 13.47908042 | V11: 11.61218705
B12: 5 | C12: 61.46429392 | D12: 52.76008906 | E12: 52.17460641 | F12: 51.575917 | G12: 50.96450068 | H12: 50.34051935 | I12: 49.70464465 | J12: 49.05733462 | K12: 48.39894216 | L12: 47.72994718 | M12: 47.05082236 | N12: 46.36206345 | O12: 43.51885979 | P12: 39.78988859 | Q12: 22.50732404 | R12: 18.9563856 | S12: 15.32493687 | T12: 14.40436346 | U12: 12.54797278 | V12: 10.6715376
B13: 6 | C13: 60.77720086 | D13: 52.028684 | E13: 51.44022073 | F13: 50.83848347 | G13: 50.22395451 | H13: 49.59679656 | I13: 48.9576847 | J13: 48.3070793 | K13: 47.64533505 | L13: 46.9729343 | M13: 46.29035215 | N13: 45.59808685 | O13: 42.7404088 | P13: 38.99245388 | Q13: 21.62190598 | R13: 18.05289016 | S13: 14.40295418 | T13: 13.47769425 | U13: 11.61185292 | V13: 9.725865052
B14: 7 | C14: 60.08599663 | D14: 51.29303045 | E14: 50.70157733 | F14: 50.09678277 | G14: 49.47913152 | H14: 48.84878712 | I14: 48.20642807 | J14: 47.55251709 | K14: 46.88741065 | L14: 46.21159358 | M14: 45.52554338 | N14: 44.82976083 | O14: 41.95756354 | P14: 38.19056607 | Q14: 20.73176219 | R14: 17.14461297 | S14: 13.47613247 | T14: 12.54617149 | U14: 10.67085022 | V14: 8.775280061
B15: 8 | C15: 59.39128092 | D15: 50.55363953 | E15: 49.95918136 | F15: 49.35131397 | G15: 48.73052457 | H15: 48.09697752 | I15: 47.45135478 | J15: 46.79412141 | K15: 46.12563571 | L15: 45.44638496 | M15: 44.75684907 | N15: 44.0575314 | O15: 41.17074108 | P15: 37.3846043 | Q15: 19.8370959 | R15: 16.23172114 | S15: 12.54460186 | T15: 11.60991595 | U15: 9.725066565 | V15: 7.819865411
B16: 9 | C16: 58.6930359 | D16: 49.81049226 | E16: 49.21301377 | F16: 48.60205793 | G16: 47.97811441 | H16: 47.34134845 | I16: 46.69244543 | J16: 46.03187279 | K16: 45.35999065 | L16: 44.67728877 | M16: 43.98424949 | N16: 43.28137873 | O16: 40.37992121 | P16: 36.57454784 | Q16: 18.93788414 | R16: 15.3141912 | S16: 11.60833842 | T16: 10.66890356 | U16: 8.774477643 | V16: 6.859596551
B17: 10 | C17: 57.99124362 | D17: 49.06356953 | E17: 48.46305537 | F17: 47.84899538 | G17: 47.22188173 | H17: 46.58188048 | I17: 45.92968052 | J17: 45.26575164 | K17: 44.5904558 | L17: 43.90428524 | M17: 43.20772477 | N17: 42.50128286 | O17: 39.58508361 | P17: 35.76037589 | Q17: 18.03410379 | R17: 14.39199958 | S17: 10.66731809 | T17: 9.723110149 | U17: 7.819059031 | V17: 5.894448805
B18: 11 | C18: 57.28530023 | D18: 48.31235652 | E18: 47.70879732 | F18: 47.09162362 | G18: 46.46133006 | H18: 45.81808355 | I18: 45.16257647 | J18: 44.49528101 | K18: 43.81656094 | L18: 43.12691101 | M18: 42.42681849 | N18: 41.71679442 | O18: 38.78580798 | P18: 34.94170628 | Q18: 17.12554944 | R18: 13.4649772 | S18: 9.721408939 | T18: 8.772413192 | U18: 6.858707188 | V18: 4.924337829
B19: 12 | C19: 56.57635621 | D19: 47.55782264 | E19: 46.95119688 | F19: 46.33088743 | G19: 45.69739147 | H19: 45.05087674 | I19: 44.39203915 | J19: 43.72135328 | K19: 43.03918476 | L19: 42.34603085 | M19: 41.64238128 | N19: 40.92874972 | O19: 37.98287148 | P19: 34.11923861 | Q19: 16.21256119 | R19: 12.53339025 | S19: 8.770801615 | T19: 7.816984197 | U19: 5.893555008 | V19: 3.949357476
B20: 13 | C20: 55.86438218 | D20: 46.79993593 | E20: 46.19022188 | F20: 45.56675448 | G20: 44.93003344 | H20: 44.28022736 | I20: 43.61803568 | J20: 42.9439354 | K20: 42.25829401 | L20: 41.5616113 | M20: 40.85437951 | N20: 40.1371149 | O20: 37.17623941 | P20: 33.29293708 | Q20: 15.29509811 | R20: 11.59719679 | S20: 7.815453105 | T20: 6.856779875 | U20: 4.923558652 | V20: 2.969463357
B21: 14 | C21: 55.1504775 | D21: 46.03960999 | E21: 45.42677344 | F21: 44.80011311 | G21: 44.16013126 | H21: 43.50699736 | I21: 42.84141443 | J21: 42.16386192 | K21: 41.47470919 | L21: 40.7744586 | M21: 40.06360489 | N21: 39.34266699 | O21: 36.36662813 | P21: 32.46343845 | Q21: 14.37342809 | R21: 10.65658891 | S21: 6.855477974 | T21: 5.891895141 | U21: 3.948773414 | V21: 1.984670714
B22: 15 | C22: 54.43347493 | D22: 45.27585619 | E22: 44.65987496 | F22: 44.029999 | G22: 43.38673317 | H22: 42.7302478 | I22: 42.06124952 | J22: 41.38022023 | K22: 40.68753121 | L22: 39.98368737 | M22: 39.26918602 | N22: 38.54454872 | O22: 35.55323871 | P22: 31.63002032 | Q22: 13.44718345 | R22: 9.711271795 | S22: 5.890655959 | T22: 4.922128627 | U22: 2.969036026 | V22: 0.994854791
B23: 16 | C23: 53.71499502 | D23: 44.51001473 | E23: 43.89084775 | F23: 43.25771419 | G23: 42.61112151 | H23: 41.95124091 | I23: 41.27878269 | J23: 40.59423124 | K23: 39.89795976 | L23: 39.19047577 | M23: 38.47227914 | N23: 37.74389415 | O23: 34.73711362 | P23: 30.79360506 | Q23: 12.51672985 | R23: 8.761496736 | S23: 4.921121365 | T23: 3.947584986 | U23: 1.984391343
B24: 17 | C24: 52.99551638 | D24: 43.74246398 | E24: 43.12006346 | F24: 42.48362342 | G24: 41.83365397 | H24: 41.17032721 | I24: 40.49435714 | J24: 39.80623069 | K24: 39.106323 | L24: 38.39514424 | M24: 37.6731969 | N24: 36.94100799 | O24: 33.91852484 | P24: 29.95442169 | Q24: 11.58209726 | R24: 7.807252805 | S24: 3.946821446 | T24: 2.968200866 | U24: 0.9947546353
B25: 18 | C25: 52.27496299 | D25: 42.97311902 | E25: 42.34743657 | F25: 41.70764057 | G25: 41.05424381 | H25: 40.38741932 | I25: 39.70788484 | J25: 39.01612989 | K25: 38.31253156 | L25: 37.59760274 | M25: 36.87184856 | N25: 36.1357988 | O25: 33.09737802 | P25: 29.11237206 | Q25: 10.64316994 | R25: 6.848420634 | S25: 2.967633128 | T25: 1.98385226
B26: 19 | C26: 51.55643243 | D26: 42.20450359 | E26: 41.57545221 | F26: 40.93221129 | G26: 40.27529638 | H26: 39.60488144 | I26: 38.92168808 | J26: 38.22620843 | K26: 37.51882165 | L26: 36.80004337 | M26: 36.07038143 | N26: 35.33036848 | O26: 32.27558763 | P26: 28.26912479 | Q26: 9.700477046 | R26: 5.885295286 | S26: 1.98361206 | T26: 0.9945341186
B27: 20 | C27: 50.83978253 | D27: 41.43645623 | E27: 40.80394763 | F27: 40.15717151 | G27: 39.49664625 | H27: 38.82254675 | I27: 38.13559862 | J27: 37.43629667 | K27: 36.72502215 | L27: 36.00229351 | M27: 35.26862141 | N27: 34.52454141 | O27: 31.45297172 | P27: 27.42448968 | Q27: 8.753790106 | R27: 4.917640407 | S27: 0.9945138357
B28: 21 | C28: 50.12023655 | D28: 40.66503747 | E28: 40.02903969 | F28: 39.37869567 | G28: 38.71452667 | H28: 38.03670855 | I28: 37.34597092 | J28: 36.64281132 | K28: 35.9276131 | L28: 35.20089759 | M28: 34.46317824 | N28: 33.71499357 | O28: 30.62647979 | P28: 26.57577491 | Q28: 7.802079762 | R28: 3.944768218
B29: 22 | C29: 49.4002911 | D29: 39.89225963 | E29: 39.25270811 | F29: 38.5987302 | G29: 37.93085005 | H29: 37.24924452 | I29: 36.55464728 | J29: 35.84755868 | K29: 35.12836418 | L29: 34.39758803 | M29: 33.65574656 | N29: 32.90338129 | O29: 29.79760996 | P29: 25.72427115 | Q29: 6.845675085 | R29: 2.966810219
B30: 23 | C30: 48.67633983 | D30: 39.1151775 | E30: 38.47205217 | F30: 37.81441982 | G30: 37.14280757 | H30: 36.45739323 | I30: 35.75891458 | J30: 35.04787476 | K30: 34.3246614 | L30: 33.58980168 | M30: 32.8438148 | N30: 32.08724532 | O30: 28.96411895 | P30: 24.86801832 | Q30: 5.883928703 | R30: 1.983388748
B31: 24 | C31: 47.94737178 | D31: 38.33297249 | E31: 37.68626621 | F31: 37.02497214 | G31: 36.34962032 | H31: 35.66038956 | I31: 34.95802175 | J31: 34.24302283 | K31: 33.5157826 | L31: 32.77683114 | M31: 32.02669057 | N31: 31.26590848 | O31: 28.12539241 | P31: 24.00648452 | Q31: 4.916690672 | R31: 0.9944323419
B32: 25 | C32: 47.21582099 | D32: 37.54759231 | E32: 36.89726523 | F32: 36.23226868 | G32: 35.55313568 | H32: 34.86004604 | I32: 34.15374579 | J32: 33.43474372 | K32: 32.70343178 | L32: 31.96034306 | M32: 31.20600259 | N32: 30.440961 | O32: 27.28286171 | P32: 23.14089276 | Q32: 3.944218389
B33: 26 | C33: 46.48019123 | D33: 36.75782832 | E33: 36.10385993 | F33: 35.43513995 | G33: 34.75220435 | H33: 34.05523397 | I33: 33.34497902 | J33: 32.62195112 | K33: 31.88654443 | L33: 31.13929502 | M33: 30.38073085 | N33: 29.61140565 | O33: 26.43562357 | P33: 22.27046296 | Q33: 2.966302808
B34: 27 | C34: 45.7437676 | D34: 35.96627185 | E34: 35.30859499 | F34: 34.63608288 | G34: 33.94927455 | H34: 33.24835184 | I34: 32.53406922 | J34: 31.80694123 | K34: 31.06736425 | L34: 30.31587739 | M34: 29.55301161 | N34: 28.77932379 | O34: 25.58553272 | P34: 21.39675263 | Q34: 1.983123895
B35: 28 | C35: 45.00225745 | D35: 35.16951082 | E35: 34.50811755 | F35: 33.83180519 | G35: 33.14111582 | H35: 32.43623233 | I35: 31.71791343 | J35: 30.98667656 | K35: 30.24292037 | L35: 29.48718699 | M35: 28.7200104 | N35: 27.9419506 | O35: 24.73011199 | P35: 20.51766185 | Q35: 0.9943301735
B36: 29 | C36: 44.25886738 | D36: 34.37005288 | E36: 33.70488824 | F36: 33.02471945 | G36: 32.33009166 | H36: 31.62118881 | I36: 30.89877394 | J36: 30.16336745 | K36: 29.41537024 | L36: 28.65532756 | M36: 27.8837764 | N36: 27.10127998 | O36: 23.87112697 | P36: 19.63465677
B37: 30 | C37: 43.51261319 | D37: 33.56710395 | E37: 32.89812578 | F37: 32.21405743 | G37: 31.51544718 | H37: 30.80248003 | I37: 30.07592341 | J37: 29.33630067 | K37: 28.58401503 | L37: 27.81961485 | M37: 27.04364022 | N37: 26.25665758 | O37: 23.00798538 | P37: 18.74722658
B38: 31 | C38: 42.76299141 | D38: 32.76025419 | E38: 32.08742661 | F38: 31.39942203 | G38: 30.69679187 | H38: 29.9797222 | I38: 29.24898486 | J38: 28.50510622 | K38: 27.74849181 | L38: 26.97969316 | M38: 26.19925345 | N38: 25.40774239 | O38: 22.14037684 | P38: 17.85510098
B39: 32 | C39: 42.01126283 | D39: 31.95045218 | E39: 31.27371832 | F39: 30.58171936 | G39: 29.87500991 | H39: 29.1537771 | I39: 28.41879728 | J39: 27.67059986 | K39: 26.90959274 | L39: 26.13633063 | M39: 25.35135988 | N39: 24.5552535 | O39: 21.26891843 | P39: 16.95876331
B40: 33 | C40: 41.25562624 | D40: 31.13629571 | E40: 30.45562556 | F40: 29.7596015 | G40: 29.04878139 | H40: 28.32335345 | I40: 27.58409853 | J40: 26.83154913 | K40: 26.06611552 | L40: 25.28835564 | M40: 24.49881902 | N40: 23.698082 | O40: 20.39263158 | P40: 16.05740593
B41: 34 | C41: 40.49941845 | D41: 30.32028968 | E41: 29.63559723 | F41: 28.93546015 | G41: 28.22043959 | H41: 27.49072487 | I41: 26.74710147 | J41: 25.99010502 | K41: 25.22014823 | L41: 24.43779233 | M41: 23.64359009 | N41: 22.83812127 | O41: 19.51313792 | P41: 15.15229409
B42: 35 | C42: 39.74126267 | D42: 29.50134874 | E42: 28.81256763 | F42: 28.10824964 | G42: 27.3889593 | H42: 26.65488706 | I42: 25.90682307 | J42: 25.14530618 | K42: 24.37075156 | L42: 23.58372378 | M42: 22.78477893 | N42: 21.97450021 | O42: 18.62966156 | P42: 14.24277674
B43: 36 | C43: 38.98187487 | D43: 28.67996371 | E43: 27.98701239 | F43: 27.27843013 | G43: 26.55478487 | H43: 25.81626821 | I43: 25.0636751 | J43: 24.29754763 | K43: 23.51830349 | L43: 22.72651068 | M43: 21.92272864 | N43: 21.10754411 | O43: 17.74245425 | P43: 13.32900918
B44: 37 | C44: 38.22033221 | D44: 27.85540288 | E44: 27.15821268 | F44: 26.44529594 | G44: 25.71722404 | H44: 24.97418978 | I44: 24.21699294 | J44: 23.44617898 | K44: 22.66216809 | L44: 21.86553178 | M44: 21.0568329 | N44: 20.23666178 | O44: 16.85098721 | P44: 12.41054451
B45: 38 | C45: 37.45692692 | D45: 27.02783574 | E45: 26.32632974 | F45: 25.60899983 | G45: 24.87642096 | H45: 24.12878711 | I45: 23.36690301 | J45: 22.59131749 | K45: 21.80245335 | L45: 21.00088563 | M45: 20.18718068 | N45: 19.36193246 | O45: 15.95529961 | P45: 11.4873693
B46: 39 | C46: 36.69270181 | D46: 26.19796408 | E46: 25.49204241 | F46: 24.77019722 | G46: 24.03300709 | H46: 23.28066721 | I46: 22.51398739 | J46: 21.7335199 | K46: 20.93969021 | L46: 20.13307697 | M46: 19.3142501 | N46: 18.48380731 | O46: 15.0557312 | P46: 10.55967724
B47: 40 | C47: 35.92826363 | D47: 25.3661512 | E47: 24.65569762 | F47: 23.92921829 | G47: 23.18729551 | H47: 22.43012571 | I47: 21.65852392 | J47: 20.87304594 | K47: 20.07411998 | L47: 19.26232841 | M47: 18.43824478 | N47: 17.60247067 | O47: 14.15238681 | P47: 9.627468838
B48: 41 | C48: 35.1612144 | D48: 24.53061962 | E48: 23.81555961 | F48: 23.08436996 | G48: 22.33763672 | H48: 21.5755576 | I48: 20.79895292 | J48: 20.00838207 | K48: 19.20427606 | L48: 18.38722101 | M48: 17.55779421 | N48: 16.71660113 | O48: 13.2441477 | P48: 8.68989118
B49: 42 | C49: 34.3932665 | D49: 23.6925134 | E49: 22.97273424 | F49: 22.23671898 | G49: 21.48505755 | H49: 20.71794897 | I49: 19.93621896 | J49: 19.14043061 | K49: 18.33101777 | L49: 17.50857044 | M49: 16.67366971 | N49: 15.82692504 | O49: 12.33155459 | P49: 7.747241517
B50: 43 | C50: 33.62639262 | D50: 22.85310715 | E50: 22.12844914 | F50: 21.38744499 | G50: 20.63068861 | H50: 19.85838038 | I50: 19.07135161 | J50: 18.27016921 | K50: 17.45526997 | L50: 16.62724788 | M50: 15.78668799 | N50: 14.93420387 | O50: 11.41514094 | P50: 6.799754247
B51: 44 | C51: 32.85966075 | D51: 22.01164041 | E51: 21.28195541 | F51: 20.53581087 | G51: 19.77380483 | H51: 18.99613906 | I51: 18.20365062 | J51: 17.39691038 | K51: 16.57635814 | L51: 15.74259201 | M51: 14.89620111 | N51: 14.03780326 | O51: 10.49432839 | P51: 5.846924515
B52: 45 | C52: 32.09080848 | D52: 21.16647891 | E52: 20.43166102 | F52: 19.68026782 | G52: 18.91290153 | H52: 18.12976535 | I52: 17.33170224 | J52: 16.51928707 | K52: 15.69296274 | L52: 14.85333158 | M52: 14.00098682 | N52: 13.13655067 | O52: 9.568149613 | P52: 4.888054074
B53: 46 | C53: 31.32537803 | D53: 20.32119647 | E53: 19.58100739 | F53: 18.82412183 | G53: 18.05114643 | H53: 17.26228587 | I53: 16.45838928 | J53: 15.64003571 | K53: 14.80767132 | L53: 13.96190283 | M53: 13.10332781 | N53: 12.23257302 | O53: 8.638088535 | P53: 3.923783577
B54: 47 | C54: 30.55877596 | D54: 19.47260486 | E54: 18.72690081 | F54: 17.96437587 | G54: 17.18564122 | H54: 16.39090305 | I54: 15.58101681 | J54: 14.75656589 | K54: 13.91799975 | L54: 13.06592964 | M54: 12.20095759 | N54: 11.32371501 | O54: 7.702448874 | P54: 2.953018753
B55: 48 | C55: 29.79529438 | D55: 18.62331868 | E55: 17.87184304 | F55: 17.10341632 | G55: 16.31865443 | H55: 15.51776515 | I55: 14.70161057 | J55: 13.87077857 | K55: 13.02572211 | L55: 12.16705716 | M55: 11.2953904 | N55: 10.41135815 | O55: 6.76206419 | P55: 1.97587449
B56: 49 | C56: 29.03521468 | D56: 17.77327901 | E56: 17.01575227 | F56: 16.24113796 | G56: 15.45005694 | H56: 14.64271867 | I56: 13.81999217 | J56: 12.98247008 | K56: 12.13060898 | L56: 11.26502981 | M56: 10.38634414 | N56: 9.49519341 | O56: 5.81651428 | P56: 0.9917848009
B57: 50 | C57: 28.27572056 | D57: 16.92049948 | E57: 16.15669796 | F57: 15.37566733 | G57: 14.57803359 | H57: 13.76400794 | I57: 12.93446659 | J57: 12.0900071 | K57: 11.23108981 | L57: 10.35834084 | M57: 9.472376804 | N57: 8.573844448 | O57: 4.864693908
B58: 51 | C58: 27.52102592 | D58: 16.06729288 | E58: 15.29686502 | F58: 14.50905857 | G58: 13.70450498 | H58: 12.88341727 | I58: 12.04667926 | J58: 11.19489367 | K58: 10.32852487 | L58: 9.448204385 | M58: 8.55455419 | N58: 7.648226638 | O58: 3.906897448
B59: 52 | C59: 26.77070029 | D59: 15.21305748 | E59: 14.43564019 | F59: 13.64068666 | G59: 12.82883405 | H59: 12.00029733 | I59: 11.15596832 | J59: 10.29645522 | K59: 9.422226613 | L59: 8.533919741 | M59: 7.632162233 | N59: 6.717612357 | O59: 2.942341336
B60: 53 | C60: 26.02460485 | D60: 14.3573445 | E60: 13.57255386 | F60: 12.77006066 | G60: 11.9505081 | H60: 11.11411319 | I60: 10.26177621 | J60: 9.394111126 | K60: 8.511590965 | L60: 7.614859017 | M60: 6.704548863 | N60: 5.781325012 | O60: 1.970247736
B61: 54 | C61: 25.28286904 | D61: 13.49982459 | E61: 12.70724581 | F61: 11.89678879 | G61: 11.06910312 | H61: 10.22440795 | I61: 9.363612503 | J61: 8.487336848 | K61: 7.596058692 | L61: 6.690427714 | M61: 5.77108378 | N61: 4.838697998 | O61: 0.9898001737
B62: 55 | C62: 24.54340736 | D62: 12.63893941 | E62: 11.83819315 | F62: 11.01938442 | G62: 10.1831695 | H62: 9.329769803 | I62: 8.46010392 | J62: 7.574798301 | K62: 6.674335582 | L62: 5.759372135 | M62: 4.830554423 | N62: 3.888560465
B63: 56 | C63: 23.8076975 | D63: 11.77503897 | E63: 10.96567006 | F63: 10.13804418 | G63: 9.292824662 | H63: 8.430235321 | I63: 7.551204637 | J63: 6.656365805 | K63: 5.746206656 | L63: 4.821390633 | M63: 3.882571157 | N63: 2.93043355
B64: 57 | C64: 23.08024548 | D64: 10.90983836 | E64: 10.09120388 | F64: 9.254103422 | G64: 8.399207926 | H64: 7.526743754 | I64: 6.637650021 | J64: 5.73256717 | K64: 4.811988616 | L64: 3.876585398 | M64: 2.927018416 | N64: 1.96398084
B65: 58 | C65: 22.35689107 | D65: 10.0406064 | E65: 9.212159568 | F65: 8.365025417 | G65: 7.499882931 | H65: 6.616961185 | I65: 5.717210552 | J65: 4.801279152 | K65: 3.869666314 | L65: 2.923051119 | M65: 1.96210239 | N65: 0.9875216052
B66: 59 | C66: 21.63939437 | D66: 9.167480237 | E66: 8.328565087 | F66: 7.470726487 | G66: 6.594651997 | H66: 5.700573588 | I66: 4.789453641 | J66: 3.861948464 | K66: 2.918563699 | L66: 1.959987005 | M66: 0.9868956589
B67: 60 | C67: 20.92672971 | D67: 8.289209203 | E67: 7.439154648 | F67: 6.569925371 | G67: 5.682218061 | H67: 4.776267771 | I67: 3.853049659 | J67: 2.913228749 | K67: 1.957317395 | L67: 0.9860123888
B68: 61 | C68: 20.22359714 | D68: 7.406800256 | E68: 6.544686793 | F68: 5.663126595 | G68: 4.762826234 | H68: 3.844024096 | I68: 2.907709175 | J68: 1.954555928 | K68: 0.9850839778
B69: 62 | C69: 19.52982039 | D69: 6.518953128 | E69: 5.643785648 | F69: 4.748876972 | G69: 3.834944372 | H69: 2.902229844 | I69: 1.951737355 | J69: 0.9841515772
B70: 63 | C70: 18.84432159 | D70: 5.623932004 | E70: 4.734671141 | F70: 3.825351178 | G70: 2.896700936 | H70: 1.948966309 | I70: 0.9831674314
B71: 64 | C71: 18.1669506 | D71: 4.720217965 | E71: 3.815732285 | F71: 2.890844078 | G71: 1.946294643 | H71: 0.982334083
B72: 65 | C72: 17.49365803 | D72: 3.805104543 | E72: 2.884352941 | F72: 1.942831902 | G72: 0.9812960543
B73: 66 | C73: 16.82709505 | D73: 2.877631553 | E73: 1.93933001 | F73: 0.9798631545
B74: 67 | C74: 16.17290315 | D74: 1.936768813 | E74: 0.9791845433
B75: 68 | C75: 15.51670592 | D75: 0.9779405484
B76: 69 | C76: 14.866717
B77: 70 | C77: 14.21964857
B78: 71 | C78: 13.57548795
B79: 72 | C79: 12.93583928
B80: 73 | C80: 12.29988468
B81: 74 | C81: 11.67152943
B82: 75 | C82: 11.04960004
B83: 76 | C83: 10.43544553
B84: 77 | C84: 9.834670677
B85: 78 | C85: 9.24009414
B86: 79 | C86: 8.656817811
B87: 80 | C87: 8.089505754
B88: 81 | C88: 7.531928723
B89: 82 | C89: 6.986655431
B90: 83 | C90: 6.459371743
B91: 84 | C91: 5.952357757
B92: 85 | C92: 5.469325821
B93: 86 | C93: 5.006999916
B94: 87 | C94: 4.569664841
B95: 88 | C95: 4.164488881
B96: 89 | C96: 3.786089654
B97: 90 | C97: 3.435259148
B98: 91 | C98: 3.1105787
B99: 92 | C99: 2.814167784
B100: 93 | C100: 2.552981571
B101: 94 | C101: 2.311010476
B102: 95 | C102: 2.099010848
B103: 96 | C103: 1.902012586
B104: 97 | C104: 1.734449348
B105: 98 | C105: 1.578045244
B106: 99 | C106: 1.417595928
B107: 100 | C107: 1.252218705
B108: 101 | C108: 1.092927764
B109: 102 | C109: 0.920702391
B110: 103 | C110: 0.5923869027

Sheet Tables (hidden)
A1: Âge | B1: INSEE 06-08 | D1: INSEE 10-12 | F1: INSEE 14-16 | H1: INSEE 17-19 | J1: INSEE 19-21 | L1: TD 88-90 | M1: INSEE 20-22
B2: LxH | C2: LxF | D2: LxH | E2: LxF | F2: LxH | G2: LxF | H2: LxH | I2: LxF | J2: LxH | K2: LxF | M2: LxH | N2: LxF | O2: Mixte
A3: 0 | B3: 100000 | C3: 100000 | D3: 100000 | E3: 100000 | F3: 100000 | G3: 100000 | H3: 100000 | I3: 100000 | J3: 100000 | K3: 100000 | L3: 100000 | M3: 100000 | N3: 100000 | O3: 100000
A4: =+A3+1 -> 1 | B4: 99569 | C4: 99659 | D4: 99608 | E4: 99670 | F4: 99616 | G4: 99683 | H4: 99569 | I4: 99666 | J4: 99611 | K4: 99679 | L4: 99129 | M4: 99607 | N4: 99673 | O4: 99639
A5: 2 | B5: 99531 | C5: 99629 | D5: 99577 | E5: 99643 | F5: 99589 | G5: 99658 | H5: 99538 | I5: 99643 | J5: 99585 | K5: 99657 | L5: 99057 | M5: 99583 | N5: 99650 | O5: 99616
A6: 3 | B6: 99509 | C6: 99612 | D6: 99558 | E6: 99627 | F6: 99571 | G6: 99643 | H6: 99518 | I6: 99630 | J6: 99567 | K6: 99643 | L6: 99010 | M6: 99565 | N6: 99634 | O6: 99599
A7: 4 | B7: 99492 | C7: 99597 | D7: 99543 | E7: 99616 | F7: 99557 | G7: 99632 | H7: 99504 | I7: 99618 | J7: 99556 | K7: 99633 | L7: 98977 | M7: 99554 | N7: 99624 | O7: 99588
A8: 5 | B8: 99479 | C8: 99585 | D8: 99532 | E8: 99608 | F8: 99545 | G8: 99624 | H8: 99493 | I8: 99610 | J8: 99544 | K8: 99626 | L8: 98948 | M8: 99543 | N8: 99617 | O8: 99579
A9: 6 | B9: 99469 | C9: 99575 | D9: 99521 | E9: 99600 | F9: 99535 | G9: 99617 | H9: 99483 | I9: 99602 | J9: 99535 | K9: 99619 | L9: 98921 | M9: 99534 | N9: 99609 | O9: 99571
A10: 7 | B10: 99458 | C10: 99566 | D10: 99511 | E10: 99591 | F10: 99526 | G10: 99610 | H10: 99474 | I10: 99595 | J10: 99527 | K10: 99613 | L10: 98897 | M10: 99526 | N10: 99602 | O10: 99563
A11: 8 | B11: 99449 | C11: 99558 | D11: 99502 | E11: 99584 | F11: 99517 | G11: 99603 | H11: 99466 | I11: 99590 | J11: 99518 | K11: 99607 | L11: 98876 | M11: 99518 | N11: 99596 | O11: 99556
A12: 9 | B12: 99439 | C12: 99550 | D12: 99494 | E12: 99577 | F12: 99509 | G12: 99597 | H12: 99459 | I12: 99585 | J12: 99511 | K12: 99602 | L12: 98855 | M12: 99510 | N12: 99591 | O12: 99550
A13: 10 | B13: 99431 | C13: 99542 | D13: 99485 | E13: 99571 | F13: 99501 | G13: 99590 | H13: 99452 | I13: 99578 | J13: 99503 | K13: 99597 | L13: 98835 | M13: 99502 | N13: 99586 | O13: 99543
A14: 11 | B14: 99423 | C14: 99534 | D14: 99477 | E14: 99565 | F14: 99494 | G14: 99584 | H14: 99445 | I14: 99573 | J14: 99497 | K14: 99593 | L14: 98814 | M14: 99495 | N14: 99580 | O14: 99537
A15: 12 | B15: 99412 | C15: 99526 | D15: 99468 | E15: 99557 | F15: 99487 | G15: 99577 | H15: 99436 | I15: 99567 | J15: 99490 | K15: 99587 | L15: 98793 | M15: 99487 | N15: 99574 | O15: 99530
A16: 13 | B16: 99399 | C16: 99518 | D16: 99457 | E16: 99550 | F16: 99478 | G16: 99571 | H16: 99427 | I16: 99560 | J16: 99480 | K16: 99580 | L16: 98771 | M16: 99478 | N16: 99567 | O16: 99521
A17: 14 | B17: 99385 | C17: 99508 | D17: 99447 | E17: 99540 | F17: 99467 | G17: 99563 | H17: 99417 | I17: 99551 | J17: 99470 | K17: 99571 | L17: 98745 | M17: 99466 | N17: 99557 | O17: 99511
A18: 15 | B18: 99366 | C18: 99497 | D18: 99430 | E18: 99529 | F18: 99452 | G18: 99553 | H18: 99403 | I18: 99543 | J18: 99457 | K18: 99563 | L18: 98712 | M18: 99453 | N18: 99548 | O18: 99499
A19: 16 | B19: 99340 | C19: 99485 | D19: 99407 | E19: 99517 | F19: 99434 | G19: 99541 | H19: 99384 | I19: 99532 | J19: 99441 | K19: 99552 | L19: 98667 | M19: 99436 | N19: 99538 | O19: 99486
A20: 17 | B20: 99308 | C20: 99468 | D20: 99375 | E20: 99502 | F20: 99411 | G20: 99528 | H20: 99360 | I20: 99519 | J20: 99418 | K20: 99540 | L20: 98606 | M20: 99414 | N20: 99526 | O20: 99469
A21: 18 | B21: 99261 | C21: 99449 | D21: 99336 | E21: 99487 | F21: 99380 | G21: 99514 | H21: 99331 | I21: 99507 | J21: 99389 | K21: 99529 | L21: 98520 | M21: 99387 | N21: 99514 | O21: 99449
A22: 19 | B22: 99199 | C22: 99427 | D22: 99284 | E22: 99466 | F22: 99338 | G22: 99497 | H22: 99292 | I22: 99487 | J22: 99349 | K22: 99509 | L22: 98406 | M22: 99349 | N22: 99494 | O22: 99420
A23: 20 | B23: 99130 | C23: 99403 | D23: 99220 | E23: 99443 | F23: 99287 | G23: 99478 | H23: 99241 | I23: 99471 | J23: 99302 | K23: 99493 | L23: 98277 | M23: 99300 | N23: 99475 | O23: 99385
A24: 21 | B24: 99055 | C24: 99378 | D24: 99153 | E24: 99417 | F24: 99235 | G24: 99455 | H24: 99188 | I24: 99452 | J24: 99251 | K24: 99474 | L24: 98137 | M24: 99249 | N24: 99455 | O24: 99349
A25: 22 | B25: 98977 | C25: 99351 | D25: 99086 | E25: 99395 | F25: 99178 | G25: 99436 | H25: 99128 | I25: 99431 | J25: 99195 | K25: 99454 | L25: 97987 | M25: 99191 | N25: 99434 | O25: 99310
A26: 23 | B26: 98897 | C26: 99327 | D26: 99012 | E26: 99370 | F26: 99121 | G26: 99416 | H26: 99070 | I26: 99412 | J26: 99140 | K26: 99433 | L26: 97830 | M26: 99133 | N26: 99412 | O26: 99270
A27: 24 | B27: 98809 | C27: 99300 | D27: 98938 | E27: 99346 | F27: 99062 | G27: 99394 | H27: 99010 | I27: 99391 | J27: 99085 | K27: 99412 | L27: 97677 | M27: 99077 | N27: 99391 | O27: 99230
A28: 25 | B28: 98722 | C28: 99273 | D28: 98861 | E28: 99323 | F28: 99000 | G28: 99372 | H28: 98949 | I28: 99372 | J28: 99029 | K28: 99393 | L28: 97524 | M28: 99018 | N28: 99369 | O28: 99189
A29: 26 | B29: 98637 | C29: 99247 | D29: 98781 | E29: 99298 | F29: 98936 | G29: 99350 | H29: 98884 | I29: 99349 | J29: 98969 | K29: 99372 | L29: 97373 | M29: 98959 | N29: 99346 | O29: 99148
A30: 27 | B30: 98549 | C30: 99217 | D30: 98700 | E30: 99270 | F30: 98866 | G30: 99325 | H30: 98812 | I30: 99327 | J30: 98900 | K30: 99352 | L30: 97222 | M30: 98893 | N30: 99326 | O30: 99104
A31: 28 | B31: 98462 | C31: 99188 | D31: 98619 | E31: 99241 | F31: 98796 | G31: 99301 | H31: 98747 | I31: 99303 | J31: 98835 | K31: 99328 | L31: 97070 | M31: 98829 | N31: 99302 | O31: 99060
A32: 29 | B32: 98371 | C32: 99157 | D32: 98531 | E32: 99209 | F32: 98722 | G32: 99274 | H32: 98676 | I32: 99278 | J32: 98765 | K32: 99301 | L32: 96916 | M32: 98760 | N32: 99275 | O32: 99011
A33: 30 | B33: 98283 | C33: 99124 | D33: 98446 | E33: 99179 | F33: 98646 | G33: 99243 | H33: 98601 | I33: 99247 | J33: 98694 | K33: 99272 | L33: 96759 | M33: 98688 | N33: 99245 | O33: 98960
A34: 31 | B34: 98194 | C34: 99089 | D34: 98357 | E34: 99147 | F34: 98565 | G34: 99214 | H34: 98524 | I34: 99219 | J34: 98620 | K34: 99242 | L34: 96597 | M34: 98614 | N34: 99215 | O34: 98907
A35: 32 | B35: 98099 | C35: 99051 | D35: 98271 | E35: 99115 | F35: 98484 | G35: 99181 | H35: 98440 | I35: 99188 | J35: 98538 | K35: 99210 | L35: 96429 | M35: 98535 | N35: 99183 | O35: 98851
A36: 33 | B36: 97998 | C36: 99011 | D36: 98177 | E36: 99078 | F36: 98399 | G36: 99146 | H36: 98353 | I36: 99156 | J36: 98456 | K36: 99178 | L36: 96255 | M36: 98455 | N36: 99149 | O36: 98794
A37: 34 | B37: 97896 | C37: 98967 | D37: 98080 | E37: 99037 | F37: 98312 | G37: 99109 | H37: 98263 | I37: 99119 | J37: 98367 | K37: 99142 | L37: 96071 | M37: 98366 | N37: 99111 | O37: 98729
A38: 35 | B38: 97783 | C38: 98914 | D38: 97977 | E38: 98994 | F38: 98214 | G38: 99071 | H38: 98170 | I38: 99078 | J38: 98272 | K38: 99102 | L38: 95878 | M38: 98271 | N38: 99070 | O38: 98661
A39: 36 | B39: 97665 | C39: 98856 | D39: 97871 | E39: 98948 | F39: 98117 | G39: 99030 | H39: 98068 | I39: 99035 | J39: 98168 | K39: 99056 | L39: 95676 | M39: 98168 | N39: 99025 | O39: 98586
A40: 37 | B40: 97525 | C40: 98798 | D40: 97752 | E40: 98894 | F40: 98014 | G40: 98980 | H40: 97960 | I40: 98986 | J40: 98060 | K40: 99009 | L40: 95463 | M40: 98059 | N40: 98980 | O40: 98508
A41: 38 | B41: 97384 | C41: 98729 | D41: 97623 | E41: 98832 | F41: 97898 | G41: 98924 | H41: 97842 | I41: 98931 | J41: 97945 | K41: 98957 | L41: 95237 | M41: 97943 | N41: 98928 | O41: 98424
A42: 39 | B42: 97231 | C42: 98650 | D42: 97484 | E42: 98762 | F42: 97775 | G42: 98863 | H42: 97720 | I42: 98873 | J42: 97825 | K42: 98901 | L42: 94997 | M42: 97817 | N42: 98872 | O42: 98332
A43: 40 | B43: 97072 | C43: 98562 | D43: 97330 | E43: 98689 | F43: 97638 | G43: 98796 | H43: 97586 | I43: 98810 | J43: 97692 | K43: 98840 | L43: 94746 | M43: 97679 | N43: 98808 | O43: 98230
A44: 41 | B44: 96889 | C44: 98471 | D44: 97165 | E44: 98609 | F44: 97497 | G44: 98725 | H44: 97447 | I44: 98741 | J44: 97552 | K44: 98771 | L44: 94476 | M44: 97535 | N44: 98741 | O44: 98123
A45: 42 | B45: 96687 | C45: 98369 | D45: 96980 | E45: 98518 | F45: 97339 | G45: 98645 | H45: 97296 | I45: 98662 | J45: 97404 | K45: 98694 | L45: 94182 | M45: 97380 | N45: 98663 | O45: 98006
A46: 43 | B46: 96467 | C46: 98255 | D46: 96776 | E46: 98418 | F46: 97165 | G46: 98559 | H46: 97133 | I46: 98578 | J46: 97241 | K46: 98610 | L46: 93868 | M46: 97208 | N46: 98579 | O46: 97877
A47: 44 | B47: 96232 | C47: 98131 | D47: 96561 | E47: 98306 | F47: 96975 | G47: 98456 | H47: 96948 | I47: 98479 | J47: 97057 | K47: 98518 | L47: 93515 | M47: 97021 | N47: 98487 | O47: 97736
A48: 45 | B48: 95961 | C48: 97995 | D48: 96319 | E48: 98181 | F48: 96763 | G48: 98341 | H48: 96749 | I48: 98374 | J48: 96862 | K48: 98421 | L48: 93133 | M48: 96825 | N48: 98387 | O48: 97588
A49: 46 | B49: 95665 | C49: 97840 | D49: 96058 | E49: 98047 | F49: 96527 | G49: 98216 | H49: 96525 | I49: 98257 | J49: 96642 | K49: 98308 | L49: 92727 | M49: 96603 | N49: 98275 | O49: 97419
A50: 47 | B50: 95332 | C50: 97673 | D50: 95771 | E50: 97892 | F50: 96268 | G50: 98078 | H50: 96286 | I50: 98126 | J50: 96408 | K50: 98184 | L50: 92295 | M50: 96368 | N50: 98155 | O50: 97240
A51: 48 | B51: 94962 | C51: 97493 | D51: 95451 | E51: 97726 | F51: 95978 | G51: 97925 | H51: 96019 | I51: 97980 | J51: 96146 | K51: 98047 | L51: 91833 | M51: 96106 | N51: 98021 | O51: 97040
A52: 49 | B52: 94558 | C52: 97294 | D52: 95101 | E52: 97540 | F52: 95666 | G52: 97750 | H52: 95731 | I52: 97820 | J52: 95855 | K52: 97895 | L52: 91332 | M52: 95815 | N52: 97873 | O52: 96819
A53: 50 | B53: 94103 | C53: 97074 | D53: 94709 | E53: 97344 | F53: 95322 | G53: 97571 | H53: 95406 | I53: 97645 | J53: 95537 | K53: 97722 | L53: 90778 | M53: 95503 | N53: 97703 | O53: 96576
A54: 51 | B54: 93606 | C54: 96841 | D54: 94281 | E54: 97123 | F54: 94953 | G54: 97369 | H54: 95047 | I54: 97447 | J54: 95189 | K54: 97530 | L54: 90171 | M54: 95155 | N54: 97517 | O54: 96307
A55: 52 | B55: 93062 | C55: 96583 | D55: 93801 | E55: 96882 | F55: 94555 | G55: 97152 | H55: 94662 | I55: 97230 | J55: 94804 | K55: 97315 | L55: 89511 | M55: 94771 | N55: 97308 | O55: 96009
A56: 53 | B56: 92481 | C56: 96315 | D56: 93269 | E56: 96628 | F56: 94113 | G56: 96923 | H56: 94240 | I56: 97000 | J56: 94386 | K56: 97086 | L56: 88791 | M56: 94350 | N56: 97085 | O56: 95685
A57: 54 | B57: 91856 | C57: 96034 | D57: 92697 | E57: 96355 | F57: 93627 | G57: 96673 | H57: 93777 | I57: 96753 | J57: 93927 | K57: 96839 | L57: 88011 | M57: 93890 | N57: 96840 | O57: 95330
A58: 55 | B58: 91202 | C58: 95738 | D58: 92071 | E58: 96055 | F58: 93078 | G58: 96396 | H58: 93280 | I58: 96486 | J58: 93437 | K58: 96576 | L58: 87165 | M58: 93397 | N58: 96578 | O58: 94949
A59: 56 | B59: 90502 | C59: 95424 | D59: 91391 | E59: 95742 | F59: 92477 | G59: 96099 | H59: 92736 | I59: 96194 | J59: 92901 | K59: 96293 | L59: 86241 | M59: 92864 | N59: 96295 | O59: 94538
A60: 57 | B60: 89757 | C60: 95096 | D60: 90662 | E60: 95409 | F60: 91818 | G60: 95785 | H60: 92136 | I60: 95877 | J60: 92308 | K60: 95993 | L60: 85256 | M60: 92272 | N60: 95994 | O60: 94088
A61: 58 | B61: 88976 | C61: 94734 | D61: 89895 | E61: 95053 | F61: 91099 | G61: 95439 | H61: 91493 | I61: 95533 | J61: 91674 | K61: 95666 | L61: 84211 | M61: 91635 | N61: 95664 | O61: 93601
A62: 59 | B62: 88158 | C62: 94366 | D62: 89081 | E62: 94682 | F62: 90338 | G62: 95074 | H62: 90778 | I62: 95174 | J62: 90981 | K62: 95308 | L62: 83083 | M62: 90944 | N62: 95307 | O62: 93074
A63: 60 | B63: 87298 | C63: 93977 | D63: 88217 | E63: 94291 | F63: 89519 | G63: 94681 | H63: 90004 | I63: 94777 | J63: 90229 | K63: 94917 | L63: 81884 | M63: 90201 | N63: 94920 | O63: 92504
A64: 61 | B64: 86380 | C64: 93559 | D64: 87310 | E64: 93875 | F64: 88635 | G64: 94267 | H64: 89169 | I64: 94348 | J64: 89408 | K64: 94497 | L64: 80602 | M64: 89384 | N64: 94503 | O64: 91882
A65: 62 | B65: 85418 | C65: 93111 | D65: 86354 | E65: 93432 | F65: 87694 | G65: 93823 | H65: 88253 | I65: 93898 | J65: 88512 | K65: 94046 | L65: 79243 | M65: 88491 | N65: 94052 | O65: 91205
A66: 63 | B66: 84395 | C66: 92623 | D66: 85369 | E66: 92963 | F66: 86697 | G66: 93357 | H66: 87271 | I66: 93422 | J66: 87545 | K66: 93561 | L66: 77807 | M66: 87524 | N66: 93563 | O66: 90471
A67: 64 | B67: 83303 | C67: 92107 | D67: 84329 | E67: 92473 | F67: 85643 | G67: 92864 | H67: 86225 | I67: 92920 | J67: 86505 | K67: 93041 | L67: 76295 | M67: 86481 | N67: 93035 | O67: 89679
A68: =+A67+1 -> 65 | B68: 82172 | C68: 91570 | D68: 83241 | E68: 91949 | F68: 84559 | G68: 92335 | H68: 85148 | I68: 92386 | J68: 85412 | K68: 92480 | L68: 74720 | M68: 85378 | N68: 92466 | O68: 88837
A69: 66 | B69: 80973 | C69: 91004 | D69: 82076 | E69: 91382 | F69: 83417 | G69: 91769 | H69: 84006 | I69: 91812 | J69: 84240 | K69: 91881 | L69: 73075 | M69: 84200 | N69: 91855 | O69: 87936
A70: 67 | B70: 79720 | C70: 90391 | D70: 80874 | E70: 90788 | F70: 82236 | G70: 91185 | H70: 82802 | I70: 91209 | J70: 82982 | K70: 91252 | L70: 71366 | M70: 82917 | N70: 91202 | O70: 86960
A71: 68 | B71: 78395 | C71: 89745 | D71: 79586 | E71: 90147 | F71: 81003 | G71: 90571 | H71: 81559 | I71: 90565 | J71: 81684 | K71: 90590 | L71: 69559 | M71: 81597 | N71: 90519 | O71: 85951
A72: 69 | B72: 76957 | C72: 89029 | D72: 78241 | E72: 89438 | F72: 79694 | G72: 89905 | H72: 80242 | I72: 89876 | J72: 80312 | K72: 89870 | L72: 67655 | M72: 80196 | N72: 89790 | O72: 84878
A73: 70 | B73: 75449 | C73: 88247 | D73: 76836 | E73: 88709 | F73: 78304 | G73: 89180 | H73: 78858 | I73: 89145 | J73: 78870 | K73: 89106 | L73: 65649 | M73: 78728 | N73: 89005 | O73: 83743
A74: 71 | B74: 73863 | C74: 87394 | D74: 75334 | E74: 87917 | F74: 76824 | G74: 88392 | H74: 77403 | I74: 88364 | J74: 77353 | K74: 88276 | L74: 63543 | M74: 77190 | N74: 88150 | O74: 82538
A75: 72 | B75: 72139 | C75: 86466 | D75: 73757 | E75: 87056 | F75: 75306 | G75: 87538 | H75: 75877 | I75: 87507 | J75: 75759 | K75: 87397 | L75: 61285 | M75: 75570 | N75: 87239 | O75: 81265
A76: 73 | B76: 70282 | C76: 85456 | D76: 72070 | E76: 86108 | F76: 73685 | G76: 86605 | H76: 74272 | I76: 86575 | J76: 74095 | K76: 86450 | L76: 58911 | M76: 73869 | N76: 86273 | O76: 79923
A77: 74 | B77: 68323 | C77: 84337 | D77: 70268 | E77: 85060 | F77: 71962 | G77: 85591 | H77: 72560 | I77: 85572 | J77: 72325 | K77: 85425 | L77: 56416 | M77: 72061 | N77: 85229 | O77: 78487
A78: 75 | B78: 66205 | C78: 83101 | D78: 68344 | E78: 83936 | F78: 70148 | G78: 84507 | H78: 70750 | I78: 84474 | J78: 70433 | K78: 84285 | L78: 53818 | M78: 70149 | N78: 84066 | O78: 76941
A79: 76 | B79: 63949 | C79: 81730 | D79: 66274 | E79: 82684 | F79: 68213 | G79: 83304 | H79: 68839 | I79: 83270 | J79: 68426 | K79: 83023 | L79: 51086 | M79: 68121 | N79: 82793 | O79: 75281
A80: 77 | B80: 61537 | C80: 80191 | D80: 64065 | E80: 81258 | F80: 66139 | G80: 81946 | H80: 66797 | I80: 81969 | J80: 66294 | K80: 81675 | L80: 48251 | M80: 65939 | N80: 81392 | O80: 73480
A81: 78 | B81: 58973 | C81: 78485 | D81: 61690 | E81: 79690 | F81: 63921 | G81: 80472 | H81: 64619 | I81: 80525 | J81: 64023 | K81: 80172 | L81: 45284 | M81: 63645 | N81: 79851 | O81: 71554
A82: 79 | B82: 56226 | C82: 76607 | D82: 59117 | E82: 77957 | F82: 61541 | G82: 78846 | H82: 62278 | I82: 78938 | J82: 61603 | K82: 78532 | L82: 42203 | M82: 61203 | N82: 78176 | O82: 69486
A83: 80 | B83: 53322 | C83: 74500 | D83: 56343 | E83: 75990 | F83: 58957 | G83: 77020 | H83: 59760 | I83: 77161 | J83: 59010 | K83: 76706 | L83: 39041 | M83: 58581 | N83: 76324 | O83: 67239
A84: 81 | B84: 50225 | C84: 72186 | D84: 53442 | E84: 73781 | F84: 56197 | G84: 74961 | H84: 57114 | I84: 75159 | J84: 56291 | K84: 74655 | L84: 35824 | M84: 55821 | N84: 74243 | O84: 64811
A85: 82 | B85: 46997 | C85: 69607 | D85: 50337 | E85: 71316 | F85: 53207 | G85: 72651 | H85: 54239 | I85: 72911 | J85: 53374 | K85: 72350 | L85: 32518 | M85: 52906 | N85: 71926 | O85: 62188
A86: 83 | B86: 43634 | C86: 66749 | D86: 47027 | E86: 68573 | F86: 50037 | G86: 70091 | H86: 51190 | I86: 70444 | J86: 50307 | K86: 69827 | L86: 29220 | M86: 49801 | N86: 69358 | O86: 59345
A87: 84 | B87: 40170 | C87: 63598 | D87: 43549 | E87: 65518 | F87: 46673 | G87: 67205 | H87: 47913 | I87: 67680 | J87: 47025 | K87: 67020 | L87: 25962 | M87: 46501 | N87: 66517 | O87: 56269
A88: 85 | B88: 36618 | C88: 60150 | D88: 39965 | E88: 62173 | F88: 43110 | G88: 64001 | H88: 44421 | I88: 64597 | J88: 43522 | K88: 63909 | L88: 22780 | M88: 42999 | N88: 63380 | O88: 52945
A89: 86 | B89: 32979 | C89: 56358 | D89: 36256 | E89: 58488 | F89: 39365 | G89: 60442 | H89: 40772 | I89: 61200 | J89: 39859 | K89: 60498 | L89: 19725 | M89: 39346 | N89: 59954 | O89: 49403
A90: 87 | B90: 29316 | C90: 52308 | D90: 32475 | E90: 54500 | F90: 35525 | G90: 56536 | H90: 36965 | I90: 57449 | J90: 36055 | K90: 56750 | L90: 16843 | M90: 35548 | N90: 56196 | O90: 45624
A91: 88 | B91: 25687 | C91: 47967 | D91: 28706 | E91: 50271 | F91: 31576 | G91: 52320 | H91: 33034 | I91: 53337 | J91: 32119 | K91: 52664 | L91: 14133 | M91: 31611 | N91: 52097 | O91: 41608
A92: 89 | B92: 22153 | C92: 43426 | D92: 24970 | E92: 45795 | F92: 27633 | G92: 47851 | H92: 29047 | I92: 48928 | J92: 28172 | K92: 48285 | L92: 11624 | M92: 27643 | N92: 47732 | O92: 37447
A93: 90 | B93: 18785 | C93: 38811 | D93: 21348 | E93: 41077 | F93: 23813 | G93: 43122 | H93: 25073 | I93: 44236 | J93: 24232 | K93: 43664 | L93: 9389 | M93: 23715 | N93: 43113 | O93: 33181
A94: 91 | B94: 15625 | C94: 34169 | D94: 17865 | E94: 36188 | F94: 20123 | G94: 38230 | H94: 21213 | I94: 39354 | J94: 20429 | K94: 38819 | L94: 7438 | M94: 19918 | N94: 38260 | O94: 28869
A95: 92 | B95: 12677 | C95: 29464 | D95: 14633 | E95: 31306 | F95: 16687 | G95: 33276 | H95: 17581 | I95: 34399 | J95: 16794 | K95: 33823 | L95: 5763 | M95: 16325 | N95: 33255 | O95: 24587
A96: 93 | B96: 10094 | C96: 24915 | D96: 11730 | E96: 26547 | F96: 13461 | G96: 28382 | H96: 14212 | I96: 29530 | J96: 13427 | K96: 28900 | L96: 4350 | M96: 12995 | N96: 28347 | O96: 20487
A97: 94 | B97: 7848 | C97: 20607 | D97: 9159 | E97: 22030 | F97: 10565 | G97: 23693 | H97: 11233 | I97: 24760 | J97: 10455 | K97: 24133 | L97: 3211 | M97: 10070 | N97: 23606 | O97: 16676
A98: 95 | B98: 5898 | C98: 16616 | D98: 6981 | E98: 17943 | F98: 8088 | G98: 19269 | H98: 8650 | I98: 20254 | J98: 7902 | K98: 19639 | L98: 2315 | M98: 7547 | N98: 19161 | O98: 13215
A99: 96 | B99: 4311 | C99: 13079 | D99: 5184 | E99: 14283 | F99: 6043 | G99: 15239 | H99: 6439 | I99: 16138 | J99: 5801 | K99: 15577 | L99: 1635 | M99: 5486 | N99: 15139 | O99: 10197
A100: 97 | B100: 3076 | C100: 10030 | D100: 3715 | E100: 10950 | F100: 4387 | G100: 11778 | H100: 4637 | I100: 12497 | J100: 4107 | K100: 11979 | L100: 1115 | M100: 3835 | N100: 11584 | O100: 7617
A101: 98 | B101: 2125 | C101: 7478 | D101: 2579 | E101: 8145 | F101: 3064 | G101: 8809 | H101: 3227 | I101: 9421 | J101: 2818 | K101: 8939 | L101: 740 | M101: 2593 | N101: 8590 | O101: 5519
A102: 99 | B102: 1407 | C102: 5359 | D102: 1731 | E102: 5902 | F102: 2056 | G102: 6322 | H102: 2196 | I102: 6858 | J102: 1885 | K102: 6454 | L102: 453 | M102: 1701 | N102: 6140 | O102: 3867
A103: 100 | B103: 0 | C103: 0 | D103: 1123 | E103: 4128 | F103: 1354 | G103: 4406 | H103: 1446 | I103: 4874 | J103: 1207 | K103: 4523 | L103: 263 | M103: 1076 | N103: 4262 | O103: 2631
A104: 101 | B104: 0 | C104: 0 | D104: 728 | E104: 2805 | F104: 874 | G104: 2939 | H104: 964 | I104: 3337 | J104: 736 | K104: 3027 | L104: 145 | M104: 647 | N104: 2832 | O104: 1713
A105: 102 | B105: 0 | C105: 0 | D105: 463 | E105: 1823 | F105: 544 | G105: 1874 | H105: 635 | I105: 2209 | J105: 444 | K105: 1967 | L105: 76 | M105: 370 | N105: 1811 | O105: 1073
A106: 103 | B106: 0 | C106: 0 | D106: 283 | E106: 1121 | F106: 335 | G106: 1177 | H106: 402 | I106: 1414 | J106: 262 | K106: 1251 | L106: 37 | M106: 215 | N106: 1115 | O106: 654
A107: 104 | B107: 0 | C107: 0 | D107: 167 | E107: 658 | F107: 212 | G107: 722 | H107: 264 | I107: 874 | J107: 161 | K107: 775 | L107: 17 | M107: 128 | N107: 659 | O107: 387
A108: 105 | B108: 0 | C108: 0 | D108: 0 | E108: 0 | F108: 0 | G108: 0 | H108: 0 | I108: 0 | J108: 0 | K108: 0 | L108: 7 | M108: 0 | N108: 0 | O108: 0
A109: 106 | B109: 0 | C109: 0 | D109: 0 | E109: 0 | F109: 0 | G109: 0 | H109: 0 | I109: 0 | J109: 0 | K109: 0 | L109: 2 | M109: 0 | N109: 0 | O109: 0
A110: 107 | B110: 0 | C110: 0 | D110: 0 | E110: 0 | F110: 0 | G110: 0 | H110: 0 | I110: 0 | J110: 0 | K110: 0 | L110: 0 | M110: 0 | N110: 0 | O110: 0
A111: 108 | B111: 0 | C111: 0 | D111: 0 | E111: 0 | F111: 0 | G111: 0 | H111: 0 | I111: 0 | J111: 0 | K111: 0 | L111: 0 | M111: 0 | N111: 0 | O111: 0
A112: 109 | B112: 0 | C112: 0 | D112: 0 | E112: 0 | F112: 0 | G112: 0 | H112: 0 | I112: 0 | J112: 0 | K112: 0 | L112: 0 | M112: 0 | N112: 0 | O112: 0
A113: 110 | B113: 0 | C113: 0 | D113: 0 | E113: 0 | F113: 0 | G113: 0 | H113: 0 | I113: 0 | J113: 0 | K113: 0 | L113: 0 | M113: 0 | N113: 0 | O113: 0
A114: 111 | B114: 0 | C114: 0 | D114: 0 | E114: 0 | F114: 0 | G114: 0 | H114: 0 | I114: 0 | J114: 0 | K114: 0 | L114: 0 | M114: 0 | N114: 0 | O114: 0
A115: 112 | B115: 0 | C115: 0 | D115: 0 | E115: 0 | F115: 0 | G115: 0 | H115: 0 | I115: 0 | J115: 0 | K115: 0 | L115: 0 | M115: 0 | N115: 0 | O115: 0
A116: 113 | B116: 0 | C116: 0 | D116: 0 | E116: 0 | F116: 0 | G116: 0 | H116: 0 | I116: 0 | J116: 0 | K116: 0 | L116: 0 | M116: 0 | N116: 0 | O116: 0
A117: 114 | B117: 0 | C117: 0 | D117: 0 | E117: 0 | F117: 0 | G117: 0 | H117: 0 | I117: 0 | J117: 0 | K117: 0 | L117: 0 | M117: 0 | N117: 0 | O117: 0
A118: 115 | B118: 0 | C118: 0 | D118: 0 | E118: 0 | F118: 0 | G118: 0 | H118: 0 | I118: 0 | J118: 0 | K118: 0 | L118: 0 | M118: 0 | N118: 0 | O118: 0
A119: 116 | B119: 0 | C119: 0 | D119: 0 | E119: 0 | F119: 0 | G119: 0 | H119: 0 | I119: 0 | J119: 0 | K119: 0 | L119: 0 | M119: 0 | N119: 0 | O119: 0
A120: 117 | B120: 0 | C120: 0 | D120: 0 | E120: 0 | F120: 0 | G120: 0 | H120: 0 | I120: 0 | J120: 0 | K120: 0 | L120: 0 | M120: 0 | N120: 0 | O120: 0
A121: 118 | B121: 0 | C121: 0 | D121: 0 | E121: 0 | F121: 0 | G121: 0 | H121: 0 | I121: 0 | J121: 0 | K121: 0 | L121: 0 | M121: 0 | N121: 0 | O121: 0
A122: 119 | B122: 0 | C122: 0 | D122: 0 | E122: 0 | F122: 0 | G122: 0 | H122: 0 | I122: 0 | J122: 0 | K122: 0 | L122: 0 | M122: 0 | N122: 0 | O122: 0
A123: 120 | B123: 0 | C123: 0 | D123: 0 | E123: 0 | F123: 0 | G123: 0 | H123: 0 | I123: 0 | J123: 0 | K123: 0 | L123: 0 | M123: 0 | N123: 0 | O123: 0

Sheet qgINSEE2021-2121_F-Qx (hidden)
A1: 1900 | B1: 1901 | C1: 1902 | D1: 1903 | E1: 1904 | F1: 1905 | G1: 1906 | H1: 1907 | I1: 1908 | J1: 1909 | K1: 1910 | L1: 1911 | M1: 1912 | N1: 1913 | O1: 1914 | P1: 1915 | Q1: 1916 | R1: 1917 | S1: 1918 | T1: 1919 | U1: 1920 | V1: 1921 | W1: 1922 | X1: 1923 | Y1: 1924 | Z1: 1925 | AA1: 1926 | AB1: 1927 | AC1: 1928 | AD1: 1929 | AE1: 1930 | AF1: 1931 | AG1: 1932 | AH1: 1933 | AI1: 1934 | AJ1: 1935 | AK1: 1936 | AL1: 1937 | AM1: 1938 | AN1: 1939 | AO1: 1940 | AP1: 1941 | AQ1: 1942 | AR1: 1943 | AS1: 1944 | AT1: 1945 | AU1: 1946 | AV1: 1947 | AW1: 1948 | AX1: 1949 | AY1: 1950 | AZ1: 1951 | BA1: 1952 | BB1: 1953 | BC1: 1954 | BD1: 1955 | BE1: 1956 | BF1: 1957 | BG1: 1958 | BH1: 1959 | BI1: 1960 | BJ1: 1961 | BK1: 1962 | BL1: 1963 | BM1: 1964 | BN1: 1965 | BO1: 1966 | BP1: 1967 | BQ1: 1968 | BR1: 1969 | BS1: 1970 | BT1: 1971 | BU1: 1972 | BV1: 1973 | BW1: 1974 | BX1: 1975 | BY1: 1976 | BZ1: 1977 | CA1: 1978 | CB1: 1979 | CC1: 1980 | CD1: 1981 | CE1: 1982 | CF1: 1983 | CG1: 1984 | CH1: 1985 | CI1: 1986 | CJ1: 1987 | CK1: 1988 | CL1: 1989 | CM1: 1990 | CN1: 1991 | CO1: 1992 | CP1: 1993 | CQ1: 1994 | CR1: 1995 | CS1: 1996 | CT1: 1997 | CU1: 1998 | CV1: 1999 | CW1: 2000 | CX1: 2001 | CY1: 2002 | CZ1: 2003 | DA1: 2004 | DB1: 2005 | DC1: 2006 | DD1: 2007 | DE1: 2008 | DF1: 2009 | DG1: 2010 | DH1: 2011 | DI1: 2012 | DJ1: 2013 | DK1: 2014 | DL1: 2015 | DM1: 2016 | DN1: 2017 | DO1: 2018 | DP1: 2019 | DQ1: 2020 | DR1: 2021 | DS1: 2022
A2: 0.144193 | B2: 0.131422 | C2: 0.126662 | D2: 0.12943 | E2: 0.133332 | F2: 0.126495 | G2: 0.130758 | H2: 0.119138 | I2: 0.119618 | J2: 0.10637 | K2: 0.11187 | L2: 0.134429 | M2: 0.101325 | N2: 0.101791 | O2: 0.105473 | P2: 0.09937 | Q2: 0.121284 | R2: 0.122086 | S2: 0.135035 | T2: 0.132971 | U2: 0.094376 | V2: 0.100753 | W2: 0.081794 | X2: 0.086203 | Y2: 0.079912 | Z2: 0.081371 | AA2: 0.08776 | AB2: 0.078393 | AC2: 0.086404 | AD2: 0.082148 | AE2: 0.074415 | AF2: 0.067622 | AG2: 0.068725 | AH2: 0.066832 | AI2: 0.063425 | AJ2: 0.061659 | AK2: 0.061625 | AL2: 0.05889 | AM2: 0.061638 | AN2: 0.066537 | AO2: 0.073967 | AP2: 0.068184 | AQ2: 0.069291 | AR2: 0.068688 | AS2: 0.082818 | AT2: 0.092554 | AU2: 0.062881 | AV2: 0.056013 | AW2: 0.050714 | AX2: 0.049862 | AY2: 0.043629 | AZ2: 0.043014 | BA2: 0.036485 | BB2: 0.036018 | BC2: 0.03445 | BD2: 0.031407 | BE2: 0.03026 | BF2: 0.028635 | BG2: 0.026488 | BH2: 0.023914 | BI2: 0.023446 | BJ2: 0.021972 | BK2: 0.021749 | BL2: 0.021092 | BM2: 0.019442 | BN2: 0.01871 | BO2: 0.018285 | BP2: 0.017607 | BQ2: 0.017334 | BR2: 0.016791 | BS2: 0.015637 | BT2: 0.014517 | BU2: 0.013718 | BV2: 0.013065 | BW2: 0.012582 | BX2: 0.011962158 | BY2: 0.010717146 | BZ2: 0.009824393 | CA2: 0.009298435 | CB2: 0.008885591 | CC2: 0.008639764 | CD2: 0.008180727 | CE2: 0.008184522 | CF2: 0.007679717 | CG2: 0.007478767 | CH2: 0.007051022 | CI2: 0.007128263 | CJ2: 0.006492388 | CK2: 0.00672022 | CL2: 0.006472545 | CM2: 0.006157271 | CN2: 0.006125242 | CO2: 0.00558534 | CP2: 0.005209763 | CQ2: 0.005025748 | CR2: 0.004371161 | CS2: 0.004309463 | CT2: 0.004235504 | CU2: 0.004299325 | CV2: 0.004025213 | CW2: 0.003947453 | CX2: 0.004145391 | CY2: 0.003707907 | CZ2: 0.003749419 | DA2: 0.003571348 | DB2: 0.003436521 | DC2: 0.003410372 | DD2: 0.003255337 | DE2: 0.003506664 | DF2: 0.003488118 | DG2: 0.003418742 | DH2: 0.003296965 | DI2: 0.003203644 | DJ2: 0.003406836 | DK2: 0.003266817 | DL2: 0.003459156 | DM2: 0.003483384 | DN2: 0.003656069 | DO2: 0.003539618 | DP2: 0.003400705 | DQ2: 0.003372647 | DR2: 0.003403111 | DS2: 0.003385463
A3: 0.029779 | B3: 0.028623 | C3: 0.02848 | D3: 0.028334 | E3: 0.028402 | F3: 0.029222 | G3: 0.028055 | H3: 0.027533 | I3: 0.026128 | J3: 0.027695 | K3: 0.031868 | L3: 0.026111 | M3: 0.024991 | N3: 0.028025 | O3: 0.026956 | P3: 0.02836 | Q3: 0.030464 | R3: 0.040349 | S3: 0.026028 | T3: 0.021706 | U3: 0.018271 | V3: 0.018026 | W3: 0.019497 | X3: 0.018338 | Y3: 0.020302 | Z3: 0.020215 | AA3: 0.018286 | AB3: 0.020251 | AC3: 0.016773 | AD3: 0.015887 | AE3: 0.014763 | AF3: 0.014653 | AG3: 0.013375 | AH3: 0.012376 | AI3: 0.01254 | AJ3: 0.011962 | AK3: 0.011371 | AL3: 0.010931 | AM3: 0.012204 | AN3: 0.012176 | AO3: 0.01104 | AP3: 0.010904 | AQ3: 0.010402 | AR3: 0.011445 | AS3: 0.012809 | AT3: 0.007806 | AU3: 0.005723 | AV3: 0.005553 | AW3: 0.005491 | AX3: 0.004717 | AY3: 0.005377 | AZ3: 0.004589 | BA3: 0.003882 | BB3: 0.003824 | BC3: 0.003605 | BD3: 0.002922 | BE3: 0.003104 | BF3: 0.002906 | BG3: 0.002441 | BH3: 0.002055 | BI3: 0.002238 | BJ3: 0.002253 | BK3: 0.001676 | BL3: 0.001616 | BM3: 0.001411 | BN3: 0.001404 | BO3: 0.001423 | BP3: 0.001391 | BQ3: 0.00129 | BR3: 0.001257 | BS3: 0.001126 | BT3: 0.001003 | BU3: 0.001065 | BV3: 0.000946 | BW3: 0.001010915 | BX3: 0.000929985 | BY3: 0.000829679 | BZ3: 0.000851561 | CA3: 0.000834025 | CB3: 0.000799378 | CC3: 0.000789441 | CD3: 0.000783443 | CE3: 0.000721594 | CF3: 0.00062292 | CG3: 0.000690272 | CH3: 0.000597423 | CI3: 0.00055991 | CJ3: 0.000608617 | CK3: 0.00055398 | CL3: 0.000602034 | CM3: 0.00053946 | CN3: 0.000530066 | CO3: 0.000521203 | CP3: 0.000530935 | CQ3: 0.000441294 | CR3: 0.000396214 | CS3: 0.000394736 | CT3: 0.000351895 | CU3: 0.000369717 | CV3: 0.00039409 | CW3: 0.000358184 | CX3: 0.000373683 | CY3: 0.000334431 | CZ3: 0.000332694 | DA3: 0.000286684 | DB3: 0.000296626 | DC3: 0.000299213 | DD3: 0.000309971 | DE3: 0.000281449 | DF3: 0.000254092 | DG3: 0.000277098 | DH3: 0.000261292 | DI3: 0.000265881 | DJ3: 0.000277492 | DK3: 0.000276001 | DL3: 0.000264049 | DM3: 0.000255644 | DN3: 0.000254751 | DO3: 0.000258911 | DP3: 0.000238857 | DQ3: 0.000229786 | DR3: 0.000244515 | DS3: 0.000243145
A4: 0.016802 | B4: 0.015894 | C4: 0.014932 | D4: 0.015067 | E4: 0.014909 | F4: 0.012132 | G4: 0.012086 | H4: 0.011558 | I4: 0.011996 | J4: 0.012672 | K4: 0.01151 | L4: 0.010538 | M4: 0.012159 | N4: 0.013258 | O4: 0.012674 | P4: 0.013566 | Q4: 0.02216 | R4: 0.012243 | S4: 0.009894 | T4: 0.008431 | U4: 0.007429 | V4: 0.007302 | W4: 0.007237 | X4: 0.008125 | Y4: 0.007806 | Z4: 0.007358 | AA4: 0.007382 | AB4: 0.006405 | AC4: 0.006325 | AD4: 0.005934 | AE4: 0.00561 | AF4: 0.005608 | AG4: 0.004994 | AH4: 0.004926 | AI4: 0.00439 | AJ4: 0.004366 | AK4: 0.004192 | AL4: 0.00452 | AM4: 0.004729 | AN4: 0.004319 | AO4: 0.004742 | AP4: 0.005174 | AQ4: 0.004942 | AR4: 0.004735 | AS4: 0.002897 | AT4: 0.002379 | AU4: 0.002214 | AV4: 0.001985 | AW4: 0.001595 | AX4: 0.001776 | AY4: 0.001664 | AZ4: 0.001655 | BA4: 0.001342 | BB4: 0.001321 | BC4: 0.001221 | BD4: 0.001186 | BE4: 0.001074 | BF4: 0.001025 | BG4: 0.00094 | BH4: 0.000921 | BI4: 0.000952 | BJ4: 0.000856 | BK4: 0.000881 | BL4: 0.000714 | BM4: 0.000753 | BN4: 0.000797 | BO4: 0.00067 | BP4: 0.000753 | BQ4: 0.000627 | BR4: 0.000641 | BS4: 0.000702 | BT4: 0.000591 | BU4: 0.000631 | BV4: 0.00067498 | BW4: 0.000483111 | BX4: 0.000523938 | BY4: 0.000445229 | BZ4: 0.000433897 | CA4: 0.000487162 | CB4: 0.000490169 | CC4: 0.00046286 | CD4: 0.00049275 | CE4: 0.000399427 | CF4: 0.000380993 | CG4: 0.000355719 | CH4: 0.000337717 | CI4: 0.000367961 | CJ4: 0.000346712 | CK4: 0.000323865 | CL4: 0.000298556 | CM4: 0.000297494 | CN4: 0.00024275 | CO4: 0.000276807 | CP4: 0.000244614 | CQ4: 0.000226424 | CR4: 0.000216222 | CS4: 0.000218082 | CT4: 0.000217282 | CU4: 0.000211775 | CV4: 0.000221929 | CW4: 0.00020627 | CX4: 0.000188251 | CY4: 0.000187522 | CZ4: 0.000187567 | DA4: 0.000172642 | DB4: 0.000181384 | DC4: 0.000178932 | DD4: 0.00017119 | DE4: 0.000172689 | DF4: 0.000132046 | DG4: 0.000145607 | DH4: 0.000153842 | DI4: 0.000166066 | DJ4: 0.000151219 | DK4: 0.000148285 | DL4: 0.00014048 | DM4: 0.000146854 | DN4: 0.000140234 | DO4: 0.000159618 | DP4: 0.000154152 | DQ4: 0.000140035 | DR4: 0.00013925 | DS4: 0.00013847
A5: 0.009972 | B5: 0.009586 | C5: 0.009462 | D5: 0.009272 | E5: 0.008482 | F5: 0.008156 | G5: 0.007788 | H5: 0.007748 | I5: 0.008092 | J5: 0.007961 | K5: 0.006761 | L5: 0.007631 | M5: 0.008775 | N5: 0.00819 | O5: 0.00859 | P5: 0.012478 | Q5: 0.007485 | R5: 0.006638 | S5: 0.005709 | T5: 0.005136 | U5: 0.004772 | V5: 0.004635 | W5: 0.004959 | X5: 0.004873 | Y5: 0.004833 | Z5: 0.004558 | AA5: 0.004197 | AB5: 0.003919 | AC5: 0.003905 | AD5: 0.003502 | AE5: 0.003664 | AF5: 0.003608 | AG5: 0.003292 | AH5: 0.002977 | AI5: 0.00288 | AJ5: 0.002631 | AK5: 0.003165 | AL5: 0.003149 | AM5: 0.003107 | AN5: 0.003322 | AO5: 0.004303 | AP5: 0.003671 | AQ5: 0.003095 | AR5: 0.001866 | AS5: 0.001487 | AT5: 0.001434 | AU5: 0.001349 | AV5: 0.001053 | AW5: 0.001155 | AX5: 0.000981 | AY5: 0.000903 | AZ5: 0.000872 | BA5: 0.000856 | BB5: 0.000797 | BC5: 0.000721 | BD5: 0.000775 | BE5: 0.000705 | BF5: 0.000568 | BG5: 0.000635 | BH5: 0.000655 | BI5: 0.000577 | BJ5: 0.000623 | BK5: 0.00054 | BL5: 0.000553 | BM5: 0.00055 | BN5: 0.000501 | BO5: 0.000513 | BP5: 0.000512 | BQ5: 0.000546 | BR5: 0.000507 | BS5: 0.000538 | BT5: 0.000411 | BU5: 0.000481962 | BV5: 0.000398331 | BW5: 0.000488043 | BX5: 0.000393943 | BY5: 0.000430531 | BZ5: 0.000445213 | CA5: 0.000338915 | CB5: 0.000321366 | CC5: 0.000321845 | CD5: 0.000289682 | CE5: 0.000306706 | CF5: 0.000321535 | CG5: 0.000290746 | CH5: 0.000246635 | CI5: 0.000262914 | CJ5: 0.000241079 | CK5: 0.000234252 | CL5: 0.000192491 | CM5: 0.00018734 | CN5: 0.000180192 | CO5: 0.000202405 | CP5: 0.000225499 | CQ5: 0.00017326 | CR5: 0.000173618 | CS5: 0.000174873 | CT5: 0.000209502 | CU5: 0.000154933 | CV5: 0.00017654 | CW5: 0.000155688 | CX5: 0.000143943 | CY5: 0.000161268 | CZ5: 0.00014107 | DA5: 0.000137654 | DB5: 0.000148255 | DC5: 0.000125512 | DD5: 0.000106303 | DE5: 0.000126833 | DF5: 0.000133027 | DG5: 0.000103435 | DH5: 0.000118728 | DI5: 0.000119641 | DJ5: 0.000125545 | DK5: 0.000130673 | DL5: 0.00010121 | DM5: 0.000102296 | DN5: 0.000111516 | DO5: 0.000118028 | DP5: 0.000121252 | DQ5: 0.000120572 | DR5: 0.000119897 | DS5: 0.000119225
A6: 0.007295 | B6: 0.007477 | C6: 0.004805 | D6: 0.006427 | E6: 0.006282 | F6: 0.005595 | G6: 0.005559 | H6: 0.005823 | I6: 0.00608 | J6: 0.00542 | K6: 0.005781 | L6: 0.006654 | M6: 0.005924 | N6: 0.006718 | O6: 0.009441 | P6: 0.005692 | Q6: 0.005102 | R6: 0.00403 | S6: 0.004027 | T6: 0.003593 | U6: 0.003544 | V6: 0.00391 | W6: 0.003914 | X6: 0.003797 | Y6: 0.003721 | Z6: 0.003299 | AA6: 0.003143 | AB6: 0.002898 | AC6: 0.002834 | AD6: 0.002802 | AE6: 0.002668 | AF6: 0.002425 | AG6: 0.002461 | AH6: 0.002275 | AI6: 0.002175 | AJ6: 0.00248 | AK6: 0.00245 | AL6: 0.002354 | AM6: 0.00258 | AN6: 0.002903 | AO6: 0.003364 | AP6: 0.002816 | AQ6: 0.001634 | AR6: 0.00113 | AS6: 0.001078 | AT6: 0.001023 | AU6: 0.000846 | AV6: 0.000842 | AW6: 0.000715 | AX6: 0.00071 | AY6: 0.000688 | AZ6: 0.000618 | BA6: 0.000615 | BB6: 0.000567 | BC6: 0.000529 | BD6: 0.000554 | BE6: 0.000516 | BF6: 0.000501 | BG6: 0.000469 | BH6: 0.000447 | BI6: 0.000439 | BJ6: 0.000426 | BK6: 0.000409 | BL6: 0.000477 | BM6: 0.000399 | BN6: 0.000448 | BO6: 0.000386 | BP6: 0.000472 | BQ6: 0.000389 | BR6: 0.00041 | BS6: 0.000406 | BT6: 0.00034688 | BU6: 0.00037752 | BV6: 0.000396475 | BW6: 0.00032626 | BX6: 0.000299238 | BY6: 0.000286474 | BZ6: 0.000322432 | CA6: 0.000314325 | CB6: 0.000320026 | CC6: 0.000320344 | CD6: 0.000257481 | CE6: 0.000235486 | CF6: 0.000248031 | CG6: 0.000250935 | CH6: 0.000199046 | CI6: 0.000227809 | CJ6: 0.000210609 | CK6: 0.000196065 | CL6: 0.000186392 | CM6: 0.000153939 | CN6: 0.00017054 | CO6: 0.000138069 | CP6: 0.00019027 | CQ6: 0.000145973 | CR6: 0.000117109 | CS6: 0.000141448 | CT6: 0.000167983 | CU6: 0.000114838 | CV6: 0.000108002 | CW6: 0.000107129 | CX6: 0.00013405 | CY6: 0.000113667 | CZ6: 0.000113555 | DA6: 0.000107369 | DB6: 8,70058E-05 | DC6: 8,92062E-05 | DD6: 7,05015E-05 | DE6: 0.000109085 | DF6: 9,44637E-05 | DG6: 7,55006E-05 | DH6: 9,73391E-05 | DI6: 9,13714E-05 | DJ6: 8,70903E-05 | DK6: 0.000110432 | DL6: 6,33644E-05 | DM6: 7,88318E-05 | DN6: 9,73144E-05 | DO6: 8,94398E-05 | DP6: 8,88349E-05 | DQ6: 8,82342E-05 | DR6: 8,76376E-05 | DS6: 8,70452E-05
A7: 0.005418 | B7: 0.005429 | C7: 0.005131 | D7: 0.005067 | E7: 0.004458 | F7: 0.004169 | G7: 0.004853 | H7: 0.004609 | I7: 0.004175 | J7: 0.004945 | K7: 0.005044 | L7: 0.004947 | M7: 0.005228 | N7: 0.007903 | O7: 0.00429 | P7: 0.004097 | Q7: 0.003687 | R7: 0.002942 | S7: 0.002935 | T7: 0.002935 | U7: 0.003218 | V7: 0.00329 | W7: 0.002703 | X7: 0.00319 | Y7: 0.00291 | Z7: 0.002768 | AA7: 0.002648 | AB7: 0.002458 | AC7: 0.002395 | AD7: 0.002208 | AE7: 0.0022 | AF7: 0.002068 | AG7: 0.001913 | AH7: 0.001788 | AI7: 0.002099 | AJ7: 0.002066 | AK7: 0.001973 | AL7: 0.002262 | AM7: 0.002791 | AN7: 0.002892 | AO7: 0.002087 | AP7: 0.001212 | AQ7: 0.00105 | AR7: 0.000827 | AS7: 0.000808 | AT7: 0.000727 | AU7: 0.000741 | AV7: 0.000602 | AW7: 0.000588 | AX7: 0.000467 | AY7: 0.000508 | AZ7: 0.000429 | BA7: 0.000485 | BB7: 0.000451 | BC7: 0.000552 | BD7: 0.000392 | BE7: 0.000413 | BF7: 0.000425 | BG7: 0.000456 | BH7: 0.000388 | BI7: 0.000444 | BJ7: 0.000377 | BK7: 0.000394 | BL7: 0.000396 | BM7: 0.000441 | BN7: 0.000414 | BO7: 0.000391 | BP7: 0.000428 | BQ7: 0.000363 | BR7: 0.000286 | BS7: 0.00031644 | BT7: 0.000321998 | BU7: 0.000304847 | BV7: 0.000293103 | BW7: 0.000316933 | BX7: 0.00036746 | BY7: 0.000267279 | BZ7: 0.00025908 | CA7: 0.000290179 | CB7: 0.000241494 | CC7: 0.000196954 | CD7: 0.000253899 | CE7: 0.000212847 | CF7: 0.000196477 | CG7: 0.000218848 | CH7: 0.000176048 | CI7: 0.000206255 | CJ7: 0.000166556 | CK7: 0.000171745 | CL7: 0.000164539 | CM7: 0.000138652 | CN7: 0.000131903 | CO7: 0.000128443 | CP7: 0.000133846 | CQ7: 0.000134907 | CR7: 0.000106038 | CS7: 0.000133139 | CT7: 0.00012889 | CU7: 0.000105397 | CV7: 9,16749E-05 | CW7: 0.000106282 | CX7: 0.000106773 | CY7: 9,85809E-05 | CZ7: 0.0001042 | DA7: 8,54297E-05 | DB7: 8,70656E-05 | DC7: 7,85751E-05 | DD7: 8,39253E-05 | DE7: 8,98134E-05 | DF7: 8,70064E-05 | DG7: 7,73518E-05 | DH7: 8,61099E-05 | DI7: 8,94259E-05 | DJ7: 7,51243E-05 | DK7: 7,08733E-05 | DL7: 6,754E-05 | DM7: 7,40356E-05 | DN7: 7,25666E-05 | DO7: 7,1917E-05 | DP7: 7,12733E-05 | DQ7: 7,06355E-05 | DR7: 7,00034E-05 | DS7: 6,93771E-05
A8: 0.004324 | B8: 0.004204 | C8: 0.004006 | D8: 0.003787 | E8: 0.003453 | F8: 0.003658 | G8: 0.003523 | H8: 0.003624 | I8: 0.004096 | J8: 0.004087 | K8: 0.00402 | L8: 0.004376 | M8: 0.006536 | N8: 0.003871 | O8: 0.003255 | P8: 0.002974 | Q8: 0.002671 | R8: 0.002553 | S8: 0.002577 | T8: 0.002642 | U8: 0.002345 | V8: 0.002325 | W8: 0.002698 | X8: 0.002484 | Y8: 0.002217 | Z8: 0.002173 | AA8: 0.002064 | AB8: 0.002113 | AC8: 0.001878 | AD8: 0.001851 | AE8: 0.001754 | AF8: 0.00185 | AG8: 0.001693 | AH8: 0.001795 | AI8: 0.001936 | AJ8: 0.00174 | AK8: 0.001995 | AL8: 0.00266 | AM8: 0.002648 | AN8: 0.001781 | AO8: 0.001203 | AP8: 0.000874 | AQ8: 0.000748 | AR8: 0.000752 | AS8: 0.000604 | AT8: 0.000524 | AU8: 0.000486 | AV8: 0.000459 | AW8: 0.000443 | AX8: 0.000433 | AY8: 0.000383 | AZ8: 0.000465 | BA8: 0.000445 | BB8: 0.000419 | BC8: 0.000356 | BD8: 0.000349 | BE8: 0.000397 | BF8: 0.000358 | BG8: 0.000348 | BH8: 0.000318 | BI8: 0.000316 | BJ8: 0.000338 | BK8: 0.000341 | BL8: 0.000371 | BM8: 0.000364 | BN8: 0.000391 | BO8: 0.000355 | BP8: 0.000339 | BQ8: 0.000354 | BR8: 0.000334842 | BS8: 0.000293523 | BT8: 0.000292884 | BU8: 0.000259246 | BV8: 0.000292246 | BW8: 0.000279431 | BX8: 0.000227226 | BY8: 0.000254636 | BZ8: 0.000232957 | CA8: 0.000252185 | CB8: 0.000210391 | CC8: 0.000216703 | CD8: 0.000219415 | CE8: 0.000177607 | CF8: 0.000160359 | CG8: 0.000181044 | CH8: 0.000178439 | CI8: 0.000160737 | CJ8: 0.000157466 | CK8: 0.000143455 | CL8: 0.000157341 | CM8: 0.000119372 | CN8: 0.000117403 | CO8: 0.000117446 | CP8: 0.00012941 | CQ8: 0.000113265 | CR8: 0.000106541 | CS8: 0.000109917 | CT8: 9,8337E-05 | CU8: 9,11327E-05 | CV8: 9,72537E-05 | CW8: 9,99467E-05 | CX8: 8,42876E-05 | CY8: 8,76697E-05 | CZ8: 9,10419E-05 | DA8: 8,21267E-05 | DB8: 9,13665E-05 | DC8: 8,15219E-05 | DD8: 7,95137E-05 | DE8: 6,94764E-05 | DF8: 7,19652E-05 | DG8: 6,62461E-05 | DH8: 7,51096E-05 | DI8: 8,57962E-05 | DJ8: 7,01723E-05 | DK8: 5,85998E-05 | DL8: 7,20044E-05 | DM8: 7,14114E-05 | DN8: 7,06103E-05 | DO8: 6,98182E-05 | DP8: 6,90352E-05 | DQ8: 6,8261E-05 | DR8: 6,74956E-05 | DS8: 6,67388E-05
A9: 0.003423 | B9: 0.003236 | C9: 0.003239 | D9: 0.003174 | E9: 0.003381 | F9: 0.002957 | G9: 0.003083 | H9: 0.003474 | I9: 0.003761 | J9: 0.00327 | K9: 0.003643 | L9: 0.005529 | M9: 0.003328 | N9: 0.002694 | O9: 0.002408 | P9: 0.002145 | Q9: 0.002195 | R9: 0.002198 | S9: 0.002284 | T9: 0.002432 | U9: 0.002596 | V9: 0.002171 | W9: 0.002163 | X9: 0.001999 | Y9: 0.001945 | Z9: 0.001856 | AA9: 0.001788 | AB9: 0.001742 | AC9: 0.001607 | AD9: 0.001451 | AE9: 0.001584 | AF9: 0.001328 | AG9: 0.001602 | AH9: 0.001703 | AI9: 0.001532 | AJ9: 0.001884 | AK9: 0.002559 | AL9: 0.002221 | AM9: 0.001468 | AN9: 0.000908 | AO9: 0.000692 | AP9: 0.000732 | AQ9: 0.000571 | AR9: 0.000504 | AS9: 0.000391 | AT9: 0.000406 | AU9: 0.000435 | AV9: 0.000366 | AW9: 0.000391 | AX9: 0.000326 | AY9: 0.000356 | AZ9: 0.000346 | BA9: 0.000372 | BB9: 0.000293 | BC9: 0.000316 | BD9: 0.000342 | BE9: 0.000291 | BF9: 0.000316 | BG9: 0.000325 | BH9: 0.000306 | BI9: 0.000296 | BJ9: 0.000291 | BK9: 0.000327 | BL9: 0.000362 | BM9: 0.00033 | BN9: 0.000304 | BO9: 0.000268 | BP9: 0.000313 | BQ9: 0.00027247 | BR9: 0.000312014 | BS9: 0.00025416 | BT9: 0.000283025 | BU9: 0.000235188 | BV9: 0.000269898 | BW9: 0.000270942 | BX9: 0.0002429 | BY9: 0.000176641 | BZ9: 0.000243043 | CA9: 0.000184276 | CB9: 0.000196036 | CC9: 0.000165408 | CD9: 0.000173592 | CE9: 0.000164103 | CF9: 0.000134695 | CG9: 0.000144894 | CH9: 0.00016318 | CI9: 0.000126377 | CJ9: 0.000134119 | CK9: 0.000116372 | CL9: 0.000133397 | CM9: 0.000127549 | CN9: 0.000116258 | CO9: 8,77299E-05 | CP9: 9,48015E-05 | CQ9: 9,43765E-05 | CR9: 0.000106213 | CS9: 8,21609E-05 | CT9: 7,38486E-05 | CU9: 7,88396E-05 | CV9: 7,21868E-05 | CW9: 7,69046E-05 | CX9: 7,57988E-05 | CY9: 8,07813E-05 | CZ9: 6,66564E-05 | DA9: 6,44821E-05 | DB9: 7,96519E-05 | DC9: 8,30661E-05 | DD9: 6,64255E-05 | DE9: 7,60115E-05 | DF9: 4,58885E-05 | DG9: 5,57339E-05 | DH9: 5,08497E-05 | DI9: 6,29245E-05 | DJ9: 4,72893E-05 | DK9: 5,524E-05 | DL9: 6,0838E-05 | DM9: 6,00795E-05 | DN9: 5,93305E-05 | DO9: 5,85909E-05 | DP9: 5,78604E-05 | DQ9: 5,71391E-05 | DR9: 5,64268E-05 | DS9: 5,57233E-05
A10: 0.002935 | B10: 0.002917 | C10: 0.002743 | D10: 0.002872 | E10: 0.002774 | F10: 0.002621 | G10: 0.002978 | H10: 0.003272 | I10: 0.00283 | J10: 0.003307 | K10: 0.004947 | L10: 0.002799 | M10: 0.002525 | N10: 0.002215 | O10: 0.001846 | P10: 0.001885 | Q10: 0.001805 | R10: 0.002107 | S10: 0.002108 | T10: 0.001857 | U10: 0.002036 | V10: 0.001935 | W10: 0.001826 | X10: 0.001681 | Y10: 0.00175 | Z10: 0.001574 | AA10: 0.001566 | AB10: 0.001422 | AC10: 0.001308 | AD10: 0.00137 | AE10: 0.001299 | AF10: 0.001485 | AG10: 0.001444 | AH10: 0.001362 | AI10: 0.001706 | AJ10: 0.002457 | AK10: 0.002178 | AL10: 0.001508 | AM10: 0.000863 | AN10: 0.000685 | AO10: 0.000642 | AP10: 0.000524 | AQ10: 0.000398 | AR10: 0.000475 | AS10: 0.000331 | AT10: 0.000306 | AU10: 0.000289 | AV10: 0.000313 | AW10: 0.000345 | AX10: 0.000304 | AY10: 0.000334 | AZ10: 0.000278 | BA10: 0.000297 | BB10: 0.000303 | BC10: 0.00032 | BD10: 0.000267 | BE10: 0.000224 | BF10: 0.00028 | BG10: 0.000292 | BH10: 0.000279 | BI10: 0.000288 | BJ10: 0.000296 | BK10: 0.000297 | BL10: 0.000292 | BM10: 0.000319 | BN10: 0.000286 | BO10: 0.000274 | BP10: 0.000228678 | BQ10: 0.000289559 | BR10: 0.000272861 | BS10: 0.000261262 | BT10: 0.000229081 | BU10: 0.000263154 | BV10: 0.000209387 | BW10: 0.000259937 | BX10: 0.000184299 | BY10: 0.000235793 | BZ10: 0.0001902 | CA10: 0.000192209 | CB10: 0.000163109 | CC10: 0.0001489 | CD10: 0.000160417 | CE10: 0.000168967 | CF10: 0.000157112 | CG10: 0.000162303 | CH10: 0.000163756 | CI10: 0.000134073 | CJ10: 0.000130277 | CK10: 0.000133881 | CL10: 0.000130584 | CM10: 0.000150916 | CN10: 0.000117701 | CO10: 9,18755E-05 | CP10: 0.000100895 | CQ10: 8,66271E-05 | CR10: 0.000113602 | CS10: 7,32837E-05 | CT10: 9,11282E-05 | CU10: 8,43369E-05 | CV10: 8,90765E-05 | CW10: 8,52104E-05 | CX10: 8,80032E-05 | CY10: 7,22487E-05 | CZ10: 6,22247E-05 | DA10: 6,67531E-05 | DB10: 7,16975E-05 | DC10: 8,09077E-05 | DD10: 5,88008E-05 | DE10: 5,97128E-05 | DF10: 4,74214E-05 | DG10: 6,60898E-05 | DH10: 4,03262E-05 | DI10: 5,87289E-05 | DJ10: 4,60158E-05 | DK10: 5,52162E-05 | DL10: 5,45279E-05 | DM10: 5,38481E-05 | DN10: 5,31768E-05 | DO10: 5,25138E-05 | DP10: 5,18591E-05 | DQ10: 5,12126E-05 | DR10: 5,05742E-05 | DS10: 4,99437E-05
A11: 0.002551 | B11: 0.002445 | C11: 0.002677 | D11: 0.002435 | E11: 0.002425 | F11: 0.002746 | G11: 0.003022 | H11: 0.002645 | I11: 0.003082 | J11: 0.004962 | K11: 0.002567 | L11: 0.002403 | M11: 0.002085 | N11: 0.001829 | O11: 0.001876 | P11: 0.001802 | Q11: 0.002005 | R11: 0.001927 | S11: 0.001732 | T11: 0.001817 | U11: 0.001821 | V11: 0.001726 | W11: 0.001639 | X11: 0.001581 | Y11: 0.001562 | Z11: 0.001451 | AA11: 0.00139 | AB11: 0.00118 | AC11: 0.001254 | AD11: 0.001168 | AE11: 0.001433 | AF11: 0.001316 | AG11: 0.001195 | AH11: 0.001491 | AI11: 0.002362 | AJ11: 0.00225 | AK11: 0.001286 | AL11: 0.000798 | AM11: 0.000626 | AN11: 0.000588 | AO11: 0.000539 | AP11: 0.00044 | AQ11: 0.000414 | AR11: 0.000319 | AS11: 0.000327 | AT11: 0.000275 | AU11: 0.000229 | AV11: 0.000334 | AW11: 0.000356 | AX11: 0.000227 | AY11: 0.000317 | AZ11: 0.000223 | BA11: 0.00027 | BB11: 0.00026 | BC11: 0.000219 | BD11: 0.000283 | BE11: 0.000211 | BF11: 0.000258 | BG11: 0.000277 | BH11: 0.000275 | BI11: 0.00023 | BJ11: 0.000264 | BK11: 0.000272 | BL11: 0.000247 | BM11: 0.000224 | BN11: 0.000253 | BO11: 0.000259201 | BP11: 0.00024997 | BQ11: 0.000211047 | BR11: 0.000241326 | BS11: 0.000208111 | BT11: 0.000191684 | BU11: 0.000218393 | BV11: 0.000216307 | BW11: 0.000200284 | BX11: 0.00019754 | BY11: 0.000150267 | BZ11: 0.000151417 | CA11: 0.000178231 | CB11: 0.000164205 | CC11: 0.000152594 | CD11: 0.000153294 | CE11: 0.000148402 | CF11: 0.000129466 | CG11: 0.000157859 | CH11: 0.000121718 | CI11: 0.000121472 | CJ11: 0.00011661 | CK11: 0.000113775 | CL11: 0.000133731 | CM11: 0.000128756 | CN11: 9,73304E-05 | CO11: 0.000106229 | CP11: 0.000105552 | CQ11: 6,84382E-05 | CR11: 9,00748E-05 | CS11: 7,0715E-05 | CT11: 7,37099E-05 | CU11: 9,11169E-05 | CV11: 7,18021E-05 | CW11: 6,51798E-05 | CX11: 8,12119E-05 | CY11: 5,81434E-05 | CZ11: 6,43676E-05 | DA11: 7,16688E-05 | DB11: 7,10379E-05 | DC11: 7,11262E-05 | DD11: 6,09998E-05 | DE11: 6,3673E-05 | DF11: 5,58541E-05 | DG11: 6,81584E-05 | DH11: 4,52162E-05 | DI11: 6,37456E-05 | DJ11: 6,05868E-05 | DK11: 5,98315E-05 | DL11: 5,90856E-05 | DM11: 5,8349E-05 | DN11: 5,76215E-05 | DO11: 5,69032E-05 | DP11: 5,61938E-05 | DQ11: 5,54932E-05 | DR11: 5,48014E-05 | DS11: 5,41182E-05
A12: 0.002384 | B12: 0.00257 | C12: 0.002473 | D12: 0.002292 | E12: 0.002586 | F12: 0.002857 | G12: 0.002475 | H12: 0.003182 | I12: 0.004817 | J12: 0.002495 | K12: 0.002289 | L12: 0.002077 | M12: 0.001828 | N12: 0.001715 | O12: 0.001692 | P12: 0.001665 | Q12: 0.001646 | R12: 0.001793 | S12: 0.001788 | T12: 0.001506 | U12: 0.001703 | V12: 0.001539 | W12: 0.0015 | X12: 0.001466 | Y12: 0.001351 | Z12: 0.001387 | AA12: 0.00122 | AB12: 0.001246 | AC12: 0.001072 | AD12: 0.001206 | AE12: 0.001365 | AF12: 0.001191 | AG12: 0.001568 | AH12: 0.00248 | AI12: 0.002145 | AJ12: 0.001161 | AK12: 0.000786 | AL12: 0.000533 | AM12: 0.000577 | AN12: 0.000542 | AO12: 0.000559 | AP12: 0.000358 | AQ12: 0.00031 | AR12: 0.000294 | AS12: 0.000284 | AT12: 0.000298 | AU12: 0.000309 | AV12: 0.00025 | AW12: 0.000279 | AX12: 0.000255 | AY12: 0.000224 | AZ12: 0.000255 | BA12: 0.00023 | BB12: 0.000274 | BC12: 0.000253 | BD12: 0.000255 | BE12: 0.000248 | BF12: 0.000248 | BG12: 0.000279 | BH12: 0.000232 | BI12: 0.000249 | BJ12: 0.000263 | BK12: 0.000303 | BL12: 0.000301 | BM12: 0.000249 | BN12: 0.000200774 | BO12: 0.000203293 | BP12: 0.000198511 | BQ12: 0.00021611 | BR12: 0.000222061 | BS12: 0.000232444 | BT12: 0.000217373 | BU12: 0.000211096 | BV12: 0.000172852 | BW12: 0.000148697 | BX12: 0.000186204 | BY12: 0.000141542 | BZ12: 0.000150503 | CA12: 0.000187108 | CB12: 0.000173287 | CC12: 0.000137398 | CD12: 0.000136602 | CE12: 0.000151079 | CF12: 0.000132321 | CG12: 0.000134111 | CH12: 0.000109691 | CI12: 0.000124638 | CJ12: 0.000113299 | CK12: 0.000102687 | CL12: 0.000122378 | CM12: 0.000115034 | CN12: 0.000108038 | CO12: 9,03475E-05 | CP12: 0.000104035 | CQ12: 6,45541E-05 | CR12: 6,94052E-05 | CS12: 7,23143E-05 | CT12: 8,58922E-05 | CU12: 7,7536E-05 | CV12: 7,50846E-05 | CW12: 5,27932E-05 | CX12: 6,47197E-05 | CY12: 6,8047E-05 | CZ12: 6,69267E-05 | DA12: 5,20587E-05 | DB12: 7,88115E-05 | DC12: 7,45091E-05 | DD12: 6,35363E-05 | DE12: 5,58677E-05 | DF12: 5,26948E-05 | DG12: 5,75406E-05 | DH12: 5,10915E-05 | DI12: 5,82563E-05 | DJ12: 5,753E-05 | DK12: 5,68128E-05 | DL12: 5,61046E-05 | DM12: 5,54051E-05 | DN12: 5,47144E-05 | DO12: 5,40323E-05 | DP12: 5,33587E-05 | DQ12: 5,26935E-05 | DR12: 5,20366E-05 | DS12: 5,13878E-05
A13: 0.002376 | B13: 0.002313 | C13: 0.002302 | D13: 0.002747 | E13: 0.002841 | F13: 0.002635 | G13: 0.003184 | H13: 0.004716 | I13: 0.002541 | J13: 0.00227 | K13: 0.001885 | L13: 0.001947 | M13: 0.001824 | N13: 0.001816 | O13: 0.001667 | P13: 0.001851 | Q13: 0.001898 | R13: 0.001734 | S13: 0.001706 | T13: 0.001585 | U13: 0.0017 | V13: 0.001455 | W13: 0.001405 | X13: 0.00142 | Y13: 0.001285 | Z13: 0.001183 | AA13: 0.001311 | AB13: 0.001104 | AC13: 0.001276 | AD13: 0.001292 | AE13: 0.001241 | AF13: 0.001377 | AG13: 0.002225 | AH13: 0.002167 | AI13: 0.001325 | AJ13: 0.00072 | AK13: 0.000571 | AL13: 0.000516 | AM13: 0.000513 | AN13: 0.000445 | AO13: 0.000405 | AP13: 0.000365 | AQ13: 0.000383 | AR13: 0.000354 | AS13: 0.000289 | AT13: 0.000256 | AU13: 0.000274 | AV13: 0.000238 | AW13: 0.000304 | AX13: 0.000259 | AY13: 0.000235 | AZ13: 0.000227 | BA13: 0.00027 | BB13: 0.000235 | BC13: 0.000212 | BD13: 0.000251 | BE13: 0.000268 | BF13: 0.00026 | BG13: 0.000275 | BH13: 0.000243 | BI13: 0.000255 | BJ13: 0.000225 | BK13: 0.000208 | BL13: 0.000247 | BM13: 0.000193919 | BN13: 0.000245589 | BO13: 0.000210227 | BP13: 0.000178855 | BQ13: 0.00022597 | BR13: 0.000205032 | BS13: 0.000174234 | BT13: 0.000210094 | BU13: 0.000185085 | BV13: 0.00015592 | BW13: 0.000145928 | BX13: 0.000188558 | BY13: 0.000141101 | BZ13: 0.000153857 | CA13: 0.000169046 | CB13: 0.000161593 | CC13: 0.000141009 | CD13: 0.00012778 | CE13: 0.000142015 | CF13: 0.000169881 | CG13: 0.000119105 | CH13: 0.000119286 | CI13: 0.000119041 | CJ13: 0.00010589 | CK13: 0.00010796 | CL13: 0.000108515 | CM13: 0.000111934 | CN13: 0.000100899 | CO13: 8,54335E-05 | CP13: 9,21898E-05 | CQ13: 7,87441E-05 | CR13: 7,75926E-05 | CS13: 6,5143E-05 | CT13: 8,28648E-05 | CU13: 8,50047E-05 | CV13: 6,9751E-05 | CW13: 6,7307E-05 | CX13: 7,06678E-05 | CY13: 7,8254E-05 | CZ13: 8,15236E-05 | DA13: 6,25981E-05 | DB13: 7,50826E-05 | DC13: 6,36055E-05 | DD13: 6,94032E-05 | DE13: 5,98142E-05 | DF13: 5,82381E-05 | DG13: 6,48323E-05 | DH13: 5,99334E-05 | DI13: 5,91862E-05 | DJ13: 5,84484E-05 | DK13: 5,77197E-05 | DL13: 5,70001E-05 | DM13: 5,62895E-05 | DN13: 5,55878E-05 | DO13: 5,48948E-05 | DP13: 5,42104E-05 | DQ13: 5,35346E-05 | DR13: 5,28672E-05 | DS13: 5,22081E-05
A14: 0.002623 | B14: 0.002516 | C14: 0.003043 | D14: 0.002868 | E14: 0.002936 | F14: 0.003357 | G14: 0.005294 | H14: 0.00271 | I14: 0.002313 | J14: 0.002216 | K14: 0.00196 | L14: 0.002005 | M14: 0.002047 | N14: 0.001998 | O14: 0.001899 | P14: 0.001905 | Q14: 0.001927 | R14: 0.001834 | S14: 0.001725 | T14: 0.001707 | U14: 0.001617 | V14: 0.001477 | W14: 0.001379 | X14: 0.001333 | Y14: 0.001341 | Z14: 0.001314 | AA14: 0.001239 | AB14: 0.001379 | AC14: 0.00127 | AD14: 0.001272 | AE14: 0.001522 | AF14: 0.002357 | AG14: 0.002158 | AH14: 0.001317 | AI14: 0.000653 | AJ14: 0.000591 | AK14: 0.000599 | AL14: 0.000565 | AM14: 0.0005 | AN14: 0.000418 | AO14: 0.000377 | AP14: 0.000347 | AQ14: 0.000294 | AR14: 0.000332 | AS14: 0.000376 | AT14: 0.000322 | AU14: 0.000274 | AV14: 0.000306 | AW14: 0.000272 | AX14: 0.000256 | AY14: 0.000265 | AZ14: 0.000228 | BA14: 0.000233 | BB14: 0.000238 | BC14: 0.000275 | BD14: 0.000252 | BE14: 0.000292 | BF14: 0.000307 | BG14: 0.000284 | BH14: 0.0003 | BI14: 0.000346 | BJ14: 0.000217 | BK14: 0.00021 | BL14: 0.000224877 | BM14: 0.000212137 | BN14: 0.000223545 | BO14: 0.00022653 | BP14: 0.000220208 | BQ14: 0.000230618 | BR14: 0.000207212 | BS14: 0.000180996 | BT14: 0.000191134 | BU14: 0.000222426 | BV14: 0.000189423 | BW14: 0.00015857 | BX14: 0.000174922 | BY14: 0.000158636 | BZ14: 0.000157559 | CA14: 0.000154973 | CB14: 0.000156842 | CC14: 0.000157174 | CD14: 0.00015479 | CE14: 0.000150502 | CF14: 0.000170124 | CG14: 0.000152193 | CH14: 0.000144791 | CI14: 0.000125423 | CJ14: 0.000132127 | CK14: 0.000123109 | CL14: 0.000113985 | CM14: 0.00012078 | CN14: 8,53934E-05 | CO14: 9,61681E-05 | CP14: 8,41607E-05 | CQ14: 8,34426E-05 | CR14: 8,68375E-05 | CS14: 7,85355E-05 | CT14: 7,83646E-05 | CU14: 8,76469E-05 | CV14: 7,42869E-05 | CW14: 6,87783E-05 | CX14: 6,27147E-05 | CY14: 6,98004E-05 | CZ14: 5,51071E-05 | DA14: 7,87541E-05 | DB14: 7,35271E-05 | DC14: 7,0267E-05 | DD14: 6,6327E-05 | DE14: 8,45E-05 | DF14: 6,7583E-05 | DG14: 6,9954E-05 | DH14: 6,90819E-05 | DI14: 6,82207E-05 | DJ14: 6,73702E-05 | DK14: 6,65303E-05 | DL14: 6,57009E-05 | DM14: 6,48818E-05 | DN14: 6,40729E-05 | DO14: 6,32742E-05 | DP14: 6,24853E-05 | DQ14: 6,17064E-05 | DR14: 6,09371E-05 | DS14: 6,01774E-05
A15: 0.002837 | B15: 0.003414 | C15: 0.003471 | D15: 0.003324 | E15: 0.003891 | F15: 0.006024 | G15: 0.002921 | H15: 0.002657 | I15: 0.002587 | J15: 0.002195 | K15: 0.002356 | L15: 0.002433 | M15: 0.002405 | N15: 0.002256 | O15: 0.002298 | P15: 0.002168 | Q15: 0.002062 | R15: 0.002018 | S15: 0.001859 | T15: 0.00168 | U15: 0.001834 | V15: 0.001646 | W15: 0.001537 | X15: 0.001379 | Y15: 0.001451 | Z15: 0.001339 | AA15: 0.001477 | AB15: 0.001513 | AC15: 0.00148 | AD15: 0.001722 | AE15: 0.002643 | AF15: 0.002167 | AG15: 0.001303 | AH15: 0.000819 | AI15: 0.000737 | AJ15: 0.000627 | AK15: 0.000634 | AL15: 0.000552 | AM15: 0.000456 | AN15: 0.000386 | AO15: 0.000302 | AP15: 0.000321 | AQ15: 0.000263 | AR15: 0.000334 | AS15: 0.000303 | AT15: 0.000323 | AU15: 0.000306 | AV15: 0.000245 | AW15: 0.000288 | AX15: 0.000271 | AY15: 0.0003 | AZ15: 0.000228 | BA15: 0.000276 | BB15: 0.000256 | BC15: 0.000316 | BD15: 0.00024 | BE15: 0.000241 | BF15: 0.000305 | BG15: 0.000276 | BH15: 0.000271 | BI15: 0.000261 | BJ15: 0.000229 | BK15: 0.000243301 | BL15: 0.000247353 | BM15: 0.000220697 | BN15: 0.000227447 | BO15: 0.000182884 | BP15: 0.000234067 | BQ15: 0.000217779 | BR15: 0.000238232 | BS15: 0.000211682 | BT15: 0.000190848 | BU15: 0.000168456 | BV15: 0.000196511 | BW15: 0.000192343 | BX15: 0.000208994 | BY15: 0.000177466 | BZ15: 0.000176628 | CA15: 0.000157176 | CB15: 0.000142972 | CC15: 0.000164973 | CD15: 0.000147761 | CE15: 0.000137664 | CF15: 0.000120312 | CG15: 0.000159951 | CH15: 0.000144641 | CI15: 0.000133617 | CJ15: 0.000140543 | CK15: 0.000129787 | CL15: 0.000115639 | CM15: 0.000123756 | CN15: 0.000113666 | CO15: 9,76211E-05 | CP15: 9,23275E-05 | CQ15: 9,83338E-05 | CR15: 0.000110071 | CS15: 0.000102553 | CT15: 7,43663E-05 | CU15: 9,86369E-05 | CV15: 0.000106628 | CW15: 7,73871E-05 | CX15: 8,2353E-05 | CY15: 9,3922E-05 | CZ15: 5,60634E-05 | DA15: 8,19549E-05 | DB15: 8,42965E-05 | DC15: 9,46856E-05 | DD15: 6,79249E-05 | DE15: 9,55556E-05 | DF15: 8,67283E-05 | DG15: 8,56471E-05 | DH15: 8,45794E-05 | DI15: 8,3525E-05 | DJ15: 8,24837E-05 | DK15: 8,14554E-05 | DL15: 8,04399E-05 | DM15: 7,94371E-05 | DN15: 7,84468E-05 | DO15: 7,74688E-05 | DP15: 7,6503E-05 | DQ15: 7,55493E-05 | DR15: 7,46074E-05 | DS15: 7,36773E-05
A16: 0.003808 | B16: 0.003948 | C16: 0.003989 | D16: 0.004644 | E16: 0.007456 | F16: 0.003697 | G16: 0.002943 | H16: 0.003133 | I16: 0.002882 | J16: 0.003069 | K16: 0.002911 | L16: 0.002967 | M16: 0.002957 | N16: 0.002779 | O16: 0.002506 | P16: 0.002571 | Q16: 0.0026 | R16: 0.00214 | S16: 0.002145 | T16: 0.001988 | U16: 0.001937 | V16: 0.001884 | W16: 0.00177 | X16: 0.001671 | Y16: 0.001598 | Z16: 0.001774 | AA16: 0.001687 | AB16: 0.001669 | AC16: 0.002025 | AD16: 0.002748 | AE16: 0.00245 | AF16: 0.001365 | AG16: 0.001011 | AH16: 0.000902 | AI16: 0.000858 | AJ16: 0.000669 | AK16: 0.000544 | AL16: 0.000512 | AM16: 0.000441 | AN16: 0.000469 | AO16: 0.000424 | AP16: 0.000354 | AQ16: 0.000319 | AR16: 0.000308 | AS16: 0.000304 | AT16: 0.000362 | AU16: 0.000265 | AV16: 0.00032 | AW16: 0.00034 | AX16: 0.000318 | AY16: 0.000282 | AZ16: 0.000303 | BA16: 0.000272 | BB16: 0.000314 | BC16: 0.000297 | BD16: 0.000339 | BE16: 0.000371 | BF16: 0.000318 | BG16: 0.000336 | BH16: 0.000269 | BI16: 0.000306 | BJ16: 0.000295733 | BK16: 0.000297763 | BL16: 0.000337007 | BM16: 0.000314503 | BN16: 0.000325553 | BO16: 0.000302779 | BP16: 0.00027208 | BQ16: 0.000285307 | BR16: 0.000215345 | BS16: 0.000260947 | BT16: 0.000239105 | BU16: 0.000261618 | BV16: 0.000219718 | BW16: 0.000207294 | BX16: 0.000228637 | BY16: 0.000181982 | BZ16: 0.000203084 | CA16: 0.000172475 | CB16: 0.000154414 | CC16: 0.000199788 | CD16: 0.000180518 | CE16: 0.000167306 | CF16: 0.000148918 | CG16: 0.000170766 | CH16: 0.000170352 | CI16: 0.000168514 | CJ16: 0.000136981 | CK16: 0.000126534 | CL16: 0.000125325 | CM16: 0.000122705 | CN16: 0.000137801 | CO16: 0.000112142 | CP16: 8,97109E-05 | CQ16: 0.000128971 | CR16: 0.000118901 | CS16: 0.000118147 | CT16: 0.000107348 | CU16: 0.000109909 | CV16: 0.000117749 | CW16: 9,72348E-05 | CX16: 0.000109429 | CY16: 9,0486E-05 | CZ16: 7,73875E-05 | DA16: 9,08876E-05 | DB16: 8,06553E-05 | DC16: 9,82223E-05 | DD16: 8,33772E-05 | DE16: 9,55647E-05 | DF16: 9,43733E-05 | DG16: 9,31968E-05 | DH16: 9,20349E-05 | DI16: 9,08876E-05 | DJ16: 8,97545E-05 | DK16: 8,86355E-05 | DL16: 8,75306E-05 | DM16: 8,64393E-05 | DN16: 8,53617E-05 | DO16: 8,42975E-05 | DP16: 8,32466E-05 | DQ16: 8,22088E-05 | DR16: 8,11839E-05 | DS16: 8,01718E-05
A17: 0.00409 | B17: 0.004409 | C17: 0.005258 | D17: 0.008238 | E17: 0.004122 | F17: 0.003722 | G17: 0.003566 | H17: 0.003572 | I17: 0.003379 | J17: 0.003631 | K17: 0.003798 | L17: 0.003484 | M17: 0.003177 | N17: 0.003602 | O17: 0.003105 | P17: 0.002898 | Q17: 0.002783 | R17: 0.002945 | S17: 0.00249 | T17: 0.002069 | U17: 0.002004 | V17: 0.002069 | W17: 0.001925 | X17: 0.001844 | Y17: 0.002077 | Z17: 0.002132 | AA17: 0.001986 | AB17: 0.002384 | AC17: 0.003108 | AD17: 0.002788 | AE17: 0.001722 | AF17: 0.001114 | AG17: 0.000866 | AH17: 0.000899 | AI17: 0.000807 | AJ17: 0.000674 | AK17: 0.000687 | AL17: 0.000496 | AM17: 0.00052 | AN17: 0.000465 | AO17: 0.000422 | AP17: 0.000416 | AQ17: 0.00045 | AR17: 0.000384 | AS17: 0.000427 | AT17: 0.000341 | AU17: 0.000416 | AV17: 0.000413 | AW17: 0.000383 | AX17: 0.000399 | AY17: 0.000384 | AZ17: 0.000348 | BA17: 0.000439 | BB17: 0.000371 | BC17: 0.000353 | BD17: 0.000411 | BE17: 0.000381 | BF17: 0.000399 | BG17: 0.000422 | BH17: 0.000334 | BI17: 0.000408759 | BJ17: 0.000367444 | BK17: 0.000366024 | BL17: 0.000375315 | BM17: 0.000352459 | BN17: 0.000411154 | BO17: 0.000336769 | BP17: 0.000324083 | BQ17: 0.000363785 | BR17: 0.000346329 | BS17: 0.000273728 | BT17: 0.000281946 | BU17: 0.000238529 | BV17: 0.000236106 | BW17: 0.000236783 | BX17: 0.000251592 | BY17: 0.000228567 | BZ17: 0.000241411 | CA17: 0.00022755 | CB17: 0.000204382 | CC17: 0.000236197 | CD17: 0.000228633 | CE17: 0.000228803 | CF17: 0.000207519 | CG17: 0.000199451 | CH17: 0.000215074 | CI17: 0.000195182 | CJ17: 0.000164738 | CK17: 0.000156044 | CL17: 0.00014216 | CM17: 0.000135497 | CN17: 0.000135073 | CO17: 0.000125366 | CP17: 0.000117632 | CQ17: 0.000142186 | CR17: 0.000117522 | CS17: 0.000126194 | CT17: 0.000120999 | CU17: 0.000104279 | CV17: 0.000140072 | CW17: 0.000115945 | CX17: 0.000123992 | CY17: 0.000108169 | CZ17: 0.000124645 | DA17: 0.000109041 | DB17: 0.000109084 | DC17: 0.000129962 | DD17: 0.000123681 | DE17: 0.000122139 | DF17: 0.000120616 | DG17: 0.000119112 | DH17: 0.000117627 | DI17: 0.000116161 | DJ17: 0.000114713 | DK17: 0.000113283 | DL17: 0.000111871 | DM17: 0.000110476 | DN17: 0.000109099 | DO17: 0.000107739 | DP17: 0.000106395 | DQ17: 0.000105069 | DR17: 0.000103759 | DS17: 0.000102466
A18: 0.004129 | B18: 0.00547 | C18: 0.009314 | D18: 0.004541 | E18: 0.004145 | F18: 0.003935 | G18: 0.003741 | H18: 0.004145 | I18: 0.004181 | J18: 0.004083 | K18: 0.003995 | L18: 0.004257 | M18: 0.003929 | N18: 0.00346 | O18: 0.003315 | P18: 0.003128 | Q18: 0.003355 | R18: 0.002897 | S18: 0.00255 | T18: 0.002545 | U18: 0.002512 | V18: 0.002236 | W18: 0.002108 | X18: 0.002264 | Y18: 0.002379 | Z18: 0.002407 | AA18: 0.002504 | AB18: 0.003737 | AC18: 0.00333 | AD18: 0.001949 | AE18: 0.001298 | AF18: 0.001201 | AG18: 0.000912 | AH18: 0.000732 | AI18: 0.000756 | AJ18: 0.000651 | AK18: 0.000573 | AL18: 0.000492 | AM18: 0.000441 | AN18: 0.000518 | AO18: 0.000428 | AP18: 0.000484 | AQ18: 0.000422 | AR18: 0.000387 | AS18: 0.000371 | AT18: 0.000423 | AU18: 0.000409 | AV18: 0.000377 | AW18: 0.00043 | AX18: 0.0004 | AY18: 0.000443 | AZ18: 0.000471 | BA18: 0.00049 | BB18: 0.000457 | BC18: 0.000473 | BD18: 0.000495 | BE18: 0.000489 | BF18: 0.000522 | BG18: 0.000476 | BH18: 0.000499288 | BI18: 0.000492007 | BJ18: 0.000453601 | BK18: 0.000472681 | BL18: 0.000455354 | BM18: 0.000471144 | BN18: 0.000470684 | BO18: 0.000382074 | BP18: 0.000435401 | BQ18: 0.000342298 | BR18: 0.000401129 | BS18: 0.000330897 | BT18: 0.000292095 | BU18: 0.000284923 | BV18: 0.000284616 | BW18: 0.000275492 | BX18: 0.000284499 | BY18: 0.00030589 | BZ18: 0.000260866 | CA18: 0.000270115 | CB18: 0.000239953 | CC18: 0.000248908 | CD18: 0.000227701 | CE18: 0.000234839 | CF18: 0.000241692 | CG18: 0.000242104 | CH18: 0.00022713 | CI18: 0.000204603 | CJ18: 0.000183505 | CK18: 0.000197008 | CL18: 0.000183836 | CM18: 0.000173624 | CN18: 0.000153415 | CO18: 0.00018437 | CP18: 0.000140303 | CQ18: 0.000164847 | CR18: 0.000125529 | CS18: 0.000142925 | CT18: 0.000134129 | CU18: 0.000126415 | CV18: 0.000149378 | CW18: 0.000122697 | CX18: 0.00013521 | CY18: 0.000125166 | CZ18: 0.000136604 | DA18: 8,85348E-05 | DB18: 0.000132854 | DC18: 0.000133154 | DD18: 0.000131494 | DE18: 0.000129855 | DF18: 0.000128236 | DG18: 0.000126637 | DH18: 0.000125058 | DI18: 0.000123499 | DJ18: 0.00012196 | DK18: 0.000120439 | DL18: 0.000118938 | DM18: 0.000117455 | DN18: 0.000115991 | DO18: 0.000114545 | DP18: 0.000113117 | DQ18: 0.000111706 | DR18: 0.000110314 | DS18: 0.000108939
A19: 0.005783 | B19: 0.00992 | C19: 0.004903 | D19: 0.004328 | E19: 0.004537 | F19: 0.004349 | G19: 0.004271 | H19: 0.00455 | I19: 0.004742 | J19: 0.004495 | K19: 0.004343 | L19: 0.004262 | M19: 0.003907 | N19: 0.003961 | O19: 0.003639 | P19: 0.003375 | Q19: 0.00339 | R19: 0.003002 | S19: 0.003009 | T19: 0.002795 | U19: 0.002517 | V19: 0.002447 | W19: 0.002438 | X19: 0.002619 | Y19: 0.002724 | Z19: 0.003097 | AA19: 0.003953 | AB19: 0.003577 | AC19: 0.002167 | AD19: 0.001518 | AE19: 0.001337 | AF19: 0.001093 | AG19: 0.000959 | AH19: 0.000881 | AI19: 0.000744 | AJ19: 0.000671 | AK19: 0.000651 | AL19: 0.000533 | AM19: 0.000505 | AN19: 0.000572 | AO19: 0.000594 | AP19: 0.000486 | AQ19: 0.000428 | AR19: 0.00049 | AS19: 0.000439 | AT19: 0.000487 | AU19: 0.000479 | AV19: 0.000484 | AW19: 0.00047 | AX19: 0.00049 | AY19: 0.000503 | AZ19: 0.000533 | BA19: 0.000626 | BB19: 0.000577 | BC19: 0.000586 | BD19: 0.000649 | BE19: 0.000565 | BF19: 0.000627 | BG19: 0.000580789 | BH19: 0.000498535 | BI19: 0.00051281 | BJ19: 0.000533073 | BK19: 0.000517632 | BL19: 0.000537974 | BM19: 0.000490884 | BN19: 0.000484926 | BO19: 0.000436258 | BP19: 0.000419119 | BQ19: 0.000433738 | BR19: 0.000356117 | BS19: 0.000396993 | BT19: 0.000353682 | BU19: 0.000328958 | BV19: 0.00035178 | BW19: 0.000321349 | BX19: 0.000339441 | BY19: 0.000352324 | BZ19: 0.000294093 | CA19: 0.000294455 | CB19: 0.000303395 | CC19: 0.000277087 | CD19: 0.000281569 | CE19: 0.000264517 | CF19: 0.000271013 | CG19: 0.000263976 | CH19: 0.000225179 | CI19: 0.00023451 | CJ19: 0.000226549 | CK19: 0.000201935 | CL19: 0.000205399 | CM19: 0.000190392 | CN19: 0.000176205 | CO19: 0.000184467 | CP19: 0.000172068 | CQ19: 0.000167403 | CR19: 0.000126704 | CS19: 0.000143539 | CT19: 0.000153004 | CU19: 0.000124073 | CV19: 0.000136306 | CW19: 0.000113827 | CX19: 0.000139344 | CY19: 0.000122515 | CZ19: 0.000109041 | DA19: 0.000101367 | DB19: 0.000123331 | DC19: 0.000121793 | DD19: 0.000120275 | DE19: 0.000118775 | DF19: 0.000117294 | DG19: 0.000115832 | DH19: 0.000114388 | DI19: 0.000112962 | DJ19: 0.000111554 | DK19: 0.000110163 | DL19: 0.00010879 | DM19: 0.000107433 | DN19: 0.000106094 | DO19: 0.000104771 | DP19: 0.000103465 | DQ19: 0.000102175 | DR19: 0.000100902 | DS19: 9,96436E-05
A20: 0.010097 | B20: 0.005295 | C20: 0.004685 | D20: 0.004672 | E20: 0.004723 | F20: 0.004764 | G20: 0.005031 | H20: 0.005028 | I20: 0.004901 | J20: 0.004754 | K20: 0.004951 | L20: 0.004375 | M20: 0.004156 | N20: 0.003887 | O20: 0.003625 | P20: 0.003512 | Q20: 0.003592 | R20: 0.003386 | S20: 0.003294 | T20: 0.003075 | U20: 0.00286 | V20: 0.002721 | W20: 0.003079 | X20: 0.003059 | Y20: 0.0044 | Z20: 0.00476 | AA20: 0.003967 | AB20: 0.002417 | AC20: 0.001689 | AD20: 0.001412 | AE20: 0.001283 | AF20: 0.001066 | AG20: 0.000913 | AH20: 0.00083 | AI20: 0.000706 | AJ20: 0.000705 | AK20: 0.000547 | AL20: 0.000565 | AM20: 0.000563 | AN20: 0.000567 | AO20: 0.000485 | AP20: 0.000526 | AQ20: 0.000453 | AR20: 0.000501 | AS20: 0.000512 | AT20: 0.000561 | AU20: 0.000513 | AV20: 0.000538 | AW20: 0.000533 | AX20: 0.000579 | AY20: 0.000594 | AZ20: 0.000678 | BA20: 0.000709 | BB20: 0.000625 | BC20: 0.000647 | BD20: 0.000701 | BE20: 0.0007 | BF20: 0.000645618 | BG20: 0.000672468 | BH20: 0.000581107 | BI20: 0.000639406 | BJ20: 0.000622199 | BK20: 0.000574725 | BL20: 0.000588563 | BM20: 0.000487535 | BN20: 0.000537046 | BO20: 0.000528485 | BP20: 0.000516189 | BQ20: 0.000442141 | BR20: 0.000410301 | BS20: 0.000439451 | BT20: 0.000436571 | BU20: 0.000406852 | BV20: 0.000431361 | BW20: 0.000408544 | BX20: 0.000389544 | BY20: 0.000353408 | BZ20: 0.000362545 | CA20: 0.000338706 | CB20: 0.000368111 | CC20: 0.00032399 | CD20: 0.000370166 | CE20: 0.000366111 | CF20: 0.000342874 | CG20: 0.000283652 | CH20: 0.000278432 | CI20: 0.000264087 | CJ20: 0.000238828 | CK20: 0.000247453 | CL20: 0.000219819 | CM20: 0.000209049 | CN20: 0.00020357 | CO20: 0.000182617 | CP20: 0.000244237 | CQ20: 0.000189434 | CR20: 0.000177842 | CS20: 0.000186966 | CT20: 0.000192829 | CU20: 0.000194358 | CV20: 0.000204115 | CW20: 0.000175177 | CX20: 0.000214887 | CY20: 0.000200046 | CZ20: 0.000168649 | DA20: 0.000183573 | DB20: 0.000181285 | DC20: 0.000179025 | DD20: 0.000176793 | DE20: 0.000174589 | DF20: 0.000172413 | DG20: 0.000170263 | DH20: 0.000168141 | DI20: 0.000166044 | DJ20: 0.000163974 | DK20: 0.00016193 | DL20: 0.000159912 | DM20: 0.000157918 | DN20: 0.000155949 | DO20: 0.000154005 | DP20: 0.000152085 | DQ20: 0.000150189 | DR20: 0.000148317 | DS20: 0.000146468
A21: 0.005481 | B21: 0.004993 | C21: 0.005043 | D21: 0.005031 | E21: 0.004992 | F21: 0.005218 | G21: 0.005326 | H21: 0.005398 | I21: 0.005021 | J21: 0.005246 | K21: 0.004866 | L21: 0.00463 | M21: 0.004265 | N21: 0.003915 | O21: 0.003807 | P21: 0.003506 | Q21: 0.003351 | R21: 0.003317 | S21: 0.003555 | T21: 0.003142 | U21: 0.003269 | V21: 0.003197 | W21: 0.003326 | X21: 0.005582 | Y21: 0.007596 | Z21: 0.004862 | AA21: 0.002556 | AB21: 0.001821 | AC21: 0.001588 | AD21: 0.001228 | AE21: 0.001139 | AF21: 0.001078 | AG21: 0.000896 | AH21: 0.000793 | AI21: 0.000695 | AJ21: 0.00059 | AK21: 0.000562 | AL21: 0.000657 | AM21: 0.000526 | AN21: 0.00055 | AO21: 0.000568 | AP21: 0.000651 | AQ21: 0.000622 | AR21: 0.000682 | AS21: 0.000728 | AT21: 0.000567 | AU21: 0.000527 | AV21: 0.000599 | AW21: 0.000689 | AX21: 0.000598 | AY21: 0.000629 | AZ21: 0.000706 | BA21: 0.000644 | BB21: 0.000727 | BC21: 0.000654 | BD21: 0.000647 | BE21: 0.000577526 | BF21: 0.00061091 | BG21: 0.000627995 | BH21: 0.000561488 | BI21: 0.000665091 | BJ21: 0.000619393 | BK21: 0.000572051 | BL21: 0.000609049 | BM21: 0.000507572 | BN21: 0.000483098 | BO21: 0.000535415 | BP21: 0.00047091 | BQ21: 0.000467224 | BR21: 0.000445874 | BS21: 0.000461423 | BT21: 0.000440576 | BU21: 0.00039323 | BV21: 0.000441943 | BW21: 0.000393884 | BX21: 0.000406459 | BY21: 0.000362524 | BZ21: 0.000363728 | CA21: 0.000356613 | CB21: 0.00035151 | CC21: 0.000323387 | CD21: 0.00037581 | CE21: 0.000375085 | CF21: 0.000331915 | CG21: 0.000259308 | CH21: 0.000295028 | CI21: 0.000260175 | CJ21: 0.000233163 | CK21: 0.00023103 | CL21: 0.000248826 | CM21: 0.000234169 | CN21: 0.000232513 | CO21: 0.000203875 | CP21: 0.000236971 | CQ21: 0.000194766 | CR21: 0.00018748 | CS21: 0.000215243 | CT21: 0.000183082 | CU21: 0.000175185 | CV21: 0.000153659 | CW21: 0.000158126 | CX21: 0.000198653 | CY21: 0.000166864 | CZ21: 0.000157275 | DA21: 0.000155315 | DB21: 0.000153378 | DC21: 0.000151466 | DD21: 0.000149578 | DE21: 0.000147713 | DF21: 0.000145872 | DG21: 0.000144053 | DH21: 0.000142257 | DI21: 0.000140484 | DJ21: 0.000138732 | DK21: 0.000137003 | DL21: 0.000135295 | DM21: 0.000133608 | DN21: 0.000131942 | DO21: 0.000130298 | DP21: 0.000128673 | DQ21: 0.000127069 | DR21: 0.000125485 | DS21: 0.00012392
A22: 0.005291 | B22: 0.00549 | C22: 0.005305 | D22: 0.005479 | E22: 0.005421 | F22: 0.005794 | G22: 0.005356 | H22: 0.005475 | I22: 0.005641 | J22: 0.004991 | K22: 0.004676 | L22: 0.004551 | M22: 0.004263 | N22: 0.003949 | O22: 0.003991 | P22: 0.003573 | Q22: 0.003744 | R22: 0.003858 | S22: 0.003938 | T22: 0.003543 | U22: 0.003632 | V22: 0.003642 | W22: 0.006449 | X22: 0.009834 | Y22: 0.006918 | Z22: 0.002764 | AA22: 0.002038 | AB22: 0.001823 | AC22: 0.001459 | AD22: 0.001301 | AE22: 0.001075 | AF22: 0.001009 | AG22: 0.000835 | AH22: 0.00071 | AI22: 0.000742 | AJ22: 0.000678 | AK22: 0.000616 | AL22: 0.000555 | AM22: 0.000689 | AN22: 0.000642 | AO22: 0.000661 | AP22: 0.000579 | AQ22: 0.000607 | AR22: 0.000633 | AS22: 0.000582 | AT22: 0.000698 | AU22: 0.000671 | AV22: 0.0006 | AW22: 0.000628 | AX22: 0.000618 | AY22: 0.00066 | AZ22: 0.00062 | BA22: 0.000742 | BB22: 0.000662 | BC22: 0.000609 | BD22: 0.000637589 | BE22: 0.000600126 | BF22: 0.000640717 | BG22: 0.000583453 | BH22: 0.000612477 | BI22: 0.000563589 | BJ22: 0.00060228 | BK22: 0.000573993 | BL22: 0.000514276 | BM22: 0.000548741 | BN22: 0.000555293 | BO22: 0.000491748 | BP22: 0.000483405 | BQ22: 0.000482147 | BR22: 0.000453089 | BS22: 0.000405881 | BT22: 0.000389952 | BU22: 0.00040489 | BV22: 0.000436821 | BW22: 0.000408536 | BX22: 0.00041949 | BY22: 0.000375292 | BZ22: 0.000382435 | CA22: 0.000364932 | CB22: 0.000371839 | CC22: 0.000354035 | CD22: 0.000368068 | CE22: 0.00033645 | CF22: 0.000312451 | CG22: 0.000305137 | CH22: 0.000316031 | CI22: 0.000264043 | CJ22: 0.000222471 | CK22: 0.000239206 | CL22: 0.000237391 | CM22: 0.000255886 | CN22: 0.000270761 | CO22: 0.000226464 | CP22: 0.000214702 | CQ22: 0.000240639 | CR22: 0.000201982 | CS22: 0.000220726 | CT22: 0.000203741 | CU22: 0.000197002 | CV22: 0.000168176 | CW22: 0.000187326 | CX22: 0.000207493 | CY22: 0.000176459 | CZ22: 0.000174259 | DA22: 0.000172087 | DB22: 0.000169941 | DC22: 0.000167823 | DD22: 0.00016573 | DE22: 0.000163664 | DF22: 0.000161624 | DG22: 0.000159609 | DH22: 0.000157619 | DI22: 0.000155654 | DJ22: 0.000153714 | DK22: 0.000151797 | DL22: 0.000149905 | DM22: 0.000148036 | DN22: 0.000146191 | DO22: 0.000144368 | DP22: 0.000142568 | DQ22: 0.000140791 | DR22: 0.000139036 | DS22: 0.000137302
A23: 0.005405 | B23: 0.005366 | C23: 0.005358 | D23: 0.005521 | E23: 0.005521 | F23: 0.005818 | G23: 0.005523 | H23: 0.005633 | I23: 0.005177 | J23: 0.005152 | K23: 0.004515 | L23: 0.004493 | M23: 0.004096 | N23: 0.004056 | O23: 0.003815 | P23: 0.003714 | Q23: 0.004005 | R23: 0.004084 | S23: 0.003884 | T23: 0.003358 | U23: 0.003903 | V23: 0.006702 | W23: 0.010719 | X23: 0.00823 | Y23: 0.003404 | Z23: 0.00209 | AA23: 0.001874 | AB23: 0.001629 | AC23: 0.001315 | AD23: 0.001186 | AE23: 0.001012 | AF23: 0.000958 | AG23: 0.000861 | AH23: 0.000744 | AI23: 0.000714 | AJ23: 0.000641 | AK23: 0.000698 | AL23: 0.000605 | AM23: 0.000654 | AN23: 0.000571 | AO23: 0.00062 | AP23: 0.000667 | AQ23: 0.000622 | AR23: 0.000603 | AS23: 0.0007 | AT23: 0.000614 | AU23: 0.000603 | AV23: 0.000735 | AW23: 0.000615 | AX23: 0.000662 | AY23: 0.000728 | AZ23: 0.000661 | BA23: 0.000674 | BB23: 0.000575 | BC23: 0.000551137 | BD23: 0.000611112 | BE23: 0.000668211 | BF23: 0.000515522 | BG23: 0.000577671 | BH23: 0.000528559 | BI23: 0.000566942 | BJ23: 0.000543466 | BK23: 0.00055227 | BL23: 0.000521192 | BM23: 0.000512549 | BN23: 0.00042098 | BO23: 0.000478399 | BP23: 0.000432034 | BQ23: 0.000454997 | BR23: 0.000463302 | BS23: 0.000438434 | BT23: 0.000412699 | BU23: 0.000444741 | BV23: 0.000406805 | BW23: 0.000437236 | BX23: 0.000397198 | BY23: 0.000406311 | BZ23: 0.000395088 | CA23: 0.000347469 | CB23: 0.000328926 | CC23: 0.000357173 | CD23: 0.000315499 | CE23: 0.000284142 | CF23: 0.000302429 | CG23: 0.000318464 | CH23: 0.000275859 | CI23: 0.000282957 | CJ23: 0.000228395 | CK23: 0.000245028 | CL23: 0.000238733 | CM23: 0.000229638 | CN23: 0.000207903 | CO23: 0.000183774 | CP23: 0.000190827 | CQ23: 0.000240158 | CR23: 0.000217053 | CS23: 0.000199167 | CT23: 0.000208434 | CU23: 0.000225451 | CV23: 0.000165982 | CW23: 0.000195343 | CX23: 0.000193631 | CY23: 0.000191217 | CZ23: 0.000188834 | DA23: 0.000186479 | DB23: 0.000184155 | DC23: 0.000181859 | DD23: 0.000179592 | DE23: 0.000177353 | DF23: 0.000175142 | DG23: 0.000172958 | DH23: 0.000170802 | DI23: 0.000168673 | DJ23: 0.00016657 | DK23: 0.000164493 | DL23: 0.000162443 | DM23: 0.000160418 | DN23: 0.000158418 | DO23: 0.000156443 | DP23: 0.000154492 | DQ23: 0.000152566 | DR23: 0.000150664 | DS23: 0.000148786
A24: 0.005256 | B24: 0.005555 | C24: 0.00575 | D24: 0.005795 | E24: 0.0056 | F24: 0.005606 | G24: 0.005634 | H24: 0.005155 | I24: 0.005023 | J24: 0.004775 | K24: 0.004359 | L24: 0.004439 | M24: 0.004352 | N24: 0.004006 | O24: 0.003976 | P24: 0.00382 | Q24: 0.004152 | R24: 0.004183 | S24: 0.003931 | T24: 0.003677 | U24: 0.007229 | V24: 0.01114 | W24: 0.008828 | X24: 0.00388 | Y24: 0.002335 | Z24: 0.001946 | AA24: 0.001589 | AB24: 0.001382 | AC24: 0.001386 | AD24: 0.001277 | AE24: 0.001031 | AF24: 0.000895 | AG24: 0.000804 | AH24: 0.000741 | AI24: 0.000645 | AJ24: 0.000672 | AK24: 0.000721 | AL24: 0.000696 | AM24: 0.000754 | AN24: 0.000612 | AO24: 0.000658 | AP24: 0.000814 | AQ24: 0.000667 | AR24: 0.000751 | AS24: 0.000657 | AT24: 0.000684 | AU24: 0.000649 | AV24: 0.000678 | AW24: 0.000591 | AX24: 0.000699 | AY24: 0.000633 | AZ24: 0.000576 | BA24: 0.000499 | BB24: 0.00065829 | BC24: 0.000612013 | BD24: 0.000572313 | BE24: 0.000588933 | BF24: 0.000603492 | BG24: 0.000552918 | BH24: 0.000577206 | BI24: 0.000554159 | BJ24: 0.000567017 | BK24: 0.000575939 | BL24: 0.000509928 | BM24: 0.000483323 | BN24: 0.000428549 | BO24: 0.000490688 | BP24: 0.000452111 | BQ24: 0.000434918 | BR24: 0.000479887 | BS24: 0.000450687 | BT24: 0.000452533 | BU24: 0.000456436 | BV24: 0.000405228 | BW24: 0.000396366 | BX24: 0.000422997 | BY24: 0.000419919 | BZ24: 0.000353957 | CA24: 0.000317873 | CB24: 0.000308879 | CC24: 0.000332461 | CD24: 0.000302483 | CE24: 0.000255775 | CF24: 0.00027089 | CG24: 0.00025394 | CH24: 0.000223317 | CI24: 0.000261716 | CJ24: 0.000257466 | CK24: 0.000222885 | CL24: 0.000237918 | CM24: 0.000233443 | CN24: 0.000186335 | CO24: 0.000203618 | CP24: 0.000219169 | CQ24: 0.000208243 | CR24: 0.000231527 | CS24: 0.000191555 | CT24: 0.000223091 | CU24: 0.000247293 | CV24: 0.000182772 | CW24: 0.000196572 | CX24: 0.000194122 | CY24: 0.000191702 | CZ24: 0.000189312 | DA24: 0.000186952 | DB24: 0.000184621 | DC24: 0.000182319 | DD24: 0.000180047 | DE24: 0.000177802 | DF24: 0.000175585 | DG24: 0.000173396 | DH24: 0.000171235 | DI24: 0.0001691 | DJ24: 0.000166992 | DK24: 0.00016491 | DL24: 0.000162854 | DM24: 0.000160824 | DN24: 0.000158819 | DO24: 0.000156839 | DP24: 0.000154884 | DQ24: 0.000152953 | DR24: 0.000151046 | DS24: 0.000149163
A25: 0.005328 | B25: 0.005607 | C25: 0.005904 | D25: 0.005779 | E25: 0.005612 | F25: 0.005397 | G25: 0.00518 | H25: 0.005129 | I25: 0.00489 | J25: 0.004606 | K25: 0.004025 | L25: 0.004244 | M25: 0.004096 | N25: 0.003948 | O25: 0.004039 | P25: 0.004089 | Q25: 0.004131 | R25: 0.004067 | S25: 0.004206 | T25: 0.007405 | U25: 0.011913 | V25: 0.009107 | W25: 0.003851 | X25: 0.002315 | Y25: 0.002094 | Z25: 0.001681 | AA25: 0.001515 | AB25: 0.001421 | AC25: 0.001222 | AD25: 0.000991 | AE25: 0.000855 | AF25: 0.000887 | AG25: 0.000734 | AH25: 0.000805 | AI25: 0.000795 | AJ25: 0.000769 | AK25: 0.000834 | AL25: 0.000671 | AM25: 0.000585 | AN25: 0.00069 | AO25: 0.000591 | AP25: 0.000782 | AQ25: 0.000648 | AR25: 0.000785 | AS25: 0.000794 | AT25: 0.000653 | AU25: 0.00066 | AV25: 0.000582 | AW25: 0.000691 | AX25: 0.000677 | AY25: 0.000676 | AZ25: 0.000537 | BA25: 0.000604688 | BB25: 0.000645277 | BC25: 0.00052583 | BD25: 0.000513137 | BE25: 0.000515236 | BF25: 0.000565584 | BG25: 0.000526177 | BH25: 0.000581304 | BI25: 0.000560356 | BJ25: 0.000501515 | BK25: 0.000525886 | BL25: 0.000473246 | BM25: 0.000489933 | BN25: 0.000475878 | BO25: 0.000442588 | BP25: 0.000449555 | BQ25: 0.000453741 | BR25: 0.000430755 | BS25: 0.00042789 | BT25: 0.000407335 | BU25: 0.000429806 | BV25: 0.00038105 | BW25: 0.000363902 | BX25: 0.000415991 | BY25: 0.000405652 | BZ25: 0.000351223 | CA25: 0.00033986 | CB25: 0.000298344 | CC25: 0.000318144 | CD25: 0.000289268 | CE25: 0.000276151 | CF25: 0.000274436 | CG25: 0.000255901 | CH25: 0.000260503 | CI25: 0.000244903 | CJ25: 0.000248443 | CK25: 0.000205085 | CL25: 0.000233596 | CM25: 0.000206456 | CN25: 0.00020999 | CO25: 0.000259998 | CP25: 0.000222505 | CQ25: 0.000207878 | CR25: 0.000217656 | CS25: 0.000220428 | CT25: 0.000224068 | CU25: 0.000219811 | CV25: 0.000198777 | CW25: 0.000196299 | CX25: 0.000193851 | CY25: 0.000191435 | CZ25: 0.000189048 | DA25: 0.000186691 | DB25: 0.000184364 | DC25: 0.000182066 | DD25: 0.000179796 | DE25: 0.000177554 | DF25: 0.000175341 | DG25: 0.000173155 | DH25: 0.000170996 | DI25: 0.000168864 | DJ25: 0.000166759 | DK25: 0.00016468 | DL25: 0.000162627 | DM25: 0.0001606 | DN25: 0.000158598 | DO25: 0.00015662 | DP25: 0.000154668 | DQ25: 0.00015274 | DR25: 0.000150836 | DS25: 0.000148955
A26: 0.005647 | B26: 0.005523 | C26: 0.005802 | D26: 0.005587 | E26: 0.005534 | F26: 0.005225 | G26: 0.005093 | H26: 0.004757 | I26: 0.004867 | J26: 0.004299 | K26: 0.004281 | L26: 0.004058 | M26: 0.003963 | N26: 0.003938 | O26: 0.003626 | P26: 0.003918 | Q26: 0.004081 | R26: 0.00408 | S26: 0.007585 | T26: 0.014473 | U26: 0.00965 | V26: 0.004031 | W26: 0.002398 | X26: 0.002171 | Y26: 0.001575 | Z26: 0.001445 | AA26: 0.00144 | AB26: 0.001385 | AC26: 0.001023 | AD26: 0.001083 | AE26: 0.00088 | AF26: 0.000786 | AG26: 0.000778 | AH26: 0.000803 | AI26: 0.000773 | AJ26: 0.000742 | AK26: 0.000783 | AL26: 0.00068 | AM26: 0.000731 | AN26: 0.000727 | AO26: 0.000584 | AP26: 0.000644 | AQ26: 0.000629 | AR26: 0.000609 | AS26: 0.000644 | AT26: 0.000667 | AU26: 0.000605 | AV26: 0.000596 | AW26: 0.000596 | AX26: 0.000598 | AY26: 0.000577 | AZ26: 0.000646849 | BA26: 0.000545763 | BB26: 0.000608823 | BC26: 0.000564647 | BD26: 0.000578488 | BE26: 0.000595029 | BF26: 0.000570285 | BG26: 0.000556606 | BH26: 0.000517112 | BI26: 0.000561592 | BJ26: 0.000543601 | BK26: 0.000504134 | BL26: 0.000507394 | BM26: 0.000483136 | BN26: 0.000518729 | BO26: 0.000468257 | BP26: 0.000484301 | BQ26: 0.000489049 | BR26: 0.00045385 | BS26: 0.000489519 | BT26: 0.000459415 | BU26: 0.00040732 | BV26: 0.00038797 | BW26: 0.000376032 | BX26: 0.000347638 | BY26: 0.000371263 | BZ26: 0.000339396 | CA26: 0.000311754 | CB26: 0.000252161 | CC26: 0.000279303 | CD26: 0.000265214 | CE26: 0.000267924 | CF26: 0.000265856 | CG26: 0.000270271 | CH26: 0.000257395 | CI26: 0.000238363 | CJ26: 0.000219064 | CK26: 0.000215594 | CL26: 0.000206039 | CM26: 0.000196921 | CN26: 0.000221218 | CO26: 0.000245326 | CP26: 0.000210332 | CQ26: 0.000183364 | CR26: 0.000182141 | CS26: 0.000197295 | CT26: 0.000175072 | CU26: 0.000181353 | CV26: 0.000179092 | CW26: 0.00017686 | CX26: 0.000174655 | CY26: 0.000172477 | CZ26: 0.000170327 | DA26: 0.000168204 | DB26: 0.000166107 | DC26: 0.000164036 | DD26: 0.000161991 | DE26: 0.000159971 | DF26: 0.000157977 | DG26: 0.000156008 | DH26: 0.000154063 | DI26: 0.000152142 | DJ26: 0.000150245 | DK26: 0.000148372 | DL26: 0.000146522 | DM26: 0.000144696 | DN26: 0.000142892 | DO26: 0.000141111 | DP26: 0.000139351 | DQ26: 0.000137614 | DR26: 0.000135898 | DS26: 0.000134204
A27: 0.005693 | B27: 0.00573 | C27: 0.005354 | D27: 0.005693 | E27: 0.004973 | F27: 0.005008 | G27: 0.004885 | H27: 0.004548 | I27: 0.004439 | J27: 0.004129 | K27: 0.004043 | L27: 0.004019 | M27: 0.004186 | N27: 0.003962 | O27: 0.003723 | P27: 0.003828 | Q27: 0.004188 | R27: 0.007827 | S27: 0.013957 | T27: 0.01353 | U27: 0.004143 | V27: 0.00242 | W27: 0.002176 | X27: 0.001912 | Y27: 0.001817 | Z27: 0.001528 | AA27: 0.001423 | AB27: 0.00115 | AC27: 0.001012 | AD27: 0.001017 | AE27: 0.000915 | AF27: 0.000963 | AG27: 0.000806 | AH27: 0.000744 | AI27: 0.000674 | AJ27: 0.000814 | AK27: 0.000674 | AL27: 0.000781 | AM27: 0.000689 | AN27: 0.000593 | AO27: 0.000695 | AP27: 0.000634 | AQ27: 0.00071 | AR27: 0.00056 | AS27: 0.00069 | AT27: 0.000677 | AU27: 0.000611 | AV27: 0.000587 | AW27: 0.000531 | AX27: 0.000633 | AY27: 0.000629203 | AZ27: 0.000656151 | BA27: 0.000566797 | BB27: 0.000608749 | BC27: 0.000557725 | BD27: 0.000595548 | BE27: 0.00065715 | BF27: 0.000585787 | BG27: 0.000624572 | BH27: 0.000530039 | BI27: 0.000585857 | BJ27: 0.000519668 | BK27: 0.000513579 | BL27: 0.000513451 | BM27: 0.000513901 | BN27: 0.00052748 | BO27: 0.000508435 | BP27: 0.000492398 | BQ27: 0.000480475 | BR27: 0.000477368 | BS27: 0.000438981 | BT27: 0.000416876 | BU27: 0.000403614 | BV27: 0.00039587 | BW27: 0.000362321 | BX27: 0.000353348 | BY27: 0.000373527 | BZ27: 0.0003417 | CA27: 0.000313711 | CB27: 0.000261933 | CC27: 0.000265404 | CD27: 0.00028042 | CE27: 0.000257623 | CF27: 0.0002555 | CG27: 0.000277898 | CH27: 0.000265376 | CI27: 0.000248976 | CJ27: 0.000241534 | CK27: 0.000239595 | CL27: 0.000227975 | CM27: 0.000226362 | CN27: 0.000234323 | CO27: 0.000251965 | CP27: 0.000237149 | CQ27: 0.000210816 | CR27: 0.000233773 | CS27: 0.000227123 | CT27: 0.000216279 | CU27: 0.000213582 | CV27: 0.00021092 | CW27: 0.00020829 | CX27: 0.000205694 | CY27: 0.000203129 | CZ27: 0.000200597 | DA27: 0.000198096 | DB27: 0.000195627 | DC27: 0.000193188 | DD27: 0.000190779 | DE27: 0.000188401 | DF27: 0.000186052 | DG27: 0.000183733 | DH27: 0.000181442 | DI27: 0.00017918 | DJ27: 0.000176946 | DK27: 0.000174741 | DL27: 0.000172562 | DM27: 0.000170411 | DN27: 0.000168286 | DO27: 0.000166188 | DP27: 0.000164117 | DQ27: 0.000162071 | DR27: 0.00016005 | DS27: 0.000158055
A28: 0.005379 | B28: 0.005315 | C28: 0.005823 | D28: 0.004818 | E28: 0.004862 | F28: 0.004547 | G28: 0.004407 | H28: 0.004342 | I28: 0.004304 | J28: 0.004061 | K28: 0.004008 | L28: 0.004128 | M28: 0.00378 | N28: 0.004131 | O28: 0.003679 | P28: 0.003784 | Q28: 0.007427 | R28: 0.014731 | S28: 0.011849 | T28: 0.00486 | U28: 0.002619 | V28: 0.002128 | W28: 0.001955 | X28: 0.001762 | Y28: 0.001615 | Z28: 0.001397 | AA28: 0.0011 | AB28: 0.001163 | AC28: 0.001077 | AD28: 0.000985 | AE28: 0.000933 | AF28: 0.000813 | AG28: 0.000902 | AH28: 0.000823 | AI28: 0.000789 | AJ28: 0.000759 | AK28: 0.000715 | AL28: 0.000783 | AM28: 0.000667 | AN28: 0.000767 | AO28: 0.00074 | AP28: 0.000687 | AQ28: 0.000698 | AR28: 0.000722 | AS28: 0.000664 | AT28: 0.000735 | AU28: 0.000652 | AV28: 0.000546 | AW28: 0.000668 | AX28: 0.000609114 | AY28: 0.000600801 | AZ28: 0.000596711 | BA28: 0.000572614 | BB28: 0.00056894 | BC28: 0.000614151 | BD28: 0.000551742 | BE28: 0.000633655 | BF28: 0.000562489 | BG28: 0.00062493 | BH28: 0.000519183 | BI28: 0.000517876 | BJ28: 0.000481105 | BK28: 0.000540324 | BL28: 0.000538491 | BM28: 0.000559302 | BN28: 0.000581822 | BO28: 0.000534813 | BP28: 0.000563152 | BQ28: 0.000532945 | BR28: 0.000539126 | BS28: 0.000418279 | BT28: 0.000417245 | BU28: 0.000465727 | BV28: 0.000378476 | BW28: 0.000356533 | BX28: 0.000345424 | BY28: 0.000357927 | BZ28: 0.000307654 | CA28: 0.000310947 | CB28: 0.00031366 | CC28: 0.000314461 | CD28: 0.000286043 | CE28: 0.000311298 | CF28: 0.000281081 | CG28: 0.00026517 | CH28: 0.000271891 | CI28: 0.000256083 | CJ28: 0.000285236 | CK28: 0.000245103 | CL28: 0.000246345 | CM28: 0.000218864 | CN28: 0.00022033 | CO28: 0.000243047 | CP28: 0.000218898 | CQ28: 0.000195096 | CR28: 0.000231943 | CS28: 0.000222372 | CT28: 0.0002196 | CU28: 0.000216862 | CV28: 0.000214158 | CW28: 0.000211488 | CX28: 0.000208852 | CY28: 0.000206248 | CZ28: 0.000203677 | DA28: 0.000201138 | DB28: 0.00019863 | DC28: 0.000196154 | DD28: 0.000193709 | DE28: 0.000191294 | DF28: 0.000188909 | DG28: 0.000186554 | DH28: 0.000184228 | DI28: 0.000181931 | DJ28: 0.000179663 | DK28: 0.000177423 | DL28: 0.000175212 | DM28: 0.000173027 | DN28: 0.00017087 | DO28: 0.00016874 | DP28: 0.000166636 | DQ28: 0.000164559 | DR28: 0.000162507 | DS28: 0.000160482
A29: 0.005253 | B29: 0.005359 | C29: 0.005301 | D29: 0.005092 | E29: 0.004552 | F29: 0.004334 | G29: 0.00402 | H29: 0.00433 | I29: 0.003986 | J29: 0.003955 | K29: 0.003962 | L29: 0.003789 | M29: 0.004015 | N29: 0.003856 | O29: 0.004162 | P29: 0.007202 | Q29: 0.013497 | R29: 0.012937 | S29: 0.004585 | T29: 0.002674 | U29: 0.002268 | V29: 0.002019 | W29: 0.001611 | X29: 0.001749 | Y29: 0.001352 | Z29: 0.001246 | AA29: 0.001166 | AB29: 0.001114 | AC29: 0.000989 | AD29: 0.000852 | AE29: 0.000887 | AF29: 0.000872 | AG29: 0.000833 | AH29: 0.000818 | AI29: 0.000736 | AJ29: 0.000869 | AK29: 0.000755 | AL29: 0.000728 | AM29: 0.000735 | AN29: 0.000865 | AO29: 0.000757 | AP29: 0.000784 | AQ29: 0.000753 | AR29: 0.000615 | AS29: 0.000733 | AT29: 0.000667 | AU29: 0.000647 | AV29: 0.000648 | AW29: 0.000579745 | AX29: 0.000669502 | AY29: 0.000658647 | AZ29: 0.000505887 | BA29: 0.0005538 | BB29: 0.000581275 | BC29: 0.000557308 | BD29: 0.000611817 | BE29: 0.000597894 | BF29: 0.000617262 | BG29: 0.000544494 | BH29: 0.000531867 | BI29: 0.00055523 | BJ29: 0.000529399 | BK29: 0.000553404 | BL29: 0.000557968 | BM29: 0.000601425 | BN29: 0.00060734 | BO29: 0.000546985 | BP29: 0.000562096 | BQ29: 0.000526051 | BR29: 0.00050411 | BS29: 0.000429978 | BT29: 0.000430943 | BU29: 0.00042144 | BV29: 0.000381327 | BW29: 0.000370677 | BX29: 0.000366523 | BY29: 0.000356343 | BZ29: 0.000330341 | CA29: 0.000282502 | CB29: 0.000316826 | CC29: 0.000311087 | CD29: 0.00029082 | CE29: 0.000361207 | CF29: 0.00029457 | CG29: 0.00027679 | CH29: 0.000258908 | CI29: 0.000250821 | CJ29: 0.000250027 | CK29: 0.000237578 | CL29: 0.00024825 | CM29: 0.000218866 | CN29: 0.000261507 | CO29: 0.000243137 | CP29: 0.000262723 | CQ29: 0.000240894 | CR29: 0.000254631 | CS29: 0.000251456 | CT29: 0.000248321 | CU29: 0.000245226 | CV29: 0.000242169 | CW29: 0.00023915 | CX29: 0.000236168 | CY29: 0.000233224 | CZ29: 0.000230316 | DA29: 0.000227445 | DB29: 0.00022461 | DC29: 0.000221809 | DD29: 0.000219044 | DE29: 0.000216314 | DF29: 0.000213617 | DG29: 0.000210954 | DH29: 0.000208324 | DI29: 0.000205727 | DJ29: 0.000203162 | DK29: 0.000200629 | DL29: 0.000198128 | DM29: 0.000195658 | DN29: 0.000193219 | DO29: 0.00019081 | DP29: 0.000188431 | DQ29: 0.000186082 | DR29: 0.000183762 | DS29: 0.000181471
A30: 0.005015 | B30: 0.004817 | C30: 0.004846 | D30: 0.004579 | E30: 0.004327 | F30: 0.004273 | G30: 0.004305 | H30: 0.003877 | I30: 0.003999 | J30: 0.004062 | K30: 0.003762 | L30: 0.004066 | M30: 0.004069 | N30: 0.004228 | O30: 0.005676 | P30: 0.012098 | Q30: 0.011659 | R30: 0.005332 | S30: 0.002434 | T30: 0.002287 | U30: 0.002056 | V30: 0.001715 | W30: 0.001854 | X30: 0.001603 | Y30: 0.001229 | Z30: 0.001312 | AA30: 0.00114 | AB30: 0.001161 | AC30: 0.00115 | AD30: 0.00096 | AE30: 0.000872 | AF30: 0.000822 | AG30: 0.000883 | AH30: 0.000935 | AI30: 0.000793 | AJ30: 0.000776 | AK30: 0.000813 | AL30: 0.00072 | AM30: 0.00072 | AN30: 0.00075 | AO30: 0.000686 | AP30: 0.000769 | AQ30: 0.000704 | AR30: 0.000675 | AS30: 0.000733 | AT30: 0.000674 | AU30: 0.000678 | AV30: 0.000621686 | AW30: 0.000656923 | AX30: 0.000616092 | AY30: 0.000628317 | AZ30: 0.000589283 | BA30: 0.000614967 | BB30: 0.000568699 | BC30: 0.000616913 | BD30: 0.000678086 | BE30: 0.000557415 | BF30: 0.00058236 | BG30: 0.000604457 | BH30: 0.000542802 | BI30: 0.000587476 | BJ30: 0.000549932 | BK30: 0.000585237 | BL30: 0.000550691 | BM30: 0.000605077 | BN30: 0.000600599 | BO30: 0.000562883 | BP30: 0.000512191 | BQ30: 0.000457953 | BR30: 0.000426399 | BS30: 0.000414543 | BT30: 0.000380958 | BU30: 0.000384738 | BV30: 0.00038545 | BW30: 0.000383635 | BX30: 0.000341267 | BY30: 0.000334034 | BZ30: 0.000318281 | CA30: 0.000324788 | CB30: 0.000315501 | CC30: 0.000297849 | CD30: 0.000314896 | CE30: 0.000332374 | CF30: 0.000314283 | CG30: 0.000271512 | CH30: 0.000261769 | CI30: 0.000292352 | CJ30: 0.000263488 | CK30: 0.000263314 | CL30: 0.000291232 | CM30: 0.00025527 | CN30: 0.000299988 | CO30: 0.000252945 | CP30: 0.000282816 | CQ30: 0.000265462 | CR30: 0.000262153 | CS30: 0.000258884 | CT30: 0.000255657 | CU30: 0.00025247 | CV30: 0.000249322 | CW30: 0.000246214 | CX30: 0.000243145 | CY30: 0.000240113 | CZ30: 0.00023712 | DA30: 0.000234164 | DB30: 0.000231245 | DC30: 0.000228362 | DD30: 0.000225515 | DE30: 0.000222703 | DF30: 0.000219927 | DG30: 0.000217185 | DH30: 0.000214478 | DI30: 0.000211804 | DJ30: 0.000209163 | DK30: 0.000206556 | DL30: 0.000203981 | DM30: 0.000201438 | DN30: 0.000198926 | DO30: 0.000196446 | DP30: 0.000193997 | DQ30: 0.000191579 | DR30: 0.00018919 | DS30: 0.000186832
A31: 0.004978 | B31: 0.004732 | C31: 0.004691 | D31: 0.004396 | E31: 0.004323 | F31: 0.004252 | G31: 0.004099 | H31: 0.00372 | I31: 0.003938 | J31: 0.003821 | K31: 0.003904 | L31: 0.004063 | M31: 0.004083 | N31: 0.005582 | O31: 0.008867 | P31: 0.009577 | Q31: 0.004917 | R31: 0.002572 | S31: 0.002413 | T31: 0.001992 | U31: 0.001909 | V31: 0.001676 | W31: 0.001572 | X31: 0.001417 | Y31: 0.001461 | Z31: 0.001159 | AA31: 0.001212 | AB31: 0.001024 | AC31: 0.001068 | AD31: 0.000892 | AE31: 0.000897 | AF31: 0.000985 | AG31: 0.000873 | AH31: 0.000902 | AI31: 0.000862 | AJ31: 0.000741 | AK31: 0.000892 | AL31: 0.000827 | AM31: 0.000876 | AN31: 0.000849 | AO31: 0.000819 | AP31: 0.000734 | AQ31: 0.000737 | AR31: 0.000792 | AS31: 0.000803 | AT31: 0.00076 | AU31: 0.000659487 | AV31: 0.000683425 | AW31: 0.000641132 | AX31: 0.000639301 | AY31: 0.000619329 | AZ31: 0.000612964 | BA31: 0.000621561 | BB31: 0.000554317 | BC31: 0.000718348 | BD31: 0.000628136 | BE31: 0.000590679 | BF31: 0.000603611 | BG31: 0.000565866 | BH31: 0.000574896 | BI31: 0.000584366 | BJ31: 0.000577163 | BK31: 0.000659011 | BL31: 0.000618314 | BM31: 0.000579203 | BN31: 0.00060743 | BO31: 0.000595411 | BP31: 0.000531391 | BQ31: 0.000459606 | BR31: 0.000464357 | BS31: 0.000386745 | BT31: 0.000373073 | BU31: 0.000401649 | BV31: 0.00038253 | BW31: 0.000412852 | BX31: 0.000347019 | BY31: 0.000315291 | BZ31: 0.000340746 | CA31: 0.000342735 | CB31: 0.000311136 | CC31: 0.000296054 | CD31: 0.000305446 | CE31: 0.000310963 | CF31: 0.000318688 | CG31: 0.00030389 | CH31: 0.000306849 | CI31: 0.000352126 | CJ31: 0.000320582 | CK31: 0.000309102 | CL31: 0.000310636 | CM31: 0.000319405 | CN31: 0.000312918 | CO31: 0.00028981 | CP31: 0.000292396 | CQ31: 0.000288751 | CR31: 0.000285151 | CS31: 0.000281596 | CT31: 0.000278086 | CU31: 0.000274619 | CV31: 0.000271195 | CW31: 0.000267815 | CX31: 0.000264476 | CY31: 0.000261179 | CZ31: 0.000257923 | DA31: 0.000254707 | DB31: 0.000251532 | DC31: 0.000248396 | DD31: 0.000245299 | DE31: 0.000242241 | DF31: 0.000239221 | DG31: 0.000236239 | DH31: 0.000233294 | DI31: 0.000230386 | DJ31: 0.000227513 | DK31: 0.000224677 | DL31: 0.000221876 | DM31: 0.00021911 | DN31: 0.000216378 | DO31: 0.000213681 | DP31: 0.000211017 | DQ31: 0.000208386 | DR31: 0.000205789 | DS31: 0.000203223
A32: 0.004788 | B32: 0.004818 | C32: 0.004679 | D32: 0.004209 | E32: 0.004306 | F32: 0.003915 | G32: 0.003998 | H32: 0.004027 | I32: 0.0038 | J32: 0.004215 | K32: 0.003989 | L32: 0.004177 | M32: 0.005051 | N32: 0.00877 | O32: 0.007675 | P32: 0.004342 | Q32: 0.002689 | R32: 0.002433 | S32: 0.002137 | T32: 0.00188 | U32: 0.00193 | V32: 0.001685 | W32: 0.001431 | X32: 0.001358 | Y32: 0.001273 | Z32: 0.001222 | AA32: 0.001192 | AB32: 0.0011 | AC32: 0.001099 | AD32: 0.001051 | AE32: 0.00093 | AF32: 0.000958 | AG32: 0.001024 | AH32: 0.000895 | AI32: 0.000851 | AJ32: 0.000887 | AK32: 0.0008 | AL32: 0.000804 | AM32: 0.000665 | AN32: 0.000921 | AO32: 0.000773 | AP32: 0.000862 | AQ32: 0.000897 | AR32: 0.000737 | AS32: 0.000824 | AT32: 0.000671991 | AU32: 0.000631349 | AV32: 0.000712408 | AW32: 0.000651492 | AX32: 0.000695517 | AY32: 0.000719061 | AZ32: 0.000651408 | BA32: 0.000679925 | BB32: 0.000707257 | BC32: 0.000701586 | BD32: 0.000654168 | BE32: 0.000628297 | BF32: 0.000627202 | BG32: 0.000615458 | BH32: 0.000636232 | BI32: 0.000611664 | BJ32: 0.000641335 | BK32: 0.000675084 | BL32: 0.000689819 | BM32: 0.000654253 | BN32: 0.00066539 | BO32: 0.000605089 | BP32: 0.000570302 | BQ32: 0.000510551 | BR32: 0.000500923 | BS32: 0.000407971 | BT32: 0.000421581 | BU32: 0.000418813 | BV32: 0.000390728 | BW32: 0.000449872 | BX32: 0.000373164 | BY32: 0.000330747 | BZ32: 0.000383633 | CA32: 0.00037191 | CB32: 0.000325012 | CC32: 0.000335711 | CD32: 0.000308298 | CE32: 0.000322727 | CF32: 0.000292588 | CG32: 0.000278672 | CH32: 0.000270944 | CI32: 0.000312279 | CJ32: 0.0002803 | CK32: 0.000317298 | CL32: 0.000302956 | CM32: 0.000314545 | CN32: 0.000302208 | CO32: 0.000278754 | CP32: 0.000275279 | CQ32: 0.000271847 | CR32: 0.000268458 | CS32: 0.000265111 | CT32: 0.000261806 | CU32: 0.000258542 | CV32: 0.000255319 | CW32: 0.000252136 | CX32: 0.000248993 | CY32: 0.000245889 | CZ32: 0.000242823 | DA32: 0.000239796 | DB32: 0.000236806 | DC32: 0.000233854 | DD32: 0.000230939 | DE32: 0.00022806 | DF32: 0.000225217 | DG32: 0.000222409 | DH32: 0.000219636 | DI32: 0.000216898 | DJ32: 0.000214194 | DK32: 0.000211524 | DL32: 0.000208887 | DM32: 0.000206282 | DN32: 0.000203711 | DO32: 0.000201171 | DP32: 0.000198663 | DQ32: 0.000196187 | DR32: 0.000193741 | DS32: 0.000191325
A33: 0.0045 | B33: 0.004347 | C33: 0.004336 | D33: 0.00424 | E33: 0.004268 | F33: 0.003842 | G33: 0.003879 | H33: 0.003683 | I33: 0.004308 | J33: 0.00403 | K33: 0.004207 | L33: 0.005105 | M33: 0.007516 | N33: 0.007477 | O33: 0.003807 | P33: 0.002779 | Q33: 0.00248 | R33: 0.002254 | S33: 0.002178 | T33: 0.002032 | U33: 0.001806 | V33: 0.001506 | W33: 0.001475 | X33: 0.001333 | Y33: 0.00147 | Z33: 0.0012 | AA33: 0.001156 | AB33: 0.001117 | AC33: 0.001084 | AD33: 0.001105 | AE33: 0.000983 | AF33: 0.001061 | AG33: 0.000978 | AH33: 0.000935 | AI33: 0.000924 | AJ33: 0.000898 | AK33: 0.000899 | AL33: 0.000785 | AM33: 0.000859 | AN33: 0.000775 | AO33: 0.000836 | AP33: 0.000837 | AQ33: 0.000875 | AR33: 0.000891 | AS33: 0.000734753 | AT33: 0.000691849 | AU33: 0.000677049 | AV33: 0.00073546 | AW33: 0.000713287 | AX33: 0.000669539 | AY33: 0.000660425 | AZ33: 0.000737534 | BA33: 0.000699016 | BB33: 0.000743798 | BC33: 0.000702331 | BD33: 0.000671021 | BE33: 0.000631859 | BF33: 0.000634749 | BG33: 0.000626858 | BH33: 0.000682396 | BI33: 0.000684295 | BJ33: 0.00072688 | BK33: 0.000693372 | BL33: 0.000699526 | BM33: 0.000708984 | BN33: 0.000599122 | BO33: 0.000552411 | BP33: 0.000539509 | BQ33: 0.000512834 | BR33: 0.00049416 | BS33: 0.000429982 | BT33: 0.000414899 | BU33: 0.000415312 | BV33: 0.000399184 | BW33: 0.000432626 | BX33: 0.000352304 | BY33: 0.000360096 | BZ33: 0.000410166 | CA33: 0.000347356 | CB33: 0.000330574 | CC33: 0.000326052 | CD33: 0.000331813 | CE33: 0.000346626 | CF33: 0.000359919 | CG33: 0.000347811 | CH33: 0.000315156 | CI33: 0.000330654 | CJ33: 0.000308396 | CK33: 0.000335372 | CL33: 0.000329478 | CM33: 0.000315309 | CN33: 0.000316316 | CO33: 0.000312373 | CP33: 0.000308479 | CQ33: 0.000304633 | CR33: 0.000300835 | CS33: 0.000297085 | CT33: 0.000293381 | CU33: 0.000289724 | CV33: 0.000286112 | CW33: 0.000282545 | CX33: 0.000279022 | CY33: 0.000275544 | CZ33: 0.000272109 | DA33: 0.000268717 | DB33: 0.000265366 | DC33: 0.000262058 | DD33: 0.000258791 | DE33: 0.000255565 | DF33: 0.000252379 | DG33: 0.000249233 | DH33: 0.000246126 | DI33: 0.000243057 | DJ33: 0.000240027 | DK33: 0.000237035 | DL33: 0.00023408 | DM33: 0.000231161 | DN33: 0.00022828 | DO33: 0.000225434 | DP33: 0.000222623 | DQ33: 0.000219848 | DR33: 0.000217107 | DS33: 0.000214401
A34: 0.004463 | B34: 0.004495 | C34: 0.004363 | D34: 0.004353 | E34: 0.003918 | F34: 0.004206 | G34: 0.003752 | H34: 0.004191 | I34: 0.004197 | J34: 0.004114 | K34: 0.005092 | L34: 0.007915 | M34: 0.006479 | N34: 0.004085 | O34: 0.00255 | P34: 0.00223 | Q34: 0.002368 | R34: 0.00204 | S34: 0.002006 | T34: 0.00185 | U34: 0.001689 | V34: 0.001495 | W34: 0.0014 | X34: 0.00135 | Y34: 0.001198 | Z34: 0.001319 | AA34: 0.001193 | AB34: 0.001052 | AC34: 0.001193 | AD34: 0.001172 | AE34: 0.001215 | AF34: 0.001039 | AG34: 0.000959 | AH34: 0.001047 | AI34: 0.00107 | AJ34: 0.00099 | AK34: 0.000865 | AL34: 0.000941 | AM34: 0.000979 | AN34: 0.000912 | AO34: 0.000879 | AP34: 0.000857 | AQ34: 0.000991 | AR34: 0.000898838 | AS34: 0.000809923 | AT34: 0.000818529 | AU34: 0.000745107 | AV34: 0.00074697 | AW34: 0.000795728 | AX34: 0.000746838 | AY34: 0.000741433 | AZ34: 0.000755533 | BA34: 0.000814269 | BB34: 0.000676511 | BC34: 0.000663672 | BD34: 0.000718804 | BE34: 0.000685507 | BF34: 0.000651376 | BG34: 0.000651933 | BH34: 0.000750994 | BI34: 0.000766923 | BJ34: 0.00077109 | BK34: 0.000764452 | BL34: 0.000707006 | BM34: 0.000661052 | BN34: 0.000599528 | BO34: 0.000553932 | BP34: 0.000580075 | BQ34: 0.000593896 | BR34: 0.000518886 | BS34: 0.000517887 | BT34: 0.000490327 | BU34: 0.000457008 | BV34: 0.000447119 | BW34: 0.000419749 | BX34: 0.000392507 | BY34: 0.000415019 | BZ34: 0.000416772 | CA34: 0.000357581 | CB34: 0.000379933 | CC34: 0.000342265 | CD34: 0.000341832 | CE34: 0.000341136 | CF34: 0.000375795 | CG34: 0.000346435 | CH34: 0.000330569 | CI34: 0.000333333 | CJ34: 0.000342995 | CK34: 0.000340441 | CL34: 0.000328541 | CM34: 0.000319614 | CN34: 0.00031563 | CO34: 0.000311695 | CP34: 0.000307809 | CQ34: 0.000303972 | CR34: 0.000300182 | CS34: 0.00029644 | CT34: 0.000292744 | CU34: 0.000289095 | CV34: 0.000285491 | CW34: 0.000281932 | CX34: 0.000278417 | CY34: 0.000274946 | CZ34: 0.000271518 | DA34: 0.000268133 | DB34: 0.00026479 | DC34: 0.000261489 | DD34: 0.000258229 | DE34: 0.00025501 | DF34: 0.000251831 | DG34: 0.000248692 | DH34: 0.000245591 | DI34: 0.000242529 | DJ34: 0.000239506 | DK34: 0.00023652 | DL34: 0.000233571 | DM34: 0.00023066 | DN34: 0.000227784 | DO34: 0.000224944 | DP34: 0.00022214 | DQ34: 0.000219371 | DR34: 0.000216636 | DS34: 0.000213935
A35: 0.004298 | B35: 0.004448 | C35: 0.004361 | D35: 0.004081 | E35: 0.004109 | F35: 0.003928 | G35: 0.004161 | H35: 0.004135 | I35: 0.003987 | J35: 0.005149 | K35: 0.007327 | L35: 0.006697 | M35: 0.003964 | N35: 0.002901 | O35: 0.002593 | P35: 0.00225 | Q35: 0.002307 | R35: 0.002104 | S35: 0.001938 | T35: 0.001894 | U35: 0.001681 | V35: 0.001478 | W35: 0.001504 | X35: 0.001429 | Y35: 0.001367 | Z35: 0.001207 | AA35: 0.001147 | AB35: 0.001209 | AC35: 0.001194 | AD35: 0.001101 | AE35: 0.001141 | AF35: 0.001159 | AG35: 0.000982 | AH35: 0.001125 | AI35: 0.001008 | AJ35: 0.000883 | AK35: 0.000992 | AL35: 0.000955 | AM35: 0.001097 | AN35: 0.000908 | AO35: 0.000969 | AP35: 0.000848 | AQ35: 0.000900521 | AR35: 0.000756252 | AS35: 0.000898951 | AT35: 0.000837115 | AU35: 0.000861714 | AV35: 0.000865282 | AW35: 0.000790659 | AX35: 0.000808033 | AY35: 0.000886039 | AZ35: 0.000734027 | BA35: 0.000769162 | BB35: 0.000761623 | BC35: 0.000632564 | BD35: 0.000777306 | BE35: 0.000754729 | BF35: 0.000734468 | BG35: 0.000746952 | BH35: 0.000787992 | BI35: 0.000811766 | BJ35: 0.000771257 | BK35: 0.000798598 | BL35: 0.000707207 | BM35: 0.000622031 | BN35: 0.00065419 | BO35: 0.000601532 | BP35: 0.000578962 | BQ35: 0.000565757 | BR35: 0.000526681 | BS35: 0.000566762 | BT35: 0.000502433 | BU35: 0.000484758 | BV35: 0.000435318 | BW35: 0.00044805 | BX35: 0.000476145 | BY35: 0.000406319 | BZ35: 0.000428608 | CA35: 0.000402074 | CB35: 0.000431636 | CC35: 0.000394776 | CD35: 0.000354604 | CE35: 0.000376578 | CF35: 0.000406365 | CG35: 0.000377085 | CH35: 0.000394968 | CI35: 0.000368816 | CJ35: 0.000381628 | CK35: 0.000368756 | CL35: 0.000359727 | CM35: 0.000355242 | CN35: 0.000350813 | CO35: 0.00034644 | CP35: 0.000342121 | CQ35: 0.000337856 | CR35: 0.000333644 | CS35: 0.000329485 | CT35: 0.000325377 | CU35: 0.000321321 | CV35: 0.000317315 | CW35: 0.000313359 | CX35: 0.000309452 | CY35: 0.000305595 | CZ35: 0.000301785 | DA35: 0.000298023 | DB35: 0.000294307 | DC35: 0.000290638 | DD35: 0.000287015 | DE35: 0.000283437 | DF35: 0.000279903 | DG35: 0.000276414 | DH35: 0.000272968 | DI35: 0.000269565 | DJ35: 0.000266204 | DK35: 0.000262886 | DL35: 0.000259608 | DM35: 0.000256372 | DN35: 0.000253176 | DO35: 0.00025002 | DP35: 0.000246903 | DQ35: 0.000243825 | DR35: 0.000240785 | DS35: 0.000237783
A36: 0.004674 | B36: 0.004251 | C36: 0.00425 | D36: 0.004202 | E36: 0.004111 | F36: 0.004502 | G36: 0.004198 | H36: 0.004275 | I36: 0.005215 | J36: 0.007477 | K36: 0.006724 | L36: 0.003865 | M36: 0.002797 | N36: 0.002506 | O36: 0.002479 | P36: 0.002365 | Q36: 0.002276 | R36: 0.002083 | S36: 0.002082 | T36: 0.001692 | U36: 0.001639 | V36: 0.001694 | W36: 0.001551 | X36: 0.00133 | Y36: 0.001157 | Z36: 0.001199 | AA36: 0.001218 | AB36: 0.001161 | AC36: 0.001217 | AD36: 0.001256 | AE36: 0.001037 | AF36: 0.001121 | AG36: 0.001161 | AH36: 0.001147 | AI36: 0.001012 | AJ36: 0.001101 | AK36: 0.001045 | AL36: 0.001064 | AM36: 0.001014 | AN36: 0.000943 | AO36: 0.001052 | AP36: 0.0009162 | AQ36: 0.000998136 | AR36: 0.000980025 | AS36: 0.000965474 | AT36: 0.000966759 | AU36: 0.000885659 | AV36: 0.000871705 | AW36: 0.000911647 | AX36: 0.000915118 | AY36: 0.000855098 | AZ36: 0.000783608 | BA36: 0.000801109 | BB36: 0.000844113 | BC36: 0.000755034 | BD36: 0.000872626 | BE36: 0.000847201 | BF36: 0.000818225 | BG36: 0.000779487 | BH36: 0.000760618 | BI36: 0.000836834 | BJ36: 0.000804875 | BK36: 0.000779284 | BL36: 0.000712069 | BM36: 0.000657235 | BN36: 0.000669491 | BO36: 0.000652492 | BP36: 0.000622823 | BQ36: 0.000590679 | BR36: 0.00052657 | BS36: 0.000557641 | BT36: 0.000538285 | BU36: 0.000505408 | BV36: 0.000539428 | BW36: 0.00055031 | BX36: 0.000516021 | BY36: 0.000448183 | BZ36: 0.000439892 | CA36: 0.000406747 | CB36: 0.000408041 | CC36: 0.000402615 | CD36: 0.000390792 | CE36: 0.000406227 | CF36: 0.000412836 | CG36: 0.000436999 | CH36: 0.000411743 | CI36: 0.000437163 | CJ36: 0.000412499 | CK36: 0.000406611 | CL36: 0.000401542 | CM36: 0.000396536 | CN36: 0.000391592 | CO36: 0.00038671 | CP36: 0.000381889 | CQ36: 0.000377129 | CR36: 0.000372427 | CS36: 0.000367784 | CT36: 0.000363199 | CU36: 0.000358671 | CV36: 0.0003542 | CW36: 0.000349784 | CX36: 0.000345424 | CY36: 0.000341117 | CZ36: 0.000336865 | DA36: 0.000332665 | DB36: 0.000328518 | DC36: 0.000324422 | DD36: 0.000320378 | DE36: 0.000316384 | DF36: 0.00031244 | DG36: 0.000308545 | DH36: 0.000304698 | DI36: 0.0003009 | DJ36: 0.000297148 | DK36: 0.000293444 | DL36: 0.000289786 | DM36: 0.000286173 | DN36: 0.000282605 | DO36: 0.000279082 | DP36: 0.000275603 | DQ36: 0.000272167 | DR36: 0.000268774 | DS36: 0.000265423
A37: 0.004337 | B37: 0.004145 | C37: 0.004367 | D37: 0.00408 | E37: 0.004405 | F37: 0.004342 | G37: 0.004219 | H37: 0.005224 | I37: 0.007488 | J37: 0.006527 | K37: 0.004021 | L37: 0.002795 | M37: 0.002509 | N37: 0.002492 | O37: 0.002311 | P37: 0.002181 | Q37: 0.002184 | R37: 0.002189 | S37: 0.002113 | T37: 0.00176 | U37: 0.001844 | V37: 0.001622 | W37: 0.00166 | X37: 0.001413 | Y37: 0.001421 | Z37: 0.001392 | AA37: 0.001464 | AB37: 0.001352 | AC37: 0.001182 | AD37: 0.001181 | AE37: 0.001253 | AF37: 0.001331 | AG37: 0.001256 | AH37: 0.001221 | AI37: 0.001289 | AJ37: 0.001218 | AK37: 0.001263 | AL37: 0.001088 | AM37: 0.001106 | AN37: 0.000994 | AO37: 0.000980431 | AP37: 0.001009723 | AQ37: 0.001126433 | AR37: 0.00098178 | AS37: 0.001022288 | AT37: 0.001003964 | AU37: 0.000904408 | AV37: 0.000922002 | AW37: 0.000894754 | AX37: 0.000862119 | AY37: 0.000906193 | AZ37: 0.000837902 | BA37: 0.00085779 | BB37: 0.000893368 | BC37: 0.00089941 | BD37: 0.000886296 | BE37: 0.000966209 | BF37: 0.000877421 | BG37: 0.000854909 | BH37: 0.000863361 | BI37: 0.00090842 | BJ37: 0.000813143 | BK37: 0.000768368 | BL37: 0.000768796 | BM37: 0.000767361 | BN37: 0.000721351 | BO37: 0.00068922 | BP37: 0.000710066 | BQ37: 0.000669573 | BR37: 0.000609622 | BS37: 0.000568607 | BT37: 0.00059807 | BU37: 0.000543755 | BV37: 0.000601423 | BW37: 0.000530333 | BX37: 0.0004826 | BY37: 0.000461726 | BZ37: 0.0004344 | CA37: 0.000421393 | CB37: 0.000432207 | CC37: 0.000413714 | CD37: 0.000445273 | CE37: 0.000463059 | CF37: 0.000446413 | CG37: 0.00045449 | CH37: 0.000487724 | CI37: 0.000472347 | CJ37: 0.000436644 | CK37: 0.000431201 | CL37: 0.000425825 | CM37: 0.000420516 | CN37: 0.000415274 | CO37: 0.000410097 | CP37: 0.000404984 | CQ37: 0.000399936 | CR37: 0.00039495 | CS37: 0.000390026 | CT37: 0.000385164 | CU37: 0.000380362 | CV37: 0.00037562 | CW37: 0.000370937 | CX37: 0.000366313 | CY37: 0.000361746 | CZ37: 0.000357236 | DA37: 0.000352783 | DB37: 0.000348385 | DC37: 0.000344042 | DD37: 0.000339753 | DE37: 0.000335517 | DF37: 0.000331334 | DG37: 0.000327204 | DH37: 0.000323124 | DI37: 0.000319096 | DJ37: 0.000315118 | DK37: 0.00031119 | DL37: 0.00030731 | DM37: 0.000303479 | DN37: 0.000299696 | DO37: 0.000295959 | DP37: 0.00029227 | DQ37: 0.000288626 | DR37: 0.000285028 | DS37: 0.000281474
A38: 0.004498 | B38: 0.004443 | C38: 0.004512 | D38: 0.00451 | E38: 0.004647 | F38: 0.004257 | G38: 0.005413 | H38: 0.007707 | I38: 0.006628 | J38: 0.004068 | K38: 0.002898 | L38: 0.002752 | M38: 0.002591 | N38: 0.002393 | O38: 0.002368 | P38: 0.002084 | Q38: 0.002011 | R38: 0.002096 | S38: 0.002087 | T38: 0.001882 | U38: 0.001847 | V38: 0.001705 | W38: 0.001581 | X38: 0.001641 | Y38: 0.001414 | Z38: 0.001484 | AA38: 0.001433 | AB38: 0.001316 | AC38: 0.001553 | AD38: 0.001369 | AE38: 0.001298 | AF38: 0.001392 | AG38: 0.001324 | AH38: 0.001268 | AI38: 0.00124 | AJ38: 0.001344 | AK38: 0.001284 | AL38: 0.001196 | AM38: 0.001134 | AN38: 0.001068101 | AO38: 0.001104669 | AP38: 0.001049858 | AQ38: 0.001134944 | AR38: 0.001103673 | AS38: 0.001062462 | AT38: 0.001184 | AU38: 0.001012898 | AV38: 0.000963146 | AW38: 0.001024553 | AX38: 0.001001316 | AY38: 0.001011759 | AZ38: 0.0010072 | BA38: 0.000930886 | BB38: 0.000876378 | BC38: 0.000881132 | BD38: 0.000907127 | BE38: 0.000931155 | BF38: 0.000895622 | BG38: 0.000879365 | BH38: 0.000906999 | BI38: 0.00088495 | BJ38: 0.000788052 | BK38: 0.000790848 | BL38: 0.000812292 | BM38: 0.000799411 | BN38: 0.000747282 | BO38: 0.000679583 | BP38: 0.000743076 | BQ38: 0.000674305 | BR38: 0.000628285 | BS38: 0.000629803 | BT38: 0.000579692 | BU38: 0.000538971 | BV38: 0.000603017 | BW38: 0.000509003 | BX38: 0.000521641 | BY38: 0.000541655 | BZ38: 0.000540242 | CA38: 0.000514102 | CB38: 0.000507388 | CC38: 0.000470231 | CD38: 0.000487545 | CE38: 0.000504585 | CF38: 0.00047712 | CG38: 0.000453404 | CH38: 0.000512086 | CI38: 0.000475346 | CJ38: 0.00046942 | CK38: 0.000463568 | CL38: 0.000457789 | CM38: 0.000452082 | CN38: 0.000446446 | CO38: 0.00044088 | CP38: 0.000435384 | CQ38: 0.000429956 | CR38: 0.000424596 | CS38: 0.000419302 | CT38: 0.000414075 | CU38: 0.000408913 | CV38: 0.000403815 | CW38: 0.000398781 | CX38: 0.000393809 | CY38: 0.0003889 | CZ38: 0.000384052 | DA38: 0.000379264 | DB38: 0.000374535 | DC38: 0.000369866 | DD38: 0.000365255 | DE38: 0.000360702 | DF38: 0.000356205 | DG38: 0.000351764 | DH38: 0.000347379 | DI38: 0.000343048 | DJ38: 0.000338771 | DK38: 0.000334548 | DL38: 0.000330377 | DM38: 0.000326259 | DN38: 0.000322191 | DO38: 0.000318175 | DP38: 0.000314208 | DQ38: 0.000310291 | DR38: 0.000306423 | DS38: 0.000302602
A39: 0.004411 | B39: 0.004362 | C39: 0.004738 | D39: 0.004758 | E39: 0.004646 | F39: 0.005204 | G39: 0.00745 | H39: 0.006768 | I39: 0.004133 | J39: 0.00308 | K39: 0.002645 | L39: 0.002615 | M39: 0.002613 | N39: 0.002549 | O39: 0.002528 | P39: 0.002158 | Q39: 0.002262 | R39: 0.002158 | S39: 0.002075 | T39: 0.001906 | U39: 0.001793 | V39: 0.001604 | W39: 0.001669 | X39: 0.00166 | Y39: 0.001588 | Z39: 0.001493 | AA39: 0.001554 | AB39: 0.001595 | AC39: 0.001622 | AD39: 0.001471 | AE39: 0.001472 | AF39: 0.00143 | AG39: 0.001545 | AH39: 0.001291 | AI39: 0.001456 | AJ39: 0.001348 | AK39: 0.001272 | AL39: 0.001106 | AM39: 0.001249446 | AN39: 0.001273833 | AO39: 0.001180138 | AP39: 0.001147965 | AQ39: 0.001164629 | AR39: 0.001202712 | AS39: 0.001237524 | AT39: 0.001160996 | AU39: 0.00108019 | AV39: 0.000944328 | AW39: 0.001049398 | AX39: 0.001001401 | AY39: 0.000995736 | AZ39: 0.001055535 | BA39: 0.001000473 | BB39: 0.000883936 | BC39: 0.000932251 | BD39: 0.000985128 | BE39: 0.001023432 | BF39: 0.001013376 | BG39: 0.001014923 | BH39: 0.000954276 | BI39: 0.00089953 | BJ39: 0.000895177 | BK39: 0.000856454 | BL39: 0.000863467 | BM39: 0.000815606 | BN39: 0.000762583 | BO39: 0.000777465 | BP39: 0.000760294 | BQ39: 0.000716245 | BR39: 0.000700497 | BS39: 0.000698395 | BT39: 0.000660794 | BU39: 0.000621119 | BV39: 0.000639812 | BW39: 0.000632445 | BX39: 0.000574455 | BY39: 0.000631332 | BZ39: 0.000586421 | CA39: 0.000554563 | CB39: 0.00055833 | CC39: 0.000538522 | CD39: 0.000580944 | CE39: 0.000534545 | CF39: 0.000552381 | CG39: 0.000540356 | CH39: 0.000553419 | CI39: 0.000546519 | CJ39: 0.000539706 | CK39: 0.000532978 | CL39: 0.000526333 | CM39: 0.000519772 | CN39: 0.000513292 | CO39: 0.000506893 | CP39: 0.000500574 | CQ39: 0.000494334 | CR39: 0.000488171 | CS39: 0.000482085 | CT39: 0.000476075 | CU39: 0.00047014 | CV39: 0.000464279 | CW39: 0.000458491 | CX39: 0.000452775 | CY39: 0.000447131 | CZ39: 0.000441557 | DA39: 0.000436052 | DB39: 0.000430616 | DC39: 0.000425247 | DD39: 0.000419946 | DE39: 0.000414711 | DF39: 0.000409541 | DG39: 0.000404435 | DH39: 0.000399393 | DI39: 0.000394414 | DJ39: 0.000389497 | DK39: 0.000384641 | DL39: 0.000379846 | DM39: 0.000375111 | DN39: 0.000370435 | DO39: 0.000365817 | DP39: 0.000361256 | DQ39: 0.000356752 | DR39: 0.000352305 | DS39: 0.000347913
A40: 0.004577 | B40: 0.004925 | C40: 0.004971 | D40: 0.004662 | E40: 0.005254 | F40: 0.007051 | G40: 0.006998 | H40: 0.004065 | I40: 0.003191 | J40: 0.002846 | K40: 0.002726 | L40: 0.002777 | M40: 0.002762 | N40: 0.002455 | O40: 0.002301 | P40: 0.002152 | Q40: 0.002341 | R40: 0.00224 | S40: 0.002058 | T40: 0.002038 | U40: 0.001732 | V40: 0.001816 | W40: 0.001747 | X40: 0.001844 | Y40: 0.00163 | Z40: 0.001617 | AA40: 0.001761 | AB40: 0.001838 | AC40: 0.001695 | AD40: 0.001537 | AE40: 0.001444 | AF40: 0.001517 | AG40: 0.001513 | AH40: 0.001512 | AI40: 0.001483 | AJ40: 0.00132 | AK40: 0.001336 | AL40: 0.001378885 | AM40: 0.001416002 | AN40: 0.001320057 | AO40: 0.001193481 | AP40: 0.001169564 | AQ40: 0.001197517 | AR40: 0.001175276 | AS40: 0.001278394 | AT40: 0.001236786 | AU40: 0.00120368 | AV40: 0.001102082 | AW40: 0.00113618 | AX40: 0.000994363 | AY40: 0.001102651 | AZ40: 0.001084221 | BA40: 0.001091705 | BB40: 0.001031067 | BC40: 0.001080801 | BD40: 0.001124438 | BE40: 0.001157442 | BF40: 0.00105464 | BG40: 0.001080508 | BH40: 0.00101216 | BI40: 0.000942313 | BJ40: 0.000947116 | BK40: 0.00096129 | BL40: 0.00093646 | BM40: 0.000920161 | BN40: 0.000827337 | BO40: 0.000884451 | BP40: 0.000845503 | BQ40: 0.000787888 | BR40: 0.000801063 | BS40: 0.000761488 | BT40: 0.000718232 | BU40: 0.000728274 | BV40: 0.000646738 | BW40: 0.000683024 | BX40: 0.000634567 | BY40: 0.000673495 | BZ40: 0.000606654 | CA40: 0.000601912 | CB40: 0.00058149 | CC40: 0.000580909 | CD40: 0.000597974 | CE40: 0.000521997 | CF40: 0.000588985 | CG40: 0.00058187 | CH40: 0.000574616 | CI40: 0.000567452 | CJ40: 0.000560378 | CK40: 0.000553392 | CL40: 0.000546493 | CM40: 0.00053968 | CN40: 0.000532952 | CO40: 0.000526308 | CP40: 0.000519747 | CQ40: 0.000513267 | CR40: 0.000506869 | CS40: 0.00050055 | CT40: 0.000494309 | CU40: 0.000488147 | CV40: 0.000482061 | CW40: 0.000476052 | CX40: 0.000470117 | CY40: 0.000464256 | CZ40: 0.000458468 | DA40: 0.000452753 | DB40: 0.000447109 | DC40: 0.000441535 | DD40: 0.00043603 | DE40: 0.000430594 | DF40: 0.000425226 | DG40: 0.000419925 | DH40: 0.00041469 | DI40: 0.00040952 | DJ40: 0.000404415 | DK40: 0.000399373 | DL40: 0.000394394 | DM40: 0.000389478 | DN40: 0.000384622 | DO40: 0.000379827 | DP40: 0.000375092 | DQ40: 0.000370416 | DR40: 0.000365798 | DS40: 0.000361238
A41: 0.005022 | B41: 0.005083 | C41: 0.004978 | D41: 0.005403 | E41: 0.007444 | F41: 0.006771 | G41: 0.004374 | H41: 0.003052 | I41: 0.003024 | J41: 0.003025 | K41: 0.002828 | L41: 0.002636 | M41: 0.002551 | N41: 0.002457 | O41: 0.002508 | P41: 0.002235 | Q41: 0.002215 | R41: 0.00216 | S41: 0.002131 | T41: 0.001934 | U41: 0.002064 | V41: 0.001685 | W41: 0.001908 | X41: 0.001794 | Y41: 0.001831 | Z41: 0.001667 | AA41: 0.0018 | AB41: 0.00177 | AC41: 0.001686 | AD41: 0.001567 | AE41: 0.001694 | AF41: 0.001547 | AG41: 0.001737 | AH41: 0.001613 | AI41: 0.001406 | AJ41: 0.001365 | AK41: 0.00140899 | AL41: 0.001483623 | AM41: 0.001362079 | AN41: 0.001216174 | AO41: 0.001339352 | AP41: 0.0011953 | AQ41: 0.001269676 | AR41: 0.001354149 | AS41: 0.001252755 | AT41: 0.001189319 | AU41: 0.001196535 | AV41: 0.001162683 | AW41: 0.001197651 | AX41: 0.001158022 | AY41: 0.001151696 | AZ41: 0.001149311 | BA41: 0.001131822 | BB41: 0.001179503 | BC41: 0.001143543 | BD41: 0.001267694 | BE41: 0.001187303 | BF41: 0.00111039 | BG41: 0.001055274 | BH41: 0.001094313 | BI41: 0.00105673 | BJ41: 0.001045421 | BK41: 0.00103443 | BL41: 0.001013845 | BM41: 0.000969985 | BN41: 0.000897534 | BO41: 0.000937933 | BP41: 0.000871374 | BQ41: 0.000874946 | BR41: 0.000887735 | BS41: 0.000782403 | BT41: 0.00076297 | BU41: 0.000758439 | BV41: 0.00070437 | BW41: 0.000685346 | BX41: 0.000650671 | BY41: 0.000695176 | BZ41: 0.000642778 | CA41: 0.000673179 | CB41: 0.000621919 | CC41: 0.000631104 | CD41: 0.000644924 | CE41: 0.000606952 | CF41: 0.000623415 | CG41: 0.000615643 | CH41: 0.000607968 | CI41: 0.000600389 | CJ41: 0.000592904 | CK41: 0.000585513 | CL41: 0.000578213 | CM41: 0.000571005 | CN41: 0.000563886 | CO41: 0.000556856 | CP41: 0.000549914 | CQ41: 0.000543059 | CR41: 0.000536289 | CS41: 0.000529603 | CT41: 0.000523 | CU41: 0.00051648 | CV41: 0.000510042 | CW41: 0.000503683 | CX41: 0.000497404 | CY41: 0.000491203 | CZ41: 0.000485079 | DA41: 0.000479032 | DB41: 0.00047306 | DC41: 0.000467162 | DD41: 0.000461338 | DE41: 0.000455587 | DF41: 0.000449907 | DG41: 0.000444298 | DH41: 0.00043876 | DI41: 0.00043329 | DJ41: 0.000427888 | DK41: 0.000422554 | DL41: 0.000417286 | DM41: 0.000412084 | DN41: 0.000406946 | DO41: 0.000401873 | DP41: 0.000396863 | DQ41: 0.000391915 | DR41: 0.000387029 | DS41: 0.000382205
A42: 0.005472 | B42: 0.005202 | C42: 0.005732 | D42: 0.00754 | E42: 0.006864 | F42: 0.004508 | G42: 0.003349 | H42: 0.003173 | I42: 0.003271 | J42: 0.003087 | K42: 0.002883 | L42: 0.002776 | M42: 0.002892 | N42: 0.002672 | O42: 0.002392 | P42: 0.002413 | Q42: 0.002471 | R42: 0.002316 | S42: 0.002221 | T42: 0.002195 | U42: 0.00193 | V42: 0.00197 | W42: 0.002157 | X42: 0.001836 | Y42: 0.001941 | Z42: 0.001825 | AA42: 0.001926 | AB42: 0.001756 | AC42: 0.001776 | AD42: 0.001951 | AE42: 0.001711 | AF42: 0.001681 | AG42: 0.001763 | AH42: 0.001786 | AI42: 0.0017 | AJ42: 0.001661265 | AK42: 0.001562405 | AL42: 0.001583953 | AM42: 0.001538222 | AN42: 0.001432048 | AO42: 0.001467871 | AP42: 0.001456109 | AQ42: 0.001343388 | AR42: 0.001450586 | AS42: 0.001384944 | AT42: 0.001304134 | AU42: 0.001315924 | AV42: 0.001188381 | AW42: 0.001254894 | AX42: 0.001280142 | AY42: 0.001232818 | AZ42: 0.001221564 | BA42: 0.001245162 | BB42: 0.001211056 | BC42: 0.001248474 | BD42: 0.001269883 | BE42: 0.001218781 | BF42: 0.001198497 | BG42: 0.001163379 | BH42: 0.001116532 | BI42: 0.001143549 | BJ42: 0.001170216 | BK42: 0.001091044 | BL42: 0.001061955 | BM42: 0.000967696 | BN42: 0.000951491 | BO42: 0.000940353 | BP42: 0.000895241 | BQ42: 0.000879776 | BR42: 0.00089279 | BS42: 0.000812546 | BT42: 0.00082491 | BU42: 0.000774895 | BV42: 0.000784052 | BW42: 0.000747508 | BX42: 0.000665278 | BY42: 0.000729147 | BZ42: 0.000702037 | CA42: 0.0007293 | CB42: 0.000725514 | CC42: 0.000692892 | CD42: 0.000715211 | CE42: 0.000699724 | CF42: 0.000691001 | CG42: 0.000682386 | CH42: 0.00067388 | CI42: 0.000665479 | CJ42: 0.000657182 | CK42: 0.00064899 | CL42: 0.000640899 | CM42: 0.000632909 | CN42: 0.000625019 | CO42: 0.000617227 | CP42: 0.000609532 | CQ42: 0.000601934 | CR42: 0.00059443 | CS42: 0.000587019 | CT42: 0.000579701 | CU42: 0.000572474 | CV42: 0.000565337 | CW42: 0.000558289 | CX42: 0.00055133 | CY42: 0.000544456 | CZ42: 0.000537669 | DA42: 0.000530966 | DB42: 0.000524347 | DC42: 0.00051781 | DD42: 0.000511354 | DE42: 0.00050498 | DF42: 0.000498684 | DG42: 0.000492467 | DH42: 0.000486328 | DI42: 0.000480265 | DJ42: 0.000474278 | DK42: 0.000468365 | DL42: 0.000462526 | DM42: 0.00045676 | DN42: 0.000451066 | DO42: 0.000445443 | DP42: 0.000439889 | DQ42: 0.000434406 | DR42: 0.00042899 | DS42: 0.000423642
A43: 0.005273 | B43: 0.005553 | C43: 0.007694 | D43: 0.007025 | E43: 0.004344 | F43: 0.003328 | G43: 0.003294 | H43: 0.003196 | I43: 0.003496 | J43: 0.002999 | K43: 0.003129 | L43: 0.002881 | M43: 0.002739 | N43: 0.002679 | O43: 0.002576 | P43: 0.002426 | Q43: 0.002474 | R43: 0.002166 | S43: 0.002244 | T43: 0.002189 | U43: 0.002168 | V43: 0.002227 | W43: 0.002132 | X43: 0.002094 | Y43: 0.00211 | Z43: 0.002084 | AA43: 0.002168 | AB43: 0.002048 | AC43: 0.002067 | AD43: 0.00194 | AE43: 0.002087 | AF43: 0.001935 | AG43: 0.001778 | AH43: 0.001731 | AI43: 0.001793853 | AJ43: 0.001600232 | AK43: 0.001560112 | AL43: 0.001535579 | AM43: 0.001691932 | AN43: 0.001638961 | AO43: 0.001516697 | AP43: 0.001559137 | AQ43: 0.001429265 | AR43: 0.001405386 | AS43: 0.001419203 | AT43: 0.001452183 | AU43: 0.001413047 | AV43: 0.001327969 | AW43: 0.00134152 | AX43: 0.00131451 | AY43: 0.001342073 | AZ43: 0.001351449 | BA43: 0.001356495 | BB43: 0.001299469 | BC43: 0.001377467 | BD43: 0.001322659 | BE43: 0.001262916 | BF43: 0.001337451 | BG43: 0.00135537 | BH43: 0.001227024 | BI43: 0.001247543 | BJ43: 0.001245858 | BK43: 0.00120078 | BL43: 0.001102595 | BM43: 0.001086617 | BN43: 0.001035592 | BO43: 0.001013688 | BP43: 0.001013262 | BQ43: 0.001000788 | BR43: 0.00090705 | BS43: 0.000890281 | BT43: 0.000865967 | BU43: 0.000881512 | BV43: 0.000850554 | BW43: 0.000773862 | BX43: 0.000785092 | BY43: 0.000788247 | BZ43: 0.000809908 | CA43: 0.000800024 | CB43: 0.000810249 | CC43: 0.000789863 | CD43: 0.000770239 | CE43: 0.000760637 | CF43: 0.000751154 | CG43: 0.00074179 | CH43: 0.000732542 | CI43: 0.00072341 | CJ43: 0.000714392 | CK43: 0.000705486 | CL43: 0.000696691 | CM43: 0.000688005 | CN43: 0.000679428 | CO43: 0.000670958 | CP43: 0.000662593 | CQ43: 0.000654333 | CR43: 0.000646176 | CS43: 0.00063812 | CT43: 0.000630165 | CU43: 0.000622309 | CV43: 0.000614551 | CW43: 0.00060689 | CX43: 0.000599324 | CY43: 0.000591852 | CZ43: 0.000584474 | DA43: 0.000577188 | DB43: 0.000569992 | DC43: 0.000562886 | DD43: 0.000555869 | DE43: 0.000548939 | DF43: 0.000542096 | DG43: 0.000535338 | DH43: 0.000528664 | DI43: 0.000522073 | DJ43: 0.000515565 | DK43: 0.000509137 | DL43: 0.00050279 | DM43: 0.000496522 | DN43: 0.000490332 | DO43: 0.000484219 | DP43: 0.000478183 | DQ43: 0.000472221 | DR43: 0.000466334 | DS43: 0.000460521
A44: 0.005508 | B44: 0.007588 | C44: 0.006998 | D44: 0.004573 | E44: 0.003465 | F44: 0.003394 | G44: 0.00359 | H44: 0.003326 | I44: 0.003265 | J44: 0.003283 | K44: 0.003248 | L44: 0.002953 | M44: 0.002819 | N44: 0.002749 | O44: 0.002686 | P44: 0.002472 | Q44: 0.00254 | R44: 0.002194 | S44: 0.0024 | T44: 0.002261 | U44: 0.002396 | V44: 0.002273 | W44: 0.002228 | X44: 0.002228 | Y44: 0.002124 | Z44: 0.002225 | AA44: 0.002122 | AB44: 0.002243 | AC44: 0.002148 | AD44: 0.002133 | AE44: 0.002067 | AF44: 0.001978 | AG44: 0.001951 | AH44: 0.001918218 | AI44: 0.001799062 | AJ44: 0.00156567 | AK44: 0.001591038 | AL44: 0.001764003 | AM44: 0.001765336 | AN44: 0.001614672 | AO44: 0.001606631 | AP44: 0.001564683 | AQ44: 0.001555474 | AR44: 0.001606346 | AS44: 0.001474044 | AT44: 0.001557978 | AU44: 0.001522446 | AV44: 0.001451901 | AW44: 0.001358308 | AX44: 0.001363977 | AY44: 0.001393129 | AZ44: 0.001395757 | BA44: 0.001375186 | BB44: 0.001408453 | BC44: 0.001354529 | BD44: 0.001396411 | BE44: 0.001325824 | BF44: 0.001411506 | BG44: 0.001394027 | BH44: 0.001351532 | BI44: 0.001343121 | BJ44: 0.001299525 | BK44: 0.0012412 | BL44: 0.001203364 | BM44: 0.001148678 | BN44: 0.001137615 | BO44: 0.001156158 | BP44: 0.001065358 | BQ44: 0.001116953 | BR44: 0.000945282 | BS44: 0.000970447 | BT44: 0.000897261 | BU44: 0.000943666 | BV44: 0.000855796 | BW44: 0.000801415 | BX44: 0.000876866 | BY44: 0.000860374 | BZ44: 0.000877462 | CA44: 0.00086645 | CB44: 0.00081688 | CC44: 0.000800519 | CD44: 0.000790539 | CE44: 0.000780684 | CF44: 0.000770951 | CG44: 0.00076134 | CH44: 0.000751848 | CI44: 0.000742475 | CJ44: 0.000733219 | CK44: 0.000724078 | CL44: 0.000715051 | CM44: 0.000706137 | CN44: 0.000697333 | CO44: 0.00068864 | CP44: 0.000680055 | CQ44: 0.000671577 | CR44: 0.000663204 | CS44: 0.000654936 | CT44: 0.000646771 | CU44: 0.000638708 | CV44: 0.000630746 | CW44: 0.000622882 | CX44: 0.000615117 | CY44: 0.000607448 | CZ44: 0.000599876 | DA44: 0.000592397 | DB44: 0.000585012 | DC44: 0.000577719 | DD44: 0.000570516 | DE44: 0.000563404 | DF44: 0.00055638 | DG44: 0.000549444 | DH44: 0.000542594 | DI44: 0.00053583 | DJ44: 0.00052915 | DK44: 0.000522553 | DL44: 0.000516038 | DM44: 0.000509605 | DN44: 0.000503252 | DO44: 0.000496978 | DP44: 0.000490782 | DQ44: 0.000484664 | DR44: 0.000478621 | DS44: 0.000472655
A45: 0.007529 | B45: 0.007244 | C45: 0.004869 | D45: 0.003701 | E45: 0.003747 | F45: 0.003903 | G45: 0.003621 | H45: 0.003479 | I45: 0.003473 | J45: 0.003401 | K45: 0.003369 | L45: 0.00313 | M45: 0.00294 | N45: 0.00298 | O45: 0.002815 | P45: 0.002494 | Q45: 0.002616 | R45: 0.002436 | S45: 0.002635 | T45: 0.002662 | U45: 0.002557 | V45: 0.002587 | W45: 0.002438 | X45: 0.002376 | Y45: 0.002366 | Z45: 0.002361 | AA45: 0.00246 | AB45: 0.002299 | AC45: 0.002311 | AD45: 0.002436 | AE45: 0.002071 | AF45: 0.002223 | AG45: 0.002210045 | AH45: 0.002044818 | AI45: 0.002071349 | AJ45: 0.00199416 | AK45: 0.001892028 | AL45: 0.001909845 | AM45: 0.00175852 | AN45: 0.001749848 | AO45: 0.001814808 | AP45: 0.001756688 | AQ45: 0.001630353 | AR45: 0.001645119 | AS45: 0.001655344 | AT45: 0.00168261 | AU45: 0.001542916 | AV45: 0.001562265 | AW45: 0.001553097 | AX45: 0.001538551 | AY45: 0.001618007 | AZ45: 0.001562132 | BA45: 0.001575735 | BB45: 0.001560012 | BC45: 0.001547273 | BD45: 0.001559652 | BE45: 0.001475079 | BF45: 0.001518776 | BG45: 0.001494443 | BH45: 0.001523307 | BI45: 0.001441833 | BJ45: 0.001425509 | BK45: 0.001304436 | BL45: 0.001306508 | BM45: 0.00122247 | BN45: 0.001244983 | BO45: 0.001232487 | BP45: 0.001119138 | BQ45: 0.001154973 | BR45: 0.001087266 | BS45: 0.001133591 | BT45: 0.001077697 | BU45: 0.001072368 | BV45: 0.001001165 | BW45: 0.001050479 | BX45: 0.000949303 | BY45: 0.000952253 | BZ45: 0.000957915 | CA45: 0.000989376 | CB45: 0.000918723 | CC45: 0.00090727 | CD45: 0.000895959 | CE45: 0.00088479 | CF45: 0.00087376 | CG45: 0.000862867 | CH45: 0.00085211 | CI45: 0.000841488 | CJ45: 0.000830997 | CK45: 0.000820638 | CL45: 0.000810407 | CM45: 0.000800304 | CN45: 0.000790327 | CO45: 0.000780475 | CP45: 0.000770745 | CQ45: 0.000761137 | CR45: 0.000751648 | CS45: 0.000742278 | CT45: 0.000733024 | CU45: 0.000723886 | CV45: 0.000714862 | CW45: 0.00070595 | CX45: 0.000697149 | CY45: 0.000688458 | CZ45: 0.000679875 | DA45: 0.0006714 | DB45: 0.00066303 | DC45: 0.000654764 | DD45: 0.000646601 | DE45: 0.000638541 | DF45: 0.00063058 | DG45: 0.000622719 | DH45: 0.000614956 | DI45: 0.00060729 | DJ45: 0.000599719 | DK45: 0.000592242 | DL45: 0.000584859 | DM45: 0.000577568 | DN45: 0.000570368 | DO45: 0.000563257 | DP45: 0.000556235 | DQ45: 0.000549301 | DR45: 0.000542453 | DS45: 0.000535691
A46: 0.00763 | B46: 0.004736 | C46: 0.003908 | D46: 0.003733 | E46: 0.003821 | F46: 0.003874 | G46: 0.003777 | H46: 0.003775 | I46: 0.003725 | J46: 0.003436 | K46: 0.003227 | L46: 0.003363 | M46: 0.003146 | N46: 0.002949 | O46: 0.00275 | P46: 0.002846 | Q46: 0.002871 | R46: 0.002653 | S46: 0.002902 | T46: 0.002622 | U46: 0.002712 | V46: 0.002648 | W46: 0.002461 | X46: 0.0026 | Y46: 0.002474 | Z46: 0.002521 | AA46: 0.002382 | AB46: 0.002503 | AC46: 0.002436 | AD46: 0.002404 | AE46: 0.002279 | AF46: 0.002298221 | AG46: 0.002211538 | AH46: 0.002201552 | AI46: 0.002003643 | AJ46: 0.002056246 | AK46: 0.001993625 | AL46: 0.001853113 | AM46: 0.001782987 | AN46: 0.001848825 | AO46: 0.001817662 | AP46: 0.001725012 | AQ46: 0.001916941 | AR46: 0.001817431 | AS46: 0.001754474 | AT46: 0.001793338 | AU46: 0.001675465 | AV46: 0.001607168 | AW46: 0.001675828 | AX46: 0.001671796 | AY46: 0.001690022 | AZ46: 0.001683937 | BA46: 0.001675781 | BB46: 0.001590794 | BC46: 0.001655113 | BD46: 0.001584037 | BE46: 0.001592363 | BF46: 0.001704868 | BG46: 0.001580625 | BH46: 0.001585227 | BI46: 0.001455238 | BJ46: 0.001388726 | BK46: 0.001423768 | BL46: 0.001464293 | BM46: 0.001389706 | BN46: 0.001353144 | BO46: 0.001331535 | BP46: 0.001228989 | BQ46: 0.001218471 | BR46: 0.001180122 | BS46: 0.00112654 | BT46: 0.001160654 | BU46: 0.001091682 | BV46: 0.001111213 | BW46: 0.001100155 | BX46: 0.001017794 | BY46: 0.000996876 | BZ46: 0.000969171 | CA46: 0.00097508 | CB46: 0.000962924 | CC46: 0.00095092 | CD46: 0.000939065 | CE46: 0.000927358 | CF46: 0.000915797 | CG46: 0.00090438 | CH46: 0.000893106 | CI46: 0.000881972 | CJ46: 0.000870976 | CK46: 0.000860118 | CL46: 0.000849396 | CM46: 0.000838806 | CN46: 0.000828349 | CO46: 0.000818023 | CP46: 0.000807825 | CQ46: 0.000797754 | CR46: 0.000787808 | CS46: 0.000777987 | CT46: 0.000768288 | CU46: 0.00075871 | CV46: 0.000749252 | CW46: 0.000739911 | CX46: 0.000730687 | CY46: 0.000721578 | CZ46: 0.000712582 | DA46: 0.000703699 | DB46: 0.000694926 | DC46: 0.000686262 | DD46: 0.000677707 | DE46: 0.000669258 | DF46: 0.000660915 | DG46: 0.000652675 | DH46: 0.000644539 | DI46: 0.000636504 | DJ46: 0.000628568 | DK46: 0.000620732 | DL46: 0.000612994 | DM46: 0.000605352 | DN46: 0.000597805 | DO46: 0.000590353 | DP46: 0.000582993 | DQ46: 0.000575725 | DR46: 0.000568547 | DS46: 0.00056146
A47: 0.005168 | B47: 0.004153 | C47: 0.004322 | D47: 0.004524 | E47: 0.003973 | F47: 0.004204 | G47: 0.004039 | H47: 0.003978 | I47: 0.003596 | J47: 0.003678 | K47: 0.003663 | L47: 0.003467 | M47: 0.003177 | N47: 0.003067 | O47: 0.002997 | P47: 0.00276 | Q47: 0.003116 | R47: 0.002913 | S47: 0.00274 | T47: 0.002991 | U47: 0.003063 | V47: 0.002909 | W47: 0.002719 | X47: 0.002843 | Y47: 0.002864 | Z47: 0.002594 | AA47: 0.002727 | AB47: 0.002804 | AC47: 0.002679 | AD47: 0.002554 | AE47: 0.002583306 | AF47: 0.00244993 | AG47: 0.002351342 | AH47: 0.002284127 | AI47: 0.002197299 | AJ47: 0.002115828 | AK47: 0.002151619 | AL47: 0.002058005 | AM47: 0.002068214 | AN47: 0.002120017 | AO47: 0.001984622 | AP47: 0.001730085 | AQ47: 0.002000278 | AR47: 0.001989582 | AS47: 0.00184572 | AT47: 0.001836504 | AU47: 0.001813917 | AV47: 0.001751865 | AW47: 0.001752908 | AX47: 0.00176609 | AY47: 0.001785473 | AZ47: 0.001790869 | BA47: 0.001753506 | BB47: 0.001717181 | BC47: 0.001794105 | BD47: 0.001809065 | BE47: 0.001775197 | BF47: 0.00182286 | BG47: 0.001651731 | BH47: 0.001745796 | BI47: 0.001588279 | BJ47: 0.001457821 | BK47: 0.001597344 | BL47: 0.001579166 | BM47: 0.001517977 | BN47: 0.001400528 | BO47: 0.00142464 | BP47: 0.001289236 | BQ47: 0.001301521 | BR47: 0.00131875 | BS47: 0.001242731 | BT47: 0.001303398 | BU47: 0.0011912 | BV47: 0.001253922 | BW47: 0.001088123 | BX47: 0.001182974 | BY47: 0.00114049 | BZ47: 0.001120088 | CA47: 0.001106125 | CB47: 0.001092336 | CC47: 0.001078718 | CD47: 0.001065271 | CE47: 0.001051991 | CF47: 0.001038876 | CG47: 0.001025925 | CH47: 0.001013136 | CI47: 0.001000506 | CJ47: 0.000988033 | CK47: 0.000975716 | CL47: 0.000963552 | CM47: 0.00095154 | CN47: 0.000939678 | CO47: 0.000927964 | CP47: 0.000916395 | CQ47: 0.000904971 | CR47: 0.00089369 | CS47: 0.000882549 | CT47: 0.000871546 | CU47: 0.000860681 | CV47: 0.000849952 | CW47: 0.000839356 | CX47: 0.000828892 | CY47: 0.000818559 | CZ47: 0.000808354 | DA47: 0.000798277 | DB47: 0.000788326 | DC47: 0.000778498 | DD47: 0.000768793 | DE47: 0.000759209 | DF47: 0.000749744 | DG47: 0.000740397 | DH47: 0.000731167 | DI47: 0.000722052 | DJ47: 0.000713051 | DK47: 0.000704162 | DL47: 0.000695383 | DM47: 0.000686714 | DN47: 0.000678153 | DO47: 0.000669699 | DP47: 0.00066135 | DQ47: 0.000653106 | DR47: 0.000644964 | DS47: 0.000636923
A48: 0.004648 | B48: 0.004545 | C48: 0.004412 | D48: 0.004688 | E48: 0.00469 | F48: 0.004338 | G48: 0.004235 | H48: 0.004239 | I48: 0.004036 | J48: 0.004047 | K48: 0.003493 | L48: 0.003701 | M48: 0.003314 | N48: 0.003423 | O48: 0.003196 | P48: 0.002896 | Q48: 0.00362 | R48: 0.003557 | S48: 0.003485 | T48: 0.00319 | U48: 0.003114 | V48: 0.003084 | W48: 0.003054 | X48: 0.003006 | Y48: 0.002847 | Z48: 0.003033 | AA48: 0.002883 | AB48: 0.002695 | AC48: 0.002815 | AD48: 0.002677892 | AE48: 0.002640293 | AF48: 0.002653599 | AG48: 0.002477682 | AH48: 0.002434561 | AI48: 0.002392558 | AJ48: 0.002385923 | AK48: 0.002313234 | AL48: 0.002159947 | AM48: 0.002122588 | AN48: 0.002150122 | AO48: 0.002036431 | AP48: 0.002078132 | AQ48: 0.002055505 | AR48: 0.002076399 | AS48: 0.002009605 | AT48: 0.001963798 | AU48: 0.001904872 | AV48: 0.001919857 | AW48: 0.001895118 | AX48: 0.001900026 | AY48: 0.001974732 | AZ48: 0.00193858 | BA48: 0.001907898 | BB48: 0.001857437 | BC48: 0.001918167 | BD48: 0.001979839 | BE48: 0.001874121 | BF48: 0.001873551 | BG48: 0.001793324 | BH48: 0.001825377 | BI48: 0.001758295 | BJ48: 0.001630623 | BK48: 0.001648117 | BL48: 0.001631217 | BM48: 0.001545528 | BN48: 0.001526558 | BO48: 0.001546767 | BP48: 0.00140235 | BQ48: 0.001441446 | BR48: 0.001360077 | BS48: 0.001378965 | BT48: 0.001314774 | BU48: 0.001358712 | BV48: 0.00132651 | BW48: 0.001168151 | BX48: 0.001279559 | BY48: 0.001265624 | BZ48: 0.001249847 | CA48: 0.001234266 | CB48: 0.001218879 | CC48: 0.001203684 | CD48: 0.001188678 | CE48: 0.00117386 | CF48: 0.001159226 | CG48: 0.001144775 | CH48: 0.001130503 | CI48: 0.00111641 | CJ48: 0.001102492 | CK48: 0.001088748 | CL48: 0.001075175 | CM48: 0.001061772 | CN48: 0.001048535 | CO48: 0.001035464 | CP48: 0.001022555 | CQ48: 0.001009808 | CR48: 0.000997219 | CS48: 0.000984787 | CT48: 0.00097251 | CU48: 0.000960387 | CV48: 0.000948414 | CW48: 0.000936591 | CX48: 0.000924915 | CY48: 0.000913384 | CZ48: 0.000901998 | DA48: 0.000890753 | DB48: 0.000879648 | DC48: 0.000868682 | DD48: 0.000857853 | DE48: 0.000847158 | DF48: 0.000836597 | DG48: 0.000826168 | DH48: 0.000815868 | DI48: 0.000805697 | DJ48: 0.000795653 | DK48: 0.000785734 | DL48: 0.000775939 | DM48: 0.000766266 | DN48: 0.000756713 | DO48: 0.000747279 | DP48: 0.000737963 | DQ48: 0.000728764 | DR48: 0.000719678 | DS48: 0.000710706
A49: 0.004748 | B49: 0.004792 | C49: 0.004829 | D49: 0.004964 | E49: 0.004623 | F49: 0.004759 | G49: 0.004672 | H49: 0.004251 | I49: 0.004466 | J49: 0.004184 | K49: 0.003944 | L49: 0.003602 | M49: 0.003704 | N49: 0.003523 | O49: 0.00358 | P49: 0.003467 | Q49: 0.003555 | R49: 0.00342 | S49: 0.003638 | T49: 0.003476 | U49: 0.00336 | V49: 0.003424 | W49: 0.003262 | X49: 0.003211 | Y49: 0.003217 | Z49: 0.003172 | AA49: 0.003086 | AB49: 0.002993 | AC49: 0.00295395 | AD49: 0.002996574 | AE49: 0.002776358 | AF49: 0.002674824 | AG49: 0.002706151 | AH49: 0.002589672 | AI49: 0.002444172 | AJ49: 0.002543772 | AK49: 0.002437243 | AL49: 0.002408459 | AM49: 0.002427016 | AN49: 0.002303876 | AO49: 0.002131312 | AP49: 0.002173309 | AQ49: 0.002102043 | AR49: 0.00218666 | AS49: 0.002199115 | AT49: 0.002186889 | AU49: 0.002146264 | AV49: 0.002102421 | AW49: 0.002107386 | AX49: 0.002021794 | AY49: 0.002070067 | AZ49: 0.002058437 | BA49: 0.002138085 | BB49: 0.002050718 | BC49: 0.002013855 | BD49: 0.002127066 | BE49: 0.002048884 | BF49: 0.00202992 | BG49: 0.001867013 | BH49: 0.001930967 | BI49: 0.001812387 | BJ49: 0.001845248 | BK49: 0.001765011 | BL49: 0.001723673 | BM49: 0.001657478 | BN49: 0.001673823 | BO49: 0.001652896 | BP49: 0.001587902 | BQ49: 0.001617467 | BR49: 0.00149156 | BS49: 0.001526255 | BT49: 0.001452185 | BU49: 0.001497655 | BV49: 0.001435129 | BW49: 0.001364972 | BX49: 0.00142864 | BY49: 0.00141083 | BZ49: 0.001393242 | CA49: 0.001375874 | CB49: 0.001358721 | CC49: 0.001341783 | CD49: 0.001325056 | CE49: 0.001308537 | CF49: 0.001292225 | CG49: 0.001276115 | CH49: 0.001260207 | CI49: 0.001244496 | CJ49: 0.001228982 | CK49: 0.001213661 | CL49: 0.001198531 | CM49: 0.00118359 | CN49: 0.001168835 | CO49: 0.001154263 | CP49: 0.001139874 | CQ49: 0.001125664 | CR49: 0.001111631 | CS49: 0.001097773 | CT49: 0.001084087 | CU49: 0.001070573 | CV49: 0.001057226 | CW49: 0.001044046 | CX49: 0.001031031 | CY49: 0.001018178 | CZ49: 0.001005485 | DA49: 0.00099295 | DB49: 0.000980571 | DC49: 0.000968347 | DD49: 0.000956275 | DE49: 0.000944354 | DF49: 0.000932581 | DG49: 0.000920955 | DH49: 0.000909474 | DI49: 0.000898136 | DJ49: 0.000886939 | DK49: 0.000875882 | DL49: 0.000864963 | DM49: 0.00085418 | DN49: 0.000843531 | DO49: 0.000833015 | DP49: 0.000822631 | DQ49: 0.000812375 | DR49: 0.000802248 | DS49: 0.000792247
A50: 0.005486 | B50: 0.005539 | C50: 0.005362 | D50: 0.005177 | E50: 0.004977 | F50: 0.00479 | G50: 0.004669 | H50: 0.00485 | I50: 0.004428 | J50: 0.004247 | K50: 0.003831 | L50: 0.004067 | M50: 0.003863 | N50: 0.003804 | O50: 0.003729 | P50: 0.003597 | Q50: 0.003861 | R50: 0.00348 | S50: 0.003692 | T50: 0.003561 | U50: 0.003735 | V50: 0.003703 | W50: 0.003649 | X50: 0.003402 | Y50: 0.00329 | Z50: 0.003301 | AA50: 0.003376 | AB50: 0.003320244 | AC50: 0.003299241 | AD50: 0.003170239 | AE50: 0.002925675 | AF50: 0.003024195 | AG50: 0.002908867 | AH50: 0.002800262 | AI50: 0.002630069 | AJ50: 0.002492897 | AK50: 0.002620067 | AL50: 0.002542356 | AM50: 0.00248556 | AN50: 0.002410544 | AO50: 0.002388292 | AP50: 0.002259405 | AQ50: 0.00223458 | AR50: 0.002288813 | AS50: 0.002352786 | AT50: 0.002344776 | AU50: 0.002314763 | AV50: 0.002203654 | AW50: 0.002178892 | AX50: 0.002102657 | AY50: 0.002128319 | AZ50: 0.002246979 | BA50: 0.002259059 | BB50: 0.002270904 | BC50: 0.002175937 | BD50: 0.002189539 | BE50: 0.002139638 | BF50: 0.002176869 | BG50: 0.002034932 | BH50: 0.002008194 | BI50: 0.001985729 | BJ50: 0.002023961 | BK50: 0.001882252 | BL50: 0.001826897 | BM50: 0.001846807 | BN50: 0.001791985 | BO50: 0.001739105 | BP50: 0.001746934 | BQ50: 0.001755164 | BR50: 0.001667459 | BS50: 0.001620854 | BT50: 0.001613139 | BU50: 0.001517513 | BV50: 0.001520052 | BW50: 0.001542906 | BX50: 0.001523671 | BY50: 0.001504677 | BZ50: 0.001485919 | CA50: 0.001467395 | CB50: 0.001449101 | CC50: 0.001431036 | CD50: 0.001413196 | CE50: 0.001395579 | CF50: 0.001378181 | CG50: 0.001361 | CH50: 0.001344033 | CI50: 0.001327278 | CJ50: 0.001310731 | CK50: 0.001294391 | CL50: 0.001278254 | CM50: 0.001262319 | CN50: 0.001246582 | CO50: 0.001231042 | CP50: 0.001215695 | CQ50: 0.00120054 | CR50: 0.001185573 | CS50: 0.001170793 | CT50: 0.001156198 | CU50: 0.001141784 | CV50: 0.00112755 | CW50: 0.001113493 | CX50: 0.001099612 | CY50: 0.001085903 | CZ50: 0.001072366 | DA50: 0.001058997 | DB50: 0.001045795 | DC50: 0.001032758 | DD50: 0.001019883 | DE50: 0.001007169 | DF50: 0.000994613 | DG50: 0.000982213 | DH50: 0.000969968 | DI50: 0.000957876 | DJ50: 0.000945935 | DK50: 0.000934142 | DL50: 0.000922497 | DM50: 0.000910996 | DN50: 0.000899639 | DO50: 0.000888424 | DP50: 0.000877348 | DQ50: 0.000866411 | DR50: 0.00085561 | DS50: 0.000844943
A51: 0.005459 | B51: 0.00573 | C51: 0.005315 | D51: 0.005366 | E51: 0.00525 | F51: 0.005199 | G51: 0.005163 | H51: 0.004895 | I51: 0.004435 | J51: 0.004326 | K51: 0.004342 | L51: 0.004061 | M51: 0.004128 | N51: 0.004077 | O51: 0.00398 | P51: 0.003921 | Q51: 0.004169 | R51: 0.004084 | S51: 0.003729 | T51: 0.004024 | U51: 0.004127 | V51: 0.003861 | W51: 0.003901 | X51: 0.003651 | Y51: 0.003589 | Z51: 0.003603 | AA51: 0.003538467 | AB51: 0.003357313 | AC51: 0.003292571 | AD51: 0.003354798 | AE51: 0.003187094 | AF51: 0.003114548 | AG51: 0.002881734 | AH51: 0.003082855 | AI51: 0.002938366 | AJ51: 0.00282512 | AK51: 0.002724282 | AL51: 0.002677137 | AM51: 0.002497542 | AN51: 0.002607512 | AO51: 0.002551854 | AP51: 0.002447146 | AQ51: 0.00236283 | AR51: 0.002479271 | AS51: 0.002556667 | AT51: 0.002583211 | AU51: 0.002464109 | AV51: 0.002370469 | AW51: 0.002372556 | AX51: 0.002339332 | AY51: 0.002348796 | AZ51: 0.002430539 | BA51: 0.002378598 | BB51: 0.002398058 | BC51: 0.002355924 | BD51: 0.002318455 | BE51: 0.002249786 | BF51: 0.002333917 | BG51: 0.002208939 | BH51: 0.002178281 | BI51: 0.002154973 | BJ51: 0.002077937 | BK51: 0.001969731 | BL51: 0.001917465 | BM51: 0.00186241 | BN51: 0.001863762 | BO51: 0.001810938 | BP51: 0.001813211 | BQ51: 0.001831402 | BR51: 0.001846862 | BS51: 0.001798705 | BT51: 0.001795809 | BU51: 0.001714184 | BV51: 0.001717058 | BW51: 0.001695653 | BX51: 0.001674515 | BY51: 0.00165364 | BZ51: 0.001633025 | CA51: 0.001612667 | CB51: 0.001592563 | CC51: 0.00157271 | CD51: 0.001553104 | CE51: 0.001533742 | CF51: 0.001514622 | CG51: 0.001495741 | CH51: 0.001477094 | CI51: 0.00145868 | CJ51: 0.001440496 | CK51: 0.001422538 | CL51: 0.001404804 | CM51: 0.001387292 | CN51: 0.001369997 | CO51: 0.001352918 | CP51: 0.001336052 | CQ51: 0.001319397 | CR51: 0.001302948 | CS51: 0.001286705 | CT51: 0.001270665 | CU51: 0.001254824 | CV51: 0.001239181 | CW51: 0.001223733 | CX51: 0.001208477 | CY51: 0.001193412 | CZ51: 0.001178535 | DA51: 0.001163842 | DB51: 0.001149333 | DC51: 0.001135005 | DD51: 0.001120856 | DE51: 0.001106883 | DF51: 0.001093084 | DG51: 0.001079457 | DH51: 0.001066 | DI51: 0.001052711 | DJ51: 0.001039587 | DK51: 0.001026627 | DL51: 0.001013829 | DM51: 0.00100119 | DN51: 0.000988709 | DO51: 0.000976383 | DP51: 0.000964211 | DQ51: 0.000952191 | DR51: 0.00094032 | DS51: 0.000928598
A52: 0.006337 | B52: 0.005945 | C52: 0.006079 | D52: 0.005724 | E52: 0.005619 | F52: 0.005555 | G52: 0.005119 | H52: 0.00506 | I52: 0.00502 | J52: 0.004592 | K52: 0.004506 | L52: 0.004349 | M52: 0.004574 | N52: 0.00438 | O52: 0.004438 | P52: 0.004243 | Q52: 0.004308 | R52: 0.004316 | S52: 0.004336 | T52: 0.004667 | U52: 0.004101 | V52: 0.004014 | W52: 0.004042 | X52: 0.003582 | Y52: 0.0038 | Z52: 0.003915106 | AA52: 0.003820538 | AB52: 0.003763797 | AC52: 0.0035987 | AD52: 0.003506448 | AE52: 0.003290858 | AF52: 0.003285246 | AG52: 0.003182493 | AH52: 0.003019377 | AI52: 0.003063859 | AJ52: 0.003080235 | AK52: 0.003029143 | AL52: 0.002929954 | AM52: 0.002741165 | AN52: 0.002789087 | AO52: 0.002572569 | AP52: 0.002482947 | AQ52: 0.002498501 | AR52: 0.002602328 | AS52: 0.002555627 | AT52: 0.002673717 | AU52: 0.002597218 | AV52: 0.002498131 | AW52: 0.002458261 | AX52: 0.002514821 | AY52: 0.002443349 | AZ52: 0.002547267 | BA52: 0.002598669 | BB52: 0.002562078 | BC52: 0.002486295 | BD52: 0.002549929 | BE52: 0.002452274 | BF52: 0.002354649 | BG52: 0.002426627 | BH52: 0.002346473 | BI52: 0.002284221 | BJ52: 0.002182362 | BK52: 0.002205361 | BL52: 0.002136097 | BM52: 0.002158862 | BN52: 0.002058849 | BO52: 0.002046909 | BP52: 0.002038978 | BQ52: 0.002003679 | BR52: 0.001977178 | BS52: 0.002009854 | BT52: 0.001903745 | BU52: 0.00191199 | BV52: 0.001888155 | BW52: 0.001864617 | BX52: 0.001841372 | BY52: 0.001818417 | BZ52: 0.001795749 | CA52: 0.001773362 | CB52: 0.001751255 | CC52: 0.001729424 | CD52: 0.001707864 | CE52: 0.001686574 | CF52: 0.001665548 | CG52: 0.001644785 | CH52: 0.001624281 | CI52: 0.001604032 | CJ52: 0.001584036 | CK52: 0.001564289 | CL52: 0.001544788 | CM52: 0.00152553 | CN52: 0.001506513 | CO52: 0.001487732 | CP52: 0.001469185 | CQ52: 0.00145087 | CR52: 0.001432783 | CS52: 0.001414922 | CT52: 0.001397283 | CU52: 0.001379864 | CV52: 0.001362662 | CW52: 0.001345675 | CX52: 0.001328899 | CY52: 0.001312332 | CZ52: 0.001295972 | DA52: 0.001279816 | DB52: 0.001263862 | DC52: 0.001248106 | DD52: 0.001232547 | DE52: 0.001217181 | DF52: 0.001202007 | DG52: 0.001187023 | DH52: 0.001172225 | DI52: 0.001157611 | DJ52: 0.00114318 | DK52: 0.001128929 | DL52: 0.001114855 | DM52: 0.001100957 | DN52: 0.001087232 | DO52: 0.001073678 | DP52: 0.001060293 | DQ52: 0.001047075 | DR52: 0.001034022 | DS52: 0.001021131
A53: 0.006375 | B53: 0.006345 | C53: 0.006188 | D53: 0.005846 | E53: 0.005936 | F53: 0.005512 | G53: 0.005119 | H53: 0.004995 | I53: 0.00525 | J53: 0.004676 | K53: 0.004853 | L53: 0.00496 | M53: 0.00483 | N53: 0.004724 | O53: 0.004683 | P53: 0.004315 | Q53: 0.004538 | R53: 0.00441 | S53: 0.004862 | T53: 0.004447 | U53: 0.004451 | V53: 0.004132 | W53: 0.004186 | X53: 0.004115 | Y53: 0.004125646 | Z53: 0.003797311 | AA53: 0.003746983 | AB53: 0.003831899 | AC53: 0.003759611 | AD53: 0.003502778 | AE53: 0.003521232 | AF53: 0.00346691 | AG53: 0.003324171 | AH53: 0.003395568 | AI53: 0.003303054 | AJ53: 0.003101415 | AK53: 0.003146384 | AL53: 0.003010451 | AM53: 0.00289696 | AN53: 0.002886742 | AO53: 0.002713859 | AP53: 0.002669719 | AQ53: 0.002833578 | AR53: 0.0027971 | AS53: 0.002730289 | AT53: 0.002868527 | AU53: 0.002742144 | AV53: 0.00271578 | AW53: 0.002621696 | AX53: 0.002540966 | AY53: 0.002535859 | AZ53: 0.002699237 | BA53: 0.002643212 | BB53: 0.00271481 | BC53: 0.002610089 | BD53: 0.002677275 | BE53: 0.002678239 | BF53: 0.002641019 | BG53: 0.002627996 | BH53: 0.002552057 | BI53: 0.002473595 | BJ53: 0.002361301 | BK53: 0.002357866 | BL53: 0.002196077 | BM53: 0.002230392 | BN53: 0.002192368 | BO53: 0.002172442 | BP53: 0.002238266 | BQ53: 0.002191468 | BR53: 0.002140832 | BS53: 0.002184374 | BT53: 0.002116903 | BU53: 0.002090513 | BV53: 0.002064452 | BW53: 0.002038716 | BX53: 0.002013301 | BY53: 0.001988203 | BZ53: 0.001963418 | CA53: 0.001938941 | CB53: 0.00191477 | CC53: 0.0018909 | CD53: 0.001867327 | CE53: 0.001844049 | CF53: 0.00182106 | CG53: 0.001798358 | CH53: 0.001775939 | CI53: 0.0017538 | CJ53: 0.001731937 | CK53: 0.001710346 | CL53: 0.001689024 | CM53: 0.001667968 | CN53: 0.001647175 | CO53: 0.00162664 | CP53: 0.001606362 | CQ53: 0.001586337 | CR53: 0.001566561 | CS53: 0.001547032 | CT53: 0.001527746 | CU53: 0.0015087 | CV53: 0.001489892 | CW53: 0.001471319 | CX53: 0.001452977 | CY53: 0.001434863 | CZ53: 0.001416976 | DA53: 0.001399311 | DB53: 0.001381867 | DC53: 0.00136464 | DD53: 0.001347628 | DE53: 0.001330828 | DF53: 0.001314237 | DG53: 0.001297853 | DH53: 0.001281674 | DI53: 0.001265696 | DJ53: 0.001249917 | DK53: 0.001234335 | DL53: 0.001218947 | DM53: 0.001203751 | DN53: 0.001188745 | DO53: 0.001173925 | DP53: 0.001159291 | DQ53: 0.001144839 | DR53: 0.001130566 | DS53: 0.001116472
A54: 0.007422 | B54: 0.006732 | C54: 0.006415 | D54: 0.00613 | E54: 0.005934 | F54: 0.005799 | G54: 0.005404 | H54: 0.005728 | I54: 0.005069 | J54: 0.005279 | K54: 0.005026 | L54: 0.005342 | M54: 0.005081 | N54: 0.004907 | O54: 0.00509 | P54: 0.004867 | Q54: 0.004797 | R54: 0.005072 | S54: 0.004939 | T54: 0.004803 | U54: 0.004873 | V54: 0.00443 | W54: 0.00454 | X54: 0.004378998 | Y54: 0.004243236 | Z54: 0.004004374 | AA54: 0.004070427 | AB54: 0.004109908 | AC54: 0.003844429 | AD54: 0.00378005 | AE54: 0.003856998 | AF54: 0.003941823 | AG54: 0.003633074 | AH54: 0.003355091 | AI54: 0.003362848 | AJ54: 0.00345091 | AK54: 0.00326134 | AL54: 0.003179 | AM54: 0.003189211 | AN54: 0.003106714 | AO54: 0.002922862 | AP54: 0.002972992 | AQ54: 0.003068743 | AR54: 0.002997898 | AS54: 0.003022097 | AT54: 0.003013432 | AU54: 0.002846686 | AV54: 0.002900606 | AW54: 0.002837796 | AX54: 0.00283887 | AY54: 0.002864091 | AZ54: 0.002908564 | BA54: 0.00272833 | BB54: 0.002778921 | BC54: 0.00279879 | BD54: 0.002735372 | BE54: 0.002823164 | BF54: 0.002716603 | BG54: 0.002650605 | BH54: 0.002643058 | BI54: 0.002440189 | BJ54: 0.002444673 | BK54: 0.002453315 | BL54: 0.002314555 | BM54: 0.002308011 | BN54: 0.00235706 | BO54: 0.002378627 | BP54: 0.002393609 | BQ54: 0.002326652 | BR54: 0.002301177 | BS54: 0.002271178 | BT54: 0.002242864 | BU54: 0.002214904 | BV54: 0.002187292 | BW54: 0.002160025 | BX54: 0.002133097 | BY54: 0.002106505 | BZ54: 0.002080245 | CA54: 0.002054312 | CB54: 0.002028702 | CC54: 0.002003411 | CD54: 0.001978436 | CE54: 0.001953772 | CF54: 0.001929415 | CG54: 0.001905362 | CH54: 0.001881609 | CI54: 0.001858153 | CJ54: 0.001834988 | CK54: 0.001812112 | CL54: 0.001789522 | CM54: 0.001767213 | CN54: 0.001745182 | CO54: 0.001723426 | CP54: 0.001701941 | CQ54: 0.001680724 | CR54: 0.001659771 | CS54: 0.001639079 | CT54: 0.001618646 | CU54: 0.001598467 | CV54: 0.00157854 | CW54: 0.001558861 | CX54: 0.001539428 | CY54: 0.001520236 | CZ54: 0.001501284 | DA54: 0.001482569 | DB54: 0.001464086 | DC54: 0.001445834 | DD54: 0.00142781 | DE54: 0.00141001 | DF54: 0.001392432 | DG54: 0.001375073 | DH54: 0.001357931 | DI54: 0.001341002 | DJ54: 0.001324285 | DK54: 0.001307775 | DL54: 0.001291472 | DM54: 0.001275372 | DN54: 0.001259472 | DO54: 0.001243771 | DP54: 0.001228266 | DQ54: 0.001212953 | DR54: 0.001197832 | DS54: 0.001182899
A55: 0.006957 | B55: 0.006775 | C55: 0.006984 | D55: 0.006617 | E55: 0.006323 | F55: 0.006119 | G55: 0.005841 | H55: 0.005623 | I55: 0.005779 | J55: 0.005906 | K55: 0.00539 | L55: 0.005599 | M55: 0.005253 | N55: 0.005308 | O55: 0.005347 | P55: 0.004629 | Q55: 0.0057 | R55: 0.005347 | S55: 0.00516 | T55: 0.004824 | U55: 0.004812 | V55: 0.004946 | W55: 0.004700012 | X55: 0.004645846 | Y55: 0.004290726 | Z55: 0.004330377 | AA55: 0.004375598 | AB55: 0.004164594 | AC55: 0.00410308 | AD55: 0.003983079 | AE55: 0.004168248 | AF55: 0.003612227 | AG55: 0.003929908 | AH55: 0.003647297 | AI55: 0.003572133 | AJ55: 0.003637921 | AK55: 0.003336656 | AL55: 0.003281043 | AM55: 0.003374929 | AN55: 0.003283381 | AO55: 0.003111205 | AP55: 0.003018298 | AQ55: 0.003187082 | AR55: 0.003178466 | AS55: 0.003272518 | AT55: 0.003090198 | AU55: 0.002988427 | AV55: 0.002955738 | AW55: 0.002997328 | AX55: 0.003070316 | AY55: 0.003055645 | AZ55: 0.002991232 | BA55: 0.002846984 | BB55: 0.002960705 | BC55: 0.002863683 | BD55: 0.002916867 | BE55: 0.002955579 | BF55: 0.002805912 | BG55: 0.002829551 | BH55: 0.002785784 | BI55: 0.002573205 | BJ55: 0.002653756 | BK55: 0.0025184 | BL55: 0.002521813 | BM55: 0.002536093 | BN55: 0.002471569 | BO55: 0.002610858 | BP55: 0.002552597 | BQ55: 0.002462248 | BR55: 0.002438957 | BS55: 0.002408552 | BT55: 0.002378526 | BU55: 0.002348874 | BV55: 0.002319592 | BW55: 0.002290675 | BX55: 0.002262118 | BY55: 0.002233918 | BZ55: 0.002206069 | CA55: 0.002178567 | CB55: 0.002151408 | CC55: 0.002124588 | CD55: 0.002098102 | CE55: 0.002071946 | CF55: 0.002046116 | CG55: 0.002020608 | CH55: 0.001995418 | CI55: 0.001970542 | CJ55: 0.001945977 | CK55: 0.001921717 | CL55: 0.00189776 | CM55: 0.001874102 | CN55: 0.001850738 | CO55: 0.001827666 | CP55: 0.001804881 | CQ55: 0.001782381 | CR55: 0.001760161 | CS55: 0.001738218 | CT55: 0.001716548 | CU55: 0.001695149 | CV55: 0.001674016 | CW55: 0.001653147 | CX55: 0.001632538 | CY55: 0.001612186 | CZ55: 0.001592088 | DA55: 0.00157224 | DB55: 0.00155264 | DC55: 0.001533284 | DD55: 0.001514169 | DE55: 0.001495292 | DF55: 0.001476651 | DG55: 0.001458243 | DH55: 0.001440063 | DI55: 0.001422111 | DJ55: 0.001404382 | DK55: 0.001386874 | DL55: 0.001369584 | DM55: 0.00135251 | DN55: 0.001335649 | DO55: 0.001318998 | DP55: 0.001302555 | DQ55: 0.001286317 | DR55: 0.001270281 | DS55: 0.001254445
A56: 0.006969 | B56: 0.007559 | C56: 0.006894 | D56: 0.006654 | E56: 0.006343 | F56: 0.006408 | G56: 0.005975 | H56: 0.006125 | I56: 0.006003 | J56: 0.006002 | K56: 0.005694 | L56: 0.005572 | M56: 0.005668 | N56: 0.005641 | O56: 0.005679 | P56: 0.005712 | Q56: 0.005557 | R56: 0.005656 | S56: 0.005468 | T56: 0.005297 | U56: 0.005251 | V56: 0.005237419 | W56: 0.004839071 | X56: 0.004499161 | Y56: 0.004733775 | Z56: 0.004567118 | AA56: 0.004662185 | AB56: 0.004486066 | AC56: 0.004113686 | AD56: 0.004474284 | AE56: 0.003985484 | AF56: 0.004019723 | AG56: 0.004153137 | AH56: 0.003782086 | AI56: 0.003750191 | AJ56: 0.003650967 | AK56: 0.003492706 | AL56: 0.003569792 | AM56: 0.003545071 | AN56: 0.003618435 | AO56: 0.003310529 | AP56: 0.003109113 | AQ56: 0.003397115 | AR56: 0.003374765 | AS56: 0.003370391 | AT56: 0.003252157 | AU56: 0.003193559 | AV56: 0.00311686 | AW56: 0.003167564 | AX56: 0.003227491 | AY56: 0.003160445 | AZ56: 0.003129509 | BA56: 0.003084264 | BB56: 0.003114032 | BC56: 0.003061233 | BD56: 0.003053177 | BE56: 0.003189774 | BF56: 0.002993868 | BG56: 0.00300989 | BH56: 0.002901546 | BI56: 0.002883583 | BJ56: 0.002920428 | BK56: 0.002765925 | BL56: 0.00273391 | BM56: 0.002748948 | BN56: 0.002612198 | BO56: 0.002767047 | BP56: 0.00267224 | BQ56: 0.002584821 | BR56: 0.002552597 | BS56: 0.002520776 | BT56: 0.002489351 | BU56: 0.002458318 | BV56: 0.002427671 | BW56: 0.002397407 | BX56: 0.00236752 | BY56: 0.002338006 | BZ56: 0.002308859 | CA56: 0.002280076 | CB56: 0.002251652 | CC56: 0.002223582 | CD56: 0.002195861 | CE56: 0.002168487 | CF56: 0.002141454 | CG56: 0.002114757 | CH56: 0.002088394 | CI56: 0.002062359 | CJ56: 0.002036649 | CK56: 0.002011259 | CL56: 0.001986186 | CM56: 0.001961425 | CN56: 0.001936973 | CO56: 0.001912826 | CP56: 0.00188898 | CQ56: 0.001865431 | CR56: 0.001842175 | CS56: 0.00181921 | CT56: 0.001796531 | CU56: 0.001774134 | CV56: 0.001752017 | CW56: 0.001730176 | CX56: 0.001708606 | CY56: 0.001687306 | CZ56: 0.001666271 | DA56: 0.001645499 | DB56: 0.001624985 | DC56: 0.001604727 | DD56: 0.001584722 | DE56: 0.001564966 | DF56: 0.001545456 | DG56: 0.00152619 | DH56: 0.001507164 | DI56: 0.001488374 | DJ56: 0.00146982 | DK56: 0.001451496 | DL56: 0.001433401 | DM56: 0.001415531 | DN56: 0.001397885 | DO56: 0.001380458 | DP56: 0.001363248 | DQ56: 0.001346253 | DR56: 0.00132947 | DS56: 0.001312896
A57: 0.007764 | B57: 0.007568 | C57: 0.007214 | D57: 0.006843 | E57: 0.006924 | F57: 0.006295 | G57: 0.00638 | H57: 0.006848 | I57: 0.006408 | J57: 0.006575 | K57: 0.006219 | L57: 0.006113 | M57: 0.005963 | N57: 0.005961 | O57: 0.006044 | P57: 0.005588 | Q57: 0.005579 | R57: 0.005979 | S57: 0.005755 | T57: 0.005302 | U57: 0.005586635 | V57: 0.005437601 | W57: 0.005132734 | X57: 0.005029103 | Y57: 0.004812693 | Z57: 0.004815278 | AA57: 0.004734021 | AB57: 0.004631094 | AC57: 0.004475841 | AD57: 0.004390567 | AE57: 0.004354342 | AF57: 0.004093978 | AG57: 0.004266902 | AH57: 0.003897733 | AI57: 0.003926497 | AJ57: 0.003757438 | AK57: 0.0036615 | AL57: 0.003932048 | AM57: 0.003670893 | AN57: 0.003644635 | AO57: 0.003516079 | AP57: 0.003362123 | AQ57: 0.003562722 | AR57: 0.003515539 | AS57: 0.003578222 | AT57: 0.003426203 | AU57: 0.00351185 | AV57: 0.003443311 | AW57: 0.003296528 | AX57: 0.003368454 | AY57: 0.003237181 | AZ57: 0.003253758 | BA57: 0.003279092 | BB57: 0.003451781 | BC57: 0.003334464 | BD57: 0.003303209 | BE57: 0.003312944 | BF57: 0.003227441 | BG57: 0.003135251 | BH57: 0.003143424 | BI57: 0.002988726 | BJ57: 0.003034624 | BK57: 0.003100804 | BL57: 0.00293277 | BM57: 0.00300671 | BN57: 0.002873455 | BO57: 0.002888034 | BP57: 0.002786696 | BQ57: 0.002751956 | BR57: 0.00271765 | BS57: 0.002683771 | BT57: 0.002650314 | BU57: 0.002617274 | BV57: 0.002584646 | BW57: 0.002552425 | BX57: 0.002520606 | BY57: 0.002489183 | BZ57: 0.002458152 | CA57: 0.002427508 | CB57: 0.002397246 | CC57: 0.002367361 | CD57: 0.002337848 | CE57: 0.002308704 | CF57: 0.002279923 | CG57: 0.0022515 | CH57: 0.002223432 | CI57: 0.002195714 | CJ57: 0.002168341 | CK57: 0.00214131 | CL57: 0.002114616 | CM57: 0.002088254 | CN57: 0.002062221 | CO57: 0.002036512 | CP57: 0.002011124 | CQ57: 0.001986053 | CR57: 0.001961294 | CS57: 0.001936844 | CT57: 0.001912698 | CU57: 0.001888853 | CV57: 0.001865306 | CW57: 0.001842052 | CX57: 0.001819089 | CY57: 0.001796411 | CZ57: 0.001774016 | DA57: 0.0017519 | DB57: 0.00173006 | DC57: 0.001708493 | DD57: 0.001687194 | DE57: 0.00166616 | DF57: 0.001645389 | DG57: 0.001624877 | DH57: 0.00160462 | DI57: 0.001584616 | DJ57: 0.001564862 | DK57: 0.001545354 | DL57: 0.001526088 | DM57: 0.001507063 | DN57: 0.001488276 | DO57: 0.001469722 | DP57: 0.0014514 | DQ57: 0.001433306 | DR57: 0.001415437 | DS57: 0.001397792
A58: 0.00782 | B58: 0.007928 | C58: 0.007371 | D58: 0.007199 | E58: 0.006838 | F58: 0.007035 | G58: 0.007339 | H58: 0.006848 | I58: 0.006683 | J58: 0.006401 | K58: 0.006518 | L58: 0.006878 | M58: 0.006446 | N58: 0.006662 | O58: 0.006217 | P58: 0.006204 | Q58: 0.006274 | R58: 0.005753 | S58: 0.006161 | T58: 0.005990062 | U58: 0.00561611 | V58: 0.005215658 | W58: 0.005463794 | X58: 0.00516272 | Y58: 0.005164066 | Z58: 0.00480791 | AA58: 0.004966624 | AB58: 0.004932268 | AC58: 0.004807527 | AD58: 0.004696593 | AE58: 0.004446132 | AF58: 0.004460171 | AG58: 0.004286644 | AH58: 0.004121423 | AI58: 0.004140323 | AJ58: 0.004012116 | AK58: 0.00403094 | AL58: 0.004037883 | AM58: 0.00396606 | AN58: 0.003923867 | AO58: 0.003869534 | AP58: 0.003739701 | AQ58: 0.003664866 | AR58: 0.003629477 | AS58: 0.003716342 | AT58: 0.003651962 | AU58: 0.003701833 | AV58: 0.003568366 | AW58: 0.003401535 | AX58: 0.003557389 | AY58: 0.003412482 | AZ58: 0.003383299 | BA58: 0.00343551 | BB58: 0.003627432 | BC58: 0.003390423 | BD58: 0.003532936 | BE58: 0.003343143 | BF58: 0.003365159 | BG58: 0.003288957 | BH58: 0.003416835 | BI58: 0.003233588 | BJ58: 0.00339751 | BK58: 0.003192436 | BL58: 0.003162772 | BM58: 0.003079721 | BN58: 0.003080017 | BO58: 0.002997542 | BP58: 0.002960174 | BQ58: 0.002923273 | BR58: 0.002886831 | BS58: 0.002850843 | BT58: 0.002815304 | BU58: 0.002780208 | BV58: 0.00274555 | BW58: 0.002711323 | BX58: 0.002677524 | BY58: 0.002644145 | BZ58: 0.002611183 | CA58: 0.002578631 | CB58: 0.002546486 | CC58: 0.002514741 | CD58: 0.002483391 | CE58: 0.002452433 | CF58: 0.00242186 | CG58: 0.002391669 | CH58: 0.002361854 | CI58: 0.002332411 | CJ58: 0.002303334 | CK58: 0.00227462 | CL58: 0.002246264 | CM58: 0.002218262 | CN58: 0.002190608 | CO58: 0.0021633 | CP58: 0.002136331 | CQ58: 0.002109699 | CR58: 0.002083399 | CS58: 0.002057427 | CT58: 0.002031778 | CU58: 0.00200645 | CV58: 0.001981437 | CW58: 0.001956735 | CX58: 0.001932342 | CY58: 0.001908253 | CZ58: 0.001884464 | DA58: 0.001860972 | DB58: 0.001837772 | DC58: 0.001814862 | DD58: 0.001792237 | DE58: 0.001769894 | DF58: 0.00174783 | DG58: 0.001726041 | DH58: 0.001704524 | DI58: 0.001683275 | DJ58: 0.00166229 | DK58: 0.001641567 | DL58: 0.001621103 | DM58: 0.001600894 | DN58: 0.001580936 | DO58: 0.001561228 | DP58: 0.001541765 | DQ58: 0.001522545 | DR58: 0.001503564 | DS58: 0.00148482
A59: 0.008376 | B59: 0.0079 | C59: 0.008276 | D59: 0.007512 | E59: 0.007764 | F59: 0.007818 | G59: 0.007439 | H59: 0.007604 | I59: 0.007519 | J59: 0.007312 | K59: 0.007171 | L59: 0.006877 | M59: 0.00721 | N59: 0.006852 | O59: 0.006869 | P59: 0.006129 | Q59: 0.006594 | R59: 0.006739 | S59: 0.006798193 | T59: 0.005953836 | U59: 0.005959383 | V59: 0.005867864 | W59: 0.005578754 | X59: 0.005613093 | Y59: 0.005231503 | Z59: 0.005322798 | AA59: 0.005451896 | AB59: 0.005077969 | AC59: 0.004853899 | AD59: 0.004970978 | AE59: 0.00476975 | AF59: 0.004695457 | AG59: 0.004570486 | AH59: 0.00430956 | AI59: 0.004292003 | AJ59: 0.004303127 | AK59: 0.004337278 | AL59: 0.004065881 | AM59: 0.004062749 | AN59: 0.004040815 | AO59: 0.004056037 | AP59: 0.004056238 | AQ59: 0.003914949 | AR59: 0.003990767 | AS59: 0.004023893 | AT59: 0.004005189 | AU59: 0.003815331 | AV59: 0.003719074 | AW59: 0.003775129 | AX59: 0.003827217 | AY59: 0.003801142 | AZ59: 0.003823939 | BA59: 0.003655323 | BB59: 0.003807432 | BC59: 0.003720606 | BD59: 0.003759887 | BE59: 0.003636759 | BF59: 0.003562902 | BG59: 0.003635402 | BH59: 0.003676949 | BI59: 0.003588129 | BJ59: 0.003627669 | BK59: 0.0034293 | BL59: 0.003496576 | BM59: 0.003283049 | BN59: 0.003284166 | BO59: 0.003243226 | BP59: 0.003202797 | BQ59: 0.003162871 | BR59: 0.003123443 | BS59: 0.003084507 | BT59: 0.003046056 | BU59: 0.003008084 | BV59: 0.002970586 | BW59: 0.002933555 | BX59: 0.002896985 | BY59: 0.002860872 | BZ59: 0.002825208 | CA59: 0.002789989 | CB59: 0.002755209 | CC59: 0.002720863 | CD59: 0.002686945 | CE59: 0.002653449 | CF59: 0.002620372 | CG59: 0.002587706 | CH59: 0.002555448 | CI59: 0.002523591 | CJ59: 0.002492132 | CK59: 0.002461065 | CL59: 0.002430385 | CM59: 0.002400088 | CN59: 0.002370168 | CO59: 0.002340622 | CP59: 0.002311443 | CQ59: 0.002282629 | CR59: 0.002254173 | CS59: 0.002226072 | CT59: 0.002198322 | CU59: 0.002170917 | CV59: 0.002143854 | CW59: 0.002117129 | CX59: 0.002090736 | CY59: 0.002064673 | CZ59: 0.002038934 | DA59: 0.002013517 | DB59: 0.001988416 | DC59: 0.001963628 | DD59: 0.001939149 | DE59: 0.001914975 | DF59: 0.001891103 | DG59: 0.001867528 | DH59: 0.001844247 | DI59: 0.001821256 | DJ59: 0.001798552 | DK59: 0.001776131 | DL59: 0.001753989 | DM59: 0.001732123 | DN59: 0.00171053 | DO59: 0.001689206 | DP59: 0.001668148 | DQ59: 0.001647353 | DR59: 0.001626816 | DS59: 0.001606536
A60: 0.008652 | B60: 0.008437 | C60: 0.00819 | D60: 0.008328 | E60: 0.008294 | F60: 0.008139 | G60: 0.008022 | H60: 0.007769 | I60: 0.00759 | J60: 0.007769 | K60: 0.00765 | L60: 0.007732 | M60: 0.007289 | N60: 0.007228 | O60: 0.007051 | P60: 0.006569 | Q60: 0.007029 | R60: 0.006631045 | S60: 0.006662544 | T60: 0.006638348 | U60: 0.006498148 | V60: 0.006031548 | W60: 0.005888201 | X60: 0.005744758 | Y60: 0.00596275 | Z60: 0.005562719 | AA60: 0.005667623 | AB60: 0.005429285 | AC60: 0.005187132 | AD60: 0.005028101 | AE60: 0.005171942 | AF60: 0.004954638 | AG60: 0.004956535 | AH60: 0.004677782 | AI60: 0.004620034 | AJ60: 0.004582991 | AK60: 0.004463915 | AL60: 0.00436919 | AM60: 0.004389167 | AN60: 0.004226753 | AO60: 0.004309315 | AP60: 0.004030705 | AQ60: 0.004133942 | AR60: 0.004089038 | AS60: 0.004118841 | AT60: 0.004142753 | AU60: 0.003868805 | AV60: 0.003755755 | AW60: 0.00390175 | AX60: 0.003937336 | AY60: 0.003900704 | AZ60: 0.004044904 | BA60: 0.003931164 | BB60: 0.003896473 | BC60: 0.003885951 | BD60: 0.003797462 | BE60: 0.003754414 | BF60: 0.003839304 | BG60: 0.00382135 | BH60: 0.003790745 | BI60: 0.003733893 | BJ60: 0.003760126 | BK60: 0.003697745 | BL60: 0.003596256 | BM60: 0.00350493 | BN60: 0.003461237 | BO60: 0.003418088 | BP60: 0.003375477 | BQ60: 0.003333397 | BR60: 0.003291842 | BS60: 0.003250805 | BT60: 0.00321028 | BU60: 0.003170259 | BV60: 0.003130738 | BW60: 0.003091709 | BX60: 0.003053166 | BY60: 0.003015105 | BZ60: 0.002977517 | CA60: 0.002940398 | CB60: 0.002903742 | CC60: 0.002867543 | CD60: 0.002831795 | CE60: 0.002796493 | CF60: 0.002761631 | CG60: 0.002727203 | CH60: 0.002693205 | CI60: 0.00265963 | CJ60: 0.002626474 | CK60: 0.002593732 | CL60: 0.002561397 | CM60: 0.002529466 | CN60: 0.002497932 | CO60: 0.002466792 | CP60: 0.00243604 | CQ60: 0.002405671 | CR60: 0.002375681 | CS60: 0.002346065 | CT60: 0.002316818 | CU60: 0.002287935 | CV60: 0.002259413 | CW60: 0.002231246 | CX60: 0.00220343 | CY60: 0.002175961 | CZ60: 0.002148835 | DA60: 0.002122046 | DB60: 0.002095592 | DC60: 0.002069467 | DD60: 0.002043668 | DE60: 0.002018191 | DF60: 0.001993031 | DG60: 0.001968185 | DH60: 0.001943649 | DI60: 0.001919418 | DJ60: 0.00189549 | DK60: 0.00187186 | DL60: 0.001848524 | DM60: 0.001825479 | DN60: 0.001802722 | DO60: 0.001780248 | DP60: 0.001758055 | DQ60: 0.001736138 | DR60: 0.001714494 | DS60: 0.001693121
A61: 0.00974 | B61: 0.009472 | C61: 0.009108 | D61: 0.009551 | E61: 0.008767 | F61: 0.008915 | G61: 0.008702 | H61: 0.008811 | I61: 0.008498 | J61: 0.008245 | K61: 0.008508 | L61: 0.007488 | M61: 0.007384 | N61: 0.007542 | O61: 0.007131 | P61: 0.00742 | Q61: 0.007525509 | R61: 0.006823985 | S61: 0.007073348 | T61: 0.007079294 | U61: 0.006789401 | V61: 0.00668144 | W61: 0.00609496 | X61: 0.006291858 | Y61: 0.005910002 | Z61: 0.005960202 | AA61: 0.00605132 | AB61: 0.005572821 | AC61: 0.005574257 | AD61: 0.005329896 | AE61: 0.005366055 | AF61: 0.005213936 | AG61: 0.005134506 | AH61: 0.00496967 | AI61: 0.004907597 | AJ61: 0.004726036 | AK61: 0.004730796 | AL61: 0.004589657 | AM61: 0.004697916 | AN61: 0.00469379 | AO61: 0.004483482 | AP61: 0.00429545 | AQ61: 0.004320427 | AR61: 0.004311491 | AS61: 0.004464082 | AT61: 0.004549589 | AU61: 0.00419563 | AV61: 0.004139437 | AW61: 0.004038194 | AX61: 0.004101891 | AY61: 0.004167252 | AZ61: 0.004137957 | BA61: 0.004088338 | BB61: 0.004211847 | BC61: 0.004106427 | BD61: 0.004111087 | BE61: 0.004156364 | BF61: 0.004302061 | BG61: 0.004217898 | BH61: 0.004079146 | BI61: 0.004099896 | BJ61: 0.004147351 | BK61: 0.003999965 | BL61: 0.00391895 | BM61: 0.003870097 | BN61: 0.003821853 | BO61: 0.003774211 | BP61: 0.003727162 | BQ61: 0.0036807 | BR61: 0.003634817 | BS61: 0.003589506 | BT61: 0.00354476 | BU61: 0.003500571 | BV61: 0.003456934 | BW61: 0.00341384 | BX61: 0.003371283 | BY61: 0.003329257 | BZ61: 0.003287755 | CA61: 0.00324677 | CB61: 0.003206296 | CC61: 0.003166326 | CD61: 0.003126855 | CE61: 0.003087876 | CF61: 0.003049382 | CG61: 0.003011369 | CH61: 0.002973829 | CI61: 0.002936757 | CJ61: 0.002900148 | CK61: 0.002863994 | CL61: 0.002828292 | CM61: 0.002793034 | CN61: 0.002758216 | CO61: 0.002723832 | CP61: 0.002689876 | CQ61: 0.002656344 | CR61: 0.00262323 | CS61: 0.002590528 | CT61: 0.002558235 | CU61: 0.002526343 | CV61: 0.00249485 | CW61: 0.002463749 | CX61: 0.002433035 | CY61: 0.002402705 | CZ61: 0.002372752 | DA61: 0.002343173 | DB61: 0.002313963 | DC61: 0.002285116 | DD61: 0.00225663 | DE61: 0.002228498 | DF61: 0.002200717 | DG61: 0.002173283 | DH61: 0.00214619 | DI61: 0.002119435 | DJ61: 0.002093014 | DK61: 0.002066922 | DL61: 0.002041155 | DM61: 0.00201571 | DN61: 0.001990581 | DO61: 0.001965766 | DP61: 0.00194126 | DQ61: 0.00191706 | DR61: 0.001893161 | DS61: 0.001869561
A62: 0.009737 | B62: 0.009977 | C62: 0.010331 | D62: 0.009376 | E62: 0.009849 | F62: 0.009566 | G62: 0.009213 | H62: 0.009282 | I62: 0.00883 | J62: 0.009584 | K62: 0.00854 | L62: 0.008591 | M62: 0.008428 | N62: 0.007879 | O62: 0.008089 | P62: 0.007778802 | Q62: 0.007112752 | R62: 0.007278667 | S62: 0.006896163 | T62: 0.007380261 | U62: 0.00706199 | V62: 0.006886589 | W62: 0.006584183 | X62: 0.006626771 | Y62: 0.006231387 | Z62: 0.006469599 | AA62: 0.006265844 | AB62: 0.005912841 | AC62: 0.005725466 | AD62: 0.005625472 | AE62: 0.005579228 | AF62: 0.005387895 | AG62: 0.005295781 | AH62: 0.005295171 | AI62: 0.005404492 | AJ62: 0.005225989 | AK62: 0.00511039 | AL62: 0.004932495 | AM62: 0.005106382 | AN62: 0.004926825 | AO62: 0.004827912 | AP62: 0.004754937 | AQ62: 0.004615584 | AR62: 0.004669677 | AS62: 0.004730614 | AT62: 0.004675146 | AU62: 0.004489354 | AV62: 0.004544936 | AW62: 0.004203983 | AX62: 0.004437304 | AY62: 0.00440933 | AZ62: 0.004400012 | BA62: 0.00434715 | BB62: 0.004362605 | BC62: 0.004324103 | BD62: 0.004481563 | BE62: 0.004477029 | BF62: 0.00452149 | BG62: 0.004577532 | BH62: 0.004454613 | BI62: 0.004461286 | BJ62: 0.004377539 | BK62: 0.004252928 | BL62: 0.004199911 | BM62: 0.004147556 | BN62: 0.004095853 | BO62: 0.004044794 | BP62: 0.003994372 | BQ62: 0.003944578 | BR62: 0.003895406 | BS62: 0.003846846 | BT62: 0.003798891 | BU62: 0.003751534 | BV62: 0.003704768 | BW62: 0.003658584 | BX62: 0.003612976 | BY62: 0.003567937 | BZ62: 0.003523459 | CA62: 0.003479535 | CB62: 0.003436159 | CC62: 0.003393324 | CD62: 0.003351022 | CE62: 0.003309248 | CF62: 0.003267995 | CG62: 0.003227256 | CH62: 0.003187025 | CI62: 0.003147295 | CJ62: 0.00310806 | CK62: 0.003069315 | CL62: 0.003031052 | CM62: 0.002993267 | CN62: 0.002955952 | CO62: 0.002919103 | CP62: 0.002882713 | CQ62: 0.002846777 | CR62: 0.002811288 | CS62: 0.002776242 | CT62: 0.002741633 | CU62: 0.002707455 | CV62: 0.002673704 | CW62: 0.002640373 | CX62: 0.002607457 | CY62: 0.002574952 | CZ62: 0.002542852 | DA62: 0.002511152 | DB62: 0.002479848 | DC62: 0.002448933 | DD62: 0.002418404 | DE62: 0.002388256 | DF62: 0.002358483 | DG62: 0.002329082 | DH62: 0.002300047 | DI62: 0.002271374 | DJ62: 0.002243058 | DK62: 0.002215096 | DL62: 0.002187482 | DM62: 0.002160212 | DN62: 0.002133282 | DO62: 0.002106688 | DP62: 0.002080425 | DQ62: 0.00205449 | DR62: 0.002028878 | DS62: 0.002003585
A63: 0.010694 | B63: 0.011256 | C63: 0.010677 | D63: 0.010166 | E63: 0.010074 | F63: 0.010167 | G63: 0.009826 | H63: 0.00991 | I63: 0.009936 | J63: 0.009524 | K63: 0.00954 | L63: 0.009029 | M63: 0.008356 | N63: 0.008689 | O63: 0.008273845 | P63: 0.007949328 | Q63: 0.007940071 | R63: 0.007989853 | S63: 0.007699737 | T63: 0.007643155 | U63: 0.007290839 | V63: 0.007160849 | W63: 0.007380053 | X63: 0.00705488 | Y63: 0.006626146 | Z63: 0.006361324 | AA63: 0.006362598 | AB63: 0.006371112 | AC63: 0.005972589 | AD63: 0.006015813 | AE63: 0.005815838 | AF63: 0.005933143 | AG63: 0.005644828 | AH63: 0.005548173 | AI63: 0.005626389 | AJ63: 0.005461206 | AK63: 0.005356242 | AL63: 0.005223489 | AM63: 0.005153078 | AN63: 0.004994289 | AO63: 0.004947735 | AP63: 0.004931991 | AQ63: 0.004812206 | AR63: 0.004907559 | AS63: 0.004805274 | AT63: 0.004746346 | AU63: 0.004815251 | AV63: 0.004692417 | AW63: 0.004541878 | AX63: 0.004724099 | AY63: 0.004708658 | AZ63: 0.004719872 | BA63: 0.004763098 | BB63: 0.00458735 | BC63: 0.004710969 | BD63: 0.004831656 | BE63: 0.004698519 | BF63: 0.004718636 | BG63: 0.004798109 | BH63: 0.004806249 | BI63: 0.004621545 | BJ63: 0.0045184 | BK63: 0.004462072 | BL63: 0.004406447 | BM63: 0.004351515 | BN63: 0.004297267 | BO63: 0.004243696 | BP63: 0.004190793 | BQ63: 0.004138549 | BR63: 0.004086957 | BS63: 0.004036007 | BT63: 0.003985693 | BU63: 0.003936006 | BV63: 0.003886938 | BW63: 0.003838482 | BX63: 0.00379063 | BY63: 0.003743375 | BZ63: 0.003696709 | CA63: 0.003650624 | CB63: 0.003605114 | CC63: 0.003560171 | CD63: 0.003515789 | CE63: 0.00347196 | CF63: 0.003428677 | CG63: 0.003385933 | CH63: 0.003343723 | CI63: 0.003302039 | CJ63: 0.003260874 | CK63: 0.003220223 | CL63: 0.003180078 | CM63: 0.003140434 | CN63: 0.003101284 | CO63: 0.003062622 | CP63: 0.003024442 | CQ63: 0.002986738 | CR63: 0.002949504 | CS63: 0.002912734 | CT63: 0.002876423 | CU63: 0.002840564 | CV63: 0.002805152 | CW63: 0.002770182 | CX63: 0.002735647 | CY63: 0.002701543 | CZ63: 0.002667865 | DA63: 0.002634606 | DB63: 0.002601761 | DC63: 0.002569327 | DD63: 0.002537296 | DE63: 0.002505665 | DF63: 0.002474428 | DG63: 0.002443581 | DH63: 0.002413118 | DI63: 0.002383034 | DJ63: 0.002353326 | DK63: 0.002323989 | DL63: 0.002295017 | DM63: 0.002266406 | DN63: 0.002238151 | DO63: 0.00221025 | DP63: 0.002182695 | DQ63: 0.002155485 | DR63: 0.002128613 | DS63: 0.002102077
A64: 0.012228 | B64: 0.011541 | C64: 0.011574 | D64: 0.011155 | E64: 0.010978 | F64: 0.011208 | G64: 0.010832 | H64: 0.011505 | I64: 0.010382 | J64: 0.010153 | K64: 0.010004 | L64: 0.009521 | M64: 0.009468 | N64: 0.009196852 | O64: 0.00875982 | P64: 0.00852202 | Q64: 0.008794145 | R64: 0.008407194 | S64: 0.008210068 | T64: 0.008194333 | U64: 0.008129858 | V64: 0.007557537 | W64: 0.007549271 | X64: 0.007372337 | Y64: 0.007202978 | Z64: 0.006951838 | AA64: 0.006741045 | AB64: 0.006619104 | AC64: 0.006585713 | AD64: 0.006291522 | AE64: 0.006417214 | AF64: 0.006518439 | AG64: 0.00635559 | AH64: 0.00610306 | AI64: 0.005898461 | AJ64: 0.005677433 | AK64: 0.005733384 | AL64: 0.005663943 | AM64: 0.005515287 | AN64: 0.005435451 | AO64: 0.005433445 | AP64: 0.005300375 | AQ64: 0.005251711 | AR64: 0.005321012 | AS64: 0.005262956 | AT64: 0.005102921 | AU64: 0.005180382 | AV64: 0.005069293 | AW64: 0.004997696 | AX64: 0.005029249 | AY64: 0.004956749 | AZ64: 0.004964017 | BA64: 0.004986358 | BB64: 0.004927291 | BC64: 0.005020305 | BD64: 0.005164005 | BE64: 0.005003111 | BF64: 0.005100511 | BG64: 0.005230935 | BH64: 0.005020958 | BI64: 0.004826575 | BJ64: 0.004766407 | BK64: 0.004706989 | BL64: 0.004648311 | BM64: 0.004590365 | BN64: 0.004533142 | BO64: 0.004476631 | BP64: 0.004420826 | BQ64: 0.004365715 | BR64: 0.004311292 | BS64: 0.004257547 | BT64: 0.004204472 | BU64: 0.004152059 | BV64: 0.004100299 | BW64: 0.004049185 | BX64: 0.003998707 | BY64: 0.003948859 | BZ64: 0.003899632 | CA64: 0.003851018 | CB64: 0.003803011 | CC64: 0.003755602 | CD64: 0.003708784 | CE64: 0.00366255 | CF64: 0.003616892 | CG64: 0.003571803 | CH64: 0.003527276 | CI64: 0.003483305 | CJ64: 0.003439881 | CK64: 0.003396999 | CL64: 0.003354651 | CM64: 0.003312831 | CN64: 0.003271533 | CO64: 0.003230749 | CP64: 0.003190474 | CQ64: 0.003150701 | CR64: 0.003111423 | CS64: 0.003072636 | CT64: 0.003034331 | CU64: 0.002996504 | CV64: 0.002959149 | CW64: 0.00292226 | CX64: 0.00288583 | CY64: 0.002849854 | CZ64: 0.002814327 | DA64: 0.002779243 | DB64: 0.002744596 | DC64: 0.002710381 | DD64: 0.002676593 | DE64: 0.002643225 | DF64: 0.002610274 | DG64: 0.002577733 | DH64: 0.002545599 | DI64: 0.002513864 | DJ64: 0.002482526 | DK64: 0.002451577 | DL64: 0.002421015 | DM64: 0.002390834 | DN64: 0.002361029 | DO64: 0.002331595 | DP64: 0.002302529 | DQ64: 0.002273825 | DR64: 0.002245478 | DS64: 0.002217485
A65: 0.012599 | B65: 0.012839 | C65: 0.012616 | D65: 0.01165 | E65: 0.011975 | F65: 0.011988 | G65: 0.012184 | H65: 0.010983 | I65: 0.011249 | J65: 0.011043 | K65: 0.010182 | L65: 0.010306 | M65: 0.010023355 | N65: 0.00972288 | O65: 0.009507906 | P65: 0.008980102 | Q65: 0.008775838 | R65: 0.009122251 | S65: 0.00867519 | T65: 0.008811394 | U65: 0.008523749 | V65: 0.008117966 | W65: 0.007902059 | X65: 0.007789748 | Y65: 0.00745615 | Z65: 0.007431004 | AA65: 0.007083886 | AB65: 0.007092115 | AC65: 0.007138378 | AD65: 0.006629115 | AE65: 0.006699491 | AF65: 0.006533921 | AG65: 0.006662408 | AH65: 0.006422985 | AI65: 0.00621704 | AJ65: 0.006087276 | AK65: 0.005842714 | AL65: 0.006050842 | AM65: 0.005861476 | AN65: 0.005784064 | AO65: 0.005695813 | AP65: 0.005543097 | AQ65: 0.00562881 | AR65: 0.005624048 | AS65: 0.005566632 | AT65: 0.00541301 | AU65: 0.005276648 | AV65: 0.005431963 | AW65: 0.005141753 | AX65: 0.005230684 | AY65: 0.005262255 | AZ65: 0.005302005 | BA65: 0.005335754 | BB65: 0.005424168 | BC65: 0.005377357 | BD65: 0.005348558 | BE65: 0.005523094 | BF65: 0.005669089 | BG65: 0.005459586 | BH65: 0.005165374 | BI65: 0.005100983 | BJ65: 0.005037396 | BK65: 0.0049746 | BL65: 0.004912588 | BM65: 0.004851348 | BN65: 0.004790872 | BO65: 0.00473115 | BP65: 0.004672172 | BQ65: 0.004613929 | BR65: 0.004556413 | BS65: 0.004499613 | BT65: 0.004443521 | BU65: 0.004388129 | BV65: 0.004333426 | BW65: 0.004279406 | BX65: 0.004226059 | BY65: 0.004173377 | BZ65: 0.004121352 | CA65: 0.004069975 | CB65: 0.004019239 | CC65: 0.003969135 | CD65: 0.003919656 | CE65: 0.003870794 | CF65: 0.00382254 | CG65: 0.003774888 | CH65: 0.00372783 | CI65: 0.003681359 | CJ65: 0.003635467 | CK65: 0.003590147 | CL65: 0.003545392 | CM65: 0.003501195 | CN65: 0.003457548 | CO65: 0.003414446 | CP65: 0.003371881 | CQ65: 0.003329847 | CR65: 0.003288337 | CS65: 0.003247344 | CT65: 0.003206862 | CU65: 0.003166885 | CV65: 0.003127406 | CW65: 0.003088419 | CX65: 0.003049918 | CY65: 0.003011898 | CZ65: 0.002974351 | DA65: 0.002937272 | DB65: 0.002900655 | DC65: 0.002864495 | DD65: 0.002828786 | DE65: 0.002793521 | DF65: 0.002758697 | DG65: 0.002724306 | DH65: 0.002690344 | DI65: 0.002656806 | DJ65: 0.002623685 | DK65: 0.002590978 | DL65: 0.002558678 | DM65: 0.002526781 | DN65: 0.002495281 | DO65: 0.002464174 | DP65: 0.002433455 | DQ65: 0.002403119 | DR65: 0.002373161 | DS65: 0.002343577
A66: 0.013767 | B66: 0.013331 | C66: 0.013493 | D66: 0.013275 | E66: 0.012895 | F66: 0.013592 | G66: 0.012239 | H66: 0.012489 | I66: 0.012215 | J66: 0.011531 | K66: 0.011545 | L66: 0.011442989 | M66: 0.010331003 | N66: 0.010157782 | O66: 0.009814563 | P66: 0.009850055 | Q66: 0.009671127 | R66: 0.009560673 | S66: 0.009044405 | T66: 0.00900719 | U66: 0.009019123 | V66: 0.008897251 | W66: 0.00831843 | X66: 0.008061719 | Y66: 0.008026352 | Z66: 0.007706392 | AA66: 0.007574064 | AB66: 0.007591141 | AC66: 0.007537402 | AD66: 0.007277092 | AE66: 0.006933091 | AF66: 0.007149915 | AG66: 0.006925083 | AH66: 0.006915387 | AI66: 0.006706383 | AJ66: 0.006528449 | AK66: 0.006373723 | AL66: 0.006456813 | AM66: 0.006287458 | AN66: 0.006291569 | AO66: 0.005951094 | AP66: 0.005754427 | AQ66: 0.005925422 | AR66: 0.00588801 | AS66: 0.005888388 | AT66: 0.005836526 | AU66: 0.005607459 | AV66: 0.005671033 | AW66: 0.005480596 | AX66: 0.00557102 | AY66: 0.005635679 | AZ66: 0.005803526 | BA66: 0.005731884 | BB66: 0.005692458 | BC66: 0.005861934 | BD66: 0.005883935 | BE66: 0.006240935 | BF66: 0.005888285 | BG66: 0.005505831 | BH66: 0.005437196 | BI66: 0.005369417 | BJ66: 0.005302482 | BK66: 0.005236382 | BL66: 0.005171106 | BM66: 0.005106643 | BN66: 0.005042984 | BO66: 0.004980119 | BP66: 0.004918037 | BQ66: 0.004856729 | BR66: 0.004796185 | BS66: 0.004736396 | BT66: 0.004677352 | BU66: 0.004619044 | BV66: 0.004561463 | BW66: 0.0045046 | BX66: 0.004448445 | BY66: 0.004392991 | BZ66: 0.004338227 | CA66: 0.004284147 | CB66: 0.00423074 | CC66: 0.004178 | CD66: 0.004125916 | CE66: 0.004074482 | CF66: 0.004023689 | CG66: 0.00397353 | CH66: 0.003923995 | CI66: 0.003875078 | CJ66: 0.003826771 | CK66: 0.003779066 | CL66: 0.003731956 | CM66: 0.003685432 | CN66: 0.003639489 | CO66: 0.003594119 | CP66: 0.003549314 | CQ66: 0.003505068 | CR66: 0.003461373 | CS66: 0.003418223 | CT66: 0.00337561 | CU66: 0.003333529 | CV66: 0.003291973 | CW66: 0.003250934 | CX66: 0.003210407 | CY66: 0.003170386 | CZ66: 0.003130863 | DA66: 0.003091833 | DB66: 0.003053289 | DC66: 0.003015226 | DD66: 0.002977637 | DE66: 0.002940517 | DF66: 0.00290386 | DG66: 0.00286766 | DH66: 0.002831911 | DI66: 0.002796607 | DJ66: 0.002761744 | DK66: 0.002727315 | DL66: 0.002693316 | DM66: 0.00265974 | DN66: 0.002626583 | DO66: 0.002593839 | DP66: 0.002561503 | DQ66: 0.002529571 | DR66: 0.002498036 | DS66: 0.002466895
A67: 0.014491 | B67: 0.014998 | C67: 0.014326 | D67: 0.014643 | E67: 0.015123 | F67: 0.013921 | G67: 0.013764 | H67: 0.012969 | I67: 0.012895 | J67: 0.012488 | K67: 0.012794422 | L67: 0.011193585 | M67: 0.01140055 | N67: 0.011052601 | O67: 0.010846323 | P67: 0.010541174 | Q67: 0.010136546 | R67: 0.010527132 | S67: 0.009809148 | T67: 0.009991083 | U67: 0.009830633 | V67: 0.009004812 | W67: 0.00912591 | X67: 0.00861927 | Y67: 0.00835252 | Z67: 0.008120012 | AA67: 0.008208612 | AB67: 0.008056375 | AC67: 0.008131371 | AD67: 0.008108536 | AE67: 0.007696092 | AF67: 0.007843147 | AG67: 0.007563491 | AH67: 0.007399789 | AI67: 0.007089223 | AJ67: 0.006920432 | AK67: 0.006871187 | AL67: 0.006959175 | AM67: 0.006487599 | AN67: 0.006632538 | AO67: 0.006192709 | AP67: 0.006219192 | AQ67: 0.00607283 | AR67: 0.00626242 | AS67: 0.006423167 | AT67: 0.006231762 | AU67: 0.005948017 | AV67: 0.00616961 | AW67: 0.005938629 | AX67: 0.005995267 | AY67: 0.006088693 | AZ67: 0.006385778 | BA67: 0.006254465 | BB67: 0.006019711 | BC67: 0.006440642 | BD67: 0.006565081 | BE67: 0.006363797 | BF67: 0.005906642 | BG67: 0.00583301 | BH67: 0.005760297 | BI67: 0.005688489 | BJ67: 0.005617577 | BK67: 0.005547548 | BL67: 0.005478392 | BM67: 0.005410099 | BN67: 0.005342657 | BO67: 0.005276055 | BP67: 0.005210284 | BQ67: 0.005145332 | BR67: 0.00508119 | BS67: 0.005017848 | BT67: 0.004955295 | BU67: 0.004893522 | BV67: 0.004832519 | BW67: 0.004772277 | BX67: 0.004712785 | BY67: 0.004654035 | BZ67: 0.004596017 | CA67: 0.004538723 | CB67: 0.004482143 | CC67: 0.004426268 | CD67: 0.004371089 | CE67: 0.004316599 | CF67: 0.004262787 | CG67: 0.004209647 | CH67: 0.004157169 | CI67: 0.004105345 | CJ67: 0.004054167 | CK67: 0.004003627 | CL67: 0.003953717 | CM67: 0.003904429 | CN67: 0.003855755 | CO67: 0.003807689 | CP67: 0.003760221 | CQ67: 0.003713345 | CR67: 0.003667054 | CS67: 0.00362134 | CT67: 0.003576195 | CU67: 0.003531613 | CV67: 0.003487587 | CW67: 0.00344411 | CX67: 0.003401175 | CY67: 0.003358775 | CZ67: 0.003316904 | DA67: 0.003275554 | DB67: 0.00323472 | DC67: 0.003194395 | DD67: 0.003154573 | DE67: 0.003115247 | DF67: 0.003076411 | DG67: 0.00303806 | DH67: 0.003000186 | DI67: 0.002962785 | DJ67: 0.00292585 | DK67: 0.002889375 | DL67: 0.002853355 | DM67: 0.002817784 | DN67: 0.002782657 | DO67: 0.002747967 | DP67: 0.00271371 | DQ67: 0.00267988 | DR67: 0.002646472 | DS67: 0.00261348
A68: 0.016107 | B68: 0.01621 | C68: 0.016206 | D68: 0.016483 | E68: 0.015402 | F68: 0.014973 | G68: 0.014629 | H68: 0.013879 | I68: 0.013956 | J68: 0.013848304 | K68: 0.0130493 | L68: 0.012445874 | M68: 0.011960847 | N68: 0.011558362 | O68: 0.011518544 | P68: 0.011673993 | Q68: 0.011194125 | R68: 0.01089821 | S68: 0.010771015 | T68: 0.01042465 | U68: 0.010385931 | V68: 0.009392825 | W68: 0.009427744 | X68: 0.009415268 | Y68: 0.008814081 | Z68: 0.008962871 | AA68: 0.009013122 | AB68: 0.008791557 | AC68: 0.008902234 | AD68: 0.008800484 | AE68: 0.008577759 | AF68: 0.008400602 | AG68: 0.008138547 | AH68: 0.007724887 | AI68: 0.007653375 | AJ68: 0.007676678 | AK68: 0.007332709 | AL68: 0.007195666 | AM68: 0.006958734 | AN68: 0.006860362 | AO68: 0.006687031 | AP68: 0.006781181 | AQ68: 0.00676973 | AR68: 0.006654367 | AS68: 0.006571447 | AT68: 0.006462898 | AU68: 0.006282031 | AV68: 0.006268579 | AW68: 0.006368914 | AX68: 0.006489139 | AY68: 0.006489257 | AZ68: 0.006619594 | BA68: 0.00659555 | BB68: 0.006683457 | BC68: 0.007077114 | BD68: 0.006843351 | BE68: 0.006373043 | BF68: 0.006293602 | BG68: 0.006215151 | BH68: 0.006137677 | BI68: 0.00606117 | BJ68: 0.005985616 | BK68: 0.005911004 | BL68: 0.005837321 | BM68: 0.005764557 | BN68: 0.0056927 | BO68: 0.005621739 | BP68: 0.005551662 | BQ68: 0.005482458 | BR68: 0.005414117 | BS68: 0.005346628 | BT68: 0.00527998 | BU68: 0.005214163 | BV68: 0.005149166 | BW68: 0.005084979 | BX68: 0.005021592 | BY68: 0.004958995 | BZ68: 0.004897179 | CA68: 0.004836133 | CB68: 0.004775848 | CC68: 0.004716314 | CD68: 0.004657522 | CE68: 0.004599464 | CF68: 0.004542128 | CG68: 0.004485508 | CH68: 0.004429593 | CI68: 0.004374375 | CJ68: 0.004319846 | CK68: 0.004265996 | CL68: 0.004212818 | CM68: 0.004160302 | CN68: 0.004108441 | CO68: 0.004057226 | CP68: 0.004006649 | CQ68: 0.003956704 | CR68: 0.00390738 | CS68: 0.003858672 | CT68: 0.00381057 | CU68: 0.003763068 | CV68: 0.003716159 | CW68: 0.003669834 | CX68: 0.003624086 | CY68: 0.003578909 | CZ68: 0.003534294 | DA68: 0.003490236 | DB68: 0.003446727 | DC68: 0.003403761 | DD68: 0.00336133 | DE68: 0.003319428 | DF68: 0.003278048 | DG68: 0.003237184 | DH68: 0.00319683 | DI68: 0.003156978 | DJ68: 0.003117623 | DK68: 0.003078759 | DL68: 0.003040379 | DM68: 0.003002478 | DN68: 0.002965049 | DO68: 0.002928087 | DP68: 0.002891585 | DQ68: 0.002855538 | DR68: 0.002819941 | DS68: 0.002784788
A69: 0.017652 | B69: 0.017056 | C69: 0.01856 | D69: 0.016505 | E69: 0.016978 | F69: 0.016847 | G69: 0.015893 | H69: 0.015442 | I69: 0.015056585 | J69: 0.014282452 | K69: 0.013479481 | L69: 0.013085218 | M69: 0.01245719 | N69: 0.01301255 | O69: 0.012251506 | P69: 0.012246536 | Q69: 0.01232049 | R69: 0.011610771 | S69: 0.011725804 | T69: 0.010632666 | U69: 0.010939931 | V69: 0.010248233 | W69: 0.010106783 | X69: 0.009963696 | Y69: 0.009770599 | Z69: 0.009868098 | AA69: 0.00963779 | AB69: 0.009680841 | AC69: 0.009586598 | AD69: 0.009322888 | AE69: 0.009187233 | AF69: 0.008894168 | AG69: 0.00853014 | AH69: 0.008466417 | AI69: 0.008110607 | AJ69: 0.008337249 | AK69: 0.007738258 | AL69: 0.007532325 | AM69: 0.007360694 | AN69: 0.007380738 | AO69: 0.006927814 | AP69: 0.007187618 | AQ69: 0.007267653 | AR69: 0.007187011 | AS69: 0.00699762 | AT69: 0.00683579 | AU69: 0.006712575 | AV69: 0.006619271 | AW69: 0.006766276 | AX69: 0.007069285 | AY69: 0.007074529 | AZ69: 0.007162871 | BA69: 0.00708373 | BB69: 0.007397365 | BC69: 0.007433226 | BD69: 0.007069943 | BE69: 0.006981817 | BF69: 0.00689479 | BG69: 0.006808847 | BH69: 0.006723976 | BI69: 0.006640162 | BJ69: 0.006557393 | BK69: 0.006475656 | BL69: 0.006394937 | BM69: 0.006315224 | BN69: 0.006236505 | BO69: 0.006158766 | BP69: 0.006081997 | BQ69: 0.006006185 | BR69: 0.005931317 | BS69: 0.005857382 | BT69: 0.005784369 | BU69: 0.005712266 | BV69: 0.005641062 | BW69: 0.005570745 | BX69: 0.005501304 | BY69: 0.005432729 | BZ69: 0.005365009 | CA69: 0.005298132 | CB69: 0.00523209 | CC69: 0.00516687 | CD69: 0.005102463 | CE69: 0.005038859 | CF69: 0.004976048 | CG69: 0.00491402 | CH69: 0.004852765 | CI69: 0.004792273 | CJ69: 0.004732535 | CK69: 0.004673542 | CL69: 0.004615284 | CM69: 0.004557752 | CN69: 0.004500938 | CO69: 0.004444831 | CP69: 0.004389424 | CQ69: 0.004334707 | CR69: 0.004280673 | CS69: 0.004227312 | CT69: 0.004174616 | CU69: 0.004122577 | CV69: 0.004071186 | CW69: 0.004020436 | CX69: 0.003970319 | CY69: 0.003920826 | CZ69: 0.003871951 | DA69: 0.003823684 | DB69: 0.003776019 | DC69: 0.003728948 | DD69: 0.003682464 | DE69: 0.00363656 | DF69: 0.003591227 | DG69: 0.00354646 | DH69: 0.003502251 | DI69: 0.003458592 | DJ69: 0.003415478 | DK69: 0.003372901 | DL69: 0.003330855 | DM69: 0.003289334 | DN69: 0.003248329 | DO69: 0.003207836 | DP69: 0.003167848 | DQ69: 0.003128358 | DR69: 0.00308936 | DS69: 0.003050848
A70: 0.01977 | B70: 0.020228 | C70: 0.018957 | D70: 0.018369 | E70: 0.017998 | F70: 0.017037 | G70: 0.018036 | H70: 0.016390096 | I70: 0.015861252 | J70: 0.015098681 | K70: 0.014647916 | L70: 0.014369528 | M70: 0.013998361 | N70: 0.01387372 | O70: 0.013588771 | P70: 0.013516107 | Q70: 0.013141651 | R70: 0.0128059 | S70: 0.012882493 | T70: 0.011200004 | U70: 0.01177915 | V70: 0.011050523 | W70: 0.010943453 | X70: 0.010694123 | Y70: 0.01061836 | Z70: 0.010819603 | AA70: 0.010285006 | AB70: 0.010285605 | AC70: 0.010230146 | AD70: 0.009865966 | AE70: 0.009735106 | AF70: 0.009503986 | AG70: 0.009090102 | AH70: 0.009281239 | AI70: 0.008928958 | AJ70: 0.008685818 | AK70: 0.008279851 | AL70: 0.008287811 | AM70: 0.007903086 | AN70: 0.008069318 | AO70: 0.007731817 | AP70: 0.008035798 | AQ70: 0.00754372 | AR70: 0.00773168 | AS70: 0.007919585 | AT70: 0.007487856 | AU70: 0.007483292 | AV70: 0.007241801 | AW70: 0.007381802 | AX70: 0.007468926 | AY70: 0.007680976 | AZ70: 0.007939765 | BA70: 0.008076725 | BB70: 0.007795558 | BC70: 0.00757823 | BD70: 0.007566101 | BE70: 0.007471788 | BF70: 0.007378651 | BG70: 0.007286674 | BH70: 0.007195844 | BI70: 0.007106146 | BJ70: 0.007017566 | BK70: 0.00693009 | BL70: 0.006843704 | BM70: 0.006758395 | BN70: 0.006674149 | BO70: 0.006590953 | BP70: 0.006508795 | BQ70: 0.00642766 | BR70: 0.006347536 | BS70: 0.006268411 | BT70: 0.006190273 | BU70: 0.006113108 | BV70: 0.006036905 | BW70: 0.005961652 | BX70: 0.005887337 | BY70: 0.005813948 | BZ70: 0.005741474 | CA70: 0.005669904 | CB70: 0.005599225 | CC70: 0.005529427 | CD70: 0.0054605 | CE70: 0.005392431 | CF70: 0.005325211 | CG70: 0.005258829 | CH70: 0.005193274 | CI70: 0.005128536 | CJ70: 0.005064605 | CK70: 0.005001472 | CL70: 0.004939125 | CM70: 0.004877555 | CN70: 0.004816752 | CO70: 0.004756708 | CP70: 0.004697412 | CQ70: 0.004638855 | CR70: 0.004581028 | CS70: 0.004523922 | CT70: 0.004467527 | CU70: 0.004411836 | CV70: 0.004356839 | CW70: 0.004302527 | CX70: 0.004248892 | CY70: 0.004195926 | CZ70: 0.00414362 | DA70: 0.004091966 | DB70: 0.004040956 | DC70: 0.003990582 | DD70: 0.003940836 | DE70: 0.003891709 | DF70: 0.003843196 | DG70: 0.003795286 | DH70: 0.003747975 | DI70: 0.003701252 | DJ70: 0.003655113 | DK70: 0.003609548 | DL70: 0.003564551 | DM70: 0.003520116 | DN70: 0.003476234 | DO70: 0.003432899 | DP70: 0.003390104 | DQ70: 0.003347843 | DR70: 0.003306109 | DS70: 0.003264894
A71: 0.023452 | B71: 0.020286 | C71: 0.020731 | D71: 0.020827 | E71: 0.019226 | F71: 0.019835 | G71: 0.018600395 | H71: 0.017626308 | I71: 0.017573176 | J71: 0.016361826 | K71: 0.016247066 | L71: 0.015647612 | M71: 0.01512191 | N71: 0.015307848 | O71: 0.014649573 | P71: 0.014735555 | Q71: 0.013990045 | R71: 0.013989591 | S71: 0.012886638 | T71: 0.012860163 | U71: 0.012633108 | V71: 0.012082538 | W71: 0.011800748 | X71: 0.011643946 | Y71: 0.011655859 | Z71: 0.01147015 | AA71: 0.011479698 | AB71: 0.011110962 | AC71: 0.010996633 | AD71: 0.010601106 | AE71: 0.010566302 | AF71: 0.010196829 | AG71: 0.009926194 | AH71: 0.010023744 | AI71: 0.009503953 | AJ71: 0.008983933 | AK71: 0.008894934 | AL71: 0.008986756 | AM71: 0.008570997 | AN71: 0.008767742 | AO71: 0.008221039 | AP71: 0.008440166 | AQ71: 0.008209352 | AR71: 0.008298742 | AS71: 0.008278915 | AT71: 0.008255525 | AU71: 0.008169673 | AV71: 0.008026864 | AW71: 0.007897643 | AX71: 0.00807275 | AY71: 0.008438969 | AZ71: 0.008756553 | BA71: 0.00860627 | BB71: 0.008142172 | BC71: 0.008129141 | BD71: 0.008116131 | BE71: 0.008014964 | BF71: 0.007915057 | BG71: 0.007816396 | BH71: 0.007718964 | BI71: 0.007622746 | BJ71: 0.007527728 | BK71: 0.007433894 | BL71: 0.007341229 | BM71: 0.00724972 | BN71: 0.007159351 | BO71: 0.007070108 | BP71: 0.006981977 | BQ71: 0.006894945 | BR71: 0.006808998 | BS71: 0.006724122 | BT71: 0.006640304 | BU71: 0.00655753 | BV71: 0.006475789 | BW71: 0.006395066 | BX71: 0.006315349 | BY71: 0.006236626 | BZ71: 0.006158883 | CA71: 0.00608211 | CB71: 0.006006294 | CC71: 0.005931423 | CD71: 0.005857485 | CE71: 0.005784469 | CF71: 0.005712362 | CG71: 0.005641155 | CH71: 0.005570835 | CI71: 0.005501391 | CJ71: 0.005432813 | CK71: 0.00536509 | CL71: 0.005298211 | CM71: 0.005232166 | CN71: 0.005166944 | CO71: 0.005102534 | CP71: 0.005038928 | CQ71: 0.004976114 | CR71: 0.004914084 | CS71: 0.004852826 | CT71: 0.004792332 | CU71: 0.004732593 | CV71: 0.004673597 | CW71: 0.004615337 | CX71: 0.004557804 | CY71: 0.004500987 | CZ71: 0.004444879 | DA71: 0.00438947 | DB71: 0.004334752 | DC71: 0.004280716 | DD71: 0.004227353 | DE71: 0.004174655 | DF71: 0.004122615 | DG71: 0.004071223 | DH71: 0.004020471 | DI71: 0.003970353 | DJ71: 0.003920859 | DK71: 0.003871982 | DL71: 0.003823714 | DM71: 0.003776048 | DN71: 0.003728976 | DO71: 0.003682491 | DP71: 0.003636585 | DQ71: 0.003591251 | DR71: 0.003546483 | DS71: 0.003502272
A72: 0.022935 | B72: 0.022805 | C72: 0.022853 | D72: 0.021723 | E72: 0.022215 | F72: 0.021378992 | G72: 0.019921593 | H72: 0.019425236 | I72: 0.019136324 | J72: 0.018029972 | K72: 0.01808955 | L72: 0.017016614 | M72: 0.016846679 | N72: 0.016271392 | O72: 0.016201557 | P72: 0.016207092 | Q72: 0.015020701 | R72: 0.01441072 | S72: 0.014442721 | T72: 0.013810231 | U72: 0.01363603 | V72: 0.013422962 | W72: 0.012795834 | X72: 0.012526977 | Y72: 0.01273264 | Z72: 0.012607909 | AA72: 0.012544186 | AB72: 0.012370233 | AC72: 0.011774163 | AD72: 0.011845854 | AE72: 0.01144708 | AF72: 0.011032527 | AG72: 0.011077216 | AH72: 0.010627063 | AI72: 0.010247879 | AJ72: 0.00975297 | AK72: 0.009447728 | AL72: 0.009864565 | AM72: 0.009426996 | AN72: 0.009299263 | AO72: 0.008756413 | AP72: 0.008807706 | AQ72: 0.008946456 | AR72: 0.00883645 | AS72: 0.008822191 | AT72: 0.009073197 | AU72: 0.008895544 | AV72: 0.008964501 | AW72: 0.008667536 | AX72: 0.009121472 | AY72: 0.00952275 | AZ72: 0.009212968 | BA72: 0.008738932 | BB72: 0.008724946 | BC72: 0.008710982 | BD72: 0.008697041 | BE72: 0.008588634 | BF72: 0.008481577 | BG72: 0.008375854 | BH72: 0.00827145 | BI72: 0.008168346 | BJ72: 0.008066528 | BK72: 0.007965978 | BL72: 0.007866682 | BM72: 0.007768623 | BN72: 0.007671786 | BO72: 0.007576156 | BP72: 0.007481719 | BQ72: 0.007388458 | BR72: 0.007296359 | BS72: 0.007205409 | BT72: 0.007115592 | BU72: 0.007026894 | BV72: 0.006939302 | BW72: 0.006852802 | BX72: 0.006767379 | BY72: 0.006683022 | BZ72: 0.006599716 | CA72: 0.006517448 | CB72: 0.006436206 | CC72: 0.006355976 | CD72: 0.006276746 | CE72: 0.006198504 | CF72: 0.006121237 | CG72: 0.006044933 | CH72: 0.00596958 | CI72: 0.005895166 | CJ72: 0.00582168 | CK72: 0.00574911 | CL72: 0.005677444 | CM72: 0.005606672 | CN72: 0.005536781 | CO72: 0.005467762 | CP72: 0.005399603 | CQ72: 0.005332294 | CR72: 0.005265824 | CS72: 0.005200182 | CT72: 0.005135358 | CU72: 0.005071342 | CV72: 0.005008125 | CW72: 0.004945695 | CX72: 0.004884043 | CY72: 0.00482316 | CZ72: 0.004763036 | DA72: 0.004703661 | DB72: 0.004645027 | DC72: 0.004587123 | DD72: 0.004529941 | DE72: 0.004473471 | DF72: 0.004417706 | DG72: 0.004362636 | DH72: 0.004308252 | DI72: 0.004254546 | DJ72: 0.004201509 | DK72: 0.004149134 | DL72: 0.004097411 | DM72: 0.004046334 | DN72: 0.003995892 | DO72: 0.00394608 | DP72: 0.003896888 | DQ72: 0.00384831 | DR72: 0.003800337 | DS72: 0.003752963
A73: 0.025453 | B73: 0.025567 | C73: 0.023789 | D73: 0.024999 | E73: 0.023742564 | F73: 0.022489887 | G73: 0.022078783 | H73: 0.020448476 | I73: 0.020097222 | J73: 0.020072312 | K73: 0.019581578 | L73: 0.019210315 | M73: 0.019011392 | N73: 0.018145738 | O73: 0.0178117 | P73: 0.016388229 | Q73: 0.016763844 | R73: 0.016208964 | S73: 0.015789776 | T73: 0.014882163 | U73: 0.014633293 | V73: 0.014284893 | W73: 0.013970034 | X73: 0.013505621 | Y73: 0.013560518 | Z73: 0.013539436 | AA73: 0.013274625 | AB73: 0.013384281 | AC73: 0.01298709 | AD73: 0.01286504 | AE73: 0.012374121 | AF73: 0.012376882 | AG73: 0.011748011 | AH73: 0.011188526 | AI73: 0.011098369 | AJ73: 0.01075198 | AK73: 0.01030789 | AL73: 0.010354457 | AM73: 0.010085249 | AN73: 0.00983552 | AO73: 0.009747771 | AP73: 0.009967678 | AQ73: 0.009612459 | AR73: 0.009659199 | AS73: 0.009771471 | AT73: 0.00991805 | AU73: 0.00960887 | AV73: 0.009671348 | AW73: 0.009648099 | AX73: 0.010299495 | AY73: 0.010044931 | AZ73: 0.00961704 | BA73: 0.00960165 | BB73: 0.009586284 | BC73: 0.009570944 | BD73: 0.009555627 | BE73: 0.009436526 | BF73: 0.009318909 | BG73: 0.009202758 | BH73: 0.009088054 | BI73: 0.008974779 | BJ73: 0.008862916 | BK73: 0.008752447 | BL73: 0.008643355 | BM73: 0.008535622 | BN73: 0.008429231 | BO73: 0.008324167 | BP73: 0.008220412 | BQ73: 0.008117949 | BR73: 0.008016764 | BS73: 0.00791684 | BT73: 0.007818161 | BU73: 0.007720711 | BV73: 0.007624476 | BW73: 0.007529441 | BX73: 0.007435589 | BY73: 0.007342908 | BZ73: 0.007251381 | CA73: 0.007160995 | CB73: 0.007071736 | CC73: 0.006983589 | CD73: 0.00689654 | CE73: 0.006810576 | CF73: 0.006725684 | CG73: 0.00664185 | CH73: 0.00655906 | CI73: 0.006477302 | CJ73: 0.006396564 | CK73: 0.006316831 | CL73: 0.006238092 | CM73: 0.006160335 | CN73: 0.006083546 | CO73: 0.006007715 | CP73: 0.005932829 | CQ73: 0.005858876 | CR73: 0.005785845 | CS73: 0.005713724 | CT73: 0.005642501 | CU73: 0.005572167 | CV73: 0.005502709 | CW73: 0.005434117 | CX73: 0.00536638 | CY73: 0.005299487 | CZ73: 0.005233427 | DA73: 0.005168192 | DB73: 0.005103769 | DC73: 0.005040149 | DD73: 0.004977322 | DE73: 0.004915278 | DF73: 0.004854007 | DG73: 0.004793501 | DH73: 0.004733748 | DI73: 0.00467474 | DJ73: 0.004616467 | DK73: 0.004558921 | DL73: 0.004502092 | DM73: 0.004445972 | DN73: 0.00439055 | DO73: 0.00433582 | DP73: 0.004281772 | DQ73: 0.004228397 | DR73: 0.004175688 | DS73: 0.004123636
A74: 0.028778 | B74: 0.027701 | C74: 0.028032 | D74: 0.026514605 | E74: 0.025230208 | F74: 0.024242726 | G74: 0.024297158 | H74: 0.022439127 | I74: 0.023070525 | J74: 0.021679501 | K74: 0.021673184 | L74: 0.02103156 | M74: 0.020253071 | N74: 0.019891798 | O74: 0.01907249 | P74: 0.019815998 | Q74: 0.017818573 | R74: 0.017688446 | S74: 0.017028134 | T74: 0.016444342 | U74: 0.016137333 | V74: 0.015600122 | W74: 0.015795099 | X74: 0.015579951 | Y74: 0.015059131 | Z74: 0.015106292 | AA74: 0.0149939 | AB74: 0.014303974 | AC74: 0.014306176 | AD74: 0.013930082 | AE74: 0.013658208 | AF74: 0.013355817 | AG74: 0.012422992 | AH74: 0.011962494 | AI74: 0.01191832 | AJ74: 0.011576509 | AK74: 0.011444301 | AL74: 0.011125366 | AM74: 0.011120361 | AN74: 0.010767763 | AO74: 0.01078143 | AP74: 0.010776739 | AQ74: 0.01087744 | AR74: 0.010985928 | AS74: 0.010757595 | AT74: 0.010720821 | AU74: 0.010596002 | AV74: 0.010838999 | AW74: 0.011048204 | AX74: 0.011089138 | AY74: 0.010589178 | AZ74: 0.010572232 | BA74: 0.010555314 | BB74: 0.010538423 | BC74: 0.010521559 | BD74: 0.010504722 | BE74: 0.010373795 | BF74: 0.010244499 | BG74: 0.010116814 | BH74: 0.009990721 | BI74: 0.009866199 | BJ74: 0.009743228 | BK74: 0.00962179 | BL74: 0.009501865 | BM74: 0.009383434 | BN74: 0.009266479 | BO74: 0.009150982 | BP74: 0.009036924 | BQ74: 0.008924287 | BR74: 0.008813054 | BS74: 0.008703207 | BT74: 0.008594728 | BU74: 0.008487602 | BV74: 0.00838181 | BW74: 0.008277337 | BX74: 0.008174166 | BY74: 0.00807228 | BZ74: 0.007971665 | CA74: 0.007872303 | CB74: 0.007774179 | CC74: 0.007677278 | CD74: 0.007581585 | CE74: 0.007487084 | CF74: 0.007393761 | CG74: 0.007301601 | CH74: 0.00721059 | CI74: 0.007120712 | CJ74: 0.007031955 | CK74: 0.006944304 | CL74: 0.006857746 | CM74: 0.006772266 | CN74: 0.006687851 | CO74: 0.006604489 | CP74: 0.006522165 | CQ74: 0.006440867 | CR74: 0.006360583 | CS74: 0.006281299 | CT74: 0.006203003 | CU74: 0.006125683 | CV74: 0.006049327 | CW74: 0.005973922 | CX74: 0.005899458 | CY74: 0.005825921 | CZ74: 0.005753301 | DA74: 0.005681585 | DB74: 0.005610764 | DC74: 0.005540825 | DD74: 0.005471758 | DE74: 0.005403552 | DF74: 0.005336196 | DG74: 0.005269679 | DH74: 0.005203992 | DI74: 0.005139123 | DJ74: 0.005075062 | DK74: 0.005011801 | DL74: 0.004949327 | DM74: 0.004887632 | DN74: 0.004826706 | DO74: 0.00476654 | DP74: 0.004707123 | DQ74: 0.004648447 | DR74: 0.004590503 | DS74: 0.00453328
A75: 0.030389 | B75: 0.030987 | C75: 0.030198854 | D75: 0.029069283 | E75: 0.027504629 | F75: 0.0268667 | G75: 0.026354121 | H75: 0.025940771 | I75: 0.025045348 | J75: 0.024301166 | K75: 0.023975829 | L75: 0.023289145 | M75: 0.023036711 | N75: 0.021317838 | O75: 0.02018914 | P75: 0.020505571 | Q75: 0.019598693 | R75: 0.019162553 | S75: 0.018638856 | T75: 0.017888547 | U75: 0.017578521 | V75: 0.017613764 | W75: 0.017635349 | X75: 0.017187263 | Y75: 0.016636144 | Z75: 0.016696041 | AA75: 0.016098879 | AB75: 0.015651865 | AC75: 0.015360071 | AD75: 0.015279356 | AE75: 0.014483871 | AF75: 0.013843044 | AG75: 0.013589038 | AH75: 0.012867499 | AI75: 0.01329616 | AJ75: 0.012775735 | AK75: 0.012506276 | AL75: 0.012345367 | AM75: 0.012184445 | AN75: 0.01204382 | AO75: 0.011788105 | AP75: 0.011525578 | AQ75: 0.011857448 | AR75: 0.01185432 | AS75: 0.011605985 | AT75: 0.011488059 | AU75: 0.011869688 | AV75: 0.011811246 | AW75: 0.011926988 | AX75: 0.011616227 | AY75: 0.011597638 | AZ75: 0.011579079 | BA75: 0.01156055 | BB75: 0.01154205 | BC75: 0.01152358 | BD75: 0.01150514 | BE75: 0.011361745 | BF75: 0.011220137 | BG75: 0.011080294 | BH75: 0.010942193 | BI75: 0.010805813 | BJ75: 0.010671132 | BK75: 0.01053813 | BL75: 0.010406785 | BM75: 0.010277076 | BN75: 0.010148984 | BO75: 0.010022488 | BP75: 0.009897568 | BQ75: 0.009774205 | BR75: 0.009652379 | BS75: 0.009532072 | BT75: 0.009413263 | BU75: 0.009295935 | BV75: 0.009180069 | BW75: 0.009065647 | BX75: 0.008952651 | BY75: 0.008841063 | BZ75: 0.008730865 | CA75: 0.008622041 | CB75: 0.008514573 | CC75: 0.008408444 | CD75: 0.008303638 | CE75: 0.008200138 | CF75: 0.008097928 | CG75: 0.007996991 | CH75: 0.007897313 | CI75: 0.007798876 | CJ75: 0.007701667 | CK75: 0.007605668 | CL75: 0.007510867 | CM75: 0.007417246 | CN75: 0.007324793 | CO75: 0.007233491 | CP75: 0.007143328 | CQ75: 0.007054288 | CR75: 0.006966358 | CS75: 0.006879523 | CT75: 0.006793771 | CU75: 0.006709088 | CV75: 0.00662546 | CW75: 0.006542874 | CX75: 0.006461318 | CY75: 0.006380778 | CZ75: 0.006301242 | DA75: 0.006222697 | DB75: 0.006145131 | DC75: 0.006068531 | DD75: 0.005992887 | DE75: 0.005918185 | DF75: 0.005844414 | DG75: 0.005771563 | DH75: 0.00569962 | DI75: 0.005628573 | DJ75: 0.005558412 | DK75: 0.005489125 | DL75: 0.005420702 | DM75: 0.005353131 | DN75: 0.005286403 | DO75: 0.005220507 | DP75: 0.005155432 | DQ75: 0.005091168 | DR75: 0.005027704 | DS75: 0.004965032
A76: 0.035127 | B76: 0.033705484 | C76: 0.031532684 | D76: 0.031544202 | E76: 0.030554047 | F76: 0.030179107 | G76: 0.029879323 | H76: 0.027589877 | I76: 0.027825433 | J76: 0.026800847 | K76: 0.026230722 | L76: 0.025806382 | M76: 0.023873086 | N76: 0.023496223 | O76: 0.022243842 | P76: 0.022597623 | Q76: 0.021689247 | R76: 0.020715289 | S76: 0.020950358 | T76: 0.019670647 | U76: 0.020149688 | V76: 0.020117636 | W76: 0.019688999 | X76: 0.019361107 | Y76: 0.018490654 | Z76: 0.018058709 | AA76: 0.017921342 | AB76: 0.017532283 | AC76: 0.017257384 | AD76: 0.016535416 | AE76: 0.015558483 | AF76: 0.015159384 | AG76: 0.01481429 | AH76: 0.014236338 | AI76: 0.01438801 | AJ76: 0.013907725 | AK76: 0.013022168 | AL76: 0.013308843 | AM76: 0.013178062 | AN76: 0.012956175 | AO76: 0.012836913 | AP76: 0.012714467 | AQ76: 0.012738129 | AR76: 0.013034855 | AS76: 0.013149224 | AT76: 0.013334365 | AU76: 0.013623224 | AV76: 0.013043954 | AW76: 0.012826992 | AX76: 0.012806466 | AY76: 0.012785973 | AZ76: 0.012765514 | BA76: 0.012745086 | BB76: 0.012724692 | BC76: 0.01270433 | BD76: 0.012684001 | BE76: 0.012525918 | BF76: 0.012369806 | BG76: 0.012215638 | BH76: 0.012063391 | BI76: 0.011913042 | BJ76: 0.011764565 | BK76: 0.011617939 | BL76: 0.011473139 | BM76: 0.011330144 | BN76: 0.011188931 | BO76: 0.011049477 | BP76: 0.01091176 | BQ76: 0.01077576 | BR76: 0.010641454 | BS76: 0.010508822 | BT76: 0.010377843 | BU76: 0.010248496 | BV76: 0.01012076 | BW76: 0.009994616 | BX76: 0.009870044 | BY76: 0.009747025 | BZ76: 0.009625538 | CA76: 0.009505565 | CB76: 0.009387087 | CC76: 0.009270086 | CD76: 0.009154543 | CE76: 0.009040439 | CF76: 0.008927757 | CG76: 0.00881648 | CH76: 0.008706589 | CI76: 0.008598068 | CJ76: 0.008490899 | CK76: 0.008385066 | CL76: 0.008280551 | CM76: 0.008177339 | CN76: 0.008075413 | CO76: 0.007974758 | CP76: 0.007875356 | CQ76: 0.007777194 | CR76: 0.007680255 | CS76: 0.007584524 | CT76: 0.007489986 | CU76: 0.007396626 | CV76: 0.007304429 | CW76: 0.007213382 | CX76: 0.007123469 | CY76: 0.007034677 | CZ76: 0.006946992 | DA76: 0.006860399 | DB76: 0.006774886 | DC76: 0.006690438 | DD76: 0.006607042 | DE76: 0.006524687 | DF76: 0.006443357 | DG76: 0.006363041 | DH76: 0.006283726 | DI76: 0.0062054 | DJ76: 0.006128049 | DK76: 0.006051663 | DL76: 0.005976229 | DM76: 0.005901735 | DN76: 0.005828169 | DO76: 0.005755521 | DP76: 0.005683777 | DQ76: 0.005612928 | DR76: 0.005542962 | DS76: 0.005473868
A77: 0.038876818 | B77: 0.036815585 | C77: 0.035854064 | D77: 0.034089041 | E77: 0.033244616 | F77: 0.0330956 | G77: 0.031737319 | H77: 0.032151944 | I77: 0.03127321 | J77: 0.029273695 | K77: 0.029389831 | L77: 0.027408107 | M77: 0.025759288 | N77: 0.026140637 | O77: 0.024502964 | P77: 0.024376642 | Q77: 0.023908921 | R77: 0.022956481 | S77: 0.023192605 | T77: 0.022065195 | U77: 0.022092272 | V77: 0.021753302 | W77: 0.021155294 | X77: 0.020986276 | Y77: 0.019785789 | Z77: 0.01942608 | AA77: 0.019524033 | AB77: 0.019343487 | AC77: 0.018370669 | AD77: 0.017244213 | AE77: 0.017184838 | AF77: 0.016642858 | AG77: 0.016363886 | AH77: 0.015880046 | AI77: 0.015592592 | AJ77: 0.015094533 | AK77: 0.014740959 | AL77: 0.014592623 | AM77: 0.014692301 | AN77: 0.014580753 | AO77: 0.01419597 | AP77: 0.014269731 | AQ77: 0.01393909 | AR77: 0.014180257 | AS77: 0.014956627 | AT77: 0.015347354 | AU77: 0.014591988 | AV77: 0.014197309 | AW77: 0.014174591 | AX77: 0.014151909 | AY77: 0.014129263 | AZ77: 0.014106654 | BA77: 0.014084081 | BB77: 0.014061544 | BC77: 0.014039043 | BD77: 0.014016578 | BE77: 0.013841888 | BF77: 0.013669375 | BG77: 0.013499011 | BH77: 0.01333077 | BI77: 0.013164625 | BJ77: 0.01300055 | BK77: 0.012838519 | BL77: 0.012678508 | BM77: 0.01252049 | BN77: 0.012364441 | BO77: 0.012210336 | BP77: 0.012058152 | BQ77: 0.011907864 | BR77: 0.011759449 | BS77: 0.011612883 | BT77: 0.011468143 | BU77: 0.011325207 | BV77: 0.011184052 | BW77: 0.011044655 | BX77: 0.010906996 | BY77: 0.010771052 | BZ77: 0.010636803 | CA77: 0.010504226 | CB77: 0.010373301 | CC77: 0.010244008 | CD77: 0.010116325 | CE77: 0.009990234 | CF77: 0.009865715 | CG77: 0.009742747 | CH77: 0.009621311 | CI77: 0.009501388 | CJ77: 0.009382961 | CK77: 0.009266008 | CL77: 0.009150514 | CM77: 0.009036458 | CN77: 0.008923824 | CO77: 0.008812594 | CP77: 0.00870275 | CQ77: 0.008594274 | CR77: 0.008487151 | CS77: 0.008381362 | CT77: 0.008276892 | CU77: 0.008173724 | CV77: 0.008071842 | CW77: 0.007971229 | CX77: 0.00787187 | CY77: 0.00777375 | CZ77: 0.007676852 | DA77: 0.007581162 | DB77: 0.007486664 | DC77: 0.007393345 | DD77: 0.007301188 | DE77: 0.00721018 | DF77: 0.007120306 | DG77: 0.007031552 | DH77: 0.006943904 | DI77: 0.006857349 | DJ77: 0.006771872 | DK77: 0.006687461 | DL77: 0.006604101 | DM77: 0.006521781 | DN77: 0.006440487 | DO77: 0.006360205 | DP77: 0.006280925 | DQ77: 0.006202632 | DR77: 0.006125316 | DS77: 0.006048963
A78: 0.041623691 | B78: 0.039529067 | C78: 0.038504239 | D78: 0.037895389 | E78: 0.038495749 | F78: 0.036557411 | G78: 0.036176879 | H78: 0.035016881 | I78: 0.034569462 | J78: 0.033266547 | K78: 0.031400426 | L78: 0.029738898 | M78: 0.028777712 | N78: 0.028672431 | O78: 0.0270525 | P78: 0.026684914 | Q78: 0.02637026 | R78: 0.025649088 | S78: 0.025115232 | T78: 0.024732853 | U78: 0.024720698 | V78: 0.023942519 | W78: 0.023697629 | X78: 0.0234207 | Y78: 0.022170138 | Z78: 0.022174247 | AA78: 0.021913466 | AB78: 0.02113426 | AC78: 0.019823303 | AD78: 0.019545895 | AE78: 0.01872465 | AF78: 0.01867469 | AG78: 0.018114272 | AH78: 0.018087249 | AI78: 0.017056837 | AJ78: 0.016945169 | AK78: 0.016803868 | AL78: 0.016298832 | AM78: 0.016359816 | AN78: 0.016463681 | AO78: 0.015693882 | AP78: 0.015896782 | AQ78: 0.015327432 | AR78: 0.0162582 | AS78: 0.016579931 | AT78: 0.016279918 | AU78: 0.0155521 | AV78: 0.015527216 | AW78: 0.015502371 | AX78: 0.015477565 | AY78: 0.0154528 | AZ78: 0.015428074 | BA78: 0.015403387 | BB78: 0.01537874 | BC78: 0.015354133 | BD78: 0.015329565 | BE78: 0.015133427 | BF78: 0.014939799 | BG78: 0.014748649 | BH78: 0.014559944 | BI78: 0.014373654 | BJ78: 0.014189747 | BK78: 0.014008193 | BL78: 0.013828962 | BM78: 0.013652025 | BN78: 0.013477352 | BO78: 0.013304913 | BP78: 0.013134681 | BQ78: 0.012966628 | BR78: 0.012800725 | BS78: 0.012636944 | BT78: 0.01247526 | BU78: 0.012315644 | BV78: 0.012158071 | BW78: 0.012002515 | BX78: 0.011848948 | BY78: 0.011697347 | BZ78: 0.011547686 | CA78: 0.01139994 | CB78: 0.011254085 | CC78: 0.011110097 | CD78: 0.010967951 | CE78: 0.010827623 | CF78: 0.010689092 | CG78: 0.010552334 | CH78: 0.010417325 | CI78: 0.010284045 | CJ78: 0.01015247 | CK78: 0.010022579 | CL78: 0.00989435 | CM78: 0.009767762 | CN78: 0.009642794 | CO78: 0.009519425 | CP78: 0.009397635 | CQ78: 0.009277404 | CR78: 0.009158712 | CS78: 0.009041538 | CT78: 0.008925864 | CU78: 0.00881167 | CV78: 0.008698938 | CW78: 0.008587649 | CX78: 0.008477783 | CY78: 0.008369324 | CZ78: 0.008262253 | DA78: 0.008156552 | DB78: 0.008052204 | DC78: 0.007949191 | DD78: 0.007847496 | DE78: 0.007747103 | DF78: 0.007647995 | DG78: 0.007550155 | DH78: 0.007453568 | DI78: 0.007358216 | DJ78: 0.007264085 | DK78: 0.007171158 | DL78: 0.007079421 | DM78: 0.006988858 | DN78: 0.006899453 | DO78: 0.006811193 | DP78: 0.006724063 | DQ78: 0.006638047 | DR78: 0.006553132 | DS78: 0.006469304
A79: 0.045426873 | B79: 0.043145762 | C79: 0.043216496 | D79: 0.042897682 | E79: 0.041933918 | F79: 0.041585852 | G79: 0.04079492 | H79: 0.038659249 | I79: 0.038615064 | J79: 0.035869917 | K79: 0.034962879 | L79: 0.032891033 | M79: 0.031678258 | N79: 0.031368313 | O79: 0.029683439 | P79: 0.030225979 | Q79: 0.029132524 | R79: 0.028650443 | S79: 0.028437175 | T79: 0.027178554 | U79: 0.027500002 | V79: 0.026282511 | W79: 0.026066873 | X79: 0.025277944 | Y79: 0.024882582 | Z79: 0.024899921 | AA79: 0.023089481 | AB79: 0.022630556 | AC79: 0.02196536 | AD79: 0.021295938 | AE79: 0.02094253 | AF79: 0.020433475 | AG79: 0.019784548 | AH79: 0.019803657 | AI79: 0.018775578 | AJ79: 0.018697454 | AK79: 0.017814196 | AL79: 0.018310978 | AM79: 0.018460359 | AN79: 0.018032116 | AO79: 0.017741418 | AP79: 0.017656123 | AQ79: 0.018083036 | AR79: 0.018748311 | AS79: 0.018016328 | AT79: 0.017434378 | AU79: 0.017406486 | AV79: 0.017378638 | AW79: 0.017350834 | AX79: 0.017323075 | AY79: 0.01729536 | AZ79: 0.01726769 | BA79: 0.017240064 | BB79: 0.017212482 | BC79: 0.017184944 | BD79: 0.017157451 | BE79: 0.016929437 | BF79: 0.016704452 | BG79: 0.016482455 | BH79: 0.016263407 | BI79: 0.016047269 | BJ79: 0.015834002 | BK79: 0.015623568 | BL79: 0.015415929 | BM79: 0.015211048 | BN79: 0.01500889 | BO79: 0.014809417 | BP79: 0.014612593 | BQ79: 0.014418385 | BR79: 0.014226757 | BS79: 0.014037674 | BT79: 0.013851104 | BU79: 0.013667012 | BV79: 0.013485367 | BW79: 0.013306134 | BX79: 0.013129283 | BY79: 0.012954782 | BZ79: 0.012782599 | CA79: 0.012612704 | CB79: 0.012445066 | CC79: 0.012279656 | CD79: 0.012116443 | CE79: 0.011955399 | CF79: 0.011796495 | CG79: 0.011639703 | CH79: 0.011484994 | CI79: 0.01133234 | CJ79: 0.011181715 | CK79: 0.011033092 | CL79: 0.010886444 | CM79: 0.010741744 | CN79: 0.010598967 | CO79: 0.010458088 | CP79: 0.01031908 | CQ79: 0.01018192 | CR79: 0.010046583 | CS79: 0.009913044 | CT79: 0.00978128 | CU79: 0.009651266 | CV79: 0.009522981 | CW79: 0.0093964 | CX79: 0.009271502 | CY79: 0.009148264 | CZ79: 0.009026663 | DA79: 0.008906679 | DB79: 0.008788289 | DC79: 0.008671472 | DD79: 0.008556208 | DE79: 0.008442476 | DF79: 0.008330256 | DG79: 0.008219527 | DH79: 0.008110269 | DI79: 0.008002464 | DJ79: 0.007896091 | DK79: 0.007791133 | DL79: 0.007687569 | DM79: 0.007585382 | DN79: 0.007484553 | DO79: 0.007385064 | DP79: 0.007286897 | DQ79: 0.007190036 | DR79: 0.007094461 | DS79: 0.007000157
A80: 0.049221437 | B80: 0.047850591 | C80: 0.049105442 | D80: 0.048034679 | E80: 0.04679442 | F80: 0.045277247 | G80: 0.04515513 | H80: 0.043484948 | I80: 0.040555016 | J80: 0.039605177 | K80: 0.038267701 | L80: 0.036497918 | M80: 0.0351815 | N80: 0.033867483 | O80: 0.033066592 | P80: 0.033582668 | Q80: 0.031830155 | R80: 0.031677877 | S80: 0.031351177 | T80: 0.030163859 | U80: 0.030303064 | V80: 0.029782027 | W80: 0.028789534 | X80: 0.028231405 | Y80: 0.02879538 | Z80: 0.02710608 | AA80: 0.025294896 | AB80: 0.024824332 | AC80: 0.024408716 | AD80: 0.023685358 | AE80: 0.023145949 | AF80: 0.022454248 | AG80: 0.021691551 | AH80: 0.021731217 | AI80: 0.020952114 | AJ80: 0.020558129 | AK80: 0.019931982 | AL80: 0.020545099 | AM80: 0.020393848 | AN80: 0.020207918 | AO80: 0.019727462 | AP80: 0.020577505 | AQ80: 0.020974097 | AR80: 0.019974349 | AS80: 0.019539457 | AT80: 0.019508199 | AU80: 0.019476991 | AV80: 0.019445832 | AW80: 0.019414724 | AX80: 0.019383665 | AY80: 0.019352656 | AZ80: 0.019321696 | BA80: 0.019290786 | BB80: 0.019259926 | BC80: 0.019229115 | BD80: 0.019198353 | BE80: 0.018936859 | BF80: 0.018678924 | BG80: 0.018424501 | BH80: 0.018173541 | BI80: 0.017925998 | BJ80: 0.017681824 | BK80: 0.017440975 | BL80: 0.017203404 | BM80: 0.016969068 | BN80: 0.016737922 | BO80: 0.016509923 | BP80: 0.016285028 | BQ80: 0.016063196 | BR80: 0.015844383 | BS80: 0.01562855 | BT80: 0.015415656 | BU80: 0.01520566 | BV80: 0.014998524 | BW80: 0.014794208 | BX80: 0.014592674 | BY80: 0.014393885 | BZ80: 0.014197802 | CA80: 0.01400439 | CB80: 0.013813611 | CC80: 0.013625431 | CD80: 0.013439813 | CE80: 0.013256722 | CF80: 0.013076125 | CG80: 0.012897988 | CH80: 0.012722276 | CI80: 0.012548958 | CJ80: 0.012378 | CK80: 0.01220937 | CL80: 0.012043036 | CM80: 0.011878968 | CN80: 0.011717135 | CO80: 0.011557506 | CP80: 0.01140005 | CQ80: 0.01124474 | CR80: 0.011091544 | CS80: 0.010940436 | CT80: 0.010791385 | CU80: 0.010644364 | CV80: 0.010499346 | CW80: 0.010356304 | CX80: 0.010215209 | CY80: 0.010076037 | CZ80: 0.00993876 | DA80: 0.009803353 | DB80: 0.009669791 | DC80: 0.009538047 | DD80: 0.009408099 | DE80: 0.00927992 | DF80: 0.009153488 | DG80: 0.009028777 | DH80: 0.008905766 | DI80: 0.00878443 | DJ80: 0.008664747 | DK80: 0.008546694 | DL80: 0.00843025 | DM80: 0.008315392 | DN80: 0.008202098 | DO80: 0.008090348 | DP80: 0.00798012 | DQ80: 0.007871394 | DR80: 0.007764149 | DS80: 0.007658365
A81: 0.055009793 | B81: 0.055053112 | C81: 0.053315762 | D81: 0.053999377 | E81: 0.051796729 | F81: 0.051074172 | G81: 0.049490189 | H81: 0.046541605 | I81: 0.045014596 | J81: 0.043692152 | K81: 0.041941786 | L81: 0.040811219 | M81: 0.038844044 | N81: 0.038092185 | O81: 0.036638283 | P81: 0.036907291 | Q81: 0.036151901 | R81: 0.035270251 | S81: 0.035037189 | T81: 0.034813229 | U81: 0.034979282 | V81: 0.033225808 | W81: 0.03261974 | X81: 0.032476675 | Y81: 0.031018587 | Z81: 0.02956583 | AA81: 0.028596802 | AB81: 0.027657386 | AC81: 0.027209794 | AD81: 0.027041122 | AE81: 0.026072119 | AF81: 0.025468379 | AG81: 0.024632454 | AH81: 0.024685046 | AI81: 0.023181235 | AJ81: 0.023322383 | AK81: 0.023082338 | AL81: 0.023070419 | AM81: 0.022639584 | AN81: 0.022149649 | AO81: 0.023097766 | AP81: 0.023716191 | AQ81: 0.022904412 | AR81: 0.022238371 | AS81: 0.022202799 | AT81: 0.022167284 | AU81: 0.022131825 | AV81: 0.022096423 | AW81: 0.022061078 | AX81: 0.022025789 | AY81: 0.021990557 | AZ81: 0.021955381 | BA81: 0.021920261 | BB81: 0.021885197 | BC81: 0.02185019 | BD81: 0.021815238 | BE81: 0.021507274 | BF81: 0.021203654 | BG81: 0.020904319 | BH81: 0.020609207 | BI81: 0.020318259 | BJ81: 0.020031417 | BK81: 0.019748622 | BL81: 0.019469818 | BM81: 0.019194949 | BN81: 0.018923958 | BO81: 0.018656792 | BP81: 0.018393396 | BQ81: 0.018133718 | BR81: 0.017877704 | BS81: 0.017625304 | BT81: 0.017376466 | BU81: 0.017131141 | BV81: 0.016889277 | BW81: 0.016650828 | BX81: 0.016415744 | BY81: 0.016183979 | BZ81: 0.015955485 | CA81: 0.015730216 | CB81: 0.015508128 | CC81: 0.015289174 | CD81: 0.015073311 | CE81: 0.014860495 | CF81: 0.014650684 | CG81: 0.014443834 | CH81: 0.014239905 | CI81: 0.014038854 | CJ81: 0.013840642 | CK81: 0.013645228 | CL81: 0.013452573 | CM81: 0.013262638 | CN81: 0.013075384 | CO81: 0.012890774 | CP81: 0.012708771 | CQ81: 0.012529337 | CR81: 0.012352436 | CS81: 0.012178033 | CT81: 0.012006093 | CU81: 0.01183658 | CV81: 0.01166946 | CW81: 0.0115047 | CX81: 0.011342267 | CY81: 0.011182127 | CZ81: 0.011024248 | DA81: 0.010868598 | DB81: 0.010715147 | DC81: 0.010563861 | DD81: 0.010414712 | DE81: 0.010267669 | DF81: 0.010122703 | DG81: 0.009979783 | DH81: 0.009838882 | DI81: 0.00969997 | DJ81: 0.009563019 | DK81: 0.009428003 | DL81: 0.009294893 | DM81: 0.009163662 | DN81: 0.009034285 | DO81: 0.008906734 | DP81: 0.008780985 | DQ81: 0.008657012 | DR81: 0.008534789 | DS81: 0.008414292
A82: 0.063134127 | B82: 0.059832114 | C82: 0.060740181 | D82: 0.058861459 | E82: 0.058082274 | F82: 0.056889082 | G82: 0.053824927 | H82: 0.051654697 | I82: 0.049898612 | J82: 0.047765487 | K82: 0.046795398 | L82: 0.045383174 | M82: 0.043990678 | N82: 0.043345252 | O82: 0.041577801 | P82: 0.04251526 | Q82: 0.041008871 | R82: 0.040009227 | S82: 0.040890995 | T82: 0.038449398 | U82: 0.038235319 | V82: 0.03702123 | W82: 0.037073593 | X82: 0.034841573 | Y82: 0.033152088 | Z82: 0.032331992 | AA82: 0.031428566 | AB82: 0.030779721 | AC82: 0.030305163 | AD82: 0.030163822 | AE82: 0.028823923 | AF82: 0.028681661 | AG82: 0.028540351 | AH82: 0.027293425 | AI82: 0.026686661 | AJ82: 0.026822381 | AK82: 0.026481616 | AL82: 0.026007296 | AM82: 0.026266304 | AN82: 0.026513848 | AO82: 0.027514148 | AP82: 0.025864536 | AQ82: 0.02504597 | AR82: 0.025005903 | AS82: 0.0249659 | AT82: 0.024925961 | AU82: 0.024886086 | AV82: 0.024846275 | AW82: 0.024806527 | AX82: 0.024766843 | AY82: 0.024727223 | AZ82: 0.024687665 | BA82: 0.024648171 | BB82: 0.02460874 | BC82: 0.024569373 | BD82: 0.024530068 | BE82: 0.024170506 | BF82: 0.023816211 | BG82: 0.023467107 | BH82: 0.023123116 | BI82: 0.022784165 | BJ82: 0.022450179 | BK82: 0.022121086 | BL82: 0.021796814 | BM82: 0.021477293 | BN82: 0.021162454 | BO82: 0.020852227 | BP82: 0.020546545 | BQ82: 0.020245343 | BR82: 0.019948554 | BS82: 0.019656113 | BT82: 0.019367958 | BU82: 0.019084025 | BV82: 0.018804252 | BW82: 0.018528579 | BX82: 0.018256946 | BY82: 0.017989294 | BZ82: 0.017725563 | CA82: 0.017465698 | CB82: 0.017209641 | CC82: 0.016957337 | CD82: 0.01670873 | CE82: 0.016463767 | CF82: 0.016222393 | CG82: 0.015984558 | CH82: 0.015750208 | CI82: 0.015519293 | CJ82: 0.015291762 | CK82: 0.015067567 | CL82: 0.014846657 | CM82: 0.014628985 | CN82: 0.014414504 | CO82: 0.014203167 | CP82: 0.013994927 | CQ82: 0.01378974 | CR82: 0.01358756 | CS82: 0.013388344 | CT82: 0.013192049 | CU82: 0.01299863 | CV82: 0.012808047 | CW82: 0.012620258 | CX82: 0.012435222 | CY82: 0.012252898 | CZ82: 0.012073247 | DA82: 0.011896229 | DB82: 0.011721807 | DC82: 0.011549941 | DD82: 0.011380595 | DE82: 0.011213732 | DF82: 0.011049315 | DG82: 0.010887308 | DH82: 0.010727676 | DI82: 0.010570385 | DJ82: 0.0104154 | DK82: 0.010262687 | DL82: 0.010112212 | DM82: 0.009963944 | DN82: 0.00981785 | DO82: 0.009673898 | DP82: 0.009532056 | DQ82: 0.009392293 | DR82: 0.00925458 | DS82: 0.009118886
A83: 0.069284392 | B83: 0.068869209 | C83: 0.067451052 | D83: 0.066464201 | E83: 0.066089541 | F83: 0.059958602 | G83: 0.059003334 | H83: 0.056817951 | I83: 0.054636795 | J83: 0.053258637 | K83: 0.051143934 | L83: 0.049676207 | M83: 0.048121329 | N83: 0.047875459 | O83: 0.046629066 | P83: 0.047268158 | Q83: 0.045977686 | R83: 0.045899481 | S83: 0.045193221 | T83: 0.042872066 | U83: 0.043486852 | V83: 0.042991546 | W83: 0.040548859 | X83: 0.037906079 | Y83: 0.037989019 | Z83: 0.035277617 | AA83: 0.036032542 | AB83: 0.034967303 | AC83: 0.034802395 | AD83: 0.033639287 | AE83: 0.032942432 | AF83: 0.032581128 | AG83: 0.031165832 | AH83: 0.031427239 | AI83: 0.030826056 | AJ83: 0.030706961 | AK83: 0.029957029 | AL83: 0.029389255 | AM83: 0.030893903 | AN83: 0.031180631 | AO83: 0.029846941 | AP83: 0.028152199 | AQ83: 0.028107176 | AR83: 0.028062226 | AS83: 0.028017347 | AT83: 0.02797254 | AU83: 0.027927804 | AV83: 0.02788314 | AW83: 0.027838548 | AX83: 0.027794026 | AY83: 0.027749576 | AZ83: 0.027705197 | BA83: 0.027660889 | BB83: 0.027616651 | BC83: 0.027572484 | BD83: 0.027528388 | BE83: 0.027112274 | BF83: 0.026702443 | BG83: 0.026298802 | BH83: 0.025901256 | BI83: 0.025509714 | BJ83: 0.025124086 | BK83: 0.024744283 | BL83: 0.024370216 | BM83: 0.024001799 | BN83: 0.023638948 | BO83: 0.023281577 | BP83: 0.022929605 | BQ83: 0.02258295 | BR83: 0.022241532 | BS83: 0.021905272 | BT83: 0.021574093 | BU83: 0.021247917 | BV83: 0.020926669 | BW83: 0.020610275 | BX83: 0.020298661 | BY83: 0.019991756 | BZ83: 0.019689489 | CA83: 0.019391788 | CB83: 0.019098587 | CC83: 0.018809816 | CD83: 0.018525409 | CE83: 0.0182453 | CF83: 0.017969425 | CG83: 0.017697718 | CH83: 0.017430118 | CI83: 0.017166562 | CJ83: 0.01690699 | CK83: 0.016651341 | CL83: 0.016399556 | CM83: 0.016151576 | CN83: 0.015907345 | CO83: 0.015666805 | CP83: 0.015429901 | CQ83: 0.015196578 | CR83: 0.014966782 | CS83: 0.01474046 | CT83: 0.014517559 | CU83: 0.014298027 | CV83: 0.014081814 | CW83: 0.01386887 | CX83: 0.013659145 | CY83: 0.01345259 | CZ83: 0.013249158 | DA83: 0.013048802 | DB83: 0.012851474 | DC83: 0.01265713 | DD83: 0.012465725 | DE83: 0.012277212 | DF83: 0.012091551 | DG83: 0.011908696 | DH83: 0.011728606 | DI83: 0.011551238 | DJ83: 0.011376553 | DK83: 0.011204509 | DL83: 0.011035066 | DM83: 0.010868185 | DN83: 0.010703827 | DO83: 0.010541955 | DP83: 0.01038253 | DQ83: 0.010225516 | DR83: 0.010070876 | DS83: 0.009918574
A84: 0.077397948 | B84: 0.076037565 | C84: 0.075149452 | D84: 0.074619085 | E84: 0.068418602 | F84: 0.066818806 | G84: 0.065199939 | H84: 0.062555239 | I84: 0.061751741 | J84: 0.058932695 | K84: 0.057983749 | L84: 0.055092894 | M84: 0.054312076 | N84: 0.05463665 | O84: 0.052894523 | P84: 0.053573131 | Q84: 0.05380233 | R84: 0.051344087 | S84: 0.049635894 | T84: 0.04907293 | U84: 0.050041652 | V84: 0.046837856 | W84: 0.043087071 | X84: 0.043453292 | Y84: 0.040882039 | Z84: 0.040510483 | AA84: 0.040486067 | AB84: 0.039425701 | AC84: 0.038808848 | AD84: 0.037766897 | AE84: 0.037619311 | AF84: 0.035828635 | AG84: 0.035081719 | AH84: 0.036022622 | AI84: 0.034535811 | AJ84: 0.033896793 | AK84: 0.033786752 | AL84: 0.034501263 | AM84: 0.03532053 | AN84: 0.033630351 | AO84: 0.031872886 | AP84: 0.031376735 | AQ84: 0.031326556 | AR84: 0.031276457 | AS84: 0.031226439 | AT84: 0.0311765 | AU84: 0.031126641 | AV84: 0.031076862 | AW84: 0.031027162 | AX84: 0.030977542 | AY84: 0.030928001 | AZ84: 0.03087854 | BA84: 0.030829157 | BB84: 0.030779853 | BC84: 0.030730628 | BD84: 0.030681482 | BE84: 0.030203856 | BF84: 0.029733659 | BG84: 0.029270774 | BH84: 0.028815087 | BI84: 0.028366488 | BJ84: 0.027924866 | BK84: 0.027490112 | BL84: 0.027062121 | BM84: 0.026640788 | BN84: 0.026226008 | BO84: 0.025817681 | BP84: 0.025415706 | BQ84: 0.025019985 | BR84: 0.02463042 | BS84: 0.024246915 | BT84: 0.023869378 | BU84: 0.023497714 | BV84: 0.023131834 | BW84: 0.022771646 | BX84: 0.022417063 | BY84: 0.022067998 | BZ84: 0.021724364 | CA84: 0.021386078 | CB84: 0.021053056 | CC84: 0.020725217 | CD84: 0.020402479 | CE84: 0.020084765 | CF84: 0.019771995 | CG84: 0.019464093 | CH84: 0.019160984 | CI84: 0.018862592 | CJ84: 0.018568844 | CK84: 0.018279669 | CL84: 0.017994995 | CM84: 0.017714752 | CN84: 0.017438871 | CO84: 0.017167284 | CP84: 0.016899926 | CQ84: 0.016636729 | CR84: 0.01637763 | CS84: 0.016122564 | CT84: 0.015871469 | CU84: 0.015624283 | CV84: 0.015380945 | CW84: 0.015141396 | CX84: 0.014905576 | CY84: 0.014673427 | CZ84: 0.014444893 | DA84: 0.014219918 | DB84: 0.013998444 | DC84: 0.01378042 | DD84: 0.01356579 | DE84: 0.013354502 | DF84: 0.013146503 | DG84: 0.012941744 | DH84: 0.012740173 | DI84: 0.01254174 | DJ84: 0.012346398 | DK84: 0.012154097 | DL84: 0.01196479 | DM84: 0.011778432 | DN84: 0.011594975 | DO84: 0.011414376 | DP84: 0.011236588 | DQ84: 0.01106157 | DR84: 0.010889276 | DS84: 0.010719666
A85: 0.085440769 | B85: 0.082919316 | C85: 0.083433964 | D85: 0.077630018 | E85: 0.07499796 | F85: 0.074326242 | G85: 0.071499492 | H85: 0.07057334 | I85: 0.068221316 | J85: 0.066169871 | K85: 0.064123066 | L85: 0.062636333 | M85: 0.062494536 | N85: 0.06165306 | O85: 0.060319946 | P85: 0.061802269 | Q85: 0.059114929 | R85: 0.056560209 | S85: 0.056063392 | T85: 0.056402734 | U85: 0.053619353 | V85: 0.050180769 | W85: 0.048726876 | X85: 0.047094649 | Y85: 0.046900799 | Z85: 0.046387882 | AA85: 0.046080524 | AB85: 0.043980114 | AC85: 0.044520732 | AD85: 0.043422397 | AE85: 0.041900465 | AF85: 0.041291401 | AG85: 0.040813185 | AH85: 0.040748225 | AI85: 0.039255693 | AJ85: 0.038852384 | AK85: 0.040081019 | AL85: 0.040622553 | AM85: 0.038705071 | AN85: 0.036871094 | AO85: 0.036293606 | AP85: 0.035725155 | AQ85: 0.035668038 | AR85: 0.035611011 | AS85: 0.035554076 | AT85: 0.035497232 | AU85: 0.035440478 | AV85: 0.035383815 | AW85: 0.035327243 | AX85: 0.035270761 | AY85: 0.035214369 | AZ85: 0.035158067 | BA85: 0.035101855 | BB85: 0.035045733 | BC85: 0.0349897 | BD85: 0.034933757 | BE85: 0.034386584 | BF85: 0.033847973 | BG85: 0.033317792 | BH85: 0.032795908 | BI85: 0.032282192 | BJ85: 0.031776516 | BK85: 0.031278754 | BL85: 0.030788784 | BM85: 0.030306482 | BN85: 0.02983173 | BO85: 0.02936441 | BP85: 0.028904404 | BQ85: 0.028451599 | BR85: 0.028005882 | BS85: 0.027567143 | BT85: 0.027135273 | BU85: 0.026710163 | BV85: 0.026291708 | BW85: 0.025879805 | BX85: 0.025474351 | BY85: 0.025075245 | BZ85: 0.024682387 | CA85: 0.024295681 | CB85: 0.023915029 | CC85: 0.023540338 | CD85: 0.023171513 | CE85: 0.022808464 | CF85: 0.0224511 | CG85: 0.022099331 | CH85: 0.021753071 | CI85: 0.021412234 | CJ85: 0.021076734 | CK85: 0.020746487 | CL85: 0.020421413 | CM85: 0.02010143 | CN85: 0.019786457 | CO85: 0.019476418 | CP85: 0.019171234 | CQ85: 0.01887083 | CR85: 0.018575131 | CS85: 0.018284063 | CT85: 0.017997554 | CU85: 0.017715532 | CV85: 0.017437928 | CW85: 0.017164672 | CX85: 0.016895696 | CY85: 0.016630933 | CZ85: 0.016370317 | DA85: 0.016113784 | DB85: 0.015861269 | DC85: 0.015612709 | DD85: 0.015368043 | DE85: 0.01512721 | DF85: 0.014890149 | DG85: 0.014656802 | DH85: 0.01442711 | DI85: 0.014201017 | DJ85: 0.013978466 | DK85: 0.013759401 | DL85: 0.013543768 | DM85: 0.013331513 | DN85: 0.013122583 | DO85: 0.012916927 | DP85: 0.012714492 | DQ85: 0.012515229 | DR85: 0.012319088 | DS85: 0.01212602
A86: 0.094030735 | B86: 0.091359669 | C86: 0.087357164 | D86: 0.084496826 | E86: 0.083234986 | F86: 0.081518257 | G86: 0.079080429 | H86: 0.077027825 | I86: 0.075971989 | J86: 0.073050136 | K86: 0.070733797 | L86: 0.070949272 | M86: 0.069573702 | N86: 0.068660401 | O86: 0.067654825 | P86: 0.06885856 | Q86: 0.066093287 | R86: 0.064369865 | S86: 0.066001972 | T86: 0.061407285 | U86: 0.05838646 | V86: 0.056814892 | W86: 0.054403982 | X86: 0.053531707 | Y86: 0.053995579 | Z86: 0.052472236 | AA86: 0.050948328 | AB86: 0.050349434 | AC86: 0.050875479 | AD86: 0.047740665 | AE86: 0.047977228 | AF86: 0.048227201 | AG86: 0.046726776 | AH86: 0.045649145 | AI86: 0.044943873 | AJ86: 0.046291408 | AK86: 0.046870832 | AL86: 0.044789279 | AM86: 0.042572717 | AN86: 0.041921921 | AO86: 0.041281069 | AP86: 0.04065001 | AQ86: 0.040585031 | AR86: 0.040520156 | AS86: 0.040455384 | AT86: 0.040390716 | AU86: 0.040326151 | AV86: 0.040261689 | AW86: 0.04019733 | AX86: 0.040133074 | AY86: 0.04006892 | AZ86: 0.040004869 | BA86: 0.03994092 | BB86: 0.039877073 | BC86: 0.039813328 | BD86: 0.039749685 | BE86: 0.039142017 | BF86: 0.038543635 | BG86: 0.037954396 | BH86: 0.037374162 | BI86: 0.036802795 | BJ86: 0.03624016 | BK86: 0.035686123 | BL86: 0.035140552 | BM86: 0.03460332 | BN86: 0.034074297 | BO86: 0.03355336 | BP86: 0.033040384 | BQ86: 0.032535247 | BR86: 0.032037831 | BS86: 0.031548018 | BT86: 0.03106569 | BU86: 0.030590734 | BV86: 0.030123038 | BW86: 0.02966249 | BX86: 0.029208981 | BY86: 0.028762403 | BZ86: 0.028322652 | CA86: 0.027889622 | CB86: 0.027463211 | CC86: 0.027043317 | CD86: 0.026629842 | CE86: 0.026222687 | CF86: 0.025821756 | CG86: 0.025426953 | CH86: 0.025038185 | CI86: 0.024655359 | CJ86: 0.024278386 | CK86: 0.023907175 | CL86: 0.023541639 | CM86: 0.02318169 | CN86: 0.022827244 | CO86: 0.022478216 | CP86: 0.022134524 | CQ86: 0.021796086 | CR86: 0.021462822 | CS86: 0.021134652 | CT86: 0.0208115 | CU86: 0.020493287 | CV86: 0.020179939 | CW86: 0.019871382 | CX86: 0.019567542 | CY86: 0.019268347 | CZ86: 0.018973726 | DA86: 0.018683609 | DB86: 0.018397928 | DC86: 0.018116614 | DD86: 0.017839602 | DE86: 0.017566824 | DF86: 0.017298217 | DG86: 0.017033716 | DH86: 0.01677326 | DI86: 0.016516786 | DJ86: 0.016264233 | DK86: 0.016015541 | DL86: 0.015770651 | DM86: 0.015529506 | DN86: 0.015292048 | DO86: 0.01505822 | DP86: 0.014827968 | DQ86: 0.014601236 | DR86: 0.014377971 | DS86: 0.014158119
A87: 0.106247873 | B87: 0.096409538 | C87: 0.094806865 | D87: 0.094044984 | E87: 0.091666173 | F87: 0.090033501 | G87: 0.086746493 | H87: 0.086538003 | I87: 0.084060785 | J87: 0.08125539 | K87: 0.081089531 | L87: 0.079912046 | M87: 0.078716717 | N87: 0.079145062 | O87: 0.07625686 | P87: 0.075869906 | Q87: 0.074169973 | R87: 0.073729235 | S87: 0.07118808 | T87: 0.067664054 | U87: 0.065864793 | V87: 0.062889542 | W87: 0.062977472 | X87: 0.0614987 | Y87: 0.061231275 | Z87: 0.059097851 | AA87: 0.05859083 | AB87: 0.059141154 | AC87: 0.056406357 | AD87: 0.055812298 | AE87: 0.05514864 | AF87: 0.054960867 | AG87: 0.052476299 | AH87: 0.052113899 | AI87: 0.053645633 | AJ87: 0.05417453 | AK87: 0.051673852 | AL87: 0.049137194 | AM87: 0.0484188 | AN87: 0.047710913 | AO87: 0.047013378 | AP87: 0.046326045 | AQ87: 0.046252007 | AR87: 0.046178086 | AS87: 0.046104284 | AT87: 0.046030599 | AU87: 0.045957032 | AV87: 0.045883583 | AW87: 0.04581025 | AX87: 0.045737035 | AY87: 0.045663936 | AZ87: 0.045590954 | BA87: 0.045518089 | BB87: 0.04544534 | BC87: 0.045372707 | BD87: 0.045300189 | BE87: 0.044637891 | BF87: 0.043985279 | BG87: 0.043342211 | BH87: 0.042708547 | BI87: 0.042084151 | BJ87: 0.041468887 | BK87: 0.04086262 | BL87: 0.040265219 | BM87: 0.039676556 | BN87: 0.0390965 | BO87: 0.038524928 | BP87: 0.037961715 | BQ87: 0.037406737 | BR87: 0.036859876 | BS87: 0.036321012 | BT87: 0.035790028 | BU87: 0.035266809 | BV87: 0.034751242 | BW87: 0.034243214 | BX87: 0.033742615 | BY87: 0.033249337 | BZ87: 0.032763271 | CA87: 0.032284314 | CB87: 0.031812361 | CC87: 0.031347309 | CD87: 0.030889058 | CE87: 0.030437508 | CF87: 0.02999256 | CG87: 0.02955412 | CH87: 0.02912209 | CI87: 0.028696378 | CJ87: 0.028276891 | CK87: 0.027863538 | CL87: 0.02745623 | CM87: 0.027054877 | CN87: 0.026659394 | CO87: 0.026269693 | CP87: 0.02588569 | CQ87: 0.025507303 | CR87: 0.025134449 | CS87: 0.024767046 | CT87: 0.024405016 | CU87: 0.02404828 | CV87: 0.023696759 | CW87: 0.023350379 | CX87: 0.023009064 | CY87: 0.022672739 | CZ87: 0.022341332 | DA87: 0.022014771 | DB87: 0.021692985 | DC87: 0.021375904 | DD87: 0.021063459 | DE87: 0.020755583 | DF87: 0.020452209 | DG87: 0.02015327 | DH87: 0.019858702 | DI87: 0.019568441 | DJ87: 0.019282425 | DK87: 0.01900059 | DL87: 0.018722876 | DM87: 0.018449223 | DN87: 0.018179571 | DO87: 0.017913862 | DP87: 0.017652037 | DQ87: 0.017394041 | DR87: 0.017139817 | DS87: 0.01688931
A88: 0.107782501 | B88: 0.105980943 | C88: 0.104764182 | D88: 0.103250718 | E88: 0.101879902 | F88: 0.097792513 | G88: 0.09765452 | H88: 0.095175471 | I88: 0.09377502 | J88: 0.091908328 | K88: 0.090068195 | L88: 0.089740551 | M88: 0.088998378 | N88: 0.088232021 | O88: 0.085065114 | P88: 0.084248514 | Q88: 0.085903383 | R88: 0.079712888 | S88: 0.077379223 | T88: 0.074977368 | U88: 0.072668308 | V88: 0.071026327 | W88: 0.069622445 | X88: 0.069547136 | Y88: 0.067599864 | Z88: 0.068132818 | AA88: 0.068190284 | AB88: 0.065494889 | AC88: 0.065248271 | AD88: 0.065096462 | AE88: 0.063048742 | AF88: 0.06211564 | AG88: 0.059836291 | AH88: 0.062514957 | AI88: 0.06243691 | AJ88: 0.059883121 | AK88: 0.057207476 | AL88: 0.056424604 | AM88: 0.05565246 | AN88: 0.054890899 | AO88: 0.054139774 | AP88: 0.053398942 | AQ88: 0.053313635 | AR88: 0.053228463 | AS88: 0.053143428 | AT88: 0.053058528 | AU88: 0.052973764 | AV88: 0.052889134 | AW88: 0.05280464 | AX88: 0.05272028 | AY88: 0.052636055 | AZ88: 0.052551964 | BA88: 0.052468007 | BB88: 0.052384184 | BC88: 0.052300494 | BD88: 0.052216938 | BE88: 0.051502414 | BF88: 0.050797681 | BG88: 0.050102605 | BH88: 0.049417052 | BI88: 0.048740893 | BJ88: 0.048073998 | BK88: 0.04741624 | BL88: 0.046767494 | BM88: 0.046127635 | BN88: 0.045496542 | BO88: 0.044874095 | BP88: 0.044260174 | BQ88: 0.043654664 | BR88: 0.043057448 | BS88: 0.042468412 | BT88: 0.041887445 | BU88: 0.041314435 | BV88: 0.040749274 | BW88: 0.040191853 | BX88: 0.039642067 | BY88: 0.039099811 | BZ88: 0.038564981 | CA88: 0.038037476 | CB88: 0.037517195 | CC88: 0.037004038 | CD88: 0.03649791 | CE88: 0.035998712 | CF88: 0.03550635 | CG88: 0.03502073 | CH88: 0.03454176 | CI88: 0.034069348 | CJ88: 0.033603405 | CK88: 0.033143841 | CL88: 0.03269057 | CM88: 0.032243505 | CN88: 0.031802561 | CO88: 0.031367654 | CP88: 0.030938701 | CQ88: 0.030515621 | CR88: 0.030098333 | CS88: 0.029686758 | CT88: 0.029280817 | CU88: 0.028880433 | CV88: 0.028485531 | CW88: 0.028096034 | CX88: 0.027711869 | CY88: 0.027332963 | CZ88: 0.026959243 | DA88: 0.026590639 | DB88: 0.026227081 | DC88: 0.025868499 | DD88: 0.025514825 | DE88: 0.025165991 | DF88: 0.024821933 | DG88: 0.024482583 | DH88: 0.024147878 | DI88: 0.023817754 | DJ88: 0.023492147 | DK88: 0.023170998 | DL88: 0.022854243 | DM88: 0.022541823 | DN88: 0.022233679 | DO88: 0.021929752 | DP88: 0.021629984 | DQ88: 0.021334318 | DR88: 0.021042699 | DS88: 0.02075507
A89: 0.11874271 | B89: 0.117831422 | C89: 0.11522686 | D89: 0.112797182 | E89: 0.11101178 | F89: 0.108635889 | G89: 0.106466703 | H89: 0.103851675 | I89: 0.104932267 | J89: 0.102575054 | K89: 0.09998134 | L89: 0.10054446 | M89: 0.099124944 | N89: 0.095752097 | O89: 0.094107342 | P89: 0.096942098 | Q89: 0.091658096 | R89: 0.088035896 | S89: 0.08459395 | T89: 0.084175253 | U89: 0.083071911 | V89: 0.081513683 | W89: 0.080243445 | X89: 0.076959371 | Y89: 0.077021127 | Z89: 0.077420122 | AA89: 0.075531737 | AB89: 0.074734717 | AC89: 0.074617229 | AD89: 0.074427586 | AE89: 0.071353796 | AF89: 0.070986067 | AG89: 0.07092306 | AH89: 0.072874829 | AI89: 0.06908677 | AJ89: 0.066712929 | AK89: 0.06586234 | AL89: 0.0650226 | AM89: 0.06419357 | AN89: 0.063375112 | AO89: 0.062567093 | AP89: 0.061769378 | AQ89: 0.061670741 | AR89: 0.061572261 | AS89: 0.061473937 | AT89: 0.061375771 | AU89: 0.06127776 | AV89: 0.061179906 | AW89: 0.061082207 | AX89: 0.060984665 | AY89: 0.060887277 | AZ89: 0.060790045 | BA89: 0.060692968 | BB89: 0.060596045 | BC89: 0.060499276 | BD89: 0.060402662 | BE89: 0.059632519 | BF89: 0.058872197 | BG89: 0.058121573 | BH89: 0.057380522 | BI89: 0.056648922 | BJ89: 0.055926652 | BK89: 0.055213594 | BL89: 0.05450963 | BM89: 0.053814644 | BN89: 0.053128521 | BO89: 0.052451149 | BP89: 0.051782416 | BQ89: 0.05112221 | BR89: 0.050470425 | BS89: 0.049826952 | BT89: 0.049191685 | BU89: 0.04856452 | BV89: 0.047945353 | BW89: 0.047334082 | BX89: 0.046730607 | BY89: 0.046134827 | BZ89: 0.045546646 | CA89: 0.044965966 | CB89: 0.044392691 | CC89: 0.043826726 | CD89: 0.043267979 | CE89: 0.042716358 | CF89: 0.042171772 | CG89: 0.04163413 | CH89: 0.041103345 | CI89: 0.040579328 | CJ89: 0.040061994 | CK89: 0.039551258 | CL89: 0.039047034 | CM89: 0.038549241 | CN89: 0.038057795 | CO89: 0.037572617 | CP89: 0.037093626 | CQ89: 0.036620743 | CR89: 0.036153891 | CS89: 0.035692992 | CT89: 0.035237971 | CU89: 0.034788752 | CV89: 0.034345262 | CW89: 0.033907427 | CX89: 0.033475175 | CY89: 0.033048436 | CZ89: 0.032627138 | DA89: 0.032211213 | DB89: 0.031800592 | DC89: 0.031395207 | DD89: 0.030994992 | DE89: 0.03059988 | DF89: 0.030209807 | DG89: 0.029824708 | DH89: 0.02944452 | DI89: 0.029069179 | DJ89: 0.028698626 | DK89: 0.028332797 | DL89: 0.027971634 | DM89: 0.027615075 | DN89: 0.027263064 | DO89: 0.026915542 | DP89: 0.026572451 | DQ89: 0.026233735 | DR89: 0.025899338 | DS89: 0.025569206
A90: 0.131341553 | B90: 0.128093799 | C90: 0.126113662 | D90: 0.123834784 | E90: 0.123208952 | F90: 0.119451994 | G90: 0.117562565 | H90: 0.118347221 | I90: 0.116720915 | J90: 0.115653054 | K90: 0.112975875 | L90: 0.112948815 | M90: 0.110107087 | N90: 0.108251298 | O90: 0.109271933 | P90: 0.105852706 | Q90: 0.099560791 | R90: 0.09443154 | S90: 0.096864594 | T90: 0.094935824 | U90: 0.09397008 | V90: 0.093114141 | W90: 0.088374442 | X90: 0.088776793 | Y90: 0.088882501 | Z90: 0.084926721 | AA90: 0.085977111 | AB90: 0.086230139 | AC90: 0.083862393 | AD90: 0.083733676 | AE90: 0.081307948 | AF90: 0.083853433 | AG90: 0.082176111 | AH90: 0.07992042 | AI90: 0.07713545 | AJ90: 0.076219537 | AK90: 0.07531452 | AL90: 0.074420266 | AM90: 0.073536649 | AN90: 0.072663542 | AO90: 0.071800818 | AP90: 0.070948354 | AQ90: 0.070835076 | AR90: 0.070721978 | AS90: 0.070609061 | AT90: 0.070496323 | AU90: 0.070383764 | AV90: 0.070271385 | AW90: 0.070159185 | AX90: 0.070047164 | AY90: 0.069935321 | AZ90: 0.069823656 | BA90: 0.069712168 | BB90: 0.069600859 | BC90: 0.069489726 | BD90: 0.069378771 | BE90: 0.068555054 | BF90: 0.067741133 | BG90: 0.066936891 | BH90: 0.066142213 | BI90: 0.065356983 | BJ90: 0.064581091 | BK90: 0.063814423 | BL90: 0.063056871 | BM90: 0.062308326 | BN90: 0.06156868 | BO90: 0.060837827 | BP90: 0.060115663 | BQ90: 0.059402084 | BR90: 0.058696987 | BS90: 0.058000272 | BT90: 0.057311838 | BU90: 0.056631587 | BV90: 0.055959422 | BW90: 0.055295245 | BX90: 0.054638963 | BY90: 0.053990481 | BZ90: 0.053349705 | CA90: 0.052716545 | CB90: 0.05209091 | CC90: 0.051472709 | CD90: 0.050861854 | CE90: 0.050258259 | CF90: 0.049661836 | CG90: 0.0490725 | CH90: 0.048490167 | CI90: 0.047914753 | CJ90: 0.047346176 | CK90: 0.046784354 | CL90: 0.046229208 | CM90: 0.045680657 | CN90: 0.045138624 | CO90: 0.04460303 | CP90: 0.044073799 | CQ90: 0.043550856 | CR90: 0.043034125 | CS90: 0.042523532 | CT90: 0.042019005 | CU90: 0.041520471 | CV90: 0.041027859 | CW90: 0.040541099 | CX90: 0.040060121 | CY90: 0.039584855 | CZ90: 0.039115235 | DA90: 0.038651193 | DB90: 0.038192663 | DC90: 0.037739579 | DD90: 0.037291876 | DE90: 0.03684949 | DF90: 0.036412358 | DG90: 0.035980418 | DH90: 0.035553608 | DI90: 0.035131867 | DJ90: 0.034715134 | DK90: 0.03430335 | DL90: 0.033896456 | DM90: 0.033494394 | DN90: 0.033097107 | DO90: 0.032704537 | DP90: 0.03231663 | DQ90: 0.031933328 | DR90: 0.031554578 | DS90: 0.031180325
A91: 0.144325466 | B91: 0.142726404 | C91: 0.137381849 | D91: 0.137498426 | E91: 0.135105691 | F91: 0.130126233 | G91: 0.133107046 | H91: 0.131525639 | I91: 0.128381456 | J91: 0.128752688 | K91: 0.126149997 | L91: 0.122735405 | M91: 0.122568811 | N91: 0.126260305 | O91: 0.117634588 | P91: 0.115117288 | Q91: 0.108338923 | R91: 0.105896175 | S91: 0.107586606 | T91: 0.107604431 | U91: 0.106995293 | V91: 0.102827692 | W91: 0.100801207 | X91: 0.103450943 | Y91: 0.098477119 | Z91: 0.09943132 | AA91: 0.099422633 | AB91: 0.099216181 | AC91: 0.095958202 | AD91: 0.09408629 | AE91: 0.095852845 | AF91: 0.096642421 | AG91: 0.091665211 | AH91: 0.089656418 | AI91: 0.088691641 | AJ91: 0.087737297 | AK91: 0.086793273 | AL91: 0.085859456 | AM91: 0.084935735 | AN91: 0.084022 | AO91: 0.083118141 | AP91: 0.082224052 | AQ91: 0.082092857 | AR91: 0.081961871 | AS91: 0.081831094 | AT91: 0.081700524 | AU91: 0.081570162 | AV91: 0.081440008 | AW91: 0.08131006 | AX91: 0.081180319 | AY91: 0.081050784 | AZ91: 0.080921455 | BA91: 0.080792332 | BB91: 0.080663415 | BC91: 0.080534702 | BD91: 0.080406194 | BE91: 0.079541296 | BF91: 0.078685745 | BG91: 0.077839438 | BH91: 0.077002275 | BI91: 0.076174156 | BJ91: 0.075354982 | BK91: 0.074544657 | BL91: 0.073743083 | BM91: 0.072950166 | BN91: 0.072165812 | BO91: 0.071389926 | BP91: 0.070622418 | BQ91: 0.069863195 | BR91: 0.069112169 | BS91: 0.068369249 | BT91: 0.067634348 | BU91: 0.066907379 | BV91: 0.066188255 | BW91: 0.065476891 | BX91: 0.064773203 | BY91: 0.064077107 | BZ91: 0.063388521 | CA91: 0.062707364 | CB91: 0.062033554 | CC91: 0.061367013 | CD91: 0.06070766 | CE91: 0.060055419 | CF91: 0.059410212 | CG91: 0.058771963 | CH91: 0.058140595 | CI91: 0.057516036 | CJ91: 0.05689821 | CK91: 0.056287045 | CL91: 0.055682468 | CM91: 0.055084409 | CN91: 0.054492796 | CO91: 0.053907559 | CP91: 0.05332863 | CQ91: 0.052755941 | CR91: 0.052189423 | CS91: 0.051629009 | CT91: 0.051074635 | CU91: 0.050526233 | CV91: 0.04998374 | CW91: 0.049447092 | CX91: 0.048916225 | CY91: 0.048391076 | CZ91: 0.047871585 | DA91: 0.047357689 | DB91: 0.046849328 | DC91: 0.046346442 | DD91: 0.045848972 | DE91: 0.045356859 | DF91: 0.044870046 | DG91: 0.044388475 | DH91: 0.043912089 | DI91: 0.043440832 | DJ91: 0.042974649 | DK91: 0.042513485 | DL91: 0.042057286 | DM91: 0.041605998 | DN91: 0.041159567 | DO91: 0.040717942 | DP91: 0.040281071 | DQ91: 0.039848901 | DR91: 0.039421383 | DS91: 0.038998466
A92: 0.156307365 | B92: 0.154446805 | C92: 0.151455784 | D92: 0.146996606 | E92: 0.145930947 | F92: 0.147039393 | G92: 0.145821203 | H92: 0.14563339 | I92: 0.142015965 | J92: 0.143176903 | K92: 0.138748248 | L92: 0.136884399 | M92: 0.141738003 | N92: 0.135612085 | O92: 0.124527467 | P92: 0.12633882 | Q92: 0.120729492 | R92: 0.117890947 | S92: 0.12251223 | T92: 0.122726311 | U92: 0.117752618 | V92: 0.115802107 | W92: 0.116073617 | X92: 0.113907954 | Y92: 0.112294354 | Z92: 0.115097012 | AA92: 0.112878351 | AB92: 0.111685819 | AC92: 0.108902273 | AD92: 0.112157737 | AE92: 0.109352251 | AF92: 0.106526714 | AG92: 0.103482504 | AH92: 0.102478127 | AI92: 0.101483519 | AJ92: 0.100498586 | AK92: 0.099523232 | AL92: 0.098557365 | AM92: 0.097600891 | AN92: 0.096653718 | AO92: 0.095715757 | AP92: 0.094786917 | AQ92: 0.094635746 | AR92: 0.094484815 | AS92: 0.094334124 | AT92: 0.094183672 | AU92: 0.09403346 | AV92: 0.093883486 | AW92: 0.09373375 | AX92: 0.093584252 | AY92: 0.093434992 | AZ92: 0.093285969 | BA92: 0.093137182 | BB92: 0.092988632 | BC92: 0.092840318 | BD92: 0.09269224 | BE92: 0.091792717 | BF92: 0.090901942 | BG92: 0.090019827 | BH92: 0.08914629 | BI92: 0.088281246 | BJ92: 0.087424612 | BK92: 0.086576306 | BL92: 0.085736247 | BM92: 0.084904354 | BN92: 0.084080548 | BO92: 0.08326475 | BP92: 0.082456881 | BQ92: 0.081656865 | BR92: 0.080864625 | BS92: 0.080080085 | BT92: 0.079303169 | BU92: 0.078533804 | BV92: 0.077771916 | BW92: 0.077017432 | BX92: 0.07627028 | BY92: 0.075530387 | BZ92: 0.074797685 | CA92: 0.074072102 | CB92: 0.073353569 | CC92: 0.072642018 | CD92: 0.07193738 | CE92: 0.071239588 | CF92: 0.070548575 | CG92: 0.069864275 | CH92: 0.069186624 | CI92: 0.068515555 | CJ92: 0.067851006 | CK92: 0.067192912 | CL92: 0.06654121 | CM92: 0.065895839 | CN92: 0.065256737 | CO92: 0.064623842 | CP92: 0.063997095 | CQ92: 0.063376435 | CR92: 0.062761804 | CS92: 0.062153141 | CT92: 0.06155039 | CU92: 0.060953493 | CV92: 0.060362393 | CW92: 0.059777033 | CX92: 0.059197357 | CY92: 0.058623311 | CZ92: 0.05805484 | DA92: 0.057491888 | DB92: 0.056934403 | DC92: 0.056382331 | DD92: 0.05583562 | DE92: 0.055294217 | DF92: 0.054758071 | DG92: 0.054227131 | DH92: 0.053701346 | DI92: 0.053180665 | DJ92: 0.05266504 | DK92: 0.052154421 | DL92: 0.05164876 | DM92: 0.051148007 | DN92: 0.050652116 | DO92: 0.050161039 | DP92: 0.049674729 | DQ92: 0.049193141 | DR92: 0.048716227 | DS92: 0.048243943
A93: 0.168422397 | B93: 0.168462448 | C93: 0.164745741 | D93: 0.160137732 | E93: 0.164041559 | F93: 0.162782768 | G93: 0.160584114 | H93: 0.161072043 | I93: 0.160771597 | J93: 0.157552082 | K93: 0.156876828 | L93: 0.15960102 | M93: 0.151819743 | N93: 0.142083385 | O93: 0.142305346 | P93: 0.138706326 | Q93: 0.13686894 | R93: 0.136469967 | S93: 0.135743826 | T93: 0.134839721 | U93: 0.132274181 | V93: 0.135821351 | W93: 0.127423382 | X93: 0.130216106 | Y93: 0.129946258 | Z93: 0.129082529 | AA93: 0.125670653 | AB93: 0.12495892 | AC93: 0.12869298 | AD93: 0.130512992 | AE93: 0.121748241 | AF93: 0.119187967 | AG93: 0.118147262 | AH93: 0.117115701 | AI93: 0.116093201 | AJ93: 0.115079682 | AK93: 0.114075065 | AL93: 0.113079269 | AM93: 0.112092218 | AN93: 0.111113832 | AO93: 0.110144036 | AP93: 0.109182752 | AQ93: 0.109008749 | AR93: 0.108835023 | AS93: 0.108661571 | AT93: 0.108488395 | AU93: 0.108315494 | AV93: 0.108142866 | AW93: 0.107970513 | AX93: 0.107798433 | AY93: 0.107626626 | AZ93: 0.107455091 | BA93: 0.107283828 | BB93: 0.107112837 | BC93: 0.106942118 | BD93: 0.106771669 | BE93: 0.105839829 | BF93: 0.104916166 | BG93: 0.104000609 | BH93: 0.103093085 | BI93: 0.102193524 | BJ93: 0.101301854 | BK93: 0.100418006 | BL93: 0.09954191 | BM93: 0.098673497 | BN93: 0.0978127 | BO93: 0.096959451 | BP93: 0.096113683 | BQ93: 0.09527533 | BR93: 0.094444326 | BS93: 0.093620607 | BT93: 0.092804107 | BU93: 0.091994764 | BV93: 0.091192513 | BW93: 0.090397291 | BX93: 0.089609038 | BY93: 0.088827691 | BZ93: 0.088053189 | CA93: 0.087285471 | CB93: 0.086524478 | CC93: 0.085770151 | CD93: 0.08502243 | CE93: 0.084281256 | CF93: 0.083546574 | CG93: 0.082818324 | CH93: 0.08209645 | CI93: 0.081380896 | CJ93: 0.080671607 | CK93: 0.079968526 | CL93: 0.079271599 | CM93: 0.078580773 | CN93: 0.077895992 | CO93: 0.077217204 | CP93: 0.076544356 | CQ93: 0.075877396 | CR93: 0.075216271 | CS93: 0.074560931 | CT93: 0.073911324 | CU93: 0.0732674 | CV93: 0.072629108 | CW93: 0.0719964 | CX93: 0.071369225 | CY93: 0.070747536 | CZ93: 0.070131284 | DA93: 0.069520421 | DB93: 0.0689149 | DC93: 0.068314674 | DD93: 0.067719695 | DE93: 0.067129919 | DF93: 0.066545298 | DG93: 0.065965789 | DH93: 0.065391345 | DI93: 0.064821923 | DJ93: 0.064257478 | DK93: 0.063697966 | DL93: 0.063143344 | DM93: 0.06259357 | DN93: 0.0620486 | DO93: 0.061508392 | DP93: 0.060972905 | DQ93: 0.060442096 | DR93: 0.059915925 | DS93: 0.059394352
A94: 0.18555533 | B94: 0.181400641 | C94: 0.178259459 | D94: 0.177002993 | E94: 0.181157997 | F94: 0.177952347 | G94: 0.178040349 | H94: 0.177890371 | I94: 0.178027543 | J94: 0.174395204 | K94: 0.178495704 | L94: 0.170377432 | M94: 0.156737597 | N94: 0.161321948 | O94: 0.150490133 | P94: 0.155697138 | Q94: 0.151383728 | R94: 0.151529758 | S94: 0.149218185 | T94: 0.151535951 | U94: 0.152079891 | V94: 0.147049082 | W94: 0.144260304 | X94: 0.146818039 | Y94: 0.144066949 | Z94: 0.142275029 | AA94: 0.140692826 | AB94: 0.144045453 | AC94: 0.14572617 | AD94: 0.139760068 | AE94: 0.13482885 | AF94: 0.133782373 | AG94: 0.132744072 | AH94: 0.131713881 | AI94: 0.130691737 | AJ94: 0.129677575 | AK94: 0.128671333 | AL94: 0.127672947 | AM94: 0.126682356 | AN94: 0.125699498 | AO94: 0.124724311 | AP94: 0.123756735 | AQ94: 0.123559468 | AR94: 0.123362514 | AS94: 0.123165872 | AT94: 0.122969542 | AU94: 0.122773524 | AV94: 0.122577816 | AW94: 0.122382419 | AX94: 0.122187332 | AY94: 0.121992555 | AZ94: 0.121798087 | BA94: 0.121603927 | BB94: 0.121410075 | BC94: 0.121216531 | BD94: 0.121023294 | BE94: 0.120084448 | BF94: 0.119152927 | BG94: 0.118228674 | BH94: 0.117311631 | BI94: 0.116401741 | BJ94: 0.115498949 | BK94: 0.114603197 | BL94: 0.113714431 | BM94: 0.112832595 | BN94: 0.111957634 | BO94: 0.111089495 | BP94: 0.110228123 | BQ94: 0.109373466 | BR94: 0.10852547 | BS94: 0.107684082 | BT94: 0.106849251 | BU94: 0.106020926 | BV94: 0.105199054 | BW94: 0.104383585 | BX94: 0.103574469 | BY94: 0.102771655 | BZ94: 0.101975095 | CA94: 0.101184738 | CB94: 0.100400537 | CC94: 0.099622442 | CD94: 0.098850405 | CE94: 0.09808438 | CF94: 0.097324319 | CG94: 0.096570174 | CH94: 0.0958219 | CI94: 0.095079451 | CJ94: 0.09434278 | CK94: 0.093611842 | CL94: 0.092886592 | CM94: 0.092166986 | CN94: 0.091452979 | CO94: 0.090744528 | CP94: 0.090041588 | CQ94: 0.089344117 | CR94: 0.088652071 | CS94: 0.087965408 | CT94: 0.087284087 | CU94: 0.086608064 | CV94: 0.085937299 | CW94: 0.08527175 | CX94: 0.084611376 | CY94: 0.083956137 | CZ94: 0.083305993 | DA94: 0.082660903 | DB94: 0.082020829 | DC94: 0.08138573 | DD94: 0.080755569 | DE94: 0.080130305 | DF94: 0.079509902 | DG94: 0.07889432 | DH94: 0.078283522 | DI94: 0.077677471 | DJ94: 0.07707613 | DK94: 0.076479461 | DL94: 0.075887429 | DM94: 0.075299996 | DN94: 0.074717127 | DO94: 0.074138787 | DP94: 0.073564939 | DQ94: 0.072995549 | DR94: 0.072430582 | DS94: 0.071870003
A95: 0.200278455 | B95: 0.193818703 | C95: 0.197477999 | D95: 0.19383149 | E95: 0.197327823 | F95: 0.194928813 | G95: 0.1970789 | H95: 0.193243715 | I95: 0.196407398 | J95: 0.199088397 | K95: 0.189896078 | L95: 0.178188934 | M95: 0.179425447 | N95: 0.172669628 | O95: 0.170142727 | P95: 0.173434164 | Q95: 0.169710706 | R95: 0.166788405 | S95: 0.169585265 | T95: 0.173654399 | U95: 0.163813601 | V95: 0.167320055 | W95: 0.163673975 | X95: 0.164331334 | Y95: 0.160422484 | Z95: 0.160999772 | AA95: 0.164263425 | AB95: 0.163145733 | AC95: 0.158826173 | AD95: 0.154592974 | AE95: 0.153500114 | AF95: 0.152414984 | AG95: 0.151337529 | AH95: 0.150267696 | AI95: 0.149205429 | AJ95: 0.148150676 | AK95: 0.147103383 | AL95: 0.146063497 | AM95: 0.145030965 | AN95: 0.144005737 | AO95: 0.142987758 | AP95: 0.14197698 | AQ95: 0.141750899 | AR95: 0.141525177 | AS95: 0.141299811 | AT95: 0.141074803 | AU95: 0.14085015 | AV95: 0.140625853 | AW95: 0.140401911 | AX95: 0.140178324 | AY95: 0.139955091 | AZ95: 0.139732211 | BA95: 0.139509684 | BB95: 0.139287509 | BC95: 0.139065686 | BD95: 0.138844214 | BE95: 0.137862654 | BF95: 0.136888036 | BG95: 0.135920311 | BH95: 0.134959431 | BI95: 0.134005346 | BJ95: 0.13305801 | BK95: 0.132117373 | BL95: 0.131183389 | BM95: 0.13025601 | BN95: 0.129335189 | BO95: 0.128420881 | BP95: 0.127513039 | BQ95: 0.126611616 | BR95: 0.125716569 | BS95: 0.124827851 | BT95: 0.123945418 | BU95: 0.123069225 | BV95: 0.122199228 | BW95: 0.121335383 | BX95: 0.120477646 | BY95: 0.119625975 | BZ95: 0.118780327 | CA95: 0.117940658 | CB95: 0.117106927 | CC95: 0.116279091 | CD95: 0.115457108 | CE95: 0.114640938 | CF95: 0.113830539 | CG95: 0.11302587 | CH95: 0.112226891 | CI95: 0.111433561 | CJ95: 0.110645841 | CK95: 0.10986369 | CL95: 0.109087069 | CM95: 0.10831594 | CN95: 0.107550263 | CO95: 0.10679 | CP95: 0.106035112 | CQ95: 0.105285561 | CR95: 0.10454131 | CS95: 0.103802321 | CT95: 0.103068557 | CU95: 0.102339981 | CV95: 0.101616556 | CW95: 0.100898245 | CX95: 0.100185013 | CY95: 0.099476824 | CZ95: 0.098773642 | DA95: 0.098075431 | DB95: 0.097382157 | DC95: 0.096693784 | DD95: 0.096010278 | DE95: 0.095331604 | DF95: 0.094657728 | DG95: 0.093988617 | DH95: 0.093324236 | DI95: 0.092664552 | DJ95: 0.092009531 | DK95: 0.091359142 | DL95: 0.090713351 | DM95: 0.090072125 | DN95: 0.089435433 | DO95: 0.088803242 | DP95: 0.08817552 | DQ95: 0.087552236 | DR95: 0.086933358 | DS95: 0.086318856
A96: 0.213983162 | B96: 0.212139485 | C96: 0.214069604 | D96: 0.211470207 | E96: 0.215343637 | F96: 0.215277404 | G96: 0.210756176 | H96: 0.211137642 | I96: 0.217418891 | J96: 0.212674034 | K96: 0.195993893 | L96: 0.198683497 | M96: 0.191487239 | N96: 0.195460191 | O96: 0.187829101 | P96: 0.192385922 | Q96: 0.185594752 | R96: 0.186362227 | S96: 0.195887469 | T96: 0.184862784 | U96: 0.186166944 | V96: 0.187809326 | W96: 0.183083276 | X96: 0.182477058 | Y96: 0.1805184 | Z96: 0.187218984 | AA96: 0.185214209 | AB96: 0.177785284 | AC96: 0.174095013 | AD96: 0.173000049 | AE96: 0.171912084 | AF96: 0.170831072 | AG96: 0.169756965 | AH96: 0.168689719 | AI96: 0.167629289 | AJ96: 0.166575629 | AK96: 0.165528694 | AL96: 0.16448844 | AM96: 0.163454823 | AN96: 0.162427799 | AO96: 0.161407325 | AP96: 0.160393357 | AQ96: 0.160138156 | AR96: 0.159883359 | AS96: 0.159628963 | AT96: 0.15937497 | AU96: 0.159121378 | AV96: 0.158868186 | AW96: 0.158615395 | AX96: 0.158363003 | AY96: 0.15811101 | AZ96: 0.157859415 | BA96: 0.157608217 | BB96: 0.157357417 | BC96: 0.157107012 | BD96: 0.156857004 | BE96: 0.155871707 | BF96: 0.154892689 | BG96: 0.153919909 | BH96: 0.152953324 | BI96: 0.151992896 | BJ96: 0.151038582 | BK96: 0.150090344 | BL96: 0.149148141 | BM96: 0.148211934 | BN96: 0.147281683 | BO96: 0.14635735 | BP96: 0.145438896 | BQ96: 0.144526281 | BR96: 0.14361947 | BS96: 0.142718422 | BT96: 0.141823101 | BU96: 0.140933469 | BV96: 0.140049489 | BW96: 0.139171124 | BX96: 0.138298338 | BY96: 0.137431093 | BZ96: 0.136569355 | CA96: 0.135713088 | CB96: 0.134862254 | CC96: 0.13401682 | CD96: 0.133176751 | CE96: 0.13234201 | CF96: 0.131512564 | CG96: 0.130688378 | CH96: 0.129869418 | CI96: 0.12905565 | CJ96: 0.128247041 | CK96: 0.127443556 | CL96: 0.126645164 | CM96: 0.12585183 | CN96: 0.125063521 | CO96: 0.124280207 | CP96: 0.123501853 | CQ96: 0.122728428 | CR96: 0.1219599 | CS96: 0.121196237 | CT96: 0.120437408 | CU96: 0.119683382 | CV96: 0.118934127 | CW96: 0.118189613 | CX96: 0.117449809 | CY96: 0.116714685 | CZ96: 0.11598421 | DA96: 0.115258354 | DB96: 0.114537089 | DC96: 0.113820383 | DD96: 0.113108208 | DE96: 0.112400535 | DF96: 0.111697334 | DG96: 0.110998576 | DH96: 0.110304234 | DI96: 0.109614278 | DJ96: 0.108928681 | DK96: 0.108247414 | DL96: 0.10757045 | DM96: 0.10689776 | DN96: 0.106229318 | DO96: 0.105565096 | DP96: 0.104905066 | DQ96: 0.104249203 | DR96: 0.103597479 | DS96: 0.102949867
A97: 0.23658522 | B97: 0.235511112 | C97: 0.236078802 | D97: 0.230034294 | E97: 0.233947652 | F97: 0.233532434 | G97: 0.228825138 | H97: 0.238969789 | I97: 0.229748651 | J97: 0.225613271 | K97: 0.21574096 | L97: 0.210210828 | M97: 0.214748941 | N97: 0.211069842 | O97: 0.208277488 | P97: 0.206011313 | Q97: 0.213785517 | R97: 0.210079555 | S97: 0.208113362 | T97: 0.207473987 | U97: 0.208710959 | V97: 0.204533038 | W97: 0.2024362 | X97: 0.200757988 | Y97: 0.206038164 | Z97: 0.206415935 | AA97: 0.198542605 | AB97: 0.19416295 | AC97: 0.193042027 | AD97: 0.191927525 | AE97: 0.190819407 | AF97: 0.189717639 | AG97: 0.188622183 | AH97: 0.187533004 | AI97: 0.186450068 | AJ97: 0.185373339 | AK97: 0.184302782 | AL97: 0.183238362 | AM97: 0.182180046 | AN97: 0.181127797 | AO97: 0.180081583 | AP97: 0.17904137 | AQ97: 0.178756447 | AR97: 0.178471974 | AS97: 0.17818795 | AT97: 0.177904375 | AU97: 0.177621249 | AV97: 0.17733857 | AW97: 0.177056337 | AX97: 0.176774551 | AY97: 0.17649321 | AZ97: 0.176212314 | BA97: 0.175931861 | BB97: 0.175651852 | BC97: 0.175372286 | BD97: 0.175093161 | BE97: 0.174081566 | BF97: 0.173075775 | BG97: 0.172075757 | BH97: 0.171081478 | BI97: 0.170092907 | BJ97: 0.169110011 | BK97: 0.168132757 | BL97: 0.167161115 | BM97: 0.166195052 | BN97: 0.165234537 | BO97: 0.164279538 | BP97: 0.163330024 | BQ97: 0.162385965 | BR97: 0.161447329 | BS97: 0.160514085 | BT97: 0.159586204 | BU97: 0.158663654 | BV97: 0.157746406 | BW97: 0.156834429 | BX97: 0.155927693 | BY97: 0.15502617 | BZ97: 0.154129829 | CA97: 0.153238641 | CB97: 0.152352576 | CC97: 0.151471607 | CD97: 0.150595703 | CE97: 0.149724836 | CF97: 0.148858977 | CG97: 0.147998099 | CH97: 0.147142172 | CI97: 0.146291168 | CJ97: 0.145445061 | CK97: 0.144603821 | CL97: 0.143767421 | CM97: 0.142935834 | CN97: 0.142109032 | CO97: 0.141286988 | CP97: 0.140469676 | CQ97: 0.139657067 | CR97: 0.138849136 | CS97: 0.138045855 | CT97: 0.137247199 | CU97: 0.136453141 | CV97: 0.135663654 | CW97: 0.134878714 | CX97: 0.134098293 | CY97: 0.133322366 | CZ97: 0.132550908 | DA97: 0.131783893 | DB97: 0.131021296 | DC97: 0.130263091 | DD97: 0.129509254 | DE97: 0.12875976 | DF97: 0.128014583 | DG97: 0.1272737 | DH97: 0.126537086 | DI97: 0.125804716 | DJ97: 0.125076566 | DK97: 0.124352613 | DL97: 0.123632832 | DM97: 0.122917199 | DN97: 0.122205691 | DO97: 0.121498284 | DP97: 0.120794955 | DQ97: 0.120095681 | DR97: 0.119400438 | DS97: 0.118709203
A98: 0.25062209 | B98: 0.248995216 | C98: 0.248728087 | D98: 0.243873377 | E98: 0.250298517 | F98: 0.251874279 | G98: 0.260215915 | H98: 0.253977605 | I98: 0.243633793 | J98: 0.244302061 | K98: 0.228673535 | L98: 0.233994608 | M98: 0.237259003 | N98: 0.237583997 | O98: 0.226494727 | P98: 0.238038614 | Q98: 0.233227702 | R98: 0.226711912 | S98: 0.231426165 | T98: 0.232233557 | U98: 0.227691317 | V98: 0.226451747 | W98: 0.226489589 | X98: 0.22894457 | Y98: 0.231397174 | Z98: 0.2224374 | AA98: 0.215265848 | AB98: 0.214024398 | AC98: 0.212790041 | AD98: 0.211562737 | AE98: 0.210342446 | AF98: 0.20912913 | AG98: 0.20792275 | AH98: 0.206723266 | AI98: 0.205530641 | AJ98: 0.204344835 | AK98: 0.203165812 | AL98: 0.201993532 | AM98: 0.200827959 | AN98: 0.199669054 | AO98: 0.19851678 | AP98: 0.197371101 | AQ98: 0.197057287 | AR98: 0.196743968 | AS98: 0.196431143 | AT98: 0.196118812 | AU98: 0.195806972 | AV98: 0.195495625 | AW98: 0.195184769 | AX98: 0.194874403 | AY98: 0.194564526 | AZ98: 0.194255138 | BA98: 0.193946238 | BB98: 0.193637825 | BC98: 0.193329899 | BD98: 0.193022459 | BE98: 0.191908232 | BF98: 0.190800387 | BG98: 0.189698886 | BH98: 0.188603695 | BI98: 0.187514777 | BJ98: 0.186432099 | BK98: 0.185355623 | BL98: 0.184285316 | BM98: 0.183221144 | BN98: 0.18216307 | BO98: 0.181111062 | BP98: 0.180065085 | BQ98: 0.179025105 | BR98: 0.177991088 | BS98: 0.176963 | BT98: 0.175940809 | BU98: 0.174924481 | BV98: 0.173913983 | BW98: 0.172909282 | BX98: 0.171910345 | BY98: 0.17091714 | BZ98: 0.169929635 | CA98: 0.168947797 | CB98: 0.167971594 | CC98: 0.167000995 | CD98: 0.166035968 | CE98: 0.165076481 | CF98: 0.164122503 | CG98: 0.163174002 | CH98: 0.162230949 | CI98: 0.161293312 | CJ98: 0.160361061 | CK98: 0.159434164 | CL98: 0.158512592 | CM98: 0.157596315 | CN98: 0.156685302 | CO98: 0.155779524 | CP98: 0.154878951 | CQ98: 0.153983553 | CR98: 0.153093302 | CS98: 0.152208168 | CT98: 0.151328123 | CU98: 0.150453136 | CV98: 0.14958318 | CW98: 0.148718226 | CX98: 0.147858245 | CY98: 0.147003211 | CZ98: 0.146153093 | DA98: 0.145307865 | DB98: 0.144467498 | DC98: 0.143631966 | DD98: 0.14280124 | DE98: 0.141975293 | DF98: 0.141154099 | DG98: 0.14033763 | DH98: 0.139525859 | DI98: 0.138718759 | DJ98: 0.137916305 | DK98: 0.137118469 | DL98: 0.136325225 | DM98: 0.135536548 | DN98: 0.134752411 | DO98: 0.133972788 | DP98: 0.133197654 | DQ98: 0.132426983 | DR98: 0.13166075 | DS98: 0.130898929
A99: 0.266347788 | B99: 0.26076924 | C99: 0.266016265 | D99: 0.260652742 | E99: 0.266958629 | F99: 0.281777166 | G99: 0.27381697 | H99: 0.269299505 | I99: 0.264061277 | J99: 0.258098594 | K99: 0.249735238 | L99: 0.254758516 | M99: 0.259621791 | N99: 0.251245156 | O99: 0.250578899 | P99: 0.262254564 | Q99: 0.249563557 | R99: 0.250704992 | S99: 0.255388198 | T99: 0.246861231 | U99: 0.245561697 | V99: 0.246133158 | W99: 0.249552714 | X99: 0.248506075 | Y99: 0.24142078 | Z99: 0.234175802 | AA99: 0.232824372 | AB99: 0.231480673 | AC99: 0.230144661 | AD99: 0.228816295 | AE99: 0.227495531 | AF99: 0.226182326 | AG99: 0.224876639 | AH99: 0.223578427 | AI99: 0.222287648 | AJ99: 0.22100426 | AK99: 0.219728223 | AL99: 0.218459495 | AM99: 0.217198035 | AN99: 0.215943801 | AO99: 0.214696755 | AP99: 0.213456854 | AQ99: 0.213117234 | AR99: 0.21277815 | AS99: 0.212439601 | AT99: 0.212101587 | AU99: 0.211764107 | AV99: 0.211427159 | AW99: 0.211090744 | AX99: 0.21075486 | AY99: 0.210419506 | AZ99: 0.210084682 | BA99: 0.209750387 | BB99: 0.20941662 | BC99: 0.209083379 | BD99: 0.208750666 | BE99: 0.20754485 | BF99: 0.206345949 | BG99: 0.205153923 | BH99: 0.203968733 | BI99: 0.202790342 | BJ99: 0.201618711 | BK99: 0.200453802 | BL99: 0.199295576 | BM99: 0.198143997 | BN99: 0.196999027 | BO99: 0.195860628 | BP99: 0.194728763 | BQ99: 0.193603396 | BR99: 0.192484489 | BS99: 0.191372007 | BT99: 0.190265913 | BU99: 0.189166171 | BV99: 0.188072745 | BW99: 0.1869856 | BX99: 0.185904699 | BY99: 0.184830007 | BZ99: 0.18376149 | CA99: 0.182699113 | CB99: 0.18164284 | CC99: 0.180592637 | CD99: 0.179548471 | CE99: 0.178510305 | CF99: 0.177478107 | CG99: 0.176451843 | CH99: 0.17543148 | CI99: 0.174416982 | CJ99: 0.173408319 | CK99: 0.172405455 | CL99: 0.171408359 | CM99: 0.170416998 | CN99: 0.169431339 | CO99: 0.16845135 | CP99: 0.167476998 | CQ99: 0.166508253 | CR99: 0.16554508 | CS99: 0.16458745 | CT99: 0.163635331 | CU99: 0.162688691 | CV99: 0.161747499 | CW99: 0.160811725 | CX99: 0.159881336 | CY99: 0.158956304 | CZ99: 0.158036597 | DA99: 0.157122185 | DB99: 0.156213038 | DC99: 0.155309126 | DD99: 0.154410419 | DE99: 0.153516887 | DF99: 0.152628502 | DG99: 0.151745233 | DH99: 0.150867052 | DI99: 0.14999393 | DJ99: 0.149125837 | DK99: 0.148262746 | DL99: 0.147404627 | DM99: 0.146551452 | DN99: 0.145703194 | DO99: 0.144859824 | DP99: 0.144021314 | DQ99: 0.143187636 | DR99: 0.142358763 | DS99: 0.141534668
A100: 0.28510234 | B100: 0.278409128 | C100: 0.283963845 | D100: 0.285247528 | E100: 0.296287714 | F100: 0.296533431 | G100: 0.287582376 | H100: 0.296468204 | I100: 0.279098896 | J100: 0.287660322 | K100: 0.276526935 | L100: 0.272440657 | M100: 0.277302177 | N100: 0.274540812 | O100: 0.278440499 | P100: 0.278349424 | Q100: 0.275439922 | R100: 0.282230559 | S100: 0.279213206 | T100: 0.273068275 | U100: 0.269800912 | V100: 0.275965528 | W100: 0.27581648 | X100: 0.265266203 | Y100: 0.257477804 | Z100: 0.255994078 | AA100: 0.254518808 | AB100: 0.253051949 | AC100: 0.251593452 | AD100: 0.250143273 | AE100: 0.248701364 | AF100: 0.247267681 | AG100: 0.245842177 | AH100: 0.244424806 | AI100: 0.243015525 | AJ100: 0.241614288 | AK100: 0.24022105 | AL100: 0.238835766 | AM100: 0.237458393 | AN100: 0.236088887 | AO100: 0.234727203 | AP100: 0.233373298 | AQ100: 0.233002447 | AR100: 0.23263218 | AS100: 0.232262495 | AT100: 0.231893392 | AU100: 0.231524871 | AV100: 0.231156929 | AW100: 0.230789567 | AX100: 0.230422784 | AY100: 0.230056577 | AZ100: 0.229690948 | BA100: 0.229325894 | BB100: 0.228961415 | BC100: 0.22859751 | BD100: 0.228234178 | BE100: 0.226917383 | BF100: 0.225608116 | BG100: 0.224306336 | BH100: 0.223012 | BI100: 0.221725068 | BJ100: 0.220445498 | BK100: 0.219173249 | BL100: 0.21790828 | BM100: 0.216650549 | BN100: 0.215400018 | BO100: 0.214156644 | BP100: 0.212920388 | BQ100: 0.211691211 | BR100: 0.210469072 | BS100: 0.209253932 | BT100: 0.208045752 | BU100: 0.206844493 | BV100: 0.205650115 | BW100: 0.204462581 | BX100: 0.203281851 | BY100: 0.202107888 | BZ100: 0.200940654 | CA100: 0.19978011 | CB100: 0.198626219 | CC100: 0.197478944 | CD100: 0.196338247 | CE100: 0.195204091 | CF100: 0.19407644 | CG100: 0.192955257 | CH100: 0.191840505 | CI100: 0.190732148 | CJ100: 0.189630151 | CK100: 0.188534476 | CL100: 0.18744509 | CM100: 0.186361955 | CN100: 0.185285037 | CO100: 0.184214301 | CP100: 0.183149712 | CQ100: 0.182091235 | CR100: 0.181038836 | CS100: 0.17999248 | CT100: 0.178952133 | CU100: 0.177917761 | CV100: 0.17688933 | CW100: 0.175866807 | CX100: 0.174850158 | CY100: 0.173839351 | CZ100: 0.172834351 | DA100: 0.171835127 | DB100: 0.170841645 | DC100: 0.169853873 | DD100: 0.168871779 | DE100: 0.167895329 | DF100: 0.166924494 | DG100: 0.16595924 | DH100: 0.164999535 | DI100: 0.16404535 | DJ100: 0.163096651 | DK100: 0.162153408 | DL100: 0.161215591 | DM100: 0.160283167 | DN100: 0.159356108 | DO100: 0.158434381 | DP100: 0.157517958 | DQ100: 0.156606807 | DR100: 0.155700899 | DS100: 0.155291752
A101: 0.294427868 | B101: 0.287215397 | C101: 0.29971418 | D101: 0.317907378 | E101: 0.306765121 | F101: 0.297718434 | G101: 0.309319548 | H101: 0.301797298 | I101: 0.305018541 | J101: 0.304575182 | K101: 0.29549223 | L101: 0.289166877 | M101: 0.297177893 | N101: 0.29910935 | O101: 0.288346105 | P101: 0.304960947 | Q101: 0.301430336 | R101: 0.290454021 | S101: 0.297011047 | T101: 0.29933589 | U101: 0.291460059 | V101: 0.294781706 | W101: 0.284701271 | X101: 0.275128907 | Y101: 0.273539204 | Z101: 0.271958616 | AA101: 0.270387093 | AB101: 0.268824585 | AC101: 0.267271039 | AD101: 0.265726407 | AE101: 0.264190637 | AF101: 0.26266368 | AG101: 0.261145486 | AH101: 0.259636006 | AI101: 0.258135191 | AJ101: 0.256642992 | AK101: 0.255159361 | AL101: 0.253684248 | AM101: 0.252217607 | AN101: 0.250759389 | AO101: 0.249309547 | AP101: 0.247868033 | AQ101: 0.247473193 | AR101: 0.247078977 | AS101: 0.246685386 | AT101: 0.246292417 | AU101: 0.245900071 | AV101: 0.245508345 | AW101: 0.24511724 | AX101: 0.244726753 | AY101: 0.244336885 | AZ101: 0.243947634 | BA101: 0.243559 | BB101: 0.24317098 | BC101: 0.242783575 | BD101: 0.242396783 | BE101: 0.240994991 | BF101: 0.239601255 | BG101: 0.238215531 | BH101: 0.236837773 | BI101: 0.235467936 | BJ101: 0.234105976 | BK101: 0.232751847 | BL101: 0.231405505 | BM101: 0.230066907 | BN101: 0.228736008 | BO101: 0.227412764 | BP101: 0.226097133 | BQ101: 0.224789071 | BR101: 0.223488535 | BS101: 0.222195482 | BT101: 0.220909871 | BU101: 0.219631658 | BV101: 0.218360802 | BW101: 0.217097262 | BX101: 0.215840994 | BY101: 0.214591959 | BZ101: 0.213350115 | CA101: 0.212115421 | CB101: 0.210887837 | CC101: 0.209667322 | CD101: 0.208453836 | CE101: 0.207247338 | CF101: 0.206047791 | CG101: 0.204855152 | CH101: 0.203669384 | CI101: 0.202490448 | CJ101: 0.201318303 | CK101: 0.200152913 | CL101: 0.198994237 | CM101: 0.197842239 | CN101: 0.19669688 | CO101: 0.195558121 | CP101: 0.194425927 | CQ101: 0.193300258 | CR101: 0.192181078 | CS101: 0.19106835 | CT101: 0.189962037 | CU101: 0.188862103 | CV101: 0.18776851 | CW101: 0.186681224 | CX101: 0.185600207 | CY101: 0.184525425 | CZ101: 0.183456841 | DA101: 0.18239442 | DB101: 0.181338128 | DC101: 0.180287928 | DD101: 0.179243786 | DE101: 0.178205668 | DF101: 0.177173539 | DG101: 0.176147365 | DH101: 0.175127112 | DI101: 0.174112746 | DJ101: 0.173104233 | DK101: 0.17210154 | DL101: 0.171104634 | DM101: 0.170113481 | DN101: 0.169128049 | DO101: 0.168148305 | DP101: 0.167174216 | DQ101: 0.16620575 | DR101: 0.165765528 | DS101: 0.165765528
A102: 0.308862061 | B102: 0.305952902 | C102: 0.326000667 | D102: 0.323116038 | E102: 0.323210132 | F102: 0.330973693 | G102: 0.317892632 | H102: 0.330697185 | I102: 0.33335752 | J102: 0.330207056 | K102: 0.316826434 | L102: 0.314474327 | M102: 0.333114166 | N102: 0.31464524 | O102: 0.321096895 | P102: 0.343202652 | Q102: 0.320007695 | R102: 0.318564271 | S102: 0.321274173 | T102: 0.337872242 | U102: 0.319568735 | V102: 0.302315766 | W102: 0.298698326 | X102: 0.296972059 | Y102: 0.295255694 | Z102: 0.293549177 | AA102: 0.291852451 | AB102: 0.290165463 | AC102: 0.288488156 | AD102: 0.286820477 | AE102: 0.285162371 | AF102: 0.283513784 | AG102: 0.281874664 | AH102: 0.280244955 | AI102: 0.278624607 | AJ102: 0.277013564 | AK102: 0.275411776 | AL102: 0.27381919 | AM102: 0.272235754 | AN102: 0.270661416 | AO102: 0.269096125 | AP102: 0.26753983 | AQ102: 0.267113551 | AR102: 0.266687947 | AS102: 0.266263016 | AT102: 0.265838759 | AU102: 0.265415174 | AV102: 0.264992259 | AW102: 0.264570014 | AX102: 0.264148438 | AY102: 0.263727529 | AZ102: 0.263307287 | BA102: 0.262887711 | BB102: 0.262468799 | BC102: 0.262050551 | BD102: 0.261632965 | BE102: 0.260119573 | BF102: 0.258614884 | BG102: 0.257118847 | BH102: 0.255631415 | BI102: 0.254152538 | BJ102: 0.252682168 | BK102: 0.251220257 | BL102: 0.249766756 | BM102: 0.248321619 | BN102: 0.246884797 | BO102: 0.245456244 | BP102: 0.244035913 | BQ102: 0.242623756 | BR102: 0.241219728 | BS102: 0.239823783 | BT102: 0.238435874 | BU102: 0.237055955 | BV102: 0.235683983 | BW102: 0.23431991 | BX102: 0.232963694 | BY102: 0.231615287 | BZ102: 0.230274648 | CA102: 0.22894173 | CB102: 0.227616491 | CC102: 0.226298886 | CD102: 0.224988873 | CE102: 0.223686407 | CF102: 0.222391447 | CG102: 0.221103948 | CH102: 0.21982387 | CI102: 0.218551169 | CJ102: 0.217285803 | CK102: 0.216027731 | CL102: 0.214776911 | CM102: 0.213533302 | CN102: 0.212296862 | CO102: 0.211067552 | CP102: 0.209845329 | CQ102: 0.208630154 | CR102: 0.207421987 | CS102: 0.206220786 | CT102: 0.205026514 | CU102: 0.20383913 | CV102: 0.202658595 | CW102: 0.201484869 | CX102: 0.200317914 | CY102: 0.199157692 | CZ102: 0.198004163 | DA102: 0.196857289 | DB102: 0.195717033 | DC102: 0.194583357 | DD102: 0.193456222 | DE102: 0.192335593 | DF102: 0.19122143 | DG102: 0.190113698 | DH102: 0.18901236 | DI102: 0.187917379 | DJ102: 0.186828718 | DK102: 0.185746342 | DL102: 0.184670215 | DM102: 0.1836003 | DN102: 0.182536563 | DO102: 0.181478968 | DP102: 0.180427479 | DQ102: 0.179929957 | DR102: 0.179929957 | DS102: 0.179929957
A103: 0.324322346 | B103: 0.328198596 | C103: 0.339927016 | D103: 0.322449885 | E103: 0.358468108 | F103: 0.355806475 | G103: 0.348775983 | H103: 0.36376395 | I103: 0.359256888 | J103: 0.351173103 | K103: 0.342639336 | L103: 0.34774497 | M103: 0.346930546 | N103: 0.350665643 | O103: 0.355906298 | P103: 0.353941749 | Q103: 0.333398405 | R103: 0.329483849 | S103: 0.347036572 | T103: 0.358676499 | U103: 0.327312189 | V103: 0.319129392 | W103: 0.317284465 | X103: 0.315450128 | Y103: 0.313626322 | Z103: 0.311812987 | AA103: 0.310010064 | AB103: 0.308217495 | AC103: 0.306435221 | AD103: 0.304663185 | AE103: 0.302901328 | AF103: 0.301149593 | AG103: 0.299407924 | AH103: 0.297676263 | AI103: 0.295954554 | AJ103: 0.29424274 | AK103: 0.292540767 | AL103: 0.290848577 | AM103: 0.289166116 | AN103: 0.287493329 | AO103: 0.285830162 | AP103: 0.284176559 | AQ103: 0.283723627 | AR103: 0.283271414 | AS103: 0.282819917 | AT103: 0.282369135 | AU103: 0.281919068 | AV103: 0.281469713 | AW103: 0.281021071 | AX103: 0.28057314 | AY103: 0.280125919 | AZ103: 0.279679407 | BA103: 0.279233602 | BB103: 0.278788504 | BC103: 0.278344111 | BD103: 0.277900423 | BE103: 0.276292435 | BF103: 0.2746937 | BG103: 0.273104164 | BH103: 0.271523776 | BI103: 0.269952484 | BJ103: 0.268390236 | BK103: 0.266836981 | BL103: 0.265292668 | BM103: 0.263757246 | BN103: 0.262230664 | BO103: 0.260712873 | BP103: 0.259203823 | BQ103: 0.257703463 | BR103: 0.256211745 | BS103: 0.254728619 | BT103: 0.253254036 | BU103: 0.251787949 | BV103: 0.250330308 | BW103: 0.248881065 | BX103: 0.247440173 | BY103: 0.246007585 | BZ103: 0.244583252 | CA103: 0.243167129 | CB103: 0.241759167 | CC103: 0.240359321 | CD103: 0.238967545 | CE103: 0.237583792 | CF103: 0.236208017 | CG103: 0.234840174 | CH103: 0.233480218 | CI103: 0.232128104 | CJ103: 0.230783787 | CK103: 0.229447224 | CL103: 0.228118368 | CM103: 0.226797178 | CN103: 0.225483608 | CO103: 0.224177616 | CP103: 0.222879158 | CQ103: 0.221588191 | CR103: 0.220304672 | CS103: 0.219028559 | CT103: 0.21775981 | CU103: 0.216498382 | CV103: 0.215244233 | CW103: 0.213997322 | CX103: 0.212757608 | CY103: 0.211525049 | CZ103: 0.210299605 | DA103: 0.209081234 | DB103: 0.207869897 | DC103: 0.206665553 | DD103: 0.205468162 | DE103: 0.204277684 | DF103: 0.20309408 | DG103: 0.20191731 | DH103: 0.200747336 | DI103: 0.199584118 | DJ103: 0.198427617 | DK103: 0.197277796 | DL103: 0.196134616 | DM103: 0.194998038 | DN103: 0.193868026 | DO103: 0.192744541 | DP103: 0.192198427 | DQ103: 0.192198427 | DR103: 0.192198427 | DS103: 0.192198427
A104: 0.340218104 | B104: 0.331054454 | C104: 0.349548656 | D104: 0.346554938 | E104: 0.385692262 | F104: 0.390445132 | G104: 0.372331046 | H104: 0.397117952 | I104: 0.376003239 | J104: 0.389486194 | K104: 0.365007381 | L104: 0.350397836 | M104: 0.377167959 | N104: 0.381646528 | O104: 0.374759016 | P104: 0.363775656 | Q104: 0.353984435 | R104: 0.338809611 | S104: 0.363903456 | T104: 0.355842737 | U104: 0.333988578 | V104: 0.332059361 | W104: 0.330141193 | X104: 0.328234013 | Y104: 0.326337759 | Z104: 0.324452371 | AA104: 0.322577788 | AB104: 0.320713948 | AC104: 0.318860792 | AD104: 0.317018261 | AE104: 0.315186294 | AF104: 0.313364832 | AG104: 0.311553816 | AH104: 0.309753188 | AI104: 0.30796289 | AJ104: 0.306182862 | AK104: 0.304413049 | AL104: 0.302653391 | AM104: 0.300903832 | AN104: 0.299164316 | AO104: 0.297434786 | AP104: 0.295715185 | AQ104: 0.295244173 | AR104: 0.294773907 | AS104: 0.294304384 | AT104: 0.293835605 | AU104: 0.293367566 | AV104: 0.292900269 | AW104: 0.29243371 | AX104: 0.29196789 | AY104: 0.291502807 | AZ104: 0.29103846 | BA104: 0.290574847 | BB104: 0.290111968 | BC104: 0.289649822 | BD104: 0.289188406 | BE104: 0.287516164 | BF104: 0.285853529 | BG104: 0.284200446 | BH104: 0.282556861 | BI104: 0.280922721 | BJ104: 0.279297973 | BK104: 0.277682564 | BL104: 0.27607644 | BM104: 0.274479549 | BN104: 0.27289184 | BO104: 0.271313259 | BP104: 0.269743756 | BQ104: 0.268183279 | BR104: 0.266631777 | BS104: 0.2650892 | BT104: 0.263555495 | BU104: 0.262030615 | BV104: 0.260514507 | BW104: 0.259007124 | BX104: 0.257508414 | BY104: 0.256018329 | BZ104: 0.254536821 | CA104: 0.25306384 | CB104: 0.251599338 | CC104: 0.250143267 | CD104: 0.248695578 | CE104: 0.247256226 | CF104: 0.245825161 | CG104: 0.244402337 | CH104: 0.242987707 | CI104: 0.241581225 | CJ104: 0.240182844 | CK104: 0.238792519 | CL104: 0.237410202 | CM104: 0.23603585 | CN104: 0.234669416 | CO104: 0.233310855 | CP104: 0.231960123 | CQ104: 0.230617175 | CR104: 0.229281966 | CS104: 0.227954453 | CT104: 0.226634592 | CU104: 0.225322339 | CV104: 0.224017651 | CW104: 0.222720484 | CX104: 0.221430797 | CY104: 0.220148545 | CZ104: 0.218873687 | DA104: 0.217606181 | DB104: 0.216345984 | DC104: 0.215093056 | DD104: 0.213847353 | DE104: 0.212608836 | DF104: 0.211377463 | DG104: 0.210153193 | DH104: 0.208935986 | DI104: 0.207725802 | DJ104: 0.2065226 | DK104: 0.20532634 | DL104: 0.204136983 | DM104: 0.20295449 | DN104: 0.20177882 | DO104: 0.201210113 | DP104: 0.201210113 | DQ104: 0.201210113 | DR104: 0.201210113 | DS104: 0.201210113
A105: 0.323303807 | B105: 0.345227467 | C105: 0.369895643 | D105: 0.370192674 | E105: 0.395141299 | F105: 0.416049144 | G105: 0.391844155 | H105: 0.417617699 | I105: 0.412533534 | J105: 0.423212645 | K105: 0.359012296 | L105: 0.373790122 | M105: 0.394581929 | N105: 0.391879545 | O105: 0.388165655 | P105: 0.367036823 | Q105: 0.385356607 | R105: 0.337166295 | S105: 0.351377045 | T105: 0.341423012 | U105: 0.339444704 | V105: 0.337477813 | W105: 0.335522273 | X105: 0.333578021 | Y105: 0.331644992 | Z105: 0.329723122 | AA105: 0.327812346 | AB105: 0.325912603 | AC105: 0.324023828 | AD105: 0.322145959 | AE105: 0.320278934 | AF105: 0.31842269 | AG105: 0.316577167 | AH105: 0.314742302 | AI105: 0.312918035 | AJ105: 0.311104305 | AK105: 0.309301053 | AL105: 0.307508217 | AM105: 0.305725739 | AN105: 0.303953559 | AO105: 0.302191618 | AP105: 0.300439857 | AQ105: 0.299960048 | AR105: 0.299481003 | AS105: 0.299002721 | AT105: 0.2985252 | AU105: 0.298048439 | AV105: 0.297572437 | AW105: 0.297097193 | AX105: 0.296622706 | AY105: 0.296148974 | AZ105: 0.295675996 | BA105: 0.295203771 | BB105: 0.294732298 | BC105: 0.294261576 | BD105: 0.293791603 | BE105: 0.292088385 | BF105: 0.290395012 | BG105: 0.288711426 | BH105: 0.287037571 | BI105: 0.285373393 | BJ105: 0.283718835 | BK105: 0.282073842 | BL105: 0.280438359 | BM105: 0.278812332 | BN105: 0.277195707 | BO105: 0.275588429 | BP105: 0.273990445 | BQ105: 0.272401702 | BR105: 0.270822146 | BS105: 0.269251724 | BT105: 0.267690386 | BU105: 0.266138077 | BV105: 0.264594747 | BW105: 0.263060343 | BX105: 0.261534815 | BY105: 0.260018111 | BZ105: 0.258510181 | CA105: 0.257010974 | CB105: 0.255520441 | CC105: 0.254038531 | CD105: 0.252565195 | CE105: 0.251100383 | CF105: 0.249644046 | CG105: 0.248196137 | CH105: 0.246756606 | CI105: 0.245325404 | CJ105: 0.243902485 | CK105: 0.242487801 | CL105: 0.241081303 | CM105: 0.239682946 | CN105: 0.238292682 | CO105: 0.236910464 | CP105: 0.235536247 | CQ105: 0.234169984 | CR105: 0.23281163 | CS105: 0.231461139 | CT105: 0.230118465 | CU105: 0.228783564 | CV105: 0.227456391 | CW105: 0.226136901 | CX105: 0.22482505 | CY105: 0.223520795 | CZ105: 0.222224091 | DA105: 0.220934895 | DB105: 0.219653163 | DC105: 0.218378853 | DD105: 0.217111922 | DE105: 0.215852327 | DF105: 0.214600027 | DG105: 0.213354978 | DH105: 0.21211714 | DI105: 0.21088647 | DJ105: 0.209662928 | DK105: 0.208446472 | DL105: 0.207237061 | DM105: 0.206034655 | DN105: 0.205454977 | DO105: 0.205454977 | DP105: 0.205454977 | DQ105: 0.205454977 | DR105: 0.205454977 | DS105: 0.205454977
A106: 0.314805668 | B106: 0.349374651 | C106: 0.351561225 | D106: 0.364569037 | E106: 0.360480409 | F106: 0.394900224 | G106: 0.382954456 | H106: 0.410531111 | I106: 0.439296677 | J106: 0.423983416 | K106: 0.390009667 | L106: 0.409417583 | M106: 0.400432288 | N106: 0.394882063 | O106: 0.39590117 | P106: 0.361570167 | Q106: 0.378087455 | R106: 0.357140618 | S106: 0.360620443 | T106: 0.358551194 | U106: 0.356493595 | V106: 0.354447582 | W106: 0.352413095 | X106: 0.350390073 | Y106: 0.348378453 | Z106: 0.346378176 | AA106: 0.344389181 | AB106: 0.342411408 | AC106: 0.340444796 | AD106: 0.338489287 | AE106: 0.336544819 | AF106: 0.334611336 | AG106: 0.332688776 | AH106: 0.330777082 | AI106: 0.328876195 | AJ106: 0.326986057 | AK106: 0.32510661 | AL106: 0.323237797 | AM106: 0.321379559 | AN106: 0.319531841 | AO106: 0.317694584 | AP106: 0.315867733 | AQ106: 0.31536732 | AR106: 0.314867688 | AS106: 0.314368836 | AT106: 0.313870762 | AU106: 0.313373466 | AV106: 0.312876947 | AW106: 0.312381202 | AX106: 0.311886232 | AY106: 0.311392034 | AZ106: 0.310898608 | BA106: 0.310405953 | BB106: 0.309914067 | BC106: 0.30942295 | BD106: 0.308932599 | BE106: 0.307155406 | BF106: 0.305388293 | BG106: 0.303631204 | BH106: 0.301884085 | BI106: 0.300146881 | BJ106: 0.298419539 | BK106: 0.296702005 | BL106: 0.294994224 | BM106: 0.293296144 | BN106: 0.291607712 | BO106: 0.289928874 | BP106: 0.288259579 | BQ106: 0.286599773 | BR106: 0.284949406 | BS106: 0.283308424 | BT106: 0.281676777 | BU106: 0.280054414 | BV106: 0.278441282 | BW106: 0.276837332 | BX106: 0.275242513 | BY106: 0.273656774 | BZ106: 0.272080066 | CA106: 0.270512338 | CB106: 0.268953542 | CC106: 0.267403627 | CD106: 0.265862546 | CE106: 0.264330248 | CF106: 0.262806685 | CG106: 0.26129181 | CH106: 0.259785574 | CI106: 0.258287928 | CJ106: 0.256798827 | CK106: 0.255318221 | CL106: 0.253846064 | CM106: 0.25238231 | CN106: 0.250926911 | CO106: 0.249479821 | CP106: 0.248040994 | CQ106: 0.246610384 | CR106: 0.245187945 | CS106: 0.243773632 | CT106: 0.242367399 | CU106: 0.240969202 | CV106: 0.239578996 | CW106: 0.238196736 | CX106: 0.236822377 | CY106: 0.235455877 | CZ106: 0.234097191 | DA106: 0.232746275 | DB106: 0.231403085 | DC106: 0.23006758 | DD106: 0.228739715 | DE106: 0.227419449 | DF106: 0.226106738 | DG106: 0.22480154 | DH106: 0.223503814 | DI106: 0.222213516 | DJ106: 0.220930607 | DK106: 0.219655044 | DL106: 0.218386786 | DM106: 0.217806129 | DN106: 0.217806129 | DO106: 0.217806129 | DP106: 0.217806129 | DQ106: 0.217806129 | DR106: 0.217806129 | DS106: 0.217806129
A107: 0.349298636 | B107: 0.350898339 | C107: 0.372922839 | D107: 0.374749414 | E107: 0.386218558 | F107: 0.389810264 | G107: 0.391965803 | H107: 0.419640824 | I107: 0.419118422 | J107: 0.401643781 | K107: 0.395678163 | L107: 0.377721084 | M107: 0.3760661 | N107: 0.38342676 | O107: 0.366823742 | P107: 0.343740682 | Q107: 0.350026525 | R107: 0.357224362 | S107: 0.355150583 | T107: 0.353088827 | U107: 0.351039026 | V107: 0.349001109 | W107: 0.346975008 | X107: 0.344960655 | Y107: 0.342957983 | Z107: 0.340966923 | AA107: 0.338987408 | AB107: 0.337019372 | AC107: 0.335062749 | AD107: 0.333117472 | AE107: 0.331183477 | AF107: 0.329260697 | AG107: 0.327349067 | AH107: 0.325448525 | AI107: 0.323559004 | AJ107: 0.321680443 | AK107: 0.319812776 | AL107: 0.317955942 | AM107: 0.316109877 | AN107: 0.31427452 | AO107: 0.312449808 | AP107: 0.31063568 | AQ107: 0.310138796 | AR107: 0.309642706 | AS107: 0.309147408 | AT107: 0.308652902 | AU107: 0.308159186 | AV107: 0.307666259 | AW107: 0.30717412 | AX107: 0.306682767 | AY107: 0.306192199 | AZ107: 0.305702416 | BA107: 0.305213415 | BB107: 0.304725195 | BC107: 0.304237756 | BD107: 0.303751096 | BE107: 0.301987425 | BF107: 0.300233986 | BG107: 0.298490717 | BH107: 0.296757562 | BI107: 0.295034461 | BJ107: 0.293321356 | BK107: 0.291618189 | BL107: 0.289924903 | BM107: 0.28824144 | BN107: 0.286567744 | BO107: 0.284903758 | BP107: 0.283249426 | BQ107: 0.281604692 | BR107: 0.2799695 | BS107: 0.278343796 | BT107: 0.276727524 | BU107: 0.27512063 | BV107: 0.273523059 | BW107: 0.271934758 | BX107: 0.270355673 | BY107: 0.26878575 | BZ107: 0.267224936 | CA107: 0.265673179 | CB107: 0.264130426 | CC107: 0.262596625 | CD107: 0.261071725 | CE107: 0.259555673 | CF107: 0.258048419 | CG107: 0.256549911 | CH107: 0.255060099 | CI107: 0.253578932 | CJ107: 0.252106361 | CK107: 0.250642335 | CL107: 0.249186805 | CM107: 0.247739722 | CN107: 0.246301038 | CO107: 0.244870702 | CP107: 0.243448667 | CQ107: 0.242034886 | CR107: 0.240629309 | CS107: 0.239231889 | CT107: 0.23784258 | CU107: 0.236461334 | CV107: 0.235088105 | CW107: 0.233722846 | CX107: 0.23236551 | CY107: 0.231016053 | CZ107: 0.229674427 | DA107: 0.228340589 | DB107: 0.227014492 | DC107: 0.225696093 | DD107: 0.224385345 | DE107: 0.223082206 | DF107: 0.22178663 | DG107: 0.220498575 | DH107: 0.219217996 | DI107: 0.21794485 | DJ107: 0.216679094 | DK107: 0.215420685 | DL107: 0.214861886 | DM107: 0.214861886 | DN107: 0.214861886 | DO107: 0.214861886 | DP107: 0.214861886 | DQ107: 0.214861886 | DR107: 0.214861886 | DS107: 0.214861886
A108: 0.337032811 | B108: 0.339086901 | C108: 0.339792208 | D108: 0.366507703 | E108: 0.379946844 | F108: 0.385568599 | G108: 0.419640824 | H108: 0.416253134 | I108: 0.397757987 | J108: 0.394805647 | K108: 0.381699597 | L108: 0.383275978 | M108: 0.385556623 | N108: 0.368950529 | O108: 0.345589648 | P108: 0.357836631 | Q108: 0.375221341 | R108: 0.373054069 | S108: 0.3708992 | T108: 0.368756664 | U108: 0.366626393 | V108: 0.364508318 | W108: 0.362402373 | X108: 0.360308489 | Y108: 0.358226599 | Z108: 0.356156636 | AA108: 0.354098533 | AB108: 0.352052225 | AC108: 0.350017645 | AD108: 0.347994728 | AE108: 0.345983409 | AF108: 0.343983622 | AG108: 0.341995304 | AH108: 0.340018389 | AI108: 0.338052814 | AJ108: 0.336098516 | AK108: 0.334155431 | AL108: 0.332223497 | AM108: 0.33030265 | AN108: 0.328392828 | AO108: 0.32649397 | AP108: 0.324606014 | AQ108: 0.324088889 | AR108: 0.323572581 | AS108: 0.323057091 | AT108: 0.322542416 | AU108: 0.322028556 | AV108: 0.321515508 | AW108: 0.321003272 | AX108: 0.320491847 | AY108: 0.319981231 | AZ108: 0.319471422 | BA108: 0.318962421 | BB108: 0.318454225 | BC108: 0.317946833 | BD108: 0.317440244 | BE108: 0.315604286 | BF108: 0.313778875 | BG108: 0.311963953 | BH108: 0.31015946 | BI108: 0.308365338 | BJ108: 0.306581528 | BK108: 0.304807971 | BL108: 0.303044611 | BM108: 0.301291388 | BN108: 0.299548247 | BO108: 0.29781513 | BP108: 0.296091981 | BQ108: 0.294378742 | BR108: 0.292675359 | BS108: 0.290981775 | BT108: 0.289297935 | BU108: 0.287623783 | BV108: 0.285959265 | BW108: 0.284304327 | BX108: 0.282658913 | BY108: 0.281022971 | BZ108: 0.279396445 | CA108: 0.277779284 | CB108: 0.276171433 | CC108: 0.27457284 | CD108: 0.272983453 | CE108: 0.271403219 | CF108: 0.269832086 | CG108: 0.268270002 | CH108: 0.266716917 | CI108: 0.265172778 | CJ108: 0.263637536 | CK108: 0.262111139 | CL108: 0.260593537 | CM108: 0.259084681 | CN108: 0.257584519 | CO108: 0.256093004 | CP108: 0.254610086 | CQ108: 0.253135715 | CR108: 0.251669844 | CS108: 0.250212423 | CT108: 0.248763405 | CU108: 0.247322742 | CV108: 0.245890386 | CW108: 0.244466289 | CX108: 0.243050406 | CY108: 0.241642688 | CZ108: 0.240243089 | DA108: 0.238851564 | DB108: 0.237468065 | DC108: 0.236092547 | DD108: 0.234724965 | DE108: 0.233365274 | DF108: 0.232013427 | DG108: 0.230669381 | DH108: 0.229333091 | DI108: 0.228004512 | DJ108: 0.226683601 | DK108: 0.226090406 | DL108: 0.226090406 | DM108: 0.226090406 | DN108: 0.226090406 | DO108: 0.226090406 | DP108: 0.226090406 | DQ108: 0.226090406 | DR108: 0.226090406 | DS108: 0.226090406
A109: 0.377733517 | B109: 0.3875215 | C109: 0.407865979 | D109: 0.399525728 | E109: 0.38230851 | F109: 0.419640824 | G109: 0.412948097 | H109: 0.397215408 | I109: 0.397868693 | J109: 0.387323735 | K109: 0.387436457 | L109: 0.388453671 | M109: 0.371893245 | N109: 0.347991395 | O109: 0.367205294 | P109: 0.390270887 | Q109: 0.388022511 | R109: 0.38578691 | S109: 0.383564017 | T109: 0.381353761 | U109: 0.379156073 | V109: 0.376970887 | W109: 0.374798132 | X109: 0.372637742 | Y109: 0.370489648 | Z109: 0.368353784 | AA109: 0.366230083 | AB109: 0.364118477 | AC109: 0.362018901 | AD109: 0.359931289 | AE109: 0.357855574 | AF109: 0.355791693 | AG109: 0.353739578 | AH109: 0.351699166 | AI109: 0.349670393 | AJ109: 0.347653194 | AK109: 0.345647505 | AL109: 0.343653262 | AM109: 0.341670404 | AN109: 0.339698866 | AO109: 0.337738586 | AP109: 0.335789502 | AQ109: 0.335255623 | AR109: 0.334722585 | AS109: 0.334190385 | AT109: 0.333659023 | AU109: 0.333128497 | AV109: 0.332598807 | AW109: 0.33206995 | AX109: 0.331541926 | AY109: 0.331014733 | AZ109: 0.33048837 | BA109: 0.329962836 | BB109: 0.329438129 | BC109: 0.328914248 | BD109: 0.328391193 | BE109: 0.326495522 | BF109: 0.324610688 | BG109: 0.322736632 | BH109: 0.320873294 | BI109: 0.319020613 | BJ109: 0.317178531 | BK109: 0.315346989 | BL109: 0.313525928 | BM109: 0.311715289 | BN109: 0.309915015 | BO109: 0.308125047 | BP109: 0.306345328 | BQ109: 0.304575801 | BR109: 0.302816409 | BS109: 0.301067096 | BT109: 0.299327804 | BU109: 0.297598478 | BV109: 0.295879062 | BW109: 0.294169501 | BX109: 0.292469739 | BY109: 0.290779722 | BZ109: 0.289099394 | CA109: 0.287428702 | CB109: 0.285767592 | CC109: 0.284116009 | CD109: 0.2824739 | CE109: 0.280841213 | CF109: 0.279217893 | CG109: 0.277603889 | CH109: 0.275999148 | CI109: 0.274403617 | CJ109: 0.272817246 | CK109: 0.271239982 | CL109: 0.269671775 | CM109: 0.268112573 | CN109: 0.266562325 | CO109: 0.265020981 | CP109: 0.263488491 | CQ109: 0.261964804 | CR109: 0.260449872 | CS109: 0.258943645 | CT109: 0.257446073 | CU109: 0.255957108 | CV109: 0.254476701 | CW109: 0.253004804 | CX109: 0.251541368 | CY109: 0.250086346 | CZ109: 0.24863969 | DA109: 0.247201353 | DB109: 0.245771288 | DC109: 0.244349448 | DD109: 0.242935786 | DE109: 0.241530256 | DF109: 0.240132813 | DG109: 0.238743409 | DH109: 0.237362 | DI109: 0.23598854 | DJ109: 0.235387228 | DK109: 0.235387228 | DL109: 0.235387228 | DM109: 0.235387228 | DN109: 0.235387228 | DO109: 0.235387228 | DP109: 0.235387228 | DQ109: 0.235387228 | DR109: 0.235387228 | DS109: 0.235387228
